Workbook

Sheet Capital Costs
B1: Workpaper Title
B2: =ReportAssumptions!C3 -> EV-HP
B3: Witness
B4: Woo-Jin Shim
B6: Summary Total
B8: Project Costs ($ Millions) | D8: 2018 | E8: 2019 | F8: 2020 | G8: 2021 | H8: 2022 | I8: Total
B9: CPUC Direct Costs | I9: =SUM(D9:H9) -> 0
B10: FERC Costs | I10: =SUM(D10:H10) -> 0
B11: Total Direct Capital | D11: =D9+D10 -> 0 | E11: =E9+E10 -> 0 | F11: 0 | G11: 0 | H11: 0 | I11: =SUM(D11:H11) -> 0
B13: Escalation Rates
B14: Escalation Impact | D14: =D11*D13 -> 0 | E14: =E11*E13 -> 0 | F14: 0 | G14: 0 | H14: 0 | I14: =SUM(D14:H14) -> 0
B16: Total Escalated Direct Costs | D16: =D14+D11 -> 0 | E16: =E14+E11 -> 0 | F16: 0 | G16: 0 | H16: 0 | I16: =SUM(D16:H16) -> 0
B18: CPUC Loaders | I18: =SUM(D18:H18) -> 0
B19: FERC Loaders | I19: =SUM(D19:H19) -> 0
B20: Total Loaders Impact | D20: =SUM(D18:D19) -> 0 | E20: =SUM(E18:E19) -> 0 | F20: =SUM(F18:F19) -> 0 | G20: =SUM(G18:G19) -> 0 | H20: =SUM(H18:H19) -> 0 | I20: =SUM(D20:H20) -> 0
B22: Total Capital (Loaded & Escalated) | D22: =D20+D16 -> 0 | E22: =E20+E16 -> 0 | F22: =F20+F16 -> 0 | G22: =G20+G16 -> 0 | H22: =H20+H16 -> 0 | I22: =SUM(D22:H22) -> 0
B25: Figures may not sum due to rounding

Sheet Rev Req
B1: =ReportAssumptions!C2 -> San Diego Gas & Electric
B2: =ReportAssumptions!C3 -> EV-HP
B3: ="Revenue Requirement Summary ($ in "&ReportAssumptions!C9& ")" -> Revenue Requirement Summary ($ in Dollars)
C6: Total | D6: =DataFromEngine!J12 -> 2018 | E6: =DataFromEngine!K12 -> 2019 | F6: =DataFromEngine!L12 -> 2020 | G6: =DataFromEngine!M12 -> 2021 | H6: =DataFromEngine!N12 -> 2022 | I6: =DataFromEngine!O12 -> 2023 | J6: =DataFromEngine!P12 -> 2024 | K6: =DataFromEngine!Q12 -> 2025 | L6: =DataFromEngine!R12 -> 2026 | M6: =DataFromEngine!S12 -> 2027 | N6: =DataFromEngine!T12 -> 2028 | O6: =DataFromEngine!U12 -> 2029 | P6: =DataFromEngine!V12 -> 2030 | Q6: =DataFromEngine!W12 -> 2031 | R6: =DataFromEngine!X12 -> 2032 | S6: =DataFromEngine!Y12 -> 2033 | T6: =DataFromEngine!Z12 -> 2034 | U6: =DataFromEngine!AA12 -> 2035 | V6: =DataFromEngine!AB12 -> 2036 | W6: =DataFromEngine!AC12 -> 2037 | X6: =DataFromEngine!AD12 -> 2038 | Y6: =DataFromEngine!AE12 -> 2039 | Z6: =DataFromEngine!AF12 -> 2040 | AA6: =DataFromEngine!AG12 -> 2041 | AB6: =DataFromEngine!AH12 -> 2042 | AC6: =DataFromEngine!AI12 -> 2043 | AD6: =DataFromEngine!AJ12 -> 2044 | AE6: =DataFromEngine!AK12 -> 2045 | AF6: =DataFromEngine!AL12 -> 2046 | AG6: =DataFromEngine!AM12 -> 2047 | AH6: =DataFromEngine!AN12 -> 2048 | AI6: =DataFromEngine!AO12 -> 2049 | AJ6: =DataFromEngine!AP12 -> 2050 | AK6: =DataFromEngine!AQ12 -> 2051 | AL6: =DataFromEngine!AR12 -> 2052 | AM6: =DataFromEngine!AS12 -> 2053 | AN6: =DataFromEngine!AT12 -> 2054 | AO6: =DataFromEngine!AU12 -> 2055 | AP6: =DataFromEngine!AV12 -> 2056 | AQ6: =DataFromEngine!AW12 -> 2057 | AR6: =DataFromEngine!AX12 -> 2058 | AS6: =DataFromEngine!AY12 -> 2059 | AT6: =DataFromEngine!AZ12 -> 2060 | AU6: =DataFromEngine!BA12 -> 2061 | AV6: =DataFromEngine!BB12 -> 2062 | AW6: =DataFromEngine!BC12 -> 2063 | AX6: =DataFromEngine!BD12 -> 2064 | AY6: =DataFromEngine!BE12 -> 2065 | AZ6: =DataFromEngine!BF12 -> 2066 | BA6: =DataFromEngine!BG12 -> 2067 | BB6: =DataFromEngine!BH12 -> 2068
B7: Revenue Requirement | C7: =SUM(D7:BB7) -> 1107726.766 | D7: =SUM(D8:D17) -> 0 | E7: =SUM(E8:E17) -> 0 | F7: =SUM(F8:F17) -> 824563.3735 | G7: =SUM(G8:G17) -> 283228.8278 | H7: -67.16645234 | I7: 1.777192162 | J7: -0.047023654 | K7: 0.001244223 | L7: -3.2922e-05 | M7: 8.71e-07 | N7: -2.3e-08 | O7: 1e-09 | P7: 0 | Q7: 0 | R7: 0 | S7: 0 | T7: 0 | U7: 0 | V7: 0 | W7: 0 | X7: 0 | Y7: 0 | Z7: 0 | AA7: 0 | AB7: 0 | AC7: 0 | AD7: 0 | AE7: 0 | AF7: 0 | AG7: 0 | AH7: 0 | AI7: 0 | AJ7: 0 | AK7: 0 | AL7: 0 | AM7: 0 | AN7: 0 | AO7: 0 | AP7: 0 | AQ7: 0 | AR7: 0 | AS7: 0 | AT7: 0 | AU7: 0 | AV7: 0 | AW7: 0 | AX7: 0 | AY7: 0 | AZ7: 0 | BA7: 0 | BB7: 0
B8: FF&U: | C8: 39826.50473 | D8: =(ROUND(DataFromEngine!J100,8))/Scale -> 0 | E8: =(ROUND(DataFromEngine!K100,9))/Scale -> 0 | F8: =(ROUND(DataFromEngine!L100,9))/Scale -> 29645.82792 | G8: =(ROUND(DataFromEngine!M100,9))/Scale -> 10183.02942 | H8: =(ROUND(DataFromEngine!N100,9))/Scale -> -2.414859975 | I8: =(ROUND(DataFromEngine!O100,9))/Scale -> 0.063896038 | J8: =(ROUND(DataFromEngine!P100,9))/Scale -> -0.001690659 | K8: =(ROUND(DataFromEngine!Q100,9))/Scale -> 4.4734e-05 | L8: =(ROUND(DataFromEngine!R100,9))/Scale -> -1.184e-06 | M8: =(ROUND(DataFromEngine!S100,9))/Scale -> 3.1e-08 | N8: =(ROUND(DataFromEngine!T100,9))/Scale -> -1e-09 | O8: =(ROUND(DataFromEngine!U100,9))/Scale -> 0 | P8: =(ROUND(DataFromEngine!V100,9))/Scale -> 0 | Q8: =(ROUND(DataFromEngine!W100,9))/Scale -> 0 | R8: =(ROUND(DataFromEngine!X100,9))/Scale -> 0 | S8: =(ROUND(DataFromEngine!Y100,9))/Scale -> 0 | T8: =(ROUND(DataFromEngine!Z100,9))/Scale -> 0 | U8: =(ROUND(DataFromEngine!AA100,9))/Scale -> 0 | V8: =(ROUND(DataFromEngine!AB100,9))/Scale -> 0 | W8: =(ROUND(DataFromEngine!AC100,9))/Scale -> 0 | X8: =(ROUND(DataFromEngine!AD100,9))/Scale -> 0 | Y8: =(ROUND(DataFromEngine!AE100,9))/Scale -> 0 | Z8: =(ROUND(DataFromEngine!AF100,9))/Scale -> 0 | AA8: =(ROUND(DataFromEngine!AG100,9))/Scale -> 0 | AB8: =(ROUND(DataFromEngine!AH100,9))/Scale -> 0 | AC8: =(ROUND(DataFromEngine!AI100,9))/Scale -> 0 | AD8: =(ROUND(DataFromEngine!AJ100,9))/Scale -> 0 | AE8: =(ROUND(DataFromEngine!AK100,9))/Scale -> 0 | AF8: =(ROUND(DataFromEngine!AL100,9))/Scale -> 0 | AG8: =(ROUND(DataFromEngine!AM100,9))/Scale -> 0 | AH8: =(ROUND(DataFromEngine!AN100,9))/Scale -> 0 | AI8: =(ROUND(DataFromEngine!AO100,9))/Scale -> 0 | AJ8: =(ROUND(DataFromEngine!AP100,9))/Scale -> 0 | AK8: =(ROUND(DataFromEngine!AQ100,9))/Scale -> 0 | AL8: =(ROUND(DataFromEngine!AR100,9))/Scale -> 0 | AM8: =(ROUND(DataFromEngine!AS100,9))/Scale -> 0 | AN8: =(ROUND(DataFromEngine!AT100,9))/Scale -> 0 | AO8: =(ROUND(DataFromEngine!AU100,9))/Scale -> 0 | AP8: =(ROUND(DataFromEngine!AV100,9))/Scale -> 0 | AQ8: =(ROUND(DataFromEngine!AW100,9))/Scale -> 0 | AR8: =(ROUND(DataFromEngine!AX100,9))/Scale -> 0 | AS8: =(ROUND(DataFromEngine!AY100,9))/Scale -> 0 | AT8: =(ROUND(DataFromEngine!AZ100,9))/Scale -> 0 | AU8: =(ROUND(DataFromEngine!BA100,9))/Scale -> 0 | AV8: =(ROUND(DataFromEngine!BB100,9))/Scale -> 0 | AW8: =(ROUND(DataFromEngine!BC100,9))/Scale -> 0 | AX8: =(ROUND(DataFromEngine!BD100,9))/Scale -> 0 | AY8: =(ROUND(DataFromEngine!BE100,9))/Scale -> 0 | AZ8: =(ROUND(DataFromEngine!BF100,9))/Scale -> 0 | BA8: =(ROUND(DataFromEngine!BG100,9))/Scale -> 0 | BB8: =(ROUND(DataFromEngine!BH100,9))/Scale -> 0
B9: O&M: | C9: 1053312.484 | D9: =(ROUND(DataFromEngine!J101,8))/Scale -> 0 | E9: =(ROUND(DataFromEngine!K101,9))/Scale -> 0 | F9: =(ROUND(DataFromEngine!L101,9))/Scale -> 783945.9768 | G9: =(ROUND(DataFromEngine!M101,9))/Scale -> 269366.5068 | H9: =(ROUND(DataFromEngine!N101,9))/Scale -> 0 | I9: =(ROUND(DataFromEngine!O101,9))/Scale -> 0 | J9: =(ROUND(DataFromEngine!P101,9))/Scale -> 0 | K9: =(ROUND(DataFromEngine!Q101,9))/Scale -> 0 | L9: =(ROUND(DataFromEngine!R101,9))/Scale -> 0 | M9: =(ROUND(DataFromEngine!S101,9))/Scale -> 0 | N9: =(ROUND(DataFromEngine!T101,9))/Scale -> 0 | O9: =(ROUND(DataFromEngine!U101,9))/Scale -> 0 | P9: =(ROUND(DataFromEngine!V101,9))/Scale -> 0 | Q9: =(ROUND(DataFromEngine!W101,9))/Scale -> 0 | R9: =(ROUND(DataFromEngine!X101,9))/Scale -> 0 | S9: =(ROUND(DataFromEngine!Y101,9))/Scale -> 0 | T9: =(ROUND(DataFromEngine!Z101,9))/Scale -> 0 | U9: =(ROUND(DataFromEngine!AA101,9))/Scale -> 0 | V9: =(ROUND(DataFromEngine!AB101,9))/Scale -> 0 | W9: =(ROUND(DataFromEngine!AC101,9))/Scale -> 0 | X9: =(ROUND(DataFromEngine!AD101,9))/Scale -> 0 | Y9: =(ROUND(DataFromEngine!AE101,9))/Scale -> 0 | Z9: =(ROUND(DataFromEngine!AF101,9))/Scale -> 0 | AA9: =(ROUND(DataFromEngine!AG101,9))/Scale -> 0 | AB9: =(ROUND(DataFromEngine!AH101,9))/Scale -> 0 | AC9: =(ROUND(DataFromEngine!AI101,9))/Scale -> 0 | AD9: =(ROUND(DataFromEngine!AJ101,9))/Scale -> 0 | AE9: =(ROUND(DataFromEngine!AK101,9))/Scale -> 0 | AF9: =(ROUND(DataFromEngine!AL101,9))/Scale -> 0 | AG9: =(ROUND(DataFromEngine!AM101,9))/Scale -> 0 | AH9: =(ROUND(DataFromEngine!AN101,9))/Scale -> 0 | AI9: =(ROUND(DataFromEngine!AO101,9))/Scale -> 0 | AJ9: =(ROUND(DataFromEngine!AP101,9))/Scale -> 0 | AK9: =(ROUND(DataFromEngine!AQ101,9))/Scale -> 0 | AL9: =(ROUND(DataFromEngine!AR101,9))/Scale -> 0 | AM9: =(ROUND(DataFromEngine!AS101,9))/Scale -> 0 | AN9: =(ROUND(DataFromEngine!AT101,9))/Scale -> 0 | AO9: =(ROUND(DataFromEngine!AU101,9))/Scale -> 0 | AP9: =(ROUND(DataFromEngine!AV101,9))/Scale -> 0 | AQ9: =(ROUND(DataFromEngine!AW101,9))/Scale -> 0 | AR9: =(ROUND(DataFromEngine!AX101,9))/Scale -> 0 | AS9: =(ROUND(DataFromEngine!AY101,9))/Scale -> 0 | AT9: =(ROUND(DataFromEngine!AZ101,9))/Scale -> 0 | AU9: =(ROUND(DataFromEngine!BA101,9))/Scale -> 0 | AV9: =(ROUND(DataFromEngine!BB101,9))/Scale -> 0 | AW9: =(ROUND(DataFromEngine!BC101,9))/Scale -> 0 | AX9: =(ROUND(DataFromEngine!BD101,9))/Scale -> 0 | AY9: =(ROUND(DataFromEngine!BE101,9))/Scale -> 0 | AZ9: =(ROUND(DataFromEngine!BF101,9))/Scale -> 0 | BA9: =(ROUND(DataFromEngine!BG101,9))/Scale -> 0 | BB9: =(ROUND(DataFromEngine!BH101,9))/Scale -> 0
B10: Working Capital: | C10: 14587.77796 | D10: =(ROUND(DataFromEngine!J102,8))/Scale -> 0 | E10: =(ROUND(DataFromEngine!K102,9))/Scale -> 0 | F10: =(ROUND(DataFromEngine!L102,9))/Scale -> 10971.56883 | G10: =(ROUND(DataFromEngine!M102,9))/Scale -> 3679.291591 | H10: =(ROUND(DataFromEngine!N102,9))/Scale -> -64.75159237 | I10: =(ROUND(DataFromEngine!O102,9))/Scale -> 1.713296124 | J10: =(ROUND(DataFromEngine!P102,9))/Scale -> -0.045332995 | K10: =(ROUND(DataFromEngine!Q102,9))/Scale -> 0.001199489 | L10: =(ROUND(DataFromEngine!R102,9))/Scale -> -3.1738e-05 | M10: =(ROUND(DataFromEngine!S102,9))/Scale -> 8.4e-07 | N10: =(ROUND(DataFromEngine!T102,9))/Scale -> -2.2e-08 | O10: =(ROUND(DataFromEngine!U102,9))/Scale -> 1e-09 | P10: =(ROUND(DataFromEngine!V102,9))/Scale -> 0 | Q10: =(ROUND(DataFromEngine!W102,9))/Scale -> 0 | R10: =(ROUND(DataFromEngine!X102,9))/Scale -> 0 | S10: =(ROUND(DataFromEngine!Y102,9))/Scale -> 0 | T10: =(ROUND(DataFromEngine!Z102,9))/Scale -> 0 | U10: =(ROUND(DataFromEngine!AA102,9))/Scale -> 0 | V10: =(ROUND(DataFromEngine!AB102,9))/Scale -> 0 | W10: =(ROUND(DataFromEngine!AC102,9))/Scale -> 0 | X10: =(ROUND(DataFromEngine!AD102,9))/Scale -> 0 | Y10: =(ROUND(DataFromEngine!AE102,9))/Scale -> 0 | Z10: =(ROUND(DataFromEngine!AF102,9))/Scale -> 0 | AA10: =(ROUND(DataFromEngine!AG102,9))/Scale -> 0 | AB10: =(ROUND(DataFromEngine!AH102,9))/Scale -> 0 | AC10: =(ROUND(DataFromEngine!AI102,9))/Scale -> 0 | AD10: =(ROUND(DataFromEngine!AJ102,9))/Scale -> 0 | AE10: =(ROUND(DataFromEngine!AK102,9))/Scale -> 0 | AF10: =(ROUND(DataFromEngine!AL102,9))/Scale -> 0 | AG10: =(ROUND(DataFromEngine!AM102,9))/Scale -> 0 | AH10: =(ROUND(DataFromEngine!AN102,9))/Scale -> 0 | AI10: =(ROUND(DataFromEngine!AO102,9))/Scale -> 0 | AJ10: =(ROUND(DataFromEngine!AP102,9))/Scale -> 0 | AK10: =(ROUND(DataFromEngine!AQ102,9))/Scale -> 0 | AL10: =(ROUND(DataFromEngine!AR102,9))/Scale -> 0 | AM10: =(ROUND(DataFromEngine!AS102,9))/Scale -> 0 | AN10: =(ROUND(DataFromEngine!AT102,9))/Scale -> 0 | AO10: =(ROUND(DataFromEngine!AU102,9))/Scale -> 0 | AP10: =(ROUND(DataFromEngine!AV102,9))/Scale -> 0 | AQ10: =(ROUND(DataFromEngine!AW102,9))/Scale -> 0 | AR10: =(ROUND(DataFromEngine!AX102,9))/Scale -> 0 | AS10: =(ROUND(DataFromEngine!AY102,9))/Scale -> 0 | AT10: =(ROUND(DataFromEngine!AZ102,9))/Scale -> 0 | AU10: =(ROUND(DataFromEngine!BA102,9))/Scale -> 0 | AV10: =(ROUND(DataFromEngine!BB102,9))/Scale -> 0 | AW10: =(ROUND(DataFromEngine!BC102,9))/Scale -> 0 | AX10: =(ROUND(DataFromEngine!BD102,9))/Scale -> 0 | AY10: =(ROUND(DataFromEngine!BE102,9))/Scale -> 0 | AZ10: =(ROUND(DataFromEngine!BF102,9))/Scale -> 0 | BA10: =(ROUND(DataFromEngine!BG102,9))/Scale -> 0 | BB10: =(ROUND(DataFromEngine!BH102,9))/Scale -> 0
B11: Depreciation: | C11: 0 | D11: =(ROUND(DataFromEngine!J103,8))/Scale -> 0 | E11: =(ROUND(DataFromEngine!K103,9))/Scale -> 0 | F11: =(ROUND(DataFromEngine!L103,9))/Scale -> 0 | G11: =(ROUND(DataFromEngine!M103,9))/Scale -> 0 | H11: =(ROUND(DataFromEngine!N103,9))/Scale -> 0 | I11: =(ROUND(DataFromEngine!O103,9))/Scale -> 0 | J11: =(ROUND(DataFromEngine!P103,9))/Scale -> 0 | K11: =(ROUND(DataFromEngine!Q103,9))/Scale -> 0 | L11: =(ROUND(DataFromEngine!R103,9))/Scale -> 0 | M11: =(ROUND(DataFromEngine!S103,9))/Scale -> 0 | N11: =(ROUND(DataFromEngine!T103,9))/Scale -> 0 | O11: =(ROUND(DataFromEngine!U103,9))/Scale -> 0 | P11: =(ROUND(DataFromEngine!V103,9))/Scale -> 0 | Q11: =(ROUND(DataFromEngine!W103,9))/Scale -> 0 | R11: =(ROUND(DataFromEngine!X103,9))/Scale -> 0 | S11: =(ROUND(DataFromEngine!Y103,9))/Scale -> 0 | T11: =(ROUND(DataFromEngine!Z103,9))/Scale -> 0 | U11: =(ROUND(DataFromEngine!AA103,9))/Scale -> 0 | V11: =(ROUND(DataFromEngine!AB103,9))/Scale -> 0 | W11: =(ROUND(DataFromEngine!AC103,9))/Scale -> 0 | X11: =(ROUND(DataFromEngine!AD103,9))/Scale -> 0 | Y11: =(ROUND(DataFromEngine!AE103,9))/Scale -> 0 | Z11: =(ROUND(DataFromEngine!AF103,9))/Scale -> 0 | AA11: =(ROUND(DataFromEngine!AG103,9))/Scale -> 0 | AB11: =(ROUND(DataFromEngine!AH103,9))/Scale -> 0 | AC11: =(ROUND(DataFromEngine!AI103,9))/Scale -> 0 | AD11: =(ROUND(DataFromEngine!AJ103,9))/Scale -> 0 | AE11: =(ROUND(DataFromEngine!AK103,9))/Scale -> 0 | AF11: =(ROUND(DataFromEngine!AL103,9))/Scale -> 0 | AG11: =(ROUND(DataFromEngine!AM103,9))/Scale -> 0 | AH11: =(ROUND(DataFromEngine!AN103,9))/Scale -> 0 | AI11: =(ROUND(DataFromEngine!AO103,9))/Scale -> 0 | AJ11: =(ROUND(DataFromEngine!AP103,9))/Scale -> 0 | AK11: =(ROUND(DataFromEngine!AQ103,9))/Scale -> 0 | AL11: =(ROUND(DataFromEngine!AR103,9))/Scale -> 0 | AM11: =(ROUND(DataFromEngine!AS103,9))/Scale -> 0 | AN11: =(ROUND(DataFromEngine!AT103,9))/Scale -> 0 | AO11: =(ROUND(DataFromEngine!AU103,9))/Scale -> 0 | AP11: =(ROUND(DataFromEngine!AV103,9))/Scale -> 0 | AQ11: =(ROUND(DataFromEngine!AW103,9))/Scale -> 0 | AR11: =(ROUND(DataFromEngine!AX103,9))/Scale -> 0 | AS11: =(ROUND(DataFromEngine!AY103,9))/Scale -> 0 | AT11: =(ROUND(DataFromEngine!AZ103,9))/Scale -> 0 | AU11: =(ROUND(DataFromEngine!BA103,9))/Scale -> 0 | AV11: =(ROUND(DataFromEngine!BB103,9))/Scale -> 0 | AW11: =(ROUND(DataFromEngine!BC103,9))/Scale -> 0 | AX11: =(ROUND(DataFromEngine!BD103,9))/Scale -> 0 | AY11: =(ROUND(DataFromEngine!BE103,9))/Scale -> 0 | AZ11: =(ROUND(DataFromEngine!BF103,9))/Scale -> 0 | BA11: =(ROUND(DataFromEngine!BG103,9))/Scale -> 0 | BB11: =(ROUND(DataFromEngine!BH103,9))/Scale -> 0
B12: Return on Common: | C12: 0 | D12: =(ROUND(DataFromEngine!J104,8))/Scale -> 0 | E12: =(ROUND(DataFromEngine!K104,9))/Scale -> 0 | F12: =(ROUND(DataFromEngine!L104,9))/Scale -> 0 | G12: =(ROUND(DataFromEngine!M104,9))/Scale -> 0 | H12: =(ROUND(DataFromEngine!N104,9))/Scale -> 0 | I12: =(ROUND(DataFromEngine!O104,9))/Scale -> 0 | J12: =(ROUND(DataFromEngine!P104,9))/Scale -> 0 | K12: =(ROUND(DataFromEngine!Q104,9))/Scale -> 0 | L12: =(ROUND(DataFromEngine!R104,9))/Scale -> 0 | M12: =(ROUND(DataFromEngine!S104,9))/Scale -> 0 | N12: =(ROUND(DataFromEngine!T104,9))/Scale -> 0 | O12: =(ROUND(DataFromEngine!U104,9))/Scale -> 0 | P12: =(ROUND(DataFromEngine!V104,9))/Scale -> 0 | Q12: =(ROUND(DataFromEngine!W104,9))/Scale -> 0 | R12: =(ROUND(DataFromEngine!X104,9))/Scale -> 0 | S12: =(ROUND(DataFromEngine!Y104,9))/Scale -> 0 | T12: =(ROUND(DataFromEngine!Z104,9))/Scale -> 0 | U12: =(ROUND(DataFromEngine!AA104,9))/Scale -> 0 | V12: =(ROUND(DataFromEngine!AB104,9))/Scale -> 0 | W12: =(ROUND(DataFromEngine!AC104,9))/Scale -> 0 | X12: =(ROUND(DataFromEngine!AD104,9))/Scale -> 0 | Y12: =(ROUND(DataFromEngine!AE104,9))/Scale -> 0 | Z12: =(ROUND(DataFromEngine!AF104,9))/Scale -> 0 | AA12: =(ROUND(DataFromEngine!AG104,9))/Scale -> 0 | AB12: =(ROUND(DataFromEngine!AH104,9))/Scale -> 0 | AC12: =(ROUND(DataFromEngine!AI104,9))/Scale -> 0 | AD12: =(ROUND(DataFromEngine!AJ104,9))/Scale -> 0 | AE12: =(ROUND(DataFromEngine!AK104,9))/Scale -> 0 | AF12: =(ROUND(DataFromEngine!AL104,9))/Scale -> 0 | AG12: =(ROUND(DataFromEngine!AM104,9))/Scale -> 0 | AH12: =(ROUND(DataFromEngine!AN104,9))/Scale -> 0 | AI12: =(ROUND(DataFromEngine!AO104,9))/Scale -> 0 | AJ12: =(ROUND(DataFromEngine!AP104,9))/Scale -> 0 | AK12: =(ROUND(DataFromEngine!AQ104,9))/Scale -> 0 | AL12: =(ROUND(DataFromEngine!AR104,9))/Scale -> 0 | AM12: =(ROUND(DataFromEngine!AS104,9))/Scale -> 0 | AN12: =(ROUND(DataFromEngine!AT104,9))/Scale -> 0 | AO12: =(ROUND(DataFromEngine!AU104,9))/Scale -> 0 | AP12: =(ROUND(DataFromEngine!AV104,9))/Scale -> 0 | AQ12: =(ROUND(DataFromEngine!AW104,9))/Scale -> 0 | AR12: =(ROUND(DataFromEngine!AX104,9))/Scale -> 0 | AS12: =(ROUND(DataFromEngine!AY104,9))/Scale -> 0 | AT12: =(ROUND(DataFromEngine!AZ104,9))/Scale -> 0 | AU12: =(ROUND(DataFromEngine!BA104,9))/Scale -> 0 | AV12: =(ROUND(DataFromEngine!BB104,9))/Scale -> 0 | AW12: =(ROUND(DataFromEngine!BC104,9))/Scale -> 0 | AX12: =(ROUND(DataFromEngine!BD104,9))/Scale -> 0 | AY12: =(ROUND(DataFromEngine!BE104,9))/Scale -> 0 | AZ12: =(ROUND(DataFromEngine!BF104,9))/Scale -> 0 | BA12: =(ROUND(DataFromEngine!BG104,9))/Scale -> 0 | BB12: =(ROUND(DataFromEngine!BH104,9))/Scale -> 0
B13: Return on Preferred: | C13: 0 | D13: =(ROUND(DataFromEngine!J105,8))/Scale -> 0 | E13: =(ROUND(DataFromEngine!K105,9))/Scale -> 0 | F13: =(ROUND(DataFromEngine!L105,9))/Scale -> 0 | G13: =(ROUND(DataFromEngine!M105,9))/Scale -> 0 | H13: =(ROUND(DataFromEngine!N105,9))/Scale -> 0 | I13: =(ROUND(DataFromEngine!O105,9))/Scale -> 0 | J13: =(ROUND(DataFromEngine!P105,9))/Scale -> 0 | K13: =(ROUND(DataFromEngine!Q105,9))/Scale -> 0 | L13: =(ROUND(DataFromEngine!R105,9))/Scale -> 0 | M13: =(ROUND(DataFromEngine!S105,9))/Scale -> 0 | N13: =(ROUND(DataFromEngine!T105,9))/Scale -> 0 | O13: =(ROUND(DataFromEngine!U105,9))/Scale -> 0 | P13: =(ROUND(DataFromEngine!V105,9))/Scale -> 0 | Q13: =(ROUND(DataFromEngine!W105,9))/Scale -> 0 | R13: =(ROUND(DataFromEngine!X105,9))/Scale -> 0 | S13: =(ROUND(DataFromEngine!Y105,9))/Scale -> 0 | T13: =(ROUND(DataFromEngine!Z105,9))/Scale -> 0 | U13: =(ROUND(DataFromEngine!AA105,9))/Scale -> 0 | V13: =(ROUND(DataFromEngine!AB105,9))/Scale -> 0 | W13: =(ROUND(DataFromEngine!AC105,9))/Scale -> 0 | X13: =(ROUND(DataFromEngine!AD105,9))/Scale -> 0 | Y13: =(ROUND(DataFromEngine!AE105,9))/Scale -> 0 | Z13: =(ROUND(DataFromEngine!AF105,9))/Scale -> 0 | AA13: =(ROUND(DataFromEngine!AG105,9))/Scale -> 0 | AB13: =(ROUND(DataFromEngine!AH105,9))/Scale -> 0 | AC13: =(ROUND(DataFromEngine!AI105,9))/Scale -> 0 | AD13: =(ROUND(DataFromEngine!AJ105,9))/Scale -> 0 | AE13: =(ROUND(DataFromEngine!AK105,9))/Scale -> 0 | AF13: =(ROUND(DataFromEngine!AL105,9))/Scale -> 0 | AG13: =(ROUND(DataFromEngine!AM105,9))/Scale -> 0 | AH13: =(ROUND(DataFromEngine!AN105,9))/Scale -> 0 | AI13: =(ROUND(DataFromEngine!AO105,9))/Scale -> 0 | AJ13: =(ROUND(DataFromEngine!AP105,9))/Scale -> 0 | AK13: =(ROUND(DataFromEngine!AQ105,9))/Scale -> 0 | AL13: =(ROUND(DataFromEngine!AR105,9))/Scale -> 0 | AM13: =(ROUND(DataFromEngine!AS105,9))/Scale -> 0 | AN13: =(ROUND(DataFromEngine!AT105,9))/Scale -> 0 | AO13: =(ROUND(DataFromEngine!AU105,9))/Scale -> 0 | AP13: =(ROUND(DataFromEngine!AV105,9))/Scale -> 0 | AQ13: =(ROUND(DataFromEngine!AW105,9))/Scale -> 0 | AR13: =(ROUND(DataFromEngine!AX105,9))/Scale -> 0 | AS13: =(ROUND(DataFromEngine!AY105,9))/Scale -> 0 | AT13: =(ROUND(DataFromEngine!AZ105,9))/Scale -> 0 | AU13: =(ROUND(DataFromEngine!BA105,9))/Scale -> 0 | AV13: =(ROUND(DataFromEngine!BB105,9))/Scale -> 0 | AW13: =(ROUND(DataFromEngine!BC105,9))/Scale -> 0 | AX13: =(ROUND(DataFromEngine!BD105,9))/Scale -> 0 | AY13: =(ROUND(DataFromEngine!BE105,9))/Scale -> 0 | AZ13: =(ROUND(DataFromEngine!BF105,9))/Scale -> 0 | BA13: =(ROUND(DataFromEngine!BG105,9))/Scale -> 0 | BB13: =(ROUND(DataFromEngine!BH105,9))/Scale -> 0
B14: Return On Debt: | C14: 0 | D14: =(ROUND(DataFromEngine!J106,8))/Scale -> 0 | E14: =(ROUND(DataFromEngine!K106,9))/Scale -> 0 | F14: =(ROUND(DataFromEngine!L106,9))/Scale -> 0 | G14: =(ROUND(DataFromEngine!M106,9))/Scale -> 0 | H14: =(ROUND(DataFromEngine!N106,9))/Scale -> 0 | I14: =(ROUND(DataFromEngine!O106,9))/Scale -> 0 | J14: =(ROUND(DataFromEngine!P106,9))/Scale -> 0 | K14: =(ROUND(DataFromEngine!Q106,9))/Scale -> 0 | L14: =(ROUND(DataFromEngine!R106,9))/Scale -> 0 | M14: =(ROUND(DataFromEngine!S106,9))/Scale -> 0 | N14: =(ROUND(DataFromEngine!T106,9))/Scale -> 0 | O14: =(ROUND(DataFromEngine!U106,9))/Scale -> 0 | P14: =(ROUND(DataFromEngine!V106,9))/Scale -> 0 | Q14: =(ROUND(DataFromEngine!W106,9))/Scale -> 0 | R14: =(ROUND(DataFromEngine!X106,9))/Scale -> 0 | S14: =(ROUND(DataFromEngine!Y106,9))/Scale -> 0 | T14: =(ROUND(DataFromEngine!Z106,9))/Scale -> 0 | U14: =(ROUND(DataFromEngine!AA106,9))/Scale -> 0 | V14: =(ROUND(DataFromEngine!AB106,9))/Scale -> 0 | W14: =(ROUND(DataFromEngine!AC106,9))/Scale -> 0 | X14: =(ROUND(DataFromEngine!AD106,9))/Scale -> 0 | Y14: =(ROUND(DataFromEngine!AE106,9))/Scale -> 0 | Z14: =(ROUND(DataFromEngine!AF106,9))/Scale -> 0 | AA14: =(ROUND(DataFromEngine!AG106,9))/Scale -> 0 | AB14: =(ROUND(DataFromEngine!AH106,9))/Scale -> 0 | AC14: =(ROUND(DataFromEngine!AI106,9))/Scale -> 0 | AD14: =(ROUND(DataFromEngine!AJ106,9))/Scale -> 0 | AE14: =(ROUND(DataFromEngine!AK106,9))/Scale -> 0 | AF14: =(ROUND(DataFromEngine!AL106,9))/Scale -> 0 | AG14: =(ROUND(DataFromEngine!AM106,9))/Scale -> 0 | AH14: =(ROUND(DataFromEngine!AN106,9))/Scale -> 0 | AI14: =(ROUND(DataFromEngine!AO106,9))/Scale -> 0 | AJ14: =(ROUND(DataFromEngine!AP106,9))/Scale -> 0 | AK14: =(ROUND(DataFromEngine!AQ106,9))/Scale -> 0 | AL14: =(ROUND(DataFromEngine!AR106,9))/Scale -> 0 | AM14: =(ROUND(DataFromEngine!AS106,9))/Scale -> 0 | AN14: =(ROUND(DataFromEngine!AT106,9))/Scale -> 0 | AO14: =(ROUND(DataFromEngine!AU106,9))/Scale -> 0 | AP14: =(ROUND(DataFromEngine!AV106,9))/Scale -> 0 | AQ14: =(ROUND(DataFromEngine!AW106,9))/Scale -> 0 | AR14: =(ROUND(DataFromEngine!AX106,9))/Scale -> 0 | AS14: =(ROUND(DataFromEngine!AY106,9))/Scale -> 0 | AT14: =(ROUND(DataFromEngine!AZ106,9))/Scale -> 0 | AU14: =(ROUND(DataFromEngine!BA106,9))/Scale -> 0 | AV14: =(ROUND(DataFromEngine!BB106,9))/Scale -> 0 | AW14: =(ROUND(DataFromEngine!BC106,9))/Scale -> 0 | AX14: =(ROUND(DataFromEngine!BD106,9))/Scale -> 0 | AY14: =(ROUND(DataFromEngine!BE106,9))/Scale -> 0 | AZ14: =(ROUND(DataFromEngine!BF106,9))/Scale -> 0 | BA14: =(ROUND(DataFromEngine!BG106,9))/Scale -> 0 | BB14: =(ROUND(DataFromEngine!BH106,9))/Scale -> 0
B15: Federal Taxes: | C15: 0 | D15: =(ROUND(DataFromEngine!J107,8))/Scale -> 0 | E15: =(ROUND(DataFromEngine!K107,9))/Scale -> 0 | F15: =(ROUND(DataFromEngine!L107,9))/Scale -> 0 | G15: =(ROUND(DataFromEngine!M107,9))/Scale -> 0 | H15: =(ROUND(DataFromEngine!N107,9))/Scale -> 0 | I15: =(ROUND(DataFromEngine!O107,9))/Scale -> 0 | J15: =(ROUND(DataFromEngine!P107,9))/Scale -> 0 | K15: =(ROUND(DataFromEngine!Q107,9))/Scale -> 0 | L15: =(ROUND(DataFromEngine!R107,9))/Scale -> 0 | M15: =(ROUND(DataFromEngine!S107,9))/Scale -> 0 | N15: =(ROUND(DataFromEngine!T107,9))/Scale -> 0 | O15: =(ROUND(DataFromEngine!U107,9))/Scale -> 0 | P15: =(ROUND(DataFromEngine!V107,9))/Scale -> 0 | Q15: =(ROUND(DataFromEngine!W107,9))/Scale -> 0 | R15: =(ROUND(DataFromEngine!X107,9))/Scale -> 0 | S15: =(ROUND(DataFromEngine!Y107,9))/Scale -> 0 | T15: =(ROUND(DataFromEngine!Z107,9))/Scale -> 0 | U15: =(ROUND(DataFromEngine!AA107,9))/Scale -> 0 | V15: =(ROUND(DataFromEngine!AB107,9))/Scale -> 0 | W15: =(ROUND(DataFromEngine!AC107,9))/Scale -> 0 | X15: =(ROUND(DataFromEngine!AD107,9))/Scale -> 0 | Y15: =(ROUND(DataFromEngine!AE107,9))/Scale -> 0 | Z15: =(ROUND(DataFromEngine!AF107,9))/Scale -> 0 | AA15: =(ROUND(DataFromEngine!AG107,9))/Scale -> 0 | AB15: =(ROUND(DataFromEngine!AH107,9))/Scale -> 0 | AC15: =(ROUND(DataFromEngine!AI107,9))/Scale -> 0 | AD15: =(ROUND(DataFromEngine!AJ107,9))/Scale -> 0 | AE15: =(ROUND(DataFromEngine!AK107,9))/Scale -> 0 | AF15: =(ROUND(DataFromEngine!AL107,9))/Scale -> 0 | AG15: =(ROUND(DataFromEngine!AM107,9))/Scale -> 0 | AH15: =(ROUND(DataFromEngine!AN107,9))/Scale -> 0 | AI15: =(ROUND(DataFromEngine!AO107,9))/Scale -> 0 | AJ15: =(ROUND(DataFromEngine!AP107,9))/Scale -> 0 | AK15: =(ROUND(DataFromEngine!AQ107,9))/Scale -> 0 | AL15: =(ROUND(DataFromEngine!AR107,9))/Scale -> 0 | AM15: =(ROUND(DataFromEngine!AS107,9))/Scale -> 0 | AN15: =(ROUND(DataFromEngine!AT107,9))/Scale -> 0 | AO15: =(ROUND(DataFromEngine!AU107,9))/Scale -> 0 | AP15: =(ROUND(DataFromEngine!AV107,9))/Scale -> 0 | AQ15: =(ROUND(DataFromEngine!AW107,9))/Scale -> 0 | AR15: =(ROUND(DataFromEngine!AX107,9))/Scale -> 0 | AS15: =(ROUND(DataFromEngine!AY107,9))/Scale -> 0 | AT15: =(ROUND(DataFromEngine!AZ107,9))/Scale -> 0 | AU15: =(ROUND(DataFromEngine!BA107,9))/Scale -> 0 | AV15: =(ROUND(DataFromEngine!BB107,9))/Scale -> 0 | AW15: =(ROUND(DataFromEngine!BC107,9))/Scale -> 0 | AX15: =(ROUND(DataFromEngine!BD107,9))/Scale -> 0 | AY15: =(ROUND(DataFromEngine!BE107,9))/Scale -> 0 | AZ15: =(ROUND(DataFromEngine!BF107,9))/Scale -> 0 | BA15: =(ROUND(DataFromEngine!BG107,9))/Scale -> 0 | BB15: =(ROUND(DataFromEngine!BH107,9))/Scale -> 0
B16: State Taxes: | C16: 0 | D16: =(ROUND(DataFromEngine!J108,8))/Scale -> 0 | E16: =(ROUND(DataFromEngine!K108,9))/Scale -> 0 | F16: =(ROUND(DataFromEngine!L108,9))/Scale -> 0 | G16: =(ROUND(DataFromEngine!M108,9))/Scale -> 0 | H16: =(ROUND(DataFromEngine!N108,9))/Scale -> 0 | I16: =(ROUND(DataFromEngine!O108,9))/Scale -> 0 | J16: =(ROUND(DataFromEngine!P108,9))/Scale -> 0 | K16: =(ROUND(DataFromEngine!Q108,9))/Scale -> 0 | L16: =(ROUND(DataFromEngine!R108,9))/Scale -> 0 | M16: =(ROUND(DataFromEngine!S108,9))/Scale -> 0 | N16: =(ROUND(DataFromEngine!T108,9))/Scale -> 0 | O16: =(ROUND(DataFromEngine!U108,9))/Scale -> 0 | P16: =(ROUND(DataFromEngine!V108,9))/Scale -> 0 | Q16: =(ROUND(DataFromEngine!W108,9))/Scale -> 0 | R16: =(ROUND(DataFromEngine!X108,9))/Scale -> 0 | S16: =(ROUND(DataFromEngine!Y108,9))/Scale -> 0 | T16: =(ROUND(DataFromEngine!Z108,9))/Scale -> 0 | U16: =(ROUND(DataFromEngine!AA108,9))/Scale -> 0 | V16: =(ROUND(DataFromEngine!AB108,9))/Scale -> 0 | W16: =(ROUND(DataFromEngine!AC108,9))/Scale -> 0 | X16: =(ROUND(DataFromEngine!AD108,9))/Scale -> 0 | Y16: =(ROUND(DataFromEngine!AE108,9))/Scale -> 0 | Z16: =(ROUND(DataFromEngine!AF108,9))/Scale -> 0 | AA16: =(ROUND(DataFromEngine!AG108,9))/Scale -> 0 | AB16: =(ROUND(DataFromEngine!AH108,9))/Scale -> 0 | AC16: =(ROUND(DataFromEngine!AI108,9))/Scale -> 0 | AD16: =(ROUND(DataFromEngine!AJ108,9))/Scale -> 0 | AE16: =(ROUND(DataFromEngine!AK108,9))/Scale -> 0 | AF16: =(ROUND(DataFromEngine!AL108,9))/Scale -> 0 | AG16: =(ROUND(DataFromEngine!AM108,9))/Scale -> 0 | AH16: =(ROUND(DataFromEngine!AN108,9))/Scale -> 0 | AI16: =(ROUND(DataFromEngine!AO108,9))/Scale -> 0 | AJ16: =(ROUND(DataFromEngine!AP108,9))/Scale -> 0 | AK16: =(ROUND(DataFromEngine!AQ108,9))/Scale -> 0 | AL16: =(ROUND(DataFromEngine!AR108,9))/Scale -> 0 | AM16: =(ROUND(DataFromEngine!AS108,9))/Scale -> 0 | AN16: =(ROUND(DataFromEngine!AT108,9))/Scale -> 0 | AO16: =(ROUND(DataFromEngine!AU108,9))/Scale -> 0 | AP16: =(ROUND(DataFromEngine!AV108,9))/Scale -> 0 | AQ16: =(ROUND(DataFromEngine!AW108,9))/Scale -> 0 | AR16: =(ROUND(DataFromEngine!AX108,9))/Scale -> 0 | AS16: =(ROUND(DataFromEngine!AY108,9))/Scale -> 0 | AT16: =(ROUND(DataFromEngine!AZ108,9))/Scale -> 0 | AU16: =(ROUND(DataFromEngine!BA108,9))/Scale -> 0 | AV16: =(ROUND(DataFromEngine!BB108,9))/Scale -> 0 | AW16: =(ROUND(DataFromEngine!BC108,9))/Scale -> 0 | AX16: =(ROUND(DataFromEngine!BD108,9))/Scale -> 0 | AY16: =(ROUND(DataFromEngine!BE108,9))/Scale -> 0 | AZ16: =(ROUND(DataFromEngine!BF108,9))/Scale -> 0 | BA16: =(ROUND(DataFromEngine!BG108,9))/Scale -> 0 | BB16: =(ROUND(DataFromEngine!BH108,9))/Scale -> 0
B17: Property Taxes: | C17: 0 | D17: =(ROUND(DataFromEngine!J109,8))/Scale -> 0 | E17: =(ROUND(DataFromEngine!K109,9))/Scale -> 0 | F17: =(ROUND(DataFromEngine!L109,9))/Scale -> 0 | G17: =(ROUND(DataFromEngine!M109,9))/Scale -> 0 | H17: =(ROUND(DataFromEngine!N109,9))/Scale -> 0 | I17: =(ROUND(DataFromEngine!O109,9))/Scale -> 0 | J17: =(ROUND(DataFromEngine!P109,9))/Scale -> 0 | K17: =(ROUND(DataFromEngine!Q109,9))/Scale -> 0 | L17: =(ROUND(DataFromEngine!R109,9))/Scale -> 0 | M17: =(ROUND(DataFromEngine!S109,9))/Scale -> 0 | N17: =(ROUND(DataFromEngine!T109,9))/Scale -> 0 | O17: =(ROUND(DataFromEngine!U109,9))/Scale -> 0 | P17: =(ROUND(DataFromEngine!V109,9))/Scale -> 0 | Q17: =(ROUND(DataFromEngine!W109,9))/Scale -> 0 | R17: =(ROUND(DataFromEngine!X109,9))/Scale -> 0 | S17: =(ROUND(DataFromEngine!Y109,9))/Scale -> 0 | T17: =(ROUND(DataFromEngine!Z109,9))/Scale -> 0 | U17: =(ROUND(DataFromEngine!AA109,9))/Scale -> 0 | V17: =(ROUND(DataFromEngine!AB109,9))/Scale -> 0 | W17: =(ROUND(DataFromEngine!AC109,9))/Scale -> 0 | X17: =(ROUND(DataFromEngine!AD109,9))/Scale -> 0 | Y17: =(ROUND(DataFromEngine!AE109,9))/Scale -> 0 | Z17: =(ROUND(DataFromEngine!AF109,9))/Scale -> 0 | AA17: =(ROUND(DataFromEngine!AG109,9))/Scale -> 0 | AB17: =(ROUND(DataFromEngine!AH109,9))/Scale -> 0 | AC17: =(ROUND(DataFromEngine!AI109,9))/Scale -> 0 | AD17: =(ROUND(DataFromEngine!AJ109,9))/Scale -> 0 | AE17: =(ROUND(DataFromEngine!AK109,9))/Scale -> 0 | AF17: =(ROUND(DataFromEngine!AL109,9))/Scale -> 0 | AG17: =(ROUND(DataFromEngine!AM109,9))/Scale -> 0 | AH17: =(ROUND(DataFromEngine!AN109,9))/Scale -> 0 | AI17: =(ROUND(DataFromEngine!AO109,9))/Scale -> 0 | AJ17: =(ROUND(DataFromEngine!AP109,9))/Scale -> 0 | AK17: =(ROUND(DataFromEngine!AQ109,9))/Scale -> 0 | AL17: =(ROUND(DataFromEngine!AR109,9))/Scale -> 0 | AM17: =(ROUND(DataFromEngine!AS109,9))/Scale -> 0 | AN17: =(ROUND(DataFromEngine!AT109,9))/Scale -> 0 | AO17: =(ROUND(DataFromEngine!AU109,9))/Scale -> 0 | AP17: =(ROUND(DataFromEngine!AV109,9))/Scale -> 0 | AQ17: =(ROUND(DataFromEngine!AW109,9))/Scale -> 0 | AR17: =(ROUND(DataFromEngine!AX109,9))/Scale -> 0 | AS17: =(ROUND(DataFromEngine!AY109,9))/Scale -> 0 | AT17: =(ROUND(DataFromEngine!AZ109,9))/Scale -> 0 | AU17: =(ROUND(DataFromEngine!BA109,9))/Scale -> 0 | AV17: =(ROUND(DataFromEngine!BB109,9))/Scale -> 0 | AW17: =(ROUND(DataFromEngine!BC109,9))/Scale -> 0 | AX17: =(ROUND(DataFromEngine!BD109,9))/Scale -> 0 | AY17: =(ROUND(DataFromEngine!BE109,9))/Scale -> 0 | AZ17: =(ROUND(DataFromEngine!BF109,9))/Scale -> 0 | BA17: =(ROUND(DataFromEngine!BG109,9))/Scale -> 0 | BB17: =(ROUND(DataFromEngine!BH109,9))/Scale -> 0

Sheet O&M, WC
B1: =ReportAssumptions!C2 -> San Diego Gas & Electric
B2: =ReportAssumptions!C3 -> EV-HP
B3: ="O&M and Working Capital ($ in "&ReportAssumptions!C9& ")" -> O&M and Working Capital ($ in Dollars)
C6: Total | D6: =DataFromEngine!J12 -> 2018 | E6: =DataFromEngine!K12 -> 2019 | F6: =DataFromEngine!L12 -> 2020 | G6: =DataFromEngine!M12 -> 2021 | H6: =DataFromEngine!N12 -> 2022 | I6: =DataFromEngine!O12 -> 2023 | J6: =DataFromEngine!P12 -> 2024 | K6: =DataFromEngine!Q12 -> 2025 | L6: =DataFromEngine!R12 -> 2026 | M6: =DataFromEngine!S12 -> 2027 | N6: =DataFromEngine!T12 -> 2028 | O6: =DataFromEngine!U12 -> 2029 | P6: =DataFromEngine!V12 -> 2030 | Q6: =DataFromEngine!W12 -> 2031 | R6: =DataFromEngine!X12 -> 2032 | S6: =DataFromEngine!Y12 -> 2033 | T6: =DataFromEngine!Z12 -> 2034 | U6: =DataFromEngine!AA12 -> 2035 | V6: =DataFromEngine!AB12 -> 2036 | W6: =DataFromEngine!AC12 -> 2037 | X6: =DataFromEngine!AD12 -> 2038 | Y6: =DataFromEngine!AE12 -> 2039 | Z6: =DataFromEngine!AF12 -> 2040 | AA6: =DataFromEngine!AG12 -> 2041 | AB6: =DataFromEngine!AH12 -> 2042 | AC6: =DataFromEngine!AI12 -> 2043 | AD6: =DataFromEngine!AJ12 -> 2044 | AE6: =DataFromEngine!AK12 -> 2045 | AF6: =DataFromEngine!AL12 -> 2046 | AG6: =DataFromEngine!AM12 -> 2047 | AH6: =DataFromEngine!AN12 -> 2048 | AI6: =DataFromEngine!AO12 -> 2049 | AJ6: =DataFromEngine!AP12 -> 2050 | AK6: =DataFromEngine!AQ12 -> 2051 | AL6: =DataFromEngine!AR12 -> 2052 | AM6: =DataFromEngine!AS12 -> 2053 | AN6: =DataFromEngine!AT12 -> 2054 | AO6: =DataFromEngine!AU12 -> 2055 | AP6: =DataFromEngine!AV12 -> 2056 | AQ6: =DataFromEngine!AW12 -> 2057 | AR6: =DataFromEngine!AX12 -> 2058 | AS6: =DataFromEngine!AY12 -> 2059 | AT6: =DataFromEngine!AZ12 -> 2060 | AU6: =DataFromEngine!BA12 -> 2061 | AV6: =DataFromEngine!BB12 -> 2062 | AW6: =DataFromEngine!BC12 -> 2063 | AX6: =DataFromEngine!BD12 -> 2064 | AY6: =DataFromEngine!BE12 -> 2065 | AZ6: =DataFromEngine!BF12 -> 2066 | BA6: =DataFromEngine!BG12 -> 2067 | BB6: =DataFromEngine!BH12 -> 2068
B7: O&M All In | C7: =SUM(D7:BB7) -> 1053312.484 | D7: =ROUND(SUMIF(DataFromEngine!$J$13:$WL$13,D$6,DataFromEngine!$J171:$WL171),8)/Scale -> 0 | E7: =ROUND(SUMIF(DataFromEngine!$J$13:$WL$13,E$6,DataFromEngine!$J171:$WL171),9)/Scale -> 0 | F7: =ROUND(SUMIF(DataFromEngine!$J$13:$WL$13,F$6,DataFromEngine!$J171:$WL171),9)/Scale -> 783945.9768 | G7: =ROUND(SUMIF(DataFromEngine!$J$13:$WL$13,G$6,DataFromEngine!$J171:$WL171),9)/Scale -> 269366.5068 | H7: =ROUND(SUMIF(DataFromEngine!$J$13:$WL$13,H$6,DataFromEngine!$J171:$WL171),9)/Scale -> 0 | I7: =ROUND(SUMIF(DataFromEngine!$J$13:$WL$13,I$6,DataFromEngine!$J171:$WL171),9)/Scale -> 0 | J7: =ROUND(SUMIF(DataFromEngine!$J$13:$WL$13,J$6,DataFromEngine!$J171:$WL171),9)/Scale -> 0 | K7: =ROUND(SUMIF(DataFromEngine!$J$13:$WL$13,K$6,DataFromEngine!$J171:$WL171),9)/Scale -> 0 | L7: =ROUND(SUMIF(DataFromEngine!$J$13:$WL$13,L$6,DataFromEngine!$J171:$WL171),9)/Scale -> 0 | M7: =ROUND(SUMIF(DataFromEngine!$J$13:$WL$13,M$6,DataFromEngine!$J171:$WL171),9)/Scale -> 0 | N7: =ROUND(SUMIF(DataFromEngine!$J$13:$WL$13,N$6,DataFromEngine!$J171:$WL171),9)/Scale -> 0 | O7: =ROUND(SUMIF(DataFromEngine!$J$13:$WL$13,O$6,DataFromEngine!$J171:$WL171),9)/Scale -> 0 | P7: =ROUND(SUMIF(DataFromEngine!$J$13:$WL$13,P$6,DataFromEngine!$J171:$WL171),9)/Scale -> 0 | Q7: =ROUND(SUMIF(DataFromEngine!$J$13:$WL$13,Q$6,DataFromEngine!$J171:$WL171),9)/Scale -> 0 | R7: =ROUND(SUMIF(DataFromEngine!$J$13:$WL$13,R$6,DataFromEngine!$J171:$WL171),9)/Scale -> 0 | S7: =ROUND(SUMIF(DataFromEngine!$J$13:$WL$13,S$6,DataFromEngine!$J171:$WL171),9)/Scale -> 0 | T7: =ROUND(SUMIF(DataFromEngine!$J$13:$WL$13,T$6,DataFromEngine!$J171:$WL171),9)/Scale -> 0 | U7: =ROUND(SUMIF(DataFromEngine!$J$13:$WL$13,U$6,DataFromEngine!$J171:$WL171),9)/Scale -> 0 | V7: =ROUND(SUMIF(DataFromEngine!$J$13:$WL$13,V$6,DataFromEngine!$J171:$WL171),9)/Scale -> 0 | W7: =ROUND(SUMIF(DataFromEngine!$J$13:$WL$13,W$6,DataFromEngine!$J171:$WL171),9)/Scale -> 0 | X7: =ROUND(SUMIF(DataFromEngine!$J$13:$WL$13,X$6,DataFromEngine!$J171:$WL171),9)/Scale -> 0 | Y7: =ROUND(SUMIF(DataFromEngine!$J$13:$WL$13,Y$6,DataFromEngine!$J171:$WL171),9)/Scale -> 0 | Z7: =ROUND(SUMIF(DataFromEngine!$J$13:$WL$13,Z$6,DataFromEngine!$J171:$WL171),9)/Scale -> 0 | AA7: =ROUND(SUMIF(DataFromEngine!$J$13:$WL$13,AA$6,DataFromEngine!$J171:$WL171),9)/Scale -> 0 | AB7: =ROUND(SUMIF(DataFromEngine!$J$13:$WL$13,AB$6,DataFromEngine!$J171:$WL171),9)/Scale -> 0 | AC7: =ROUND(SUMIF(DataFromEngine!$J$13:$WL$13,AC$6,DataFromEngine!$J171:$WL171),9)/Scale -> 0 | AD7: =ROUND(SUMIF(DataFromEngine!$J$13:$WL$13,AD$6,DataFromEngine!$J171:$WL171),9)/Scale -> 0 | AE7: =ROUND(SUMIF(DataFromEngine!$J$13:$WL$13,AE$6,DataFromEngine!$J171:$WL171),9)/Scale -> 0 | AF7: =ROUND(SUMIF(DataFromEngine!$J$13:$WL$13,AF$6,DataFromEngine!$J171:$WL171),9)/Scale -> 0 | AG7: =ROUND(SUMIF(DataFromEngine!$J$13:$WL$13,AG$6,DataFromEngine!$J171:$WL171),9)/Scale -> 0 | AH7: =ROUND(SUMIF(DataFromEngine!$J$13:$WL$13,AH$6,DataFromEngine!$J171:$WL171),9)/Scale -> 0 | AI7: =ROUND(SUMIF(DataFromEngine!$J$13:$WL$13,AI$6,DataFromEngine!$J171:$WL171),9)/Scale -> 0 | AJ7: =ROUND(SUMIF(DataFromEngine!$J$13:$WL$13,AJ$6,DataFromEngine!$J171:$WL171),9)/Scale -> 0 | AK7: =ROUND(SUMIF(DataFromEngine!$J$13:$WL$13,AK$6,DataFromEngine!$J171:$WL171),9)/Scale -> 0 | AL7: =ROUND(SUMIF(DataFromEngine!$J$13:$WL$13,AL$6,DataFromEngine!$J171:$WL171),9)/Scale -> 0 | AM7: =ROUND(SUMIF(DataFromEngine!$J$13:$WL$13,AM$6,DataFromEngine!$J171:$WL171),9)/Scale -> 0 | AN7: =ROUND(SUMIF(DataFromEngine!$J$13:$WL$13,AN$6,DataFromEngine!$J171:$WL171),9)/Scale -> 0 | AO7: =ROUND(SUMIF(DataFromEngine!$J$13:$WL$13,AO$6,DataFromEngine!$J171:$WL171),9)/Scale -> 0 | AP7: =ROUND(SUMIF(DataFromEngine!$J$13:$WL$13,AP$6,DataFromEngine!$J171:$WL171),9)/Scale -> 0 | AQ7: =ROUND(SUMIF(DataFromEngine!$J$13:$WL$13,AQ$6,DataFromEngine!$J171:$WL171),9)/Scale -> 0 | AR7: =ROUND(SUMIF(DataFromEngine!$J$13:$WL$13,AR$6,DataFromEngine!$J171:$WL171),9)/Scale -> 0 | AS7: =ROUND(SUMIF(DataFromEngine!$J$13:$WL$13,AS$6,DataFromEngine!$J171:$WL171),9)/Scale -> 0 | AT7: =ROUND(SUMIF(DataFromEngine!$J$13:$WL$13,AT$6,DataFromEngine!$J171:$WL171),9)/Scale -> 0 | AU7: =ROUND(SUMIF(DataFromEngine!$J$13:$WL$13,AU$6,DataFromEngine!$J171:$WL171),9)/Scale -> 0 | AV7: =ROUND(SUMIF(DataFromEngine!$J$13:$WL$13,AV$6,DataFromEngine!$J171:$WL171),9)/Scale -> 0 | AW7: =ROUND(SUMIF(DataFromEngine!$J$13:$WL$13,AW$6,DataFromEngine!$J171:$WL171),9)/Scale -> 0 | AX7: =ROUND(SUMIF(DataFromEngine!$J$13:$WL$13,AX$6,DataFromEngine!$J171:$WL171),9)/Scale -> 0 | AY7: =ROUND(SUMIF(DataFromEngine!$J$13:$WL$13,AY$6,DataFromEngine!$J171:$WL171),9)/Scale -> 0 | AZ7: =ROUND(SUMIF(DataFromEngine!$J$13:$WL$13,AZ$6,DataFromEngine!$J171:$WL171),9)/Scale -> 0 | BA7: =ROUND(SUMIF(DataFromEngine!$J$13:$WL$13,BA$6,DataFromEngine!$J171:$WL171),9)/Scale -> 0 | BB7: =ROUND(SUMIF(DataFromEngine!$J$13:$WL$13,BB$6,DataFromEngine!$J171:$WL171),9)/Scale -> 0
B9: Working Capital | C9: =C6 -> Total | D9: =D6 -> 2018 | E9: =E6 -> 2019 | F9: =F6 -> 2020 | G9: 2021 | H9: 2022 | I9: 2023 | J9: 2024 | K9: 2025 | L9: 2026 | M9: 2027 | N9: 2028 | O9: 2029 | P9: 2030 | Q9: 2031 | R9: 2032 | S9: 2033 | T9: 2034 | U9: 2035 | V9: 2036 | W9: 2037 | X9: 2038 | Y9: 2039 | Z9: 2040 | AA9: 2041 | AB9: 2042 | AC9: 2043 | AD9: 2044 | AE9: 2045 | AF9: 2046 | AG9: 2047 | AH9: 2048 | AI9: 2049 | AJ9: 2050 | AK9: 2051 | AL9: 2052 | AM9: 2053 | AN9: 2054 | AO9: 2055 | AP9: 2056 | AQ9: 2057 | AR9: 2058 | AS9: 2059 | AT9: 2060 | AU9: 2061 | AV9: 2062 | AW9: 2063 | AX9: 2064 | AY9: 2065 | AZ9: 2066 | BA9: 2067 | BB9: 2068
B10: O&M | C10: =SUM(D10:BB10) -> 1053312.484 | D10: =ROUND(SUMIF(DataFromEngine!$J$13:$WL$13,D$6,DataFromEngine!$J171:$WL171),9)/Scale -> 0 | E10: =ROUND(SUMIF(DataFromEngine!$J$13:$WL$13,E$6,DataFromEngine!$J171:$WL171),9)/Scale -> 0 | F10: =ROUND(SUMIF(DataFromEngine!$J$13:$WL$13,F$6,DataFromEngine!$J171:$WL171),9)/Scale -> 783945.9768 | G10: =ROUND(SUMIF(DataFromEngine!$J$13:$WL$13,G$6,DataFromEngine!$J171:$WL171),9)/Scale -> 269366.5068 | H10: =ROUND(SUMIF(DataFromEngine!$J$13:$WL$13,H$6,DataFromEngine!$J171:$WL171),9)/Scale -> 0 | I10: =ROUND(SUMIF(DataFromEngine!$J$13:$WL$13,I$6,DataFromEngine!$J171:$WL171),9)/Scale -> 0 | J10: =ROUND(SUMIF(DataFromEngine!$J$13:$WL$13,J$6,DataFromEngine!$J171:$WL171),9)/Scale -> 0 | K10: =ROUND(SUMIF(DataFromEngine!$J$13:$WL$13,K$6,DataFromEngine!$J171:$WL171),9)/Scale -> 0 | L10: =ROUND(SUMIF(DataFromEngine!$J$13:$WL$13,L$6,DataFromEngine!$J171:$WL171),9)/Scale -> 0 | M10: =ROUND(SUMIF(DataFromEngine!$J$13:$WL$13,M$6,DataFromEngine!$J171:$WL171),9)/Scale -> 0 | N10: =ROUND(SUMIF(DataFromEngine!$J$13:$WL$13,N$6,DataFromEngine!$J171:$WL171),9)/Scale -> 0 | O10: =ROUND(SUMIF(DataFromEngine!$J$13:$WL$13,O$6,DataFromEngine!$J171:$WL171),9)/Scale -> 0 | P10: =ROUND(SUMIF(DataFromEngine!$J$13:$WL$13,P$6,DataFromEngine!$J171:$WL171),9)/Scale -> 0 | Q10: =ROUND(SUMIF(DataFromEngine!$J$13:$WL$13,Q$6,DataFromEngine!$J171:$WL171),9)/Scale -> 0 | R10: =ROUND(SUMIF(DataFromEngine!$J$13:$WL$13,R$6,DataFromEngine!$J171:$WL171),9)/Scale -> 0 | S10: =ROUND(SUMIF(DataFromEngine!$J$13:$WL$13,S$6,DataFromEngine!$J171:$WL171),9)/Scale -> 0 | T10: =ROUND(SUMIF(DataFromEngine!$J$13:$WL$13,T$6,DataFromEngine!$J171:$WL171),9)/Scale -> 0 | U10: =ROUND(SUMIF(DataFromEngine!$J$13:$WL$13,U$6,DataFromEngine!$J171:$WL171),9)/Scale -> 0 | V10: =ROUND(SUMIF(DataFromEngine!$J$13:$WL$13,V$6,DataFromEngine!$J171:$WL171),9)/Scale -> 0 | W10: =ROUND(SUMIF(DataFromEngine!$J$13:$WL$13,W$6,DataFromEngine!$J171:$WL171),9)/Scale -> 0 | X10: =ROUND(SUMIF(DataFromEngine!$J$13:$WL$13,X$6,DataFromEngine!$J171:$WL171),9)/Scale -> 0 | Y10: =ROUND(SUMIF(DataFromEngine!$J$13:$WL$13,Y$6,DataFromEngine!$J171:$WL171),9)/Scale -> 0 | Z10: =ROUND(SUMIF(DataFromEngine!$J$13:$WL$13,Z$6,DataFromEngine!$J171:$WL171),9)/Scale -> 0 | AA10: =ROUND(SUMIF(DataFromEngine!$J$13:$WL$13,AA$6,DataFromEngine!$J171:$WL171),9)/Scale -> 0 | AB10: =ROUND(SUMIF(DataFromEngine!$J$13:$WL$13,AB$6,DataFromEngine!$J171:$WL171),9)/Scale -> 0 | AC10: =ROUND(SUMIF(DataFromEngine!$J$13:$WL$13,AC$6,DataFromEngine!$J171:$WL171),9)/Scale -> 0 | AD10: =ROUND(SUMIF(DataFromEngine!$J$13:$WL$13,AD$6,DataFromEngine!$J171:$WL171),9)/Scale -> 0 | AE10: =ROUND(SUMIF(DataFromEngine!$J$13:$WL$13,AE$6,DataFromEngine!$J171:$WL171),9)/Scale -> 0 | AF10: =ROUND(SUMIF(DataFromEngine!$J$13:$WL$13,AF$6,DataFromEngine!$J171:$WL171),9)/Scale -> 0 | AG10: =ROUND(SUMIF(DataFromEngine!$J$13:$WL$13,AG$6,DataFromEngine!$J171:$WL171),9)/Scale -> 0 | AH10: =ROUND(SUMIF(DataFromEngine!$J$13:$WL$13,AH$6,DataFromEngine!$J171:$WL171),9)/Scale -> 0 | AI10: =ROUND(SUMIF(DataFromEngine!$J$13:$WL$13,AI$6,DataFromEngine!$J171:$WL171),9)/Scale -> 0 | AJ10: =ROUND(SUMIF(DataFromEngine!$J$13:$WL$13,AJ$6,DataFromEngine!$J171:$WL171),9)/Scale -> 0 | AK10: =ROUND(SUMIF(DataFromEngine!$J$13:$WL$13,AK$6,DataFromEngine!$J171:$WL171),9)/Scale -> 0 | AL10: =ROUND(SUMIF(DataFromEngine!$J$13:$WL$13,AL$6,DataFromEngine!$J171:$WL171),9)/Scale -> 0 | AM10: =ROUND(SUMIF(DataFromEngine!$J$13:$WL$13,AM$6,DataFromEngine!$J171:$WL171),9)/Scale -> 0 | AN10: =ROUND(SUMIF(DataFromEngine!$J$13:$WL$13,AN$6,DataFromEngine!$J171:$WL171),9)/Scale -> 0 | AO10: =ROUND(SUMIF(DataFromEngine!$J$13:$WL$13,AO$6,DataFromEngine!$J171:$WL171),9)/Scale -> 0 | AP10: =ROUND(SUMIF(DataFromEngine!$J$13:$WL$13,AP$6,DataFromEngine!$J171:$WL171),9)/Scale -> 0 | AQ10: =ROUND(SUMIF(DataFromEngine!$J$13:$WL$13,AQ$6,DataFromEngine!$J171:$WL171),9)/Scale -> 0 | AR10: =ROUND(SUMIF(DataFromEngine!$J$13:$WL$13,AR$6,DataFromEngine!$J171:$WL171),9)/Scale -> 0 | AS10: =ROUND(SUMIF(DataFromEngine!$J$13:$WL$13,AS$6,DataFromEngine!$J171:$WL171),9)/Scale -> 0 | AT10: =ROUND(SUMIF(DataFromEngine!$J$13:$WL$13,AT$6,DataFromEngine!$J171:$WL171),9)/Scale -> 0 | AU10: =ROUND(SUMIF(DataFromEngine!$J$13:$WL$13,AU$6,DataFromEngine!$J171:$WL171),9)/Scale -> 0 | AV10: =ROUND(SUMIF(DataFromEngine!$J$13:$WL$13,AV$6,DataFromEngine!$J171:$WL171),9)/Scale -> 0 | AW10: =ROUND(SUMIF(DataFromEngine!$J$13:$WL$13,AW$6,DataFromEngine!$J171:$WL171),9)/Scale -> 0 | AX10: =ROUND(SUMIF(DataFromEngine!$J$13:$WL$13,AX$6,DataFromEngine!$J171:$WL171),9)/Scale -> 0 | AY10: =ROUND(SUMIF(DataFromEngine!$J$13:$WL$13,AY$6,DataFromEngine!$J171:$WL171),9)/Scale -> 0 | AZ10: =ROUND(SUMIF(DataFromEngine!$J$13:$WL$13,AZ$6,DataFromEngine!$J171:$WL171),9)/Scale -> 0 | BA10: =ROUND(SUMIF(DataFromEngine!$J$13:$WL$13,BA$6,DataFromEngine!$J171:$WL171),9)/Scale -> 0 | BB10: =ROUND(SUMIF(DataFromEngine!$J$13:$WL$13,BB$6,DataFromEngine!$J171:$WL171),9)/Scale -> 0
B11: Average Monthly O&M | D11: =ROUND(SUMIF(DataFromEngine!$J$13:$WL$13,D$6,DataFromEngine!$J261:$WL261),9)/Scale -> 0 | E11: =ROUND(AVERAGEIF(DataFromEngine!$J$13:$WL$13,E$6,DataFromEngine!$J261:$WL261),9)/Scale -> 0 | F11: =ROUND(AVERAGEIF(DataFromEngine!$J$13:$WL$13,F$6,DataFromEngine!$J261:$WL261),9)/Scale -> 65328.8314 | G11: =ROUND(AVERAGEIF(DataFromEngine!$J$13:$WL$13,G$6,DataFromEngine!$J261:$WL261),9)/Scale -> 22447.2089 | H11: =ROUND(AVERAGEIF(DataFromEngine!$J$13:$WL$13,H$6,DataFromEngine!$J261:$WL261),9)/Scale -> 0 | I11: =ROUND(AVERAGEIF(DataFromEngine!$J$13:$WL$13,I$6,DataFromEngine!$J261:$WL261),9)/Scale -> 0 | J11: =ROUND(AVERAGEIF(DataFromEngine!$J$13:$WL$13,J$6,DataFromEngine!$J261:$WL261),9)/Scale -> 0 | K11: =ROUND(AVERAGEIF(DataFromEngine!$J$13:$WL$13,K$6,DataFromEngine!$J261:$WL261),9)/Scale -> 0 | L11: =ROUND(AVERAGEIF(DataFromEngine!$J$13:$WL$13,L$6,DataFromEngine!$J261:$WL261),9)/Scale -> 0 | M11: =ROUND(AVERAGEIF(DataFromEngine!$J$13:$WL$13,M$6,DataFromEngine!$J261:$WL261),9)/Scale -> 0 | N11: =ROUND(AVERAGEIF(DataFromEngine!$J$13:$WL$13,N$6,DataFromEngine!$J261:$WL261),9)/Scale -> 0 | O11: =ROUND(AVERAGEIF(DataFromEngine!$J$13:$WL$13,O$6,DataFromEngine!$J261:$WL261),9)/Scale -> 0 | P11: =ROUND(AVERAGEIF(DataFromEngine!$J$13:$WL$13,P$6,DataFromEngine!$J261:$WL261),9)/Scale -> 0 | Q11: =ROUND(AVERAGEIF(DataFromEngine!$J$13:$WL$13,Q$6,DataFromEngine!$J261:$WL261),9)/Scale -> 0 | R11: =ROUND(AVERAGEIF(DataFromEngine!$J$13:$WL$13,R$6,DataFromEngine!$J261:$WL261),9)/Scale -> 0 | S11: =ROUND(AVERAGEIF(DataFromEngine!$J$13:$WL$13,S$6,DataFromEngine!$J261:$WL261),9)/Scale -> 0 | T11: =ROUND(AVERAGEIF(DataFromEngine!$J$13:$WL$13,T$6,DataFromEngine!$J261:$WL261),9)/Scale -> 0 | U11: =ROUND(AVERAGEIF(DataFromEngine!$J$13:$WL$13,U$6,DataFromEngine!$J261:$WL261),9)/Scale -> 0 | V11: =ROUND(AVERAGEIF(DataFromEngine!$J$13:$WL$13,V$6,DataFromEngine!$J261:$WL261),9)/Scale -> 0 | W11: =ROUND(AVERAGEIF(DataFromEngine!$J$13:$WL$13,W$6,DataFromEngine!$J261:$WL261),9)/Scale -> 0 | X11: =ROUND(AVERAGEIF(DataFromEngine!$J$13:$WL$13,X$6,DataFromEngine!$J261:$WL261),9)/Scale -> 0 | Y11: =ROUND(AVERAGEIF(DataFromEngine!$J$13:$WL$13,Y$6,DataFromEngine!$J261:$WL261),9)/Scale -> 0 | Z11: =ROUND(AVERAGEIF(DataFromEngine!$J$13:$WL$13,Z$6,DataFromEngine!$J261:$WL261),9)/Scale -> 0 | AA11: =ROUND(AVERAGEIF(DataFromEngine!$J$13:$WL$13,AA$6,DataFromEngine!$J261:$WL261),9)/Scale -> 0 | AB11: =ROUND(AVERAGEIF(DataFromEngine!$J$13:$WL$13,AB$6,DataFromEngine!$J261:$WL261),9)/Scale -> 0 | AC11: =ROUND(AVERAGEIF(DataFromEngine!$J$13:$WL$13,AC$6,DataFromEngine!$J261:$WL261),9)/Scale -> 0 | AD11: =ROUND(AVERAGEIF(DataFromEngine!$J$13:$WL$13,AD$6,DataFromEngine!$J261:$WL261),9)/Scale -> 0 | AE11: =ROUND(AVERAGEIF(DataFromEngine!$J$13:$WL$13,AE$6,DataFromEngine!$J261:$WL261),9)/Scale -> 0 | AF11: =ROUND(AVERAGEIF(DataFromEngine!$J$13:$WL$13,AF$6,DataFromEngine!$J261:$WL261),9)/Scale -> 0 | AG11: =ROUND(AVERAGEIF(DataFromEngine!$J$13:$WL$13,AG$6,DataFromEngine!$J261:$WL261),9)/Scale -> 0 | AH11: =ROUND(AVERAGEIF(DataFromEngine!$J$13:$WL$13,AH$6,DataFromEngine!$J261:$WL261),9)/Scale -> 0 | AI11: =ROUND(AVERAGEIF(DataFromEngine!$J$13:$WL$13,AI$6,DataFromEngine!$J261:$WL261),9)/Scale -> 0 | AJ11: =ROUND(AVERAGEIF(DataFromEngine!$J$13:$WL$13,AJ$6,DataFromEngine!$J261:$WL261),9)/Scale -> 0 | AK11: =ROUND(AVERAGEIF(DataFromEngine!$J$13:$WL$13,AK$6,DataFromEngine!$J261:$WL261),9)/Scale -> 0 | AL11: =ROUND(AVERAGEIF(DataFromEngine!$J$13:$WL$13,AL$6,DataFromEngine!$J261:$WL261),9)/Scale -> 0 | AM11: =ROUND(AVERAGEIF(DataFromEngine!$J$13:$WL$13,AM$6,DataFromEngine!$J261:$WL261),9)/Scale -> 0 | AN11: =ROUND(AVERAGEIF(DataFromEngine!$J$13:$WL$13,AN$6,DataFromEngine!$J261:$WL261),9)/Scale -> 0 | AO11: =ROUND(AVERAGEIF(DataFromEngine!$J$13:$WL$13,AO$6,DataFromEngine!$J261:$WL261),9)/Scale -> 0 | AP11: =ROUND(AVERAGEIF(DataFromEngine!$J$13:$WL$13,AP$6,DataFromEngine!$J261:$WL261),9)/Scale -> 0 | AQ11: =ROUND(AVERAGEIF(DataFromEngine!$J$13:$WL$13,AQ$6,DataFromEngine!$J261:$WL261),9)/Scale -> 0 | AR11: =ROUND(AVERAGEIF(DataFromEngine!$J$13:$WL$13,AR$6,DataFromEngine!$J261:$WL261),9)/Scale -> 0 | AS11: =ROUND(AVERAGEIF(DataFromEngine!$J$13:$WL$13,AS$6,DataFromEngine!$J261:$WL261),9)/Scale -> 0 | AT11: =ROUND(AVERAGEIF(DataFromEngine!$J$13:$WL$13,AT$6,DataFromEngine!$J261:$WL261),9)/Scale -> 0 | AU11: =ROUND(AVERAGEIF(DataFromEngine!$J$13:$WL$13,AU$6,DataFromEngine!$J261:$WL261),9)/Scale -> 0 | AV11: =ROUND(AVERAGEIF(DataFromEngine!$J$13:$WL$13,AV$6,DataFromEngine!$J261:$WL261),9)/Scale -> 0 | AW11: =ROUND(AVERAGEIF(DataFromEngine!$J$13:$WL$13,AW$6,DataFromEngine!$J261:$WL261),9)/Scale -> 0 | AX11: =ROUND(AVERAGEIF(DataFromEngine!$J$13:$WL$13,AX$6,DataFromEngine!$J261:$WL261),9)/Scale -> 0 | AY11: =ROUND(AVERAGEIF(DataFromEngine!$J$13:$WL$13,AY$6,DataFromEngine!$J261:$WL261),9)/Scale -> 0 | AZ11: =ROUND(AVERAGEIF(DataFromEngine!$J$13:$WL$13,AZ$6,DataFromEngine!$J261:$WL261),9)/Scale -> 0 | BA11: =ROUND(AVERAGEIF(DataFromEngine!$J$13:$WL$13,BA$6,DataFromEngine!$J261:$WL261),9)/Scale -> 0 | BB11: =ROUND(AVERAGEIF(DataFromEngine!$J$13:$WL$13,BB$6,DataFromEngine!$J261:$WL261),9)/Scale -> 0
B12: WC Requirement | C12: =SUM(D12:BB12) -> 1579968.725 | D12: =ROUND(SUMIF(DataFromEngine!$J$13:$WL$13,D$6,DataFromEngine!$J262:$WL262),9)/Scale -> 0 | E12: =ROUND(SUMIF(DataFromEngine!$J$13:$WL$13,E$6,DataFromEngine!$J262:$WL262),9)/Scale -> 0 | F12: =ROUND(SUMIF(DataFromEngine!$J$13:$WL$13,F$6,DataFromEngine!$J262:$WL262),9)/Scale -> 1175918.965 | G12: =ROUND(SUMIF(DataFromEngine!$J$13:$WL$13,G$6,DataFromEngine!$J262:$WL262),9)/Scale -> 404049.7602 | H12: =ROUND(SUMIF(DataFromEngine!$J$13:$WL$13,H$6,DataFromEngine!$J262:$WL262),9)/Scale -> 0 | I12: =ROUND(SUMIF(DataFromEngine!$J$13:$WL$13,I$6,DataFromEngine!$J262:$WL262),9)/Scale -> 0 | J12: =ROUND(SUMIF(DataFromEngine!$J$13:$WL$13,J$6,DataFromEngine!$J262:$WL262),9)/Scale -> 0 | K12: =ROUND(SUMIF(DataFromEngine!$J$13:$WL$13,K$6,DataFromEngine!$J262:$WL262),9)/Scale -> 0 | L12: =ROUND(SUMIF(DataFromEngine!$J$13:$WL$13,L$6,DataFromEngine!$J262:$WL262),9)/Scale -> 0 | M12: =ROUND(SUMIF(DataFromEngine!$J$13:$WL$13,M$6,DataFromEngine!$J262:$WL262),9)/Scale -> 0 | N12: =ROUND(SUMIF(DataFromEngine!$J$13:$WL$13,N$6,DataFromEngine!$J262:$WL262),9)/Scale -> 0 | O12: =ROUND(SUMIF(DataFromEngine!$J$13:$WL$13,O$6,DataFromEngine!$J262:$WL262),9)/Scale -> 0 | P12: =ROUND(SUMIF(DataFromEngine!$J$13:$WL$13,P$6,DataFromEngine!$J262:$WL262),9)/Scale -> 0 | Q12: =ROUND(SUMIF(DataFromEngine!$J$13:$WL$13,Q$6,DataFromEngine!$J262:$WL262),9)/Scale -> 0 | R12: =ROUND(SUMIF(DataFromEngine!$J$13:$WL$13,R$6,DataFromEngine!$J262:$WL262),9)/Scale -> 0 | S12: =ROUND(SUMIF(DataFromEngine!$J$13:$WL$13,S$6,DataFromEngine!$J262:$WL262),9)/Scale -> 0 | T12: =ROUND(SUMIF(DataFromEngine!$J$13:$WL$13,T$6,DataFromEngine!$J262:$WL262),9)/Scale -> 0 | U12: =ROUND(SUMIF(DataFromEngine!$J$13:$WL$13,U$6,DataFromEngine!$J262:$WL262),9)/Scale -> 0 | V12: =ROUND(SUMIF(DataFromEngine!$J$13:$WL$13,V$6,DataFromEngine!$J262:$WL262),9)/Scale -> 0 | W12: =ROUND(SUMIF(DataFromEngine!$J$13:$WL$13,W$6,DataFromEngine!$J262:$WL262),9)/Scale -> 0 | X12: =ROUND(SUMIF(DataFromEngine!$J$13:$WL$13,X$6,DataFromEngine!$J262:$WL262),9)/Scale -> 0 | Y12: =ROUND(SUMIF(DataFromEngine!$J$13:$WL$13,Y$6,DataFromEngine!$J262:$WL262),9)/Scale -> 0 | Z12: =ROUND(SUMIF(DataFromEngine!$J$13:$WL$13,Z$6,DataFromEngine!$J262:$WL262),9)/Scale -> 0 | AA12: =ROUND(SUMIF(DataFromEngine!$J$13:$WL$13,AA$6,DataFromEngine!$J262:$WL262),9)/Scale -> 0 | AB12: =ROUND(SUMIF(DataFromEngine!$J$13:$WL$13,AB$6,DataFromEngine!$J262:$WL262),9)/Scale -> 0 | AC12: =ROUND(SUMIF(DataFromEngine!$J$13:$WL$13,AC$6,DataFromEngine!$J262:$WL262),9)/Scale -> 0 | AD12: =ROUND(SUMIF(DataFromEngine!$J$13:$WL$13,AD$6,DataFromEngine!$J262:$WL262),9)/Scale -> 0 | AE12: =ROUND(SUMIF(DataFromEngine!$J$13:$WL$13,AE$6,DataFromEngine!$J262:$WL262),9)/Scale -> 0 | AF12: =ROUND(SUMIF(DataFromEngine!$J$13:$WL$13,AF$6,DataFromEngine!$J262:$WL262),9)/Scale -> 0 | AG12: =ROUND(SUMIF(DataFromEngine!$J$13:$WL$13,AG$6,DataFromEngine!$J262:$WL262),9)/Scale -> 0 | AH12: =ROUND(SUMIF(DataFromEngine!$J$13:$WL$13,AH$6,DataFromEngine!$J262:$WL262),9)/Scale -> 0 | AI12: =ROUND(SUMIF(DataFromEngine!$J$13:$WL$13,AI$6,DataFromEngine!$J262:$WL262),9)/Scale -> 0 | AJ12: =ROUND(SUMIF(DataFromEngine!$J$13:$WL$13,AJ$6,DataFromEngine!$J262:$WL262),9)/Scale -> 0 | AK12: =ROUND(SUMIF(DataFromEngine!$J$13:$WL$13,AK$6,DataFromEngine!$J262:$WL262),9)/Scale -> 0 | AL12: =ROUND(SUMIF(DataFromEngine!$J$13:$WL$13,AL$6,DataFromEngine!$J262:$WL262),9)/Scale -> 0 | AM12: =ROUND(SUMIF(DataFromEngine!$J$13:$WL$13,AM$6,DataFromEngine!$J262:$WL262),9)/Scale -> 0 | AN12: =ROUND(SUMIF(DataFromEngine!$J$13:$WL$13,AN$6,DataFromEngine!$J262:$WL262),9)/Scale -> 0 | AO12: =ROUND(SUMIF(DataFromEngine!$J$13:$WL$13,AO$6,DataFromEngine!$J262:$WL262),9)/Scale -> 0 | AP12: =ROUND(SUMIF(DataFromEngine!$J$13:$WL$13,AP$6,DataFromEngine!$J262:$WL262),9)/Scale -> 0 | AQ12: =ROUND(SUMIF(DataFromEngine!$J$13:$WL$13,AQ$6,DataFromEngine!$J262:$WL262),9)/Scale -> 0 | AR12: =ROUND(SUMIF(DataFromEngine!$J$13:$WL$13,AR$6,DataFromEngine!$J262:$WL262),9)/Scale -> 0 | AS12: =ROUND(SUMIF(DataFromEngine!$J$13:$WL$13,AS$6,DataFromEngine!$J262:$WL262),9)/Scale -> 0 | AT12: =ROUND(SUMIF(DataFromEngine!$J$13:$WL$13,AT$6,DataFromEngine!$J262:$WL262),9)/Scale -> 0 | AU12: =ROUND(SUMIF(DataFromEngine!$J$13:$WL$13,AU$6,DataFromEngine!$J262:$WL262),9)/Scale -> 0 | AV12: =ROUND(SUMIF(DataFromEngine!$J$13:$WL$13,AV$6,DataFromEngine!$J262:$WL262),9)/Scale -> 0 | AW12: =ROUND(SUMIF(DataFromEngine!$J$13:$WL$13,AW$6,DataFromEngine!$J262:$WL262),9)/Scale -> 0 | AX12: =ROUND(SUMIF(DataFromEngine!$J$13:$WL$13,AX$6,DataFromEngine!$J262:$WL262),9)/Scale -> 0 | AY12: =ROUND(SUMIF(DataFromEngine!$J$13:$WL$13,AY$6,DataFromEngine!$J262:$WL262),9)/Scale -> 0 | AZ12: =ROUND(SUMIF(DataFromEngine!$J$13:$WL$13,AZ$6,DataFromEngine!$J262:$WL262),9)/Scale -> 0 | BA12: =ROUND(SUMIF(DataFromEngine!$J$13:$WL$13,BA$6,DataFromEngine!$J262:$WL262),9)/Scale -> 0 | BB12: =ROUND(SUMIF(DataFromEngine!$J$13:$WL$13,BB$6,DataFromEngine!$J262:$WL262),9)/Scale -> 0
B13: Average WC Reqiurement | D13: =ROUND(SUMIF(DataFromEngine!$J$13:$WL$13,D$6,DataFromEngine!$J263:$WL263),9)/Scale -> 0 | E13: =ROUND(AVERAGEIF(DataFromEngine!$J$13:$WL$13,E$6,DataFromEngine!$J263:$WL263),9)/Scale -> 0 | F13: =ROUND(AVERAGEIF(DataFromEngine!$J$13:$WL$13,F$6,DataFromEngine!$J263:$WL263),9)/Scale -> 95480.21829 | G13: =ROUND(AVERAGEIF(DataFromEngine!$J$13:$WL$13,G$6,DataFromEngine!$J263:$WL263),9)/Scale -> 33885.92112 | H13: =ROUND(AVERAGEIF(DataFromEngine!$J$13:$WL$13,H$6,DataFromEngine!$J263:$WL263),9)/Scale -> 0 | I13: =ROUND(AVERAGEIF(DataFromEngine!$J$13:$WL$13,I$6,DataFromEngine!$J263:$WL263),9)/Scale -> 0 | J13: =ROUND(AVERAGEIF(DataFromEngine!$J$13:$WL$13,J$6,DataFromEngine!$J263:$WL263),9)/Scale -> 0 | K13: =ROUND(AVERAGEIF(DataFromEngine!$J$13:$WL$13,K$6,DataFromEngine!$J263:$WL263),9)/Scale -> 0 | L13: =ROUND(AVERAGEIF(DataFromEngine!$J$13:$WL$13,L$6,DataFromEngine!$J263:$WL263),9)/Scale -> 0 | M13: =ROUND(AVERAGEIF(DataFromEngine!$J$13:$WL$13,M$6,DataFromEngine!$J263:$WL263),9)/Scale -> 0 | N13: =ROUND(AVERAGEIF(DataFromEngine!$J$13:$WL$13,N$6,DataFromEngine!$J263:$WL263),9)/Scale -> 0 | O13: =ROUND(AVERAGEIF(DataFromEngine!$J$13:$WL$13,O$6,DataFromEngine!$J263:$WL263),9)/Scale -> 0 | P13: =ROUND(AVERAGEIF(DataFromEngine!$J$13:$WL$13,P$6,DataFromEngine!$J263:$WL263),9)/Scale -> 0 | Q13: =ROUND(AVERAGEIF(DataFromEngine!$J$13:$WL$13,Q$6,DataFromEngine!$J263:$WL263),9)/Scale -> 0 | R13: =ROUND(AVERAGEIF(DataFromEngine!$J$13:$WL$13,R$6,DataFromEngine!$J263:$WL263),9)/Scale -> 0 | S13: =ROUND(AVERAGEIF(DataFromEngine!$J$13:$WL$13,S$6,DataFromEngine!$J263:$WL263),9)/Scale -> 0 | T13: =ROUND(AVERAGEIF(DataFromEngine!$J$13:$WL$13,T$6,DataFromEngine!$J263:$WL263),9)/Scale -> 0 | U13: =ROUND(AVERAGEIF(DataFromEngine!$J$13:$WL$13,U$6,DataFromEngine!$J263:$WL263),9)/Scale -> 0 | V13: =ROUND(AVERAGEIF(DataFromEngine!$J$13:$WL$13,V$6,DataFromEngine!$J263:$WL263),9)/Scale -> 0 | W13: =ROUND(AVERAGEIF(DataFromEngine!$J$13:$WL$13,W$6,DataFromEngine!$J263:$WL263),9)/Scale -> 0 | X13: =ROUND(AVERAGEIF(DataFromEngine!$J$13:$WL$13,X$6,DataFromEngine!$J263:$WL263),9)/Scale -> 0 | Y13: =ROUND(AVERAGEIF(DataFromEngine!$J$13:$WL$13,Y$6,DataFromEngine!$J263:$WL263),9)/Scale -> 0 | Z13: =ROUND(AVERAGEIF(DataFromEngine!$J$13:$WL$13,Z$6,DataFromEngine!$J263:$WL263),9)/Scale -> 0 | AA13: =ROUND(AVERAGEIF(DataFromEngine!$J$13:$WL$13,AA$6,DataFromEngine!$J263:$WL263),9)/Scale -> 0 | AB13: =ROUND(AVERAGEIF(DataFromEngine!$J$13:$WL$13,AB$6,DataFromEngine!$J263:$WL263),9)/Scale -> 0 | AC13: =ROUND(AVERAGEIF(DataFromEngine!$J$13:$WL$13,AC$6,DataFromEngine!$J263:$WL263),9)/Scale -> 0 | AD13: =ROUND(AVERAGEIF(DataFromEngine!$J$13:$WL$13,AD$6,DataFromEngine!$J263:$WL263),9)/Scale -> 0 | AE13: =ROUND(AVERAGEIF(DataFromEngine!$J$13:$WL$13,AE$6,DataFromEngine!$J263:$WL263),9)/Scale -> 0 | AF13: =ROUND(AVERAGEIF(DataFromEngine!$J$13:$WL$13,AF$6,DataFromEngine!$J263:$WL263),9)/Scale -> 0 | AG13: =ROUND(AVERAGEIF(DataFromEngine!$J$13:$WL$13,AG$6,DataFromEngine!$J263:$WL263),9)/Scale -> 0 | AH13: =ROUND(AVERAGEIF(DataFromEngine!$J$13:$WL$13,AH$6,DataFromEngine!$J263:$WL263),9)/Scale -> 0 | AI13: =ROUND(AVERAGEIF(DataFromEngine!$J$13:$WL$13,AI$6,DataFromEngine!$J263:$WL263),9)/Scale -> 0 | AJ13: =ROUND(AVERAGEIF(DataFromEngine!$J$13:$WL$13,AJ$6,DataFromEngine!$J263:$WL263),9)/Scale -> 0 | AK13: =ROUND(AVERAGEIF(DataFromEngine!$J$13:$WL$13,AK$6,DataFromEngine!$J263:$WL263),9)/Scale -> 0 | AL13: =ROUND(AVERAGEIF(DataFromEngine!$J$13:$WL$13,AL$6,DataFromEngine!$J263:$WL263),9)/Scale -> 0 | AM13: =ROUND(AVERAGEIF(DataFromEngine!$J$13:$WL$13,AM$6,DataFromEngine!$J263:$WL263),9)/Scale -> 0 | AN13: =ROUND(AVERAGEIF(DataFromEngine!$J$13:$WL$13,AN$6,DataFromEngine!$J263:$WL263),9)/Scale -> 0 | AO13: =ROUND(AVERAGEIF(DataFromEngine!$J$13:$WL$13,AO$6,DataFromEngine!$J263:$WL263),9)/Scale -> 0 | AP13: =ROUND(AVERAGEIF(DataFromEngine!$J$13:$WL$13,AP$6,DataFromEngine!$J263:$WL263),9)/Scale -> 0 | AQ13: =ROUND(AVERAGEIF(DataFromEngine!$J$13:$WL$13,AQ$6,DataFromEngine!$J263:$WL263),9)/Scale -> 0 | AR13: =ROUND(AVERAGEIF(DataFromEngine!$J$13:$WL$13,AR$6,DataFromEngine!$J263:$WL263),9)/Scale -> 0 | AS13: =ROUND(AVERAGEIF(DataFromEngine!$J$13:$WL$13,AS$6,DataFromEngine!$J263:$WL263),9)/Scale -> 0 | AT13: =ROUND(AVERAGEIF(DataFromEngine!$J$13:$WL$13,AT$6,DataFromEngine!$J263:$WL263),9)/Scale -> 0 | AU13: =ROUND(AVERAGEIF(DataFromEngine!$J$13:$WL$13,AU$6,DataFromEngine!$J263:$WL263),9)/Scale -> 0 | AV13: =ROUND(AVERAGEIF(DataFromEngine!$J$13:$WL$13,AV$6,DataFromEngine!$J263:$WL263),9)/Scale -> 0 | AW13: =ROUND(AVERAGEIF(DataFromEngine!$J$13:$WL$13,AW$6,DataFromEngine!$J263:$WL263),9)/Scale -> 0 | AX13: =ROUND(AVERAGEIF(DataFromEngine!$J$13:$WL$13,AX$6,DataFromEngine!$J263:$WL263),9)/Scale -> 0 | AY13: =ROUND(AVERAGEIF(DataFromEngine!$J$13:$WL$13,AY$6,DataFromEngine!$J263:$WL263),9)/Scale -> 0 | AZ13: =ROUND(AVERAGEIF(DataFromEngine!$J$13:$WL$13,AZ$6,DataFromEngine!$J263:$WL263),9)/Scale -> 0 | BA13: =ROUND(AVERAGEIF(DataFromEngine!$J$13:$WL$13,BA$6,DataFromEngine!$J263:$WL263),9)/Scale -> 0 | BB13: =ROUND(AVERAGEIF(DataFromEngine!$J$13:$WL$13,BB$6,DataFromEngine!$J263:$WL263),9)/Scale -> 0
B14: Return on Debt for WC | C14: =SUM(D14:BB14) -> 2686.902374 | D14: =ROUND(SUMIF(DataFromEngine!$J$13:$WL$13,D$6,DataFromEngine!$J264:$WL264),9)/Scale -> 0 | E14: =ROUND(SUMIF(DataFromEngine!$J$13:$WL$13,E$6,DataFromEngine!$J264:$WL264),9)/Scale -> 0 | F14: =ROUND(SUMIF(DataFromEngine!$J$13:$WL$13,F$6,DataFromEngine!$J264:$WL264),9)/Scale -> 1983.100264 | G14: =ROUND(SUMIF(DataFromEngine!$J$13:$WL$13,G$6,DataFromEngine!$J264:$WL264),9)/Scale -> 703.8021102 | H14: =ROUND(SUMIF(DataFromEngine!$J$13:$WL$13,H$6,DataFromEngine!$J264:$WL264),9)/Scale -> 0 | I14: =ROUND(SUMIF(DataFromEngine!$J$13:$WL$13,I$6,DataFromEngine!$J264:$WL264),9)/Scale -> 0 | J14: =ROUND(SUMIF(DataFromEngine!$J$13:$WL$13,J$6,DataFromEngine!$J264:$WL264),9)/Scale -> 0 | K14: =ROUND(SUMIF(DataFromEngine!$J$13:$WL$13,K$6,DataFromEngine!$J264:$WL264),9)/Scale -> 0 | L14: =ROUND(SUMIF(DataFromEngine!$J$13:$WL$13,L$6,DataFromEngine!$J264:$WL264),9)/Scale -> 0 | M14: =ROUND(SUMIF(DataFromEngine!$J$13:$WL$13,M$6,DataFromEngine!$J264:$WL264),9)/Scale -> 0 | N14: =ROUND(SUMIF(DataFromEngine!$J$13:$WL$13,N$6,DataFromEngine!$J264:$WL264),9)/Scale -> 0 | O14: =ROUND(SUMIF(DataFromEngine!$J$13:$WL$13,O$6,DataFromEngine!$J264:$WL264),9)/Scale -> 0 | P14: =ROUND(SUMIF(DataFromEngine!$J$13:$WL$13,P$6,DataFromEngine!$J264:$WL264),9)/Scale -> 0 | Q14: =ROUND(SUMIF(DataFromEngine!$J$13:$WL$13,Q$6,DataFromEngine!$J264:$WL264),9)/Scale -> 0 | R14: =ROUND(SUMIF(DataFromEngine!$J$13:$WL$13,R$6,DataFromEngine!$J264:$WL264),9)/Scale -> 0 | S14: =ROUND(SUMIF(DataFromEngine!$J$13:$WL$13,S$6,DataFromEngine!$J264:$WL264),9)/Scale -> 0 | T14: =ROUND(SUMIF(DataFromEngine!$J$13:$WL$13,T$6,DataFromEngine!$J264:$WL264),9)/Scale -> 0 | U14: =ROUND(SUMIF(DataFromEngine!$J$13:$WL$13,U$6,DataFromEngine!$J264:$WL264),9)/Scale -> 0 | V14: =ROUND(SUMIF(DataFromEngine!$J$13:$WL$13,V$6,DataFromEngine!$J264:$WL264),9)/Scale -> 0 | W14: =ROUND(SUMIF(DataFromEngine!$J$13:$WL$13,W$6,DataFromEngine!$J264:$WL264),9)/Scale -> 0 | X14: =ROUND(SUMIF(DataFromEngine!$J$13:$WL$13,X$6,DataFromEngine!$J264:$WL264),9)/Scale -> 0 | Y14: =ROUND(SUMIF(DataFromEngine!$J$13:$WL$13,Y$6,DataFromEngine!$J264:$WL264),9)/Scale -> 0 | Z14: =ROUND(SUMIF(DataFromEngine!$J$13:$WL$13,Z$6,DataFromEngine!$J264:$WL264),9)/Scale -> 0 | AA14: =ROUND(SUMIF(DataFromEngine!$J$13:$WL$13,AA$6,DataFromEngine!$J264:$WL264),9)/Scale -> 0 | AB14: =ROUND(SUMIF(DataFromEngine!$J$13:$WL$13,AB$6,DataFromEngine!$J264:$WL264),9)/Scale -> 0 | AC14: =ROUND(SUMIF(DataFromEngine!$J$13:$WL$13,AC$6,DataFromEngine!$J264:$WL264),9)/Scale -> 0 | AD14: =ROUND(SUMIF(DataFromEngine!$J$13:$WL$13,AD$6,DataFromEngine!$J264:$WL264),9)/Scale -> 0 | AE14: =ROUND(SUMIF(DataFromEngine!$J$13:$WL$13,AE$6,DataFromEngine!$J264:$WL264),9)/Scale -> 0 | AF14: =ROUND(SUMIF(DataFromEngine!$J$13:$WL$13,AF$6,DataFromEngine!$J264:$WL264),9)/Scale -> 0 | AG14: =ROUND(SUMIF(DataFromEngine!$J$13:$WL$13,AG$6,DataFromEngine!$J264:$WL264),9)/Scale -> 0 | AH14: =ROUND(SUMIF(DataFromEngine!$J$13:$WL$13,AH$6,DataFromEngine!$J264:$WL264),9)/Scale -> 0 | AI14: =ROUND(SUMIF(DataFromEngine!$J$13:$WL$13,AI$6,DataFromEngine!$J264:$WL264),9)/Scale -> 0 | AJ14: =ROUND(SUMIF(DataFromEngine!$J$13:$WL$13,AJ$6,DataFromEngine!$J264:$WL264),9)/Scale -> 0 | AK14: =ROUND(SUMIF(DataFromEngine!$J$13:$WL$13,AK$6,DataFromEngine!$J264:$WL264),9)/Scale -> 0 | AL14: =ROUND(SUMIF(DataFromEngine!$J$13:$WL$13,AL$6,DataFromEngine!$J264:$WL264),9)/Scale -> 0 | AM14: =ROUND(SUMIF(DataFromEngine!$J$13:$WL$13,AM$6,DataFromEngine!$J264:$WL264),9)/Scale -> 0 | AN14: =ROUND(SUMIF(DataFromEngine!$J$13:$WL$13,AN$6,DataFromEngine!$J264:$WL264),9)/Scale -> 0 | AO14: =ROUND(SUMIF(DataFromEngine!$J$13:$WL$13,AO$6,DataFromEngine!$J264:$WL264),9)/Scale -> 0 | AP14: =ROUND(SUMIF(DataFromEngine!$J$13:$WL$13,AP$6,DataFromEngine!$J264:$WL264),9)/Scale -> 0 | AQ14: =ROUND(SUMIF(DataFromEngine!$J$13:$WL$13,AQ$6,DataFromEngine!$J264:$WL264),9)/Scale -> 0 | AR14: =ROUND(SUMIF(DataFromEngine!$J$13:$WL$13,AR$6,DataFromEngine!$J264:$WL264),9)/Scale -> 0 | AS14: =ROUND(SUMIF(DataFromEngine!$J$13:$WL$13,AS$6,DataFromEngine!$J264:$WL264),9)/Scale -> 0 | AT14: =ROUND(SUMIF(DataFromEngine!$J$13:$WL$13,AT$6,DataFromEngine!$J264:$WL264),9)/Scale -> 0 | AU14: =ROUND(SUMIF(DataFromEngine!$J$13:$WL$13,AU$6,DataFromEngine!$J264:$WL264),9)/Scale -> 0 | AV14: =ROUND(SUMIF(DataFromEngine!$J$13:$WL$13,AV$6,DataFromEngine!$J264:$WL264),9)/Scale -> 0 | AW14: =ROUND(SUMIF(DataFromEngine!$J$13:$WL$13,AW$6,DataFromEngine!$J264:$WL264),9)/Scale -> 0 | AX14: =ROUND(SUMIF(DataFromEngine!$J$13:$WL$13,AX$6,DataFromEngine!$J264:$WL264),9)/Scale -> 0 | AY14: =ROUND(SUMIF(DataFromEngine!$J$13:$WL$13,AY$6,DataFromEngine!$J264:$WL264),9)/Scale -> 0 | AZ14: =ROUND(SUMIF(DataFromEngine!$J$13:$WL$13,AZ$6,DataFromEngine!$J264:$WL264),9)/Scale -> 0 | BA14: =ROUND(SUMIF(DataFromEngine!$J$13:$WL$13,BA$6,DataFromEngine!$J264:$WL264),9)/Scale -> 0 | BB14: =ROUND(SUMIF(DataFromEngine!$J$13:$WL$13,BB$6,DataFromEngine!$J264:$WL264),9)/Scale -> 0
B15: Return on Preferred for WC | C15: =SUM(D15:BB15) -> 221.2807815 | D15: =ROUND(SUMIF(DataFromEngine!$J$13:$WL$13,D$6,DataFromEngine!$J265:$WL265),9)/Scale -> 0 | E15: =ROUND(SUMIF(DataFromEngine!$J$13:$WL$13,E$6,DataFromEngine!$J265:$WL265),9)/Scale -> 0 | F15: =ROUND(SUMIF(DataFromEngine!$J$13:$WL$13,F$6,DataFromEngine!$J265:$WL265),9)/Scale -> 163.3189134 | G15: =ROUND(SUMIF(DataFromEngine!$J$13:$WL$13,G$6,DataFromEngine!$J265:$WL265),9)/Scale -> 57.96186808 | H15: =ROUND(SUMIF(DataFromEngine!$J$13:$WL$13,H$6,DataFromEngine!$J265:$WL265),9)/Scale -> 0 | I15: =ROUND(SUMIF(DataFromEngine!$J$13:$WL$13,I$6,DataFromEngine!$J265:$WL265),9)/Scale -> 0 | J15: =ROUND(SUMIF(DataFromEngine!$J$13:$WL$13,J$6,DataFromEngine!$J265:$WL265),9)/Scale -> 0 | K15: =ROUND(SUMIF(DataFromEngine!$J$13:$WL$13,K$6,DataFromEngine!$J265:$WL265),9)/Scale -> 0 | L15: =ROUND(SUMIF(DataFromEngine!$J$13:$WL$13,L$6,DataFromEngine!$J265:$WL265),9)/Scale -> 0 | M15: =ROUND(SUMIF(DataFromEngine!$J$13:$WL$13,M$6,DataFromEngine!$J265:$WL265),9)/Scale -> 0 | N15: =ROUND(SUMIF(DataFromEngine!$J$13:$WL$13,N$6,DataFromEngine!$J265:$WL265),9)/Scale -> 0 | O15: =ROUND(SUMIF(DataFromEngine!$J$13:$WL$13,O$6,DataFromEngine!$J265:$WL265),9)/Scale -> 0 | P15: =ROUND(SUMIF(DataFromEngine!$J$13:$WL$13,P$6,DataFromEngine!$J265:$WL265),9)/Scale -> 0 | Q15: =ROUND(SUMIF(DataFromEngine!$J$13:$WL$13,Q$6,DataFromEngine!$J265:$WL265),9)/Scale -> 0 | R15: =ROUND(SUMIF(DataFromEngine!$J$13:$WL$13,R$6,DataFromEngine!$J265:$WL265),9)/Scale -> 0 | S15: =ROUND(SUMIF(DataFromEngine!$J$13:$WL$13,S$6,DataFromEngine!$J265:$WL265),9)/Scale -> 0 | T15: =ROUND(SUMIF(DataFromEngine!$J$13:$WL$13,T$6,DataFromEngine!$J265:$WL265),9)/Scale -> 0 | U15: =ROUND(SUMIF(DataFromEngine!$J$13:$WL$13,U$6,DataFromEngine!$J265:$WL265),9)/Scale -> 0 | V15: =ROUND(SUMIF(DataFromEngine!$J$13:$WL$13,V$6,DataFromEngine!$J265:$WL265),9)/Scale -> 0 | W15: =ROUND(SUMIF(DataFromEngine!$J$13:$WL$13,W$6,DataFromEngine!$J265:$WL265),9)/Scale -> 0 | X15: =ROUND(SUMIF(DataFromEngine!$J$13:$WL$13,X$6,DataFromEngine!$J265:$WL265),9)/Scale -> 0 | Y15: =ROUND(SUMIF(DataFromEngine!$J$13:$WL$13,Y$6,DataFromEngine!$J265:$WL265),9)/Scale -> 0 | Z15: =ROUND(SUMIF(DataFromEngine!$J$13:$WL$13,Z$6,DataFromEngine!$J265:$WL265),9)/Scale -> 0 | AA15: =ROUND(SUMIF(DataFromEngine!$J$13:$WL$13,AA$6,DataFromEngine!$J265:$WL265),9)/Scale -> 0 | AB15: =ROUND(SUMIF(DataFromEngine!$J$13:$WL$13,AB$6,DataFromEngine!$J265:$WL265),9)/Scale -> 0 | AC15: =ROUND(SUMIF(DataFromEngine!$J$13:$WL$13,AC$6,DataFromEngine!$J265:$WL265),9)/Scale -> 0 | AD15: =ROUND(SUMIF(DataFromEngine!$J$13:$WL$13,AD$6,DataFromEngine!$J265:$WL265),9)/Scale -> 0 | AE15: =ROUND(SUMIF(DataFromEngine!$J$13:$WL$13,AE$6,DataFromEngine!$J265:$WL265),9)/Scale -> 0 | AF15: =ROUND(SUMIF(DataFromEngine!$J$13:$WL$13,AF$6,DataFromEngine!$J265:$WL265),9)/Scale -> 0 | AG15: =ROUND(SUMIF(DataFromEngine!$J$13:$WL$13,AG$6,DataFromEngine!$J265:$WL265),9)/Scale -> 0 | AH15: =ROUND(SUMIF(DataFromEngine!$J$13:$WL$13,AH$6,DataFromEngine!$J265:$WL265),9)/Scale -> 0 | AI15: =ROUND(SUMIF(DataFromEngine!$J$13:$WL$13,AI$6,DataFromEngine!$J265:$WL265),9)/Scale -> 0 | AJ15: =ROUND(SUMIF(DataFromEngine!$J$13:$WL$13,AJ$6,DataFromEngine!$J265:$WL265),9)/Scale -> 0 | AK15: =ROUND(SUMIF(DataFromEngine!$J$13:$WL$13,AK$6,DataFromEngine!$J265:$WL265),9)/Scale -> 0 | AL15: =ROUND(SUMIF(DataFromEngine!$J$13:$WL$13,AL$6,DataFromEngine!$J265:$WL265),9)/Scale -> 0 | AM15: =ROUND(SUMIF(DataFromEngine!$J$13:$WL$13,AM$6,DataFromEngine!$J265:$WL265),9)/Scale -> 0 | AN15: =ROUND(SUMIF(DataFromEngine!$J$13:$WL$13,AN$6,DataFromEngine!$J265:$WL265),9)/Scale -> 0 | AO15: =ROUND(SUMIF(DataFromEngine!$J$13:$WL$13,AO$6,DataFromEngine!$J265:$WL265),9)/Scale -> 0 | AP15: =ROUND(SUMIF(DataFromEngine!$J$13:$WL$13,AP$6,DataFromEngine!$J265:$WL265),9)/Scale -> 0 | AQ15: =ROUND(SUMIF(DataFromEngine!$J$13:$WL$13,AQ$6,DataFromEngine!$J265:$WL265),9)/Scale -> 0 | AR15: =ROUND(SUMIF(DataFromEngine!$J$13:$WL$13,AR$6,DataFromEngine!$J265:$WL265),9)/Scale -> 0 | AS15: =ROUND(SUMIF(DataFromEngine!$J$13:$WL$13,AS$6,DataFromEngine!$J265:$WL265),9)/Scale -> 0 | AT15: =ROUND(SUMIF(DataFromEngine!$J$13:$WL$13,AT$6,DataFromEngine!$J265:$WL265),9)/Scale -> 0 | AU15: =ROUND(SUMIF(DataFromEngine!$J$13:$WL$13,AU$6,DataFromEngine!$J265:$WL265),9)/Scale -> 0 | AV15: =ROUND(SUMIF(DataFromEngine!$J$13:$WL$13,AV$6,DataFromEngine!$J265:$WL265),9)/Scale -> 0 | AW15: =ROUND(SUMIF(DataFromEngine!$J$13:$WL$13,AW$6,DataFromEngine!$J265:$WL265),9)/Scale -> 0 | AX15: =ROUND(SUMIF(DataFromEngine!$J$13:$WL$13,AX$6,DataFromEngine!$J265:$WL265),9)/Scale -> 0 | AY15: =ROUND(SUMIF(DataFromEngine!$J$13:$WL$13,AY$6,DataFromEngine!$J265:$WL265),9)/Scale -> 0 | AZ15: =ROUND(SUMIF(DataFromEngine!$J$13:$WL$13,AZ$6,DataFromEngine!$J265:$WL265),9)/Scale -> 0 | BA15: =ROUND(SUMIF(DataFromEngine!$J$13:$WL$13,BA$6,DataFromEngine!$J265:$WL265),9)/Scale -> 0 | BB15: =ROUND(SUMIF(DataFromEngine!$J$13:$WL$13,BB$6,DataFromEngine!$J265:$WL265),9)/Scale -> 0
B16: Return on Common WC | C16: =SUM(D16:BB16) -> 6861.580035 | D16: =ROUND(SUMIF(DataFromEngine!$J$13:$WL$13,D$6,DataFromEngine!$J266:$WL266),9)/Scale -> 0 | E16: =ROUND(SUMIF(DataFromEngine!$J$13:$WL$13,E$6,DataFromEngine!$J266:$WL266),9)/Scale -> 0 | F16: =ROUND(SUMIF(DataFromEngine!$J$13:$WL$13,F$6,DataFromEngine!$J266:$WL266),9)/Scale -> 5064.270778 | G16: =ROUND(SUMIF(DataFromEngine!$J$13:$WL$13,G$6,DataFromEngine!$J266:$WL266),9)/Scale -> 1797.309256 | H16: =ROUND(SUMIF(DataFromEngine!$J$13:$WL$13,H$6,DataFromEngine!$J266:$WL266),9)/Scale -> 0 | I16: =ROUND(SUMIF(DataFromEngine!$J$13:$WL$13,I$6,DataFromEngine!$J266:$WL266),9)/Scale -> 0 | J16: =ROUND(SUMIF(DataFromEngine!$J$13:$WL$13,J$6,DataFromEngine!$J266:$WL266),9)/Scale -> 0 | K16: =ROUND(SUMIF(DataFromEngine!$J$13:$WL$13,K$6,DataFromEngine!$J266:$WL266),9)/Scale -> 0 | L16: =ROUND(SUMIF(DataFromEngine!$J$13:$WL$13,L$6,DataFromEngine!$J266:$WL266),9)/Scale -> 0 | M16: =ROUND(SUMIF(DataFromEngine!$J$13:$WL$13,M$6,DataFromEngine!$J266:$WL266),9)/Scale -> 0 | N16: =ROUND(SUMIF(DataFromEngine!$J$13:$WL$13,N$6,DataFromEngine!$J266:$WL266),9)/Scale -> 0 | O16: =ROUND(SUMIF(DataFromEngine!$J$13:$WL$13,O$6,DataFromEngine!$J266:$WL266),9)/Scale -> 0 | P16: =ROUND(SUMIF(DataFromEngine!$J$13:$WL$13,P$6,DataFromEngine!$J266:$WL266),9)/Scale -> 0 | Q16: =ROUND(SUMIF(DataFromEngine!$J$13:$WL$13,Q$6,DataFromEngine!$J266:$WL266),9)/Scale -> 0 | R16: =ROUND(SUMIF(DataFromEngine!$J$13:$WL$13,R$6,DataFromEngine!$J266:$WL266),9)/Scale -> 0 | S16: =ROUND(SUMIF(DataFromEngine!$J$13:$WL$13,S$6,DataFromEngine!$J266:$WL266),9)/Scale -> 0 | T16: =ROUND(SUMIF(DataFromEngine!$J$13:$WL$13,T$6,DataFromEngine!$J266:$WL266),9)/Scale -> 0 | U16: =ROUND(SUMIF(DataFromEngine!$J$13:$WL$13,U$6,DataFromEngine!$J266:$WL266),9)/Scale -> 0 | V16: =ROUND(SUMIF(DataFromEngine!$J$13:$WL$13,V$6,DataFromEngine!$J266:$WL266),9)/Scale -> 0 | W16: =ROUND(SUMIF(DataFromEngine!$J$13:$WL$13,W$6,DataFromEngine!$J266:$WL266),9)/Scale -> 0 | X16: =ROUND(SUMIF(DataFromEngine!$J$13:$WL$13,X$6,DataFromEngine!$J266:$WL266),9)/Scale -> 0 | Y16: =ROUND(SUMIF(DataFromEngine!$J$13:$WL$13,Y$6,DataFromEngine!$J266:$WL266),9)/Scale -> 0 | Z16: =ROUND(SUMIF(DataFromEngine!$J$13:$WL$13,Z$6,DataFromEngine!$J266:$WL266),9)/Scale -> 0 | AA16: =ROUND(SUMIF(DataFromEngine!$J$13:$WL$13,AA$6,DataFromEngine!$J266:$WL266),9)/Scale -> 0 | AB16: =ROUND(SUMIF(DataFromEngine!$J$13:$WL$13,AB$6,DataFromEngine!$J266:$WL266),9)/Scale -> 0 | AC16: =ROUND(SUMIF(DataFromEngine!$J$13:$WL$13,AC$6,DataFromEngine!$J266:$WL266),9)/Scale -> 0 | AD16: =ROUND(SUMIF(DataFromEngine!$J$13:$WL$13,AD$6,DataFromEngine!$J266:$WL266),9)/Scale -> 0 | AE16: =ROUND(SUMIF(DataFromEngine!$J$13:$WL$13,AE$6,DataFromEngine!$J266:$WL266),9)/Scale -> 0 | AF16: =ROUND(SUMIF(DataFromEngine!$J$13:$WL$13,AF$6,DataFromEngine!$J266:$WL266),9)/Scale -> 0 | AG16: =ROUND(SUMIF(DataFromEngine!$J$13:$WL$13,AG$6,DataFromEngine!$J266:$WL266),9)/Scale -> 0 | AH16: =ROUND(SUMIF(DataFromEngine!$J$13:$WL$13,AH$6,DataFromEngine!$J266:$WL266),9)/Scale -> 0 | AI16: =ROUND(SUMIF(DataFromEngine!$J$13:$WL$13,AI$6,DataFromEngine!$J266:$WL266),9)/Scale -> 0 | AJ16: =ROUND(SUMIF(DataFromEngine!$J$13:$WL$13,AJ$6,DataFromEngine!$J266:$WL266),9)/Scale -> 0 | AK16: =ROUND(SUMIF(DataFromEngine!$J$13:$WL$13,AK$6,DataFromEngine!$J266:$WL266),9)/Scale -> 0 | AL16: =ROUND(SUMIF(DataFromEngine!$J$13:$WL$13,AL$6,DataFromEngine!$J266:$WL266),9)/Scale -> 0 | AM16: =ROUND(SUMIF(DataFromEngine!$J$13:$WL$13,AM$6,DataFromEngine!$J266:$WL266),9)/Scale -> 0 | AN16: =ROUND(SUMIF(DataFromEngine!$J$13:$WL$13,AN$6,DataFromEngine!$J266:$WL266),9)/Scale -> 0 | AO16: =ROUND(SUMIF(DataFromEngine!$J$13:$WL$13,AO$6,DataFromEngine!$J266:$WL266),9)/Scale -> 0 | AP16: =ROUND(SUMIF(DataFromEngine!$J$13:$WL$13,AP$6,DataFromEngine!$J266:$WL266),9)/Scale -> 0 | AQ16: =ROUND(SUMIF(DataFromEngine!$J$13:$WL$13,AQ$6,DataFromEngine!$J266:$WL266),9)/Scale -> 0 | AR16: =ROUND(SUMIF(DataFromEngine!$J$13:$WL$13,AR$6,DataFromEngine!$J266:$WL266),9)/Scale -> 0 | AS16: =ROUND(SUMIF(DataFromEngine!$J$13:$WL$13,AS$6,DataFromEngine!$J266:$WL266),9)/Scale -> 0 | AT16: =ROUND(SUMIF(DataFromEngine!$J$13:$WL$13,AT$6,DataFromEngine!$J266:$WL266),9)/Scale -> 0 | AU16: =ROUND(SUMIF(DataFromEngine!$J$13:$WL$13,AU$6,DataFromEngine!$J266:$WL266),9)/Scale -> 0 | AV16: =ROUND(SUMIF(DataFromEngine!$J$13:$WL$13,AV$6,DataFromEngine!$J266:$WL266),9)/Scale -> 0 | AW16: =ROUND(SUMIF(DataFromEngine!$J$13:$WL$13,AW$6,DataFromEngine!$J266:$WL266),9)/Scale -> 0 | AX16: =ROUND(SUMIF(DataFromEngine!$J$13:$WL$13,AX$6,DataFromEngine!$J266:$WL266),9)/Scale -> 0 | AY16: =ROUND(SUMIF(DataFromEngine!$J$13:$WL$13,AY$6,DataFromEngine!$J266:$WL266),9)/Scale -> 0 | AZ16: =ROUND(SUMIF(DataFromEngine!$J$13:$WL$13,AZ$6,DataFromEngine!$J266:$WL266),9)/Scale -> 0 | BA16: =ROUND(SUMIF(DataFromEngine!$J$13:$WL$13,BA$6,DataFromEngine!$J266:$WL266),9)/Scale -> 0 | BB16: =ROUND(SUMIF(DataFromEngine!$J$13:$WL$13,BB$6,DataFromEngine!$J266:$WL266),9)/Scale -> 0
B17: Book Income Pre-tax | D17: =ROUND(SUMIF(DataFromEngine!$J$13:$WL$13,D$6,DataFromEngine!$J267:$WL267),9)/Scale -> 0 | E17: =ROUND(SUMIF(DataFromEngine!$J$13:$WL$13,E$6,DataFromEngine!$J267:$WL267),9)/Scale -> 0 | F17: =ROUND(SUMIF(DataFromEngine!$J$13:$WL$13,F$6,DataFromEngine!$J267:$WL267),9)/Scale -> 9434.054784 | G17: =ROUND(SUMIF(DataFromEngine!$J$13:$WL$13,G$6,DataFromEngine!$J267:$WL267),9)/Scale -> 3150.99653 | H17: =ROUND(SUMIF(DataFromEngine!$J$13:$WL$13,H$6,DataFromEngine!$J267:$WL267),9)/Scale -> -64.75159237 | I17: =ROUND(SUMIF(DataFromEngine!$J$13:$WL$13,I$6,DataFromEngine!$J267:$WL267),9)/Scale -> 1.713296124 | J17: =ROUND(SUMIF(DataFromEngine!$J$13:$WL$13,J$6,DataFromEngine!$J267:$WL267),9)/Scale -> -0.045332995 | K17: =ROUND(SUMIF(DataFromEngine!$J$13:$WL$13,K$6,DataFromEngine!$J267:$WL267),9)/Scale -> 0.001199489 | L17: =ROUND(SUMIF(DataFromEngine!$J$13:$WL$13,L$6,DataFromEngine!$J267:$WL267),9)/Scale -> -3.1738e-05 | M17: =ROUND(SUMIF(DataFromEngine!$J$13:$WL$13,M$6,DataFromEngine!$J267:$WL267),9)/Scale -> 8.4e-07 | N17: =ROUND(SUMIF(DataFromEngine!$J$13:$WL$13,N$6,DataFromEngine!$J267:$WL267),9)/Scale -> -2.2e-08 | O17: =ROUND(SUMIF(DataFromEngine!$J$13:$WL$13,O$6,DataFromEngine!$J267:$WL267),9)/Scale -> 1e-09 | P17: =ROUND(SUMIF(DataFromEngine!$J$13:$WL$13,P$6,DataFromEngine!$J267:$WL267),9)/Scale -> 0 | Q17: =ROUND(SUMIF(DataFromEngine!$J$13:$WL$13,Q$6,DataFromEngine!$J267:$WL267),9)/Scale -> 0 | R17: =ROUND(SUMIF(DataFromEngine!$J$13:$WL$13,R$6,DataFromEngine!$J267:$WL267),9)/Scale -> 0 | S17: =ROUND(SUMIF(DataFromEngine!$J$13:$WL$13,S$6,DataFromEngine!$J267:$WL267),9)/Scale -> 0 | T17: =ROUND(SUMIF(DataFromEngine!$J$13:$WL$13,T$6,DataFromEngine!$J267:$WL267),9)/Scale -> 0 | U17: =ROUND(SUMIF(DataFromEngine!$J$13:$WL$13,U$6,DataFromEngine!$J267:$WL267),9)/Scale -> 0 | V17: =ROUND(SUMIF(DataFromEngine!$J$13:$WL$13,V$6,DataFromEngine!$J267:$WL267),9)/Scale -> 0 | W17: =ROUND(SUMIF(DataFromEngine!$J$13:$WL$13,W$6,DataFromEngine!$J267:$WL267),9)/Scale -> 0 | X17: =ROUND(SUMIF(DataFromEngine!$J$13:$WL$13,X$6,DataFromEngine!$J267:$WL267),9)/Scale -> 0 | Y17: =ROUND(SUMIF(DataFromEngine!$J$13:$WL$13,Y$6,DataFromEngine!$J267:$WL267),9)/Scale -> 0 | Z17: =ROUND(SUMIF(DataFromEngine!$J$13:$WL$13,Z$6,DataFromEngine!$J267:$WL267),9)/Scale -> 0 | AA17: =ROUND(SUMIF(DataFromEngine!$J$13:$WL$13,AA$6,DataFromEngine!$J267:$WL267),9)/Scale -> 0 | AB17: =ROUND(SUMIF(DataFromEngine!$J$13:$WL$13,AB$6,DataFromEngine!$J267:$WL267),9)/Scale -> 0 | AC17: =ROUND(SUMIF(DataFromEngine!$J$13:$WL$13,AC$6,DataFromEngine!$J267:$WL267),9)/Scale -> 0 | AD17: =ROUND(SUMIF(DataFromEngine!$J$13:$WL$13,AD$6,DataFromEngine!$J267:$WL267),9)/Scale -> 0 | AE17: =ROUND(SUMIF(DataFromEngine!$J$13:$WL$13,AE$6,DataFromEngine!$J267:$WL267),9)/Scale -> 0 | AF17: =ROUND(SUMIF(DataFromEngine!$J$13:$WL$13,AF$6,DataFromEngine!$J267:$WL267),9)/Scale -> 0 | AG17: =ROUND(SUMIF(DataFromEngine!$J$13:$WL$13,AG$6,DataFromEngine!$J267:$WL267),9)/Scale -> 0 | AH17: =ROUND(SUMIF(DataFromEngine!$J$13:$WL$13,AH$6,DataFromEngine!$J267:$WL267),9)/Scale -> 0 | AI17: =ROUND(SUMIF(DataFromEngine!$J$13:$WL$13,AI$6,DataFromEngine!$J267:$WL267),9)/Scale -> 0 | AJ17: =ROUND(SUMIF(DataFromEngine!$J$13:$WL$13,AJ$6,DataFromEngine!$J267:$WL267),9)/Scale -> 0 | AK17: =ROUND(SUMIF(DataFromEngine!$J$13:$WL$13,AK$6,DataFromEngine!$J267:$WL267),9)/Scale -> 0 | AL17: =ROUND(SUMIF(DataFromEngine!$J$13:$WL$13,AL$6,DataFromEngine!$J267:$WL267),9)/Scale -> 0 | AM17: =ROUND(SUMIF(DataFromEngine!$J$13:$WL$13,AM$6,DataFromEngine!$J267:$WL267),9)/Scale -> 0 | AN17: =ROUND(SUMIF(DataFromEngine!$J$13:$WL$13,AN$6,DataFromEngine!$J267:$WL267),9)/Scale -> 0 | AO17: =ROUND(SUMIF(DataFromEngine!$J$13:$WL$13,AO$6,DataFromEngine!$J267:$WL267),9)/Scale -> 0 | AP17: =ROUND(SUMIF(DataFromEngine!$J$13:$WL$13,AP$6,DataFromEngine!$J267:$WL267),9)/Scale -> 0 | AQ17: =ROUND(SUMIF(DataFromEngine!$J$13:$WL$13,AQ$6,DataFromEngine!$J267:$WL267),9)/Scale -> 0 | AR17: =ROUND(SUMIF(DataFromEngine!$J$13:$WL$13,AR$6,DataFromEngine!$J267:$WL267),9)/Scale -> 0 | AS17: =ROUND(SUMIF(DataFromEngine!$J$13:$WL$13,AS$6,DataFromEngine!$J267:$WL267),9)/Scale -> 0 | AT17: =ROUND(SUMIF(DataFromEngine!$J$13:$WL$13,AT$6,DataFromEngine!$J267:$WL267),9)/Scale -> 0 | AU17: =ROUND(SUMIF(DataFromEngine!$J$13:$WL$13,AU$6,DataFromEngine!$J267:$WL267),9)/Scale -> 0 | AV17: =ROUND(SUMIF(DataFromEngine!$J$13:$WL$13,AV$6,DataFromEngine!$J267:$WL267),9)/Scale -> 0 | AW17: =ROUND(SUMIF(DataFromEngine!$J$13:$WL$13,AW$6,DataFromEngine!$J267:$WL267),9)/Scale -> 0 | AX17: =ROUND(SUMIF(DataFromEngine!$J$13:$WL$13,AX$6,DataFromEngine!$J267:$WL267),9)/Scale -> 0 | AY17: =ROUND(SUMIF(DataFromEngine!$J$13:$WL$13,AY$6,DataFromEngine!$J267:$WL267),9)/Scale -> 0 | AZ17: =ROUND(SUMIF(DataFromEngine!$J$13:$WL$13,AZ$6,DataFromEngine!$J267:$WL267),9)/Scale -> 0 | BA17: =ROUND(SUMIF(DataFromEngine!$J$13:$WL$13,BA$6,DataFromEngine!$J267:$WL267),9)/Scale -> 0 | BB17: =ROUND(SUMIF(DataFromEngine!$J$13:$WL$13,BB$6,DataFromEngine!$J267:$WL267),9)/Scale -> 0
B18: Federal income tax for WC | C18: =SUM(D18:BB18) -> 1882.785787 | D18: =ROUND(SUMIF(DataFromEngine!$J$13:$WL$13,D$6,DataFromEngine!$J268:$WL268),9)/Scale -> 0 | E18: =ROUND(SUMIF(DataFromEngine!$J$13:$WL$13,E$6,DataFromEngine!$J268:$WL268),9)/Scale -> 0 | F18: =ROUND(SUMIF(DataFromEngine!$J$13:$WL$13,F$6,DataFromEngine!$J268:$WL268),9)/Scale -> 1564.700449 | G18: =ROUND(SUMIF(DataFromEngine!$J$13:$WL$13,G$6,DataFromEngine!$J268:$WL268),9)/Scale -> 375.5913084 | H18: =ROUND(SUMIF(DataFromEngine!$J$13:$WL$13,H$6,DataFromEngine!$J268:$WL268),9)/Scale -> -59.0275516 | I18: =ROUND(SUMIF(DataFromEngine!$J$13:$WL$13,I$6,DataFromEngine!$J268:$WL268),9)/Scale -> 1.561840747 | J18: =ROUND(SUMIF(DataFromEngine!$J$13:$WL$13,J$6,DataFromEngine!$J268:$WL268),9)/Scale -> -0.041325558 | K18: =ROUND(SUMIF(DataFromEngine!$J$13:$WL$13,K$6,DataFromEngine!$J268:$WL268),9)/Scale -> 0.001093454 | L18: =ROUND(SUMIF(DataFromEngine!$J$13:$WL$13,L$6,DataFromEngine!$J268:$WL268),9)/Scale -> -2.8932e-05 | M18: =ROUND(SUMIF(DataFromEngine!$J$13:$WL$13,M$6,DataFromEngine!$J268:$WL268),9)/Scale -> 7.66e-07 | N18: =ROUND(SUMIF(DataFromEngine!$J$13:$WL$13,N$6,DataFromEngine!$J268:$WL268),9)/Scale -> -2e-08 | O18: =ROUND(SUMIF(DataFromEngine!$J$13:$WL$13,O$6,DataFromEngine!$J268:$WL268),9)/Scale -> 1e-09 | P18: =ROUND(SUMIF(DataFromEngine!$J$13:$WL$13,P$6,DataFromEngine!$J268:$WL268),9)/Scale -> 0 | Q18: =ROUND(SUMIF(DataFromEngine!$J$13:$WL$13,Q$6,DataFromEngine!$J268:$WL268),9)/Scale -> 0 | R18: =ROUND(SUMIF(DataFromEngine!$J$13:$WL$13,R$6,DataFromEngine!$J268:$WL268),9)/Scale -> 0 | S18: =ROUND(SUMIF(DataFromEngine!$J$13:$WL$13,S$6,DataFromEngine!$J268:$WL268),9)/Scale -> 0 | T18: =ROUND(SUMIF(DataFromEngine!$J$13:$WL$13,T$6,DataFromEngine!$J268:$WL268),9)/Scale -> 0 | U18: =ROUND(SUMIF(DataFromEngine!$J$13:$WL$13,U$6,DataFromEngine!$J268:$WL268),9)/Scale -> 0 | V18: =ROUND(SUMIF(DataFromEngine!$J$13:$WL$13,V$6,DataFromEngine!$J268:$WL268),9)/Scale -> 0 | W18: =ROUND(SUMIF(DataFromEngine!$J$13:$WL$13,W$6,DataFromEngine!$J268:$WL268),9)/Scale -> 0 | X18: =ROUND(SUMIF(DataFromEngine!$J$13:$WL$13,X$6,DataFromEngine!$J268:$WL268),9)/Scale -> 0 | Y18: =ROUND(SUMIF(DataFromEngine!$J$13:$WL$13,Y$6,DataFromEngine!$J268:$WL268),9)/Scale -> 0 | Z18: =ROUND(SUMIF(DataFromEngine!$J$13:$WL$13,Z$6,DataFromEngine!$J268:$WL268),9)/Scale -> 0 | AA18: =ROUND(SUMIF(DataFromEngine!$J$13:$WL$13,AA$6,DataFromEngine!$J268:$WL268),9)/Scale -> 0 | AB18: =ROUND(SUMIF(DataFromEngine!$J$13:$WL$13,AB$6,DataFromEngine!$J268:$WL268),9)/Scale -> 0 | AC18: =ROUND(SUMIF(DataFromEngine!$J$13:$WL$13,AC$6,DataFromEngine!$J268:$WL268),9)/Scale -> 0 | AD18: =ROUND(SUMIF(DataFromEngine!$J$13:$WL$13,AD$6,DataFromEngine!$J268:$WL268),9)/Scale -> 0 | AE18: =ROUND(SUMIF(DataFromEngine!$J$13:$WL$13,AE$6,DataFromEngine!$J268:$WL268),9)/Scale -> 0 | AF18: =ROUND(SUMIF(DataFromEngine!$J$13:$WL$13,AF$6,DataFromEngine!$J268:$WL268),9)/Scale -> 0 | AG18: =ROUND(SUMIF(DataFromEngine!$J$13:$WL$13,AG$6,DataFromEngine!$J268:$WL268),9)/Scale -> 0 | AH18: =ROUND(SUMIF(DataFromEngine!$J$13:$WL$13,AH$6,DataFromEngine!$J268:$WL268),9)/Scale -> 0 | AI18: =ROUND(SUMIF(DataFromEngine!$J$13:$WL$13,AI$6,DataFromEngine!$J268:$WL268),9)/Scale -> 0 | AJ18: =ROUND(SUMIF(DataFromEngine!$J$13:$WL$13,AJ$6,DataFromEngine!$J268:$WL268),9)/Scale -> 0 | AK18: =ROUND(SUMIF(DataFromEngine!$J$13:$WL$13,AK$6,DataFromEngine!$J268:$WL268),9)/Scale -> 0 | AL18: =ROUND(SUMIF(DataFromEngine!$J$13:$WL$13,AL$6,DataFromEngine!$J268:$WL268),9)/Scale -> 0 | AM18: =ROUND(SUMIF(DataFromEngine!$J$13:$WL$13,AM$6,DataFromEngine!$J268:$WL268),9)/Scale -> 0 | AN18: =ROUND(SUMIF(DataFromEngine!$J$13:$WL$13,AN$6,DataFromEngine!$J268:$WL268),9)/Scale -> 0 | AO18: =ROUND(SUMIF(DataFromEngine!$J$13:$WL$13,AO$6,DataFromEngine!$J268:$WL268),9)/Scale -> 0 | AP18: =ROUND(SUMIF(DataFromEngine!$J$13:$WL$13,AP$6,DataFromEngine!$J268:$WL268),9)/Scale -> 0 | AQ18: =ROUND(SUMIF(DataFromEngine!$J$13:$WL$13,AQ$6,DataFromEngine!$J268:$WL268),9)/Scale -> 0 | AR18: =ROUND(SUMIF(DataFromEngine!$J$13:$WL$13,AR$6,DataFromEngine!$J268:$WL268),9)/Scale -> 0 | AS18: =ROUND(SUMIF(DataFromEngine!$J$13:$WL$13,AS$6,DataFromEngine!$J268:$WL268),9)/Scale -> 0 | AT18: =ROUND(SUMIF(DataFromEngine!$J$13:$WL$13,AT$6,DataFromEngine!$J268:$WL268),9)/Scale -> 0 | AU18: =ROUND(SUMIF(DataFromEngine!$J$13:$WL$13,AU$6,DataFromEngine!$J268:$WL268),9)/Scale -> 0 | AV18: =ROUND(SUMIF(DataFromEngine!$J$13:$WL$13,AV$6,DataFromEngine!$J268:$WL268),9)/Scale -> 0 | AW18: =ROUND(SUMIF(DataFromEngine!$J$13:$WL$13,AW$6,DataFromEngine!$J268:$WL268),9)/Scale -> 0 | AX18: =ROUND(SUMIF(DataFromEngine!$J$13:$WL$13,AX$6,DataFromEngine!$J268:$WL268),9)/Scale -> 0 | AY18: =ROUND(SUMIF(DataFromEngine!$J$13:$WL$13,AY$6,DataFromEngine!$J268:$WL268),9)/Scale -> 0 | AZ18: =ROUND(SUMIF(DataFromEngine!$J$13:$WL$13,AZ$6,DataFromEngine!$J268:$WL268),9)/Scale -> 0 | BA18: =ROUND(SUMIF(DataFromEngine!$J$13:$WL$13,BA$6,DataFromEngine!$J268:$WL268),9)/Scale -> 0 | BB18: =ROUND(SUMIF(DataFromEngine!$J$13:$WL$13,BB$6,DataFromEngine!$J268:$WL268),9)/Scale -> 0
B19: State Income tax for WC | C19: =SUM(D19:BB19) -> 869.4198768 | D19: =ROUND(SUMIF(DataFromEngine!$J$13:$WL$13,D$6,DataFromEngine!$J269:$WL269),9)/Scale -> 0 | E19: =ROUND(SUMIF(DataFromEngine!$J$13:$WL$13,E$6,DataFromEngine!$J269:$WL269),9)/Scale -> 0 | F19: =ROUND(SUMIF(DataFromEngine!$J$13:$WL$13,F$6,DataFromEngine!$J269:$WL269),9)/Scale -> 658.6643796 | G19: =ROUND(SUMIF(DataFromEngine!$J$13:$WL$13,G$6,DataFromEngine!$J269:$WL269),9)/Scale -> 216.3319867 | H19: =ROUND(SUMIF(DataFromEngine!$J$13:$WL$13,H$6,DataFromEngine!$J269:$WL269),9)/Scale -> -5.724040765 | I19: =ROUND(SUMIF(DataFromEngine!$J$13:$WL$13,I$6,DataFromEngine!$J269:$WL269),9)/Scale -> 0.151455377 | J19: =ROUND(SUMIF(DataFromEngine!$J$13:$WL$13,J$6,DataFromEngine!$J269:$WL269),9)/Scale -> -0.004007437 | K19: =ROUND(SUMIF(DataFromEngine!$J$13:$WL$13,K$6,DataFromEngine!$J269:$WL269),9)/Scale -> 0.000106035 | L19: =ROUND(SUMIF(DataFromEngine!$J$13:$WL$13,L$6,DataFromEngine!$J269:$WL269),9)/Scale -> -2.806e-06 | M19: =ROUND(SUMIF(DataFromEngine!$J$13:$WL$13,M$6,DataFromEngine!$J269:$WL269),9)/Scale -> 7.4e-08 | N19: =ROUND(SUMIF(DataFromEngine!$J$13:$WL$13,N$6,DataFromEngine!$J269:$WL269),9)/Scale -> -2e-09 | O19: =ROUND(SUMIF(DataFromEngine!$J$13:$WL$13,O$6,DataFromEngine!$J269:$WL269),9)/Scale -> 0 | P19: =ROUND(SUMIF(DataFromEngine!$J$13:$WL$13,P$6,DataFromEngine!$J269:$WL269),9)/Scale -> 0 | Q19: =ROUND(SUMIF(DataFromEngine!$J$13:$WL$13,Q$6,DataFromEngine!$J269:$WL269),9)/Scale -> 0 | R19: =ROUND(SUMIF(DataFromEngine!$J$13:$WL$13,R$6,DataFromEngine!$J269:$WL269),9)/Scale -> 0 | S19: =ROUND(SUMIF(DataFromEngine!$J$13:$WL$13,S$6,DataFromEngine!$J269:$WL269),9)/Scale -> 0 | T19: =ROUND(SUMIF(DataFromEngine!$J$13:$WL$13,T$6,DataFromEngine!$J269:$WL269),9)/Scale -> 0 | U19: =ROUND(SUMIF(DataFromEngine!$J$13:$WL$13,U$6,DataFromEngine!$J269:$WL269),9)/Scale -> 0 | V19: =ROUND(SUMIF(DataFromEngine!$J$13:$WL$13,V$6,DataFromEngine!$J269:$WL269),9)/Scale -> 0 | W19: =ROUND(SUMIF(DataFromEngine!$J$13:$WL$13,W$6,DataFromEngine!$J269:$WL269),9)/Scale -> 0 | X19: =ROUND(SUMIF(DataFromEngine!$J$13:$WL$13,X$6,DataFromEngine!$J269:$WL269),9)/Scale -> 0 | Y19: =ROUND(SUMIF(DataFromEngine!$J$13:$WL$13,Y$6,DataFromEngine!$J269:$WL269),9)/Scale -> 0 | Z19: =ROUND(SUMIF(DataFromEngine!$J$13:$WL$13,Z$6,DataFromEngine!$J269:$WL269),9)/Scale -> 0 | AA19: =ROUND(SUMIF(DataFromEngine!$J$13:$WL$13,AA$6,DataFromEngine!$J269:$WL269),9)/Scale -> 0 | AB19: =ROUND(SUMIF(DataFromEngine!$J$13:$WL$13,AB$6,DataFromEngine!$J269:$WL269),9)/Scale -> 0 | AC19: =ROUND(SUMIF(DataFromEngine!$J$13:$WL$13,AC$6,DataFromEngine!$J269:$WL269),9)/Scale -> 0 | AD19: =ROUND(SUMIF(DataFromEngine!$J$13:$WL$13,AD$6,DataFromEngine!$J269:$WL269),9)/Scale -> 0 | AE19: =ROUND(SUMIF(DataFromEngine!$J$13:$WL$13,AE$6,DataFromEngine!$J269:$WL269),9)/Scale -> 0 | AF19: =ROUND(SUMIF(DataFromEngine!$J$13:$WL$13,AF$6,DataFromEngine!$J269:$WL269),9)/Scale -> 0 | AG19: =ROUND(SUMIF(DataFromEngine!$J$13:$WL$13,AG$6,DataFromEngine!$J269:$WL269),9)/Scale -> 0 | AH19: =ROUND(SUMIF(DataFromEngine!$J$13:$WL$13,AH$6,DataFromEngine!$J269:$WL269),9)/Scale -> 0 | AI19: =ROUND(SUMIF(DataFromEngine!$J$13:$WL$13,AI$6,DataFromEngine!$J269:$WL269),9)/Scale -> 0 | AJ19: =ROUND(SUMIF(DataFromEngine!$J$13:$WL$13,AJ$6,DataFromEngine!$J269:$WL269),9)/Scale -> 0 | AK19: =ROUND(SUMIF(DataFromEngine!$J$13:$WL$13,AK$6,DataFromEngine!$J269:$WL269),9)/Scale -> 0 | AL19: =ROUND(SUMIF(DataFromEngine!$J$13:$WL$13,AL$6,DataFromEngine!$J269:$WL269),9)/Scale -> 0 | AM19: =ROUND(SUMIF(DataFromEngine!$J$13:$WL$13,AM$6,DataFromEngine!$J269:$WL269),9)/Scale -> 0 | AN19: =ROUND(SUMIF(DataFromEngine!$J$13:$WL$13,AN$6,DataFromEngine!$J269:$WL269),9)/Scale -> 0 | AO19: =ROUND(SUMIF(DataFromEngine!$J$13:$WL$13,AO$6,DataFromEngine!$J269:$WL269),9)/Scale -> 0 | AP19: =ROUND(SUMIF(DataFromEngine!$J$13:$WL$13,AP$6,DataFromEngine!$J269:$WL269),9)/Scale -> 0 | AQ19: =ROUND(SUMIF(DataFromEngine!$J$13:$WL$13,AQ$6,DataFromEngine!$J269:$WL269),9)/Scale -> 0 | AR19: =ROUND(SUMIF(DataFromEngine!$J$13:$WL$13,AR$6,DataFromEngine!$J269:$WL269),9)/Scale -> 0 | AS19: =ROUND(SUMIF(DataFromEngine!$J$13:$WL$13,AS$6,DataFromEngine!$J269:$WL269),9)/Scale -> 0 | AT19: =ROUND(SUMIF(DataFromEngine!$J$13:$WL$13,AT$6,DataFromEngine!$J269:$WL269),9)/Scale -> 0 | AU19: =ROUND(SUMIF(DataFromEngine!$J$13:$WL$13,AU$6,DataFromEngine!$J269:$WL269),9)/Scale -> 0 | AV19: =ROUND(SUMIF(DataFromEngine!$J$13:$WL$13,AV$6,DataFromEngine!$J269:$WL269),9)/Scale -> 0 | AW19: =ROUND(SUMIF(DataFromEngine!$J$13:$WL$13,AW$6,DataFromEngine!$J269:$WL269),9)/Scale -> 0 | AX19: =ROUND(SUMIF(DataFromEngine!$J$13:$WL$13,AX$6,DataFromEngine!$J269:$WL269),9)/Scale -> 0 | AY19: =ROUND(SUMIF(DataFromEngine!$J$13:$WL$13,AY$6,DataFromEngine!$J269:$WL269),9)/Scale -> 0 | AZ19: =ROUND(SUMIF(DataFromEngine!$J$13:$WL$13,AZ$6,DataFromEngine!$J269:$WL269),9)/Scale -> 0 | BA19: =ROUND(SUMIF(DataFromEngine!$J$13:$WL$13,BA$6,DataFromEngine!$J269:$WL269),9)/Scale -> 0 | BB19: =ROUND(SUMIF(DataFromEngine!$J$13:$WL$13,BB$6,DataFromEngine!$J269:$WL269),9)/Scale -> 0
B20: Property taxes for WC | C20: =SUM(D20:BB20) -> 2065.809108 | D20: =ROUND(SUMIF(DataFromEngine!$J$13:$WL$13,D$6,DataFromEngine!$J270:$WL270),9)/Scale -> 0 | E20: =ROUND(SUMIF(DataFromEngine!$J$13:$WL$13,E$6,DataFromEngine!$J270:$WL270),9)/Scale -> 0 | F20: =ROUND(SUMIF(DataFromEngine!$J$13:$WL$13,F$6,DataFromEngine!$J270:$WL270),9)/Scale -> 1537.514047 | G20: =ROUND(SUMIF(DataFromEngine!$J$13:$WL$13,G$6,DataFromEngine!$J270:$WL270),9)/Scale -> 528.2950615 | H20: =ROUND(SUMIF(DataFromEngine!$J$13:$WL$13,H$6,DataFromEngine!$J270:$WL270),9)/Scale -> 0 | I20: =ROUND(SUMIF(DataFromEngine!$J$13:$WL$13,I$6,DataFromEngine!$J270:$WL270),9)/Scale -> 0 | J20: =ROUND(SUMIF(DataFromEngine!$J$13:$WL$13,J$6,DataFromEngine!$J270:$WL270),9)/Scale -> 0 | K20: =ROUND(SUMIF(DataFromEngine!$J$13:$WL$13,K$6,DataFromEngine!$J270:$WL270),9)/Scale -> 0 | L20: =ROUND(SUMIF(DataFromEngine!$J$13:$WL$13,L$6,DataFromEngine!$J270:$WL270),9)/Scale -> 0 | M20: =ROUND(SUMIF(DataFromEngine!$J$13:$WL$13,M$6,DataFromEngine!$J270:$WL270),9)/Scale -> 0 | N20: =ROUND(SUMIF(DataFromEngine!$J$13:$WL$13,N$6,DataFromEngine!$J270:$WL270),9)/Scale -> 0 | O20: =ROUND(SUMIF(DataFromEngine!$J$13:$WL$13,O$6,DataFromEngine!$J270:$WL270),9)/Scale -> 0 | P20: =ROUND(SUMIF(DataFromEngine!$J$13:$WL$13,P$6,DataFromEngine!$J270:$WL270),9)/Scale -> 0 | Q20: =ROUND(SUMIF(DataFromEngine!$J$13:$WL$13,Q$6,DataFromEngine!$J270:$WL270),9)/Scale -> 0 | R20: =ROUND(SUMIF(DataFromEngine!$J$13:$WL$13,R$6,DataFromEngine!$J270:$WL270),9)/Scale -> 0 | S20: =ROUND(SUMIF(DataFromEngine!$J$13:$WL$13,S$6,DataFromEngine!$J270:$WL270),9)/Scale -> 0 | T20: =ROUND(SUMIF(DataFromEngine!$J$13:$WL$13,T$6,DataFromEngine!$J270:$WL270),9)/Scale -> 0 | U20: =ROUND(SUMIF(DataFromEngine!$J$13:$WL$13,U$6,DataFromEngine!$J270:$WL270),9)/Scale -> 0 | V20: =ROUND(SUMIF(DataFromEngine!$J$13:$WL$13,V$6,DataFromEngine!$J270:$WL270),9)/Scale -> 0 | W20: =ROUND(SUMIF(DataFromEngine!$J$13:$WL$13,W$6,DataFromEngine!$J270:$WL270),9)/Scale -> 0 | X20: =ROUND(SUMIF(DataFromEngine!$J$13:$WL$13,X$6,DataFromEngine!$J270:$WL270),9)/Scale -> 0 | Y20: =ROUND(SUMIF(DataFromEngine!$J$13:$WL$13,Y$6,DataFromEngine!$J270:$WL270),9)/Scale -> 0 | Z20: =ROUND(SUMIF(DataFromEngine!$J$13:$WL$13,Z$6,DataFromEngine!$J270:$WL270),9)/Scale -> 0 | AA20: =ROUND(SUMIF(DataFromEngine!$J$13:$WL$13,AA$6,DataFromEngine!$J270:$WL270),9)/Scale -> 0 | AB20: =ROUND(SUMIF(DataFromEngine!$J$13:$WL$13,AB$6,DataFromEngine!$J270:$WL270),9)/Scale -> 0 | AC20: =ROUND(SUMIF(DataFromEngine!$J$13:$WL$13,AC$6,DataFromEngine!$J270:$WL270),9)/Scale -> 0 | AD20: =ROUND(SUMIF(DataFromEngine!$J$13:$WL$13,AD$6,DataFromEngine!$J270:$WL270),9)/Scale -> 0 | AE20: =ROUND(SUMIF(DataFromEngine!$J$13:$WL$13,AE$6,DataFromEngine!$J270:$WL270),9)/Scale -> 0 | AF20: =ROUND(SUMIF(DataFromEngine!$J$13:$WL$13,AF$6,DataFromEngine!$J270:$WL270),9)/Scale -> 0 | AG20: =ROUND(SUMIF(DataFromEngine!$J$13:$WL$13,AG$6,DataFromEngine!$J270:$WL270),9)/Scale -> 0 | AH20: =ROUND(SUMIF(DataFromEngine!$J$13:$WL$13,AH$6,DataFromEngine!$J270:$WL270),9)/Scale -> 0 | AI20: =ROUND(SUMIF(DataFromEngine!$J$13:$WL$13,AI$6,DataFromEngine!$J270:$WL270),9)/Scale -> 0 | AJ20: =ROUND(SUMIF(DataFromEngine!$J$13:$WL$13,AJ$6,DataFromEngine!$J270:$WL270),9)/Scale -> 0 | AK20: =ROUND(SUMIF(DataFromEngine!$J$13:$WL$13,AK$6,DataFromEngine!$J270:$WL270),9)/Scale -> 0 | AL20: =ROUND(SUMIF(DataFromEngine!$J$13:$WL$13,AL$6,DataFromEngine!$J270:$WL270),9)/Scale -> 0 | AM20: =ROUND(SUMIF(DataFromEngine!$J$13:$WL$13,AM$6,DataFromEngine!$J270:$WL270),9)/Scale -> 0 | AN20: =ROUND(SUMIF(DataFromEngine!$J$13:$WL$13,AN$6,DataFromEngine!$J270:$WL270),9)/Scale -> 0 | AO20: =ROUND(SUMIF(DataFromEngine!$J$13:$WL$13,AO$6,DataFromEngine!$J270:$WL270),9)/Scale -> 0 | AP20: =ROUND(SUMIF(DataFromEngine!$J$13:$WL$13,AP$6,DataFromEngine!$J270:$WL270),9)/Scale -> 0 | AQ20: =ROUND(SUMIF(DataFromEngine!$J$13:$WL$13,AQ$6,DataFromEngine!$J270:$WL270),9)/Scale -> 0 | AR20: =ROUND(SUMIF(DataFromEngine!$J$13:$WL$13,AR$6,DataFromEngine!$J270:$WL270),9)/Scale -> 0 | AS20: =ROUND(SUMIF(DataFromEngine!$J$13:$WL$13,AS$6,DataFromEngine!$J270:$WL270),9)/Scale -> 0 | AT20: =ROUND(SUMIF(DataFromEngine!$J$13:$WL$13,AT$6,DataFromEngine!$J270:$WL270),9)/Scale -> 0 | AU20: =ROUND(SUMIF(DataFromEngine!$J$13:$WL$13,AU$6,DataFromEngine!$J270:$WL270),9)/Scale -> 0 | AV20: =ROUND(SUMIF(DataFromEngine!$J$13:$WL$13,AV$6,DataFromEngine!$J270:$WL270),9)/Scale -> 0 | AW20: =ROUND(SUMIF(DataFromEngine!$J$13:$WL$13,AW$6,DataFromEngine!$J270:$WL270),9)/Scale -> 0 | AX20: =ROUND(SUMIF(DataFromEngine!$J$13:$WL$13,AX$6,DataFromEngine!$J270:$WL270),9)/Scale -> 0 | AY20: =ROUND(SUMIF(DataFromEngine!$J$13:$WL$13,AY$6,DataFromEngine!$J270:$WL270),9)/Scale -> 0 | AZ20: =ROUND(SUMIF(DataFromEngine!$J$13:$WL$13,AZ$6,DataFromEngine!$J270:$WL270),9)/Scale -> 0 | BA20: =ROUND(SUMIF(DataFromEngine!$J$13:$WL$13,BA$6,DataFromEngine!$J270:$WL270),9)/Scale -> 0 | BB20: =ROUND(SUMIF(DataFromEngine!$J$13:$WL$13,BB$6,DataFromEngine!$J270:$WL270),9)/Scale -> 0
B21: Total Rev Req of Working Cash | C21: =SUM(D21:BB21) -> 14587.77796 | D21: =ROUND(SUMIF(DataFromEngine!$J$13:$WL$13,D$6,DataFromEngine!$J271:$WL271),9)/Scale -> 0 | E21: =ROUND(SUMIF(DataFromEngine!$J$13:$WL$13,E$6,DataFromEngine!$J271:$WL271),9)/Scale -> 0 | F21: =ROUND(SUMIF(DataFromEngine!$J$13:$WL$13,F$6,DataFromEngine!$J271:$WL271),9)/Scale -> 10971.56883 | G21: =ROUND(SUMIF(DataFromEngine!$J$13:$WL$13,G$6,DataFromEngine!$J271:$WL271),9)/Scale -> 3679.291591 | H21: =ROUND(SUMIF(DataFromEngine!$J$13:$WL$13,H$6,DataFromEngine!$J271:$WL271),9)/Scale -> -64.75159237 | I21: =ROUND(SUMIF(DataFromEngine!$J$13:$WL$13,I$6,DataFromEngine!$J271:$WL271),9)/Scale -> 1.713296124 | J21: =ROUND(SUMIF(DataFromEngine!$J$13:$WL$13,J$6,DataFromEngine!$J271:$WL271),9)/Scale -> -0.045332995 | K21: =ROUND(SUMIF(DataFromEngine!$J$13:$WL$13,K$6,DataFromEngine!$J271:$WL271),9)/Scale -> 0.001199489 | L21: =ROUND(SUMIF(DataFromEngine!$J$13:$WL$13,L$6,DataFromEngine!$J271:$WL271),9)/Scale -> -3.1738e-05 | M21: =ROUND(SUMIF(DataFromEngine!$J$13:$WL$13,M$6,DataFromEngine!$J271:$WL271),9)/Scale -> 8.4e-07 | N21: =ROUND(SUMIF(DataFromEngine!$J$13:$WL$13,N$6,DataFromEngine!$J271:$WL271),9)/Scale -> -2.2e-08 | O21: =ROUND(SUMIF(DataFromEngine!$J$13:$WL$13,O$6,DataFromEngine!$J271:$WL271),9)/Scale -> 1e-09 | P21: =ROUND(SUMIF(DataFromEngine!$J$13:$WL$13,P$6,DataFromEngine!$J271:$WL271),9)/Scale -> 0 | Q21: =ROUND(SUMIF(DataFromEngine!$J$13:$WL$13,Q$6,DataFromEngine!$J271:$WL271),9)/Scale -> 0 | R21: =ROUND(SUMIF(DataFromEngine!$J$13:$WL$13,R$6,DataFromEngine!$J271:$WL271),9)/Scale -> 0 | S21: =ROUND(SUMIF(DataFromEngine!$J$13:$WL$13,S$6,DataFromEngine!$J271:$WL271),9)/Scale -> 0 | T21: =ROUND(SUMIF(DataFromEngine!$J$13:$WL$13,T$6,DataFromEngine!$J271:$WL271),9)/Scale -> 0 | U21: =ROUND(SUMIF(DataFromEngine!$J$13:$WL$13,U$6,DataFromEngine!$J271:$WL271),9)/Scale -> 0 | V21: =ROUND(SUMIF(DataFromEngine!$J$13:$WL$13,V$6,DataFromEngine!$J271:$WL271),9)/Scale -> 0 | W21: =ROUND(SUMIF(DataFromEngine!$J$13:$WL$13,W$6,DataFromEngine!$J271:$WL271),9)/Scale -> 0 | X21: =ROUND(SUMIF(DataFromEngine!$J$13:$WL$13,X$6,DataFromEngine!$J271:$WL271),9)/Scale -> 0 | Y21: =ROUND(SUMIF(DataFromEngine!$J$13:$WL$13,Y$6,DataFromEngine!$J271:$WL271),9)/Scale -> 0 | Z21: =ROUND(SUMIF(DataFromEngine!$J$13:$WL$13,Z$6,DataFromEngine!$J271:$WL271),9)/Scale -> 0 | AA21: =ROUND(SUMIF(DataFromEngine!$J$13:$WL$13,AA$6,DataFromEngine!$J271:$WL271),9)/Scale -> 0 | AB21: =ROUND(SUMIF(DataFromEngine!$J$13:$WL$13,AB$6,DataFromEngine!$J271:$WL271),9)/Scale -> 0 | AC21: =ROUND(SUMIF(DataFromEngine!$J$13:$WL$13,AC$6,DataFromEngine!$J271:$WL271),9)/Scale -> 0 | AD21: =ROUND(SUMIF(DataFromEngine!$J$13:$WL$13,AD$6,DataFromEngine!$J271:$WL271),9)/Scale -> 0 | AE21: =ROUND(SUMIF(DataFromEngine!$J$13:$WL$13,AE$6,DataFromEngine!$J271:$WL271),9)/Scale -> 0 | AF21: =ROUND(SUMIF(DataFromEngine!$J$13:$WL$13,AF$6,DataFromEngine!$J271:$WL271),9)/Scale -> 0 | AG21: =ROUND(SUMIF(DataFromEngine!$J$13:$WL$13,AG$6,DataFromEngine!$J271:$WL271),9)/Scale -> 0 | AH21: =ROUND(SUMIF(DataFromEngine!$J$13:$WL$13,AH$6,DataFromEngine!$J271:$WL271),9)/Scale -> 0 | AI21: =ROUND(SUMIF(DataFromEngine!$J$13:$WL$13,AI$6,DataFromEngine!$J271:$WL271),9)/Scale -> 0 | AJ21: =ROUND(SUMIF(DataFromEngine!$J$13:$WL$13,AJ$6,DataFromEngine!$J271:$WL271),9)/Scale -> 0 | AK21: =ROUND(SUMIF(DataFromEngine!$J$13:$WL$13,AK$6,DataFromEngine!$J271:$WL271),9)/Scale -> 0 | AL21: =ROUND(SUMIF(DataFromEngine!$J$13:$WL$13,AL$6,DataFromEngine!$J271:$WL271),9)/Scale -> 0 | AM21: =ROUND(SUMIF(DataFromEngine!$J$13:$WL$13,AM$6,DataFromEngine!$J271:$WL271),9)/Scale -> 0 | AN21: =ROUND(SUMIF(DataFromEngine!$J$13:$WL$13,AN$6,DataFromEngine!$J271:$WL271),9)/Scale -> 0 | AO21: =ROUND(SUMIF(DataFromEngine!$J$13:$WL$13,AO$6,DataFromEngine!$J271:$WL271),9)/Scale -> 0 | AP21: =ROUND(SUMIF(DataFromEngine!$J$13:$WL$13,AP$6,DataFromEngine!$J271:$WL271),9)/Scale -> 0 | AQ21: =ROUND(SUMIF(DataFromEngine!$J$13:$WL$13,AQ$6,DataFromEngine!$J271:$WL271),9)/Scale -> 0 | AR21: =ROUND(SUMIF(DataFromEngine!$J$13:$WL$13,AR$6,DataFromEngine!$J271:$WL271),9)/Scale -> 0 | AS21: =ROUND(SUMIF(DataFromEngine!$J$13:$WL$13,AS$6,DataFromEngine!$J271:$WL271),9)/Scale -> 0 | AT21: =ROUND(SUMIF(DataFromEngine!$J$13:$WL$13,AT$6,DataFromEngine!$J271:$WL271),9)/Scale -> 0 | AU21: =ROUND(SUMIF(DataFromEngine!$J$13:$WL$13,AU$6,DataFromEngine!$J271:$WL271),9)/Scale -> 0 | AV21: =ROUND(SUMIF(DataFromEngine!$J$13:$WL$13,AV$6,DataFromEngine!$J271:$WL271),9)/Scale -> 0 | AW21: =ROUND(SUMIF(DataFromEngine!$J$13:$WL$13,AW$6,DataFromEngine!$J271:$WL271),9)/Scale -> 0 | AX21: =ROUND(SUMIF(DataFromEngine!$J$13:$WL$13,AX$6,DataFromEngine!$J271:$WL271),9)/Scale -> 0 | AY21: =ROUND(SUMIF(DataFromEngine!$J$13:$WL$13,AY$6,DataFromEngine!$J271:$WL271),9)/Scale -> 0 | AZ21: =ROUND(SUMIF(DataFromEngine!$J$13:$WL$13,AZ$6,DataFromEngine!$J271:$WL271),9)/Scale -> 0 | BA21: =ROUND(SUMIF(DataFromEngine!$J$13:$WL$13,BA$6,DataFromEngine!$J271:$WL271),9)/Scale -> 0 | BB21: =ROUND(SUMIF(DataFromEngine!$J$13:$WL$13,BB$6,DataFromEngine!$J271:$WL271),9)/Scale -> 0

Sheet Rate Base, Return
B1: =ReportAssumptions!C2 -> San Diego Gas & Electric
B2: =ReportAssumptions!C3 -> EV-HP
B3: ="Rate Base and Return ($ in "&ReportAssumptions!C9& ")" -> Rate Base and Return ($ in Dollars)
C6: Total | D6: =DataFromEngine!J12 -> 2018 | E6: =DataFromEngine!K12 -> 2019 | F6: =DataFromEngine!L12 -> 2020 | G6: =DataFromEngine!M12 -> 2021 | H6: =DataFromEngine!N12 -> 2022 | I6: =DataFromEngine!O12 -> 2023 | J6: =DataFromEngine!P12 -> 2024 | K6: =DataFromEngine!Q12 -> 2025 | L6: =DataFromEngine!R12 -> 2026 | M6: =DataFromEngine!S12 -> 2027 | N6: =DataFromEngine!T12 -> 2028 | O6: =DataFromEngine!U12 -> 2029 | P6: =DataFromEngine!V12 -> 2030 | Q6: =DataFromEngine!W12 -> 2031 | R6: =DataFromEngine!X12 -> 2032 | S6: =DataFromEngine!Y12 -> 2033 | T6: =DataFromEngine!Z12 -> 2034 | U6: =DataFromEngine!AA12 -> 2035 | V6: =DataFromEngine!AB12 -> 2036 | W6: =DataFromEngine!AC12 -> 2037 | X6: =DataFromEngine!AD12 -> 2038 | Y6: =DataFromEngine!AE12 -> 2039 | Z6: =DataFromEngine!AF12 -> 2040 | AA6: =DataFromEngine!AG12 -> 2041 | AB6: =DataFromEngine!AH12 -> 2042 | AC6: =DataFromEngine!AI12 -> 2043 | AD6: =DataFromEngine!AJ12 -> 2044 | AE6: =DataFromEngine!AK12 -> 2045 | AF6: =DataFromEngine!AL12 -> 2046 | AG6: =DataFromEngine!AM12 -> 2047 | AH6: =DataFromEngine!AN12 -> 2048 | AI6: =DataFromEngine!AO12 -> 2049 | AJ6: =DataFromEngine!AP12 -> 2050 | AK6: =DataFromEngine!AQ12 -> 2051 | AL6: =DataFromEngine!AR12 -> 2052 | AM6: =DataFromEngine!AS12 -> 2053 | AN6: =DataFromEngine!AT12 -> 2054 | AO6: =DataFromEngine!AU12 -> 2055 | AP6: =DataFromEngine!AV12 -> 2056 | AQ6: =DataFromEngine!AW12 -> 2057 | AR6: =DataFromEngine!AX12 -> 2058 | AS6: =DataFromEngine!AY12 -> 2059 | AT6: =DataFromEngine!AZ12 -> 2060 | AU6: =DataFromEngine!BA12 -> 2061 | AV6: =DataFromEngine!BB12 -> 2062 | AW6: =DataFromEngine!BC12 -> 2063 | AX6: =DataFromEngine!BD12 -> 2064 | AY6: =DataFromEngine!BE12 -> 2065 | AZ6: =DataFromEngine!BF12 -> 2066 | BA6: =DataFromEngine!BG12 -> 2067 | BB6: =DataFromEngine!BH12 -> 2068
B7: Average Monthly Rate Base | D7: 0
B8: Return on Equity ($) | C8: =SUM(D8:BB8) -> 0 | D8: =ROUND(SUMIF(DataFromEngine!$J$13:$WL$13,D$6,DataFromEngine!$J259:$WL259),3)/Scale -> 0 | E8: =ROUND(SUMIF(DataFromEngine!$J$13:$WL$13,E$6,DataFromEngine!$J259:$WL259),3)/Scale -> 0 | F8: =ROUND(SUMIF(DataFromEngine!$J$13:$WL$13,F$6,DataFromEngine!$J259:$WL259),3)/Scale -> 0 | G8: =ROUND(SUMIF(DataFromEngine!$J$13:$WL$13,G$6,DataFromEngine!$J259:$WL259),3)/Scale -> 0 | H8: =ROUND(SUMIF(DataFromEngine!$J$13:$WL$13,H$6,DataFromEngine!$J259:$WL259),3)/Scale -> 0 | I8: =ROUND(SUMIF(DataFromEngine!$J$13:$WL$13,I$6,DataFromEngine!$J259:$WL259),3)/Scale -> 0 | J8: =ROUND(SUMIF(DataFromEngine!$J$13:$WL$13,J$6,DataFromEngine!$J259:$WL259),3)/Scale -> 0 | K8: =ROUND(SUMIF(DataFromEngine!$J$13:$WL$13,K$6,DataFromEngine!$J259:$WL259),3)/Scale -> 0 | L8: =ROUND(SUMIF(DataFromEngine!$J$13:$WL$13,L$6,DataFromEngine!$J259:$WL259),3)/Scale -> 0 | M8: =ROUND(SUMIF(DataFromEngine!$J$13:$WL$13,M$6,DataFromEngine!$J259:$WL259),3)/Scale -> 0 | N8: =ROUND(SUMIF(DataFromEngine!$J$13:$WL$13,N$6,DataFromEngine!$J259:$WL259),3)/Scale -> 0 | O8: =ROUND(SUMIF(DataFromEngine!$J$13:$WL$13,O$6,DataFromEngine!$J259:$WL259),3)/Scale -> 0 | P8: =ROUND(SUMIF(DataFromEngine!$J$13:$WL$13,P$6,DataFromEngine!$J259:$WL259),3)/Scale -> 0 | Q8: =ROUND(SUMIF(DataFromEngine!$J$13:$WL$13,Q$6,DataFromEngine!$J259:$WL259),3)/Scale -> 0 | R8: =ROUND(SUMIF(DataFromEngine!$J$13:$WL$13,R$6,DataFromEngine!$J259:$WL259),3)/Scale -> 0 | S8: =ROUND(SUMIF(DataFromEngine!$J$13:$WL$13,S$6,DataFromEngine!$J259:$WL259),3)/Scale -> 0 | T8: =ROUND(SUMIF(DataFromEngine!$J$13:$WL$13,T$6,DataFromEngine!$J259:$WL259),3)/Scale -> 0 | U8: =ROUND(SUMIF(DataFromEngine!$J$13:$WL$13,U$6,DataFromEngine!$J259:$WL259),3)/Scale -> 0 | V8: =ROUND(SUMIF(DataFromEngine!$J$13:$WL$13,V$6,DataFromEngine!$J259:$WL259),3)/Scale -> 0 | W8: =ROUND(SUMIF(DataFromEngine!$J$13:$WL$13,W$6,DataFromEngine!$J259:$WL259),3)/Scale -> 0 | X8: =ROUND(SUMIF(DataFromEngine!$J$13:$WL$13,X$6,DataFromEngine!$J259:$WL259),3)/Scale -> 0 | Y8: =ROUND(SUMIF(DataFromEngine!$J$13:$WL$13,Y$6,DataFromEngine!$J259:$WL259),3)/Scale -> 0 | Z8: =ROUND(SUMIF(DataFromEngine!$J$13:$WL$13,Z$6,DataFromEngine!$J259:$WL259),3)/Scale -> 0 | AA8: =ROUND(SUMIF(DataFromEngine!$J$13:$WL$13,AA$6,DataFromEngine!$J259:$WL259),3)/Scale -> 0 | AB8: =ROUND(SUMIF(DataFromEngine!$J$13:$WL$13,AB$6,DataFromEngine!$J259:$WL259),3)/Scale -> 0 | AC8: =ROUND(SUMIF(DataFromEngine!$J$13:$WL$13,AC$6,DataFromEngine!$J259:$WL259),3)/Scale -> 0 | AD8: =ROUND(SUMIF(DataFromEngine!$J$13:$WL$13,AD$6,DataFromEngine!$J259:$WL259),3)/Scale -> 0 | AE8: =ROUND(SUMIF(DataFromEngine!$J$13:$WL$13,AE$6,DataFromEngine!$J259:$WL259),3)/Scale -> 0 | AF8: =ROUND(SUMIF(DataFromEngine!$J$13:$WL$13,AF$6,DataFromEngine!$J259:$WL259),3)/Scale -> 0 | AG8: =ROUND(SUMIF(DataFromEngine!$J$13:$WL$13,AG$6,DataFromEngine!$J259:$WL259),3)/Scale -> 0 | AH8: =ROUND(SUMIF(DataFromEngine!$J$13:$WL$13,AH$6,DataFromEngine!$J259:$WL259),3)/Scale -> 0 | AI8: =ROUND(SUMIF(DataFromEngine!$J$13:$WL$13,AI$6,DataFromEngine!$J259:$WL259),3)/Scale -> 0 | AJ8: =ROUND(SUMIF(DataFromEngine!$J$13:$WL$13,AJ$6,DataFromEngine!$J259:$WL259),3)/Scale -> 0 | AK8: =ROUND(SUMIF(DataFromEngine!$J$13:$WL$13,AK$6,DataFromEngine!$J259:$WL259),3)/Scale -> 0 | AL8: =ROUND(SUMIF(DataFromEngine!$J$13:$WL$13,AL$6,DataFromEngine!$J259:$WL259),3)/Scale -> 0 | AM8: =ROUND(SUMIF(DataFromEngine!$J$13:$WL$13,AM$6,DataFromEngine!$J259:$WL259),3)/Scale -> 0 | AN8: =ROUND(SUMIF(DataFromEngine!$J$13:$WL$13,AN$6,DataFromEngine!$J259:$WL259),3)/Scale -> 0 | AO8: =ROUND(SUMIF(DataFromEngine!$J$13:$WL$13,AO$6,DataFromEngine!$J259:$WL259),3)/Scale -> 0 | AP8: =ROUND(SUMIF(DataFromEngine!$J$13:$WL$13,AP$6,DataFromEngine!$J259:$WL259),3)/Scale -> 0 | AQ8: =ROUND(SUMIF(DataFromEngine!$J$13:$WL$13,AQ$6,DataFromEngine!$J259:$WL259),3)/Scale -> 0 | AR8: =ROUND(SUMIF(DataFromEngine!$J$13:$WL$13,AR$6,DataFromEngine!$J259:$WL259),3)/Scale -> 0 | AS8: =ROUND(SUMIF(DataFromEngine!$J$13:$WL$13,AS$6,DataFromEngine!$J259:$WL259),3)/Scale -> 0 | AT8: =ROUND(SUMIF(DataFromEngine!$J$13:$WL$13,AT$6,DataFromEngine!$J259:$WL259),3)/Scale -> 0 | AU8: =ROUND(SUMIF(DataFromEngine!$J$13:$WL$13,AU$6,DataFromEngine!$J259:$WL259),3)/Scale -> 0 | AV8: =ROUND(SUMIF(DataFromEngine!$J$13:$WL$13,AV$6,DataFromEngine!$J259:$WL259),3)/Scale -> 0 | AW8: =ROUND(SUMIF(DataFromEngine!$J$13:$WL$13,AW$6,DataFromEngine!$J259:$WL259),3)/Scale -> 0 | AX8: =ROUND(SUMIF(DataFromEngine!$J$13:$WL$13,AX$6,DataFromEngine!$J259:$WL259),3)/Scale -> 0 | AY8: =ROUND(SUMIF(DataFromEngine!$J$13:$WL$13,AY$6,DataFromEngine!$J259:$WL259),3)/Scale -> 0 | AZ8: =ROUND(SUMIF(DataFromEngine!$J$13:$WL$13,AZ$6,DataFromEngine!$J259:$WL259),3)/Scale -> 0 | BA8: =ROUND(SUMIF(DataFromEngine!$J$13:$WL$13,BA$6,DataFromEngine!$J259:$WL259),3)/Scale -> 0 | BB8: =ROUND(SUMIF(DataFromEngine!$J$13:$WL$13,BB$6,DataFromEngine!$J259:$WL259),3)/Scale -> 0
B9: Weighted Return on Equity (%) | D9: =IF(ISERROR(D8/D7),"-",(D8/D7)) -> - | E9: =IF(ISERROR(E8/E7),"-",(E8/E7)) -> - | F9: =IF(ISERROR(F8/F7),"-",(F8/F7)) -> - | G9: - | H9: - | I9: - | J9: - | K9: - | L9: - | M9: - | N9: - | O9: - | P9: - | Q9: - | R9: - | S9: - | T9: - | U9: - | V9: - | W9: - | X9: - | Y9: - | Z9: - | AA9: - | AB9: - | AC9: - | AD9: - | AE9: - | AF9: - | AG9: - | AH9: - | AI9: - | AJ9: - | AK9: - | AL9: - | AM9: - | AN9: - | AO9: - | AP9: - | AQ9: - | AR9: - | AS9: - | AT9: - | AU9: - | AV9: - | AW9: - | AX9: - | AY9: - | AZ9: - | BA9: - | BB9: -
B10: Return on Preferred ($) | C10: =SUM(D10:BB10) -> 0 | D10: =ROUND(SUMIF(DataFromEngine!$J$13:$WL$13,D$6,DataFromEngine!$J258:$WL258),3)/Scale -> 0 | E10: =ROUND(SUMIF(DataFromEngine!$J$13:$WL$13,E$6,DataFromEngine!$J258:$WL258),3)/Scale -> 0 | F10: =ROUND(SUMIF(DataFromEngine!$J$13:$WL$13,F$6,DataFromEngine!$J258:$WL258),3)/Scale -> 0 | G10: =ROUND(SUMIF(DataFromEngine!$J$13:$WL$13,G$6,DataFromEngine!$J258:$WL258),3)/Scale -> 0 | H10: =ROUND(SUMIF(DataFromEngine!$J$13:$WL$13,H$6,DataFromEngine!$J258:$WL258),3)/Scale -> 0 | I10: =ROUND(SUMIF(DataFromEngine!$J$13:$WL$13,I$6,DataFromEngine!$J258:$WL258),3)/Scale -> 0 | J10: =ROUND(SUMIF(DataFromEngine!$J$13:$WL$13,J$6,DataFromEngine!$J258:$WL258),3)/Scale -> 0 | K10: =ROUND(SUMIF(DataFromEngine!$J$13:$WL$13,K$6,DataFromEngine!$J258:$WL258),3)/Scale -> 0 | L10: =ROUND(SUMIF(DataFromEngine!$J$13:$WL$13,L$6,DataFromEngine!$J258:$WL258),3)/Scale -> 0 | M10: =ROUND(SUMIF(DataFromEngine!$J$13:$WL$13,M$6,DataFromEngine!$J258:$WL258),3)/Scale -> 0 | N10: =ROUND(SUMIF(DataFromEngine!$J$13:$WL$13,N$6,DataFromEngine!$J258:$WL258),3)/Scale -> 0 | O10: =ROUND(SUMIF(DataFromEngine!$J$13:$WL$13,O$6,DataFromEngine!$J258:$WL258),3)/Scale -> 0 | P10: =ROUND(SUMIF(DataFromEngine!$J$13:$WL$13,P$6,DataFromEngine!$J258:$WL258),3)/Scale -> 0 | Q10: =ROUND(SUMIF(DataFromEngine!$J$13:$WL$13,Q$6,DataFromEngine!$J258:$WL258),3)/Scale -> 0 | R10: =ROUND(SUMIF(DataFromEngine!$J$13:$WL$13,R$6,DataFromEngine!$J258:$WL258),3)/Scale -> 0 | S10: =ROUND(SUMIF(DataFromEngine!$J$13:$WL$13,S$6,DataFromEngine!$J258:$WL258),3)/Scale -> 0 | T10: =ROUND(SUMIF(DataFromEngine!$J$13:$WL$13,T$6,DataFromEngine!$J258:$WL258),3)/Scale -> 0 | U10: =ROUND(SUMIF(DataFromEngine!$J$13:$WL$13,U$6,DataFromEngine!$J258:$WL258),3)/Scale -> 0 | V10: =ROUND(SUMIF(DataFromEngine!$J$13:$WL$13,V$6,DataFromEngine!$J258:$WL258),3)/Scale -> 0 | W10: =ROUND(SUMIF(DataFromEngine!$J$13:$WL$13,W$6,DataFromEngine!$J258:$WL258),3)/Scale -> 0 | X10: =ROUND(SUMIF(DataFromEngine!$J$13:$WL$13,X$6,DataFromEngine!$J258:$WL258),3)/Scale -> 0 | Y10: =ROUND(SUMIF(DataFromEngine!$J$13:$WL$13,Y$6,DataFromEngine!$J258:$WL258),3)/Scale -> 0 | Z10: =ROUND(SUMIF(DataFromEngine!$J$13:$WL$13,Z$6,DataFromEngine!$J258:$WL258),3)/Scale -> 0 | AA10: =ROUND(SUMIF(DataFromEngine!$J$13:$WL$13,AA$6,DataFromEngine!$J258:$WL258),3)/Scale -> 0 | AB10: =ROUND(SUMIF(DataFromEngine!$J$13:$WL$13,AB$6,DataFromEngine!$J258:$WL258),3)/Scale -> 0 | AC10: =ROUND(SUMIF(DataFromEngine!$J$13:$WL$13,AC$6,DataFromEngine!$J258:$WL258),3)/Scale -> 0 | AD10: =ROUND(SUMIF(DataFromEngine!$J$13:$WL$13,AD$6,DataFromEngine!$J258:$WL258),3)/Scale -> 0 | AE10: =ROUND(SUMIF(DataFromEngine!$J$13:$WL$13,AE$6,DataFromEngine!$J258:$WL258),3)/Scale -> 0 | AF10: =ROUND(SUMIF(DataFromEngine!$J$13:$WL$13,AF$6,DataFromEngine!$J258:$WL258),3)/Scale -> 0 | AG10: =ROUND(SUMIF(DataFromEngine!$J$13:$WL$13,AG$6,DataFromEngine!$J258:$WL258),3)/Scale -> 0 | AH10: =ROUND(SUMIF(DataFromEngine!$J$13:$WL$13,AH$6,DataFromEngine!$J258:$WL258),3)/Scale -> 0 | AI10: =ROUND(SUMIF(DataFromEngine!$J$13:$WL$13,AI$6,DataFromEngine!$J258:$WL258),3)/Scale -> 0 | AJ10: =ROUND(SUMIF(DataFromEngine!$J$13:$WL$13,AJ$6,DataFromEngine!$J258:$WL258),3)/Scale -> 0 | AK10: =ROUND(SUMIF(DataFromEngine!$J$13:$WL$13,AK$6,DataFromEngine!$J258:$WL258),3)/Scale -> 0 | AL10: =ROUND(SUMIF(DataFromEngine!$J$13:$WL$13,AL$6,DataFromEngine!$J258:$WL258),3)/Scale -> 0 | AM10: =ROUND(SUMIF(DataFromEngine!$J$13:$WL$13,AM$6,DataFromEngine!$J258:$WL258),3)/Scale -> 0 | AN10: =ROUND(SUMIF(DataFromEngine!$J$13:$WL$13,AN$6,DataFromEngine!$J258:$WL258),3)/Scale -> 0 | AO10: =ROUND(SUMIF(DataFromEngine!$J$13:$WL$13,AO$6,DataFromEngine!$J258:$WL258),3)/Scale -> 0 | AP10: =ROUND(SUMIF(DataFromEngine!$J$13:$WL$13,AP$6,DataFromEngine!$J258:$WL258),3)/Scale -> 0 | AQ10: =ROUND(SUMIF(DataFromEngine!$J$13:$WL$13,AQ$6,DataFromEngine!$J258:$WL258),3)/Scale -> 0 | AR10: =ROUND(SUMIF(DataFromEngine!$J$13:$WL$13,AR$6,DataFromEngine!$J258:$WL258),3)/Scale -> 0 | AS10: =ROUND(SUMIF(DataFromEngine!$J$13:$WL$13,AS$6,DataFromEngine!$J258:$WL258),3)/Scale -> 0 | AT10: =ROUND(SUMIF(DataFromEngine!$J$13:$WL$13,AT$6,DataFromEngine!$J258:$WL258),3)/Scale -> 0 | AU10: =ROUND(SUMIF(DataFromEngine!$J$13:$WL$13,AU$6,DataFromEngine!$J258:$WL258),3)/Scale -> 0 | AV10: =ROUND(SUMIF(DataFromEngine!$J$13:$WL$13,AV$6,DataFromEngine!$J258:$WL258),3)/Scale -> 0 | AW10: =ROUND(SUMIF(DataFromEngine!$J$13:$WL$13,AW$6,DataFromEngine!$J258:$WL258),3)/Scale -> 0 | AX10: =ROUND(SUMIF(DataFromEngine!$J$13:$WL$13,AX$6,DataFromEngine!$J258:$WL258),3)/Scale -> 0 | AY10: =ROUND(SUMIF(DataFromEngine!$J$13:$WL$13,AY$6,DataFromEngine!$J258:$WL258),3)/Scale -> 0 | AZ10: =ROUND(SUMIF(DataFromEngine!$J$13:$WL$13,AZ$6,DataFromEngine!$J258:$WL258),3)/Scale -> 0 | BA10: =ROUND(SUMIF(DataFromEngine!$J$13:$WL$13,BA$6,DataFromEngine!$J258:$WL258),3)/Scale -> 0 | BB10: =ROUND(SUMIF(DataFromEngine!$J$13:$WL$13,BB$6,DataFromEngine!$J258:$WL258),3)/Scale -> 0
B11: Weighted Return on Preferred (%) | D11: =IF(ISERROR(D10/D7),"-",(D10/D7)) -> - | E11: =IF(ISERROR(E10/E7),"-",(E10/E7)) -> - | F11: =IF(ISERROR(F10/F7),"-",(F10/F7)) -> - | G11: - | H11: - | I11: - | J11: - | K11: - | L11: - | M11: - | N11: - | O11: - | P11: - | Q11: - | R11: - | S11: - | T11: - | U11: - | V11: - | W11: - | X11: - | Y11: - | Z11: - | AA11: - | AB11: - | AC11: - | AD11: - | AE11: - | AF11: - | AG11: - | AH11: - | AI11: - | AJ11: - | AK11: - | AL11: - | AM11: - | AN11: - | AO11: - | AP11: - | AQ11: - | AR11: - | AS11: - | AT11: - | AU11: - | AV11: - | AW11: - | AX11: - | AY11: - | AZ11: - | BA11: - | BB11: -
B12: Return on Debt ($) | C12: =SUM(D12:BB12) -> 0 | D12: =ROUND(SUMIF(DataFromEngine!$J$13:$WL$13,D$6,DataFromEngine!$J257:$WL257),3)/Scale -> 0 | E12: =ROUND(SUMIF(DataFromEngine!$J$13:$WL$13,E$6,DataFromEngine!$J257:$WL257),3)/Scale -> 0 | F12: =ROUND(SUMIF(DataFromEngine!$J$13:$WL$13,F$6,DataFromEngine!$J257:$WL257),3)/Scale -> 0 | G12: =ROUND(SUMIF(DataFromEngine!$J$13:$WL$13,G$6,DataFromEngine!$J257:$WL257),3)/Scale -> 0 | H12: =ROUND(SUMIF(DataFromEngine!$J$13:$WL$13,H$6,DataFromEngine!$J257:$WL257),3)/Scale -> 0 | I12: =ROUND(SUMIF(DataFromEngine!$J$13:$WL$13,I$6,DataFromEngine!$J257:$WL257),3)/Scale -> 0 | J12: =ROUND(SUMIF(DataFromEngine!$J$13:$WL$13,J$6,DataFromEngine!$J257:$WL257),3)/Scale -> 0 | K12: =ROUND(SUMIF(DataFromEngine!$J$13:$WL$13,K$6,DataFromEngine!$J257:$WL257),3)/Scale -> 0 | L12: =ROUND(SUMIF(DataFromEngine!$J$13:$WL$13,L$6,DataFromEngine!$J257:$WL257),3)/Scale -> 0 | M12: =ROUND(SUMIF(DataFromEngine!$J$13:$WL$13,M$6,DataFromEngine!$J257:$WL257),3)/Scale -> 0 | N12: =ROUND(SUMIF(DataFromEngine!$J$13:$WL$13,N$6,DataFromEngine!$J257:$WL257),3)/Scale -> 0 | O12: =ROUND(SUMIF(DataFromEngine!$J$13:$WL$13,O$6,DataFromEngine!$J257:$WL257),3)/Scale -> 0 | P12: =ROUND(SUMIF(DataFromEngine!$J$13:$WL$13,P$6,DataFromEngine!$J257:$WL257),3)/Scale -> 0 | Q12: =ROUND(SUMIF(DataFromEngine!$J$13:$WL$13,Q$6,DataFromEngine!$J257:$WL257),3)/Scale -> 0 | R12: =ROUND(SUMIF(DataFromEngine!$J$13:$WL$13,R$6,DataFromEngine!$J257:$WL257),3)/Scale -> 0 | S12: =ROUND(SUMIF(DataFromEngine!$J$13:$WL$13,S$6,DataFromEngine!$J257:$WL257),3)/Scale -> 0 | T12: =ROUND(SUMIF(DataFromEngine!$J$13:$WL$13,T$6,DataFromEngine!$J257:$WL257),3)/Scale -> 0 | U12: =ROUND(SUMIF(DataFromEngine!$J$13:$WL$13,U$6,DataFromEngine!$J257:$WL257),3)/Scale -> 0 | V12: =ROUND(SUMIF(DataFromEngine!$J$13:$WL$13,V$6,DataFromEngine!$J257:$WL257),3)/Scale -> 0 | W12: =ROUND(SUMIF(DataFromEngine!$J$13:$WL$13,W$6,DataFromEngine!$J257:$WL257),3)/Scale -> 0 | X12: =ROUND(SUMIF(DataFromEngine!$J$13:$WL$13,X$6,DataFromEngine!$J257:$WL257),3)/Scale -> 0 | Y12: =ROUND(SUMIF(DataFromEngine!$J$13:$WL$13,Y$6,DataFromEngine!$J257:$WL257),3)/Scale -> 0 | Z12: =ROUND(SUMIF(DataFromEngine!$J$13:$WL$13,Z$6,DataFromEngine!$J257:$WL257),3)/Scale -> 0 | AA12: =ROUND(SUMIF(DataFromEngine!$J$13:$WL$13,AA$6,DataFromEngine!$J257:$WL257),3)/Scale -> 0 | AB12: =ROUND(SUMIF(DataFromEngine!$J$13:$WL$13,AB$6,DataFromEngine!$J257:$WL257),3)/Scale -> 0 | AC12: =ROUND(SUMIF(DataFromEngine!$J$13:$WL$13,AC$6,DataFromEngine!$J257:$WL257),3)/Scale -> 0 | AD12: =ROUND(SUMIF(DataFromEngine!$J$13:$WL$13,AD$6,DataFromEngine!$J257:$WL257),3)/Scale -> 0 | AE12: =ROUND(SUMIF(DataFromEngine!$J$13:$WL$13,AE$6,DataFromEngine!$J257:$WL257),3)/Scale -> 0 | AF12: =ROUND(SUMIF(DataFromEngine!$J$13:$WL$13,AF$6,DataFromEngine!$J257:$WL257),3)/Scale -> 0 | AG12: =ROUND(SUMIF(DataFromEngine!$J$13:$WL$13,AG$6,DataFromEngine!$J257:$WL257),3)/Scale -> 0 | AH12: =ROUND(SUMIF(DataFromEngine!$J$13:$WL$13,AH$6,DataFromEngine!$J257:$WL257),3)/Scale -> 0 | AI12: =ROUND(SUMIF(DataFromEngine!$J$13:$WL$13,AI$6,DataFromEngine!$J257:$WL257),3)/Scale -> 0 | AJ12: =ROUND(SUMIF(DataFromEngine!$J$13:$WL$13,AJ$6,DataFromEngine!$J257:$WL257),3)/Scale -> 0 | AK12: =ROUND(SUMIF(DataFromEngine!$J$13:$WL$13,AK$6,DataFromEngine!$J257:$WL257),3)/Scale -> 0 | AL12: =ROUND(SUMIF(DataFromEngine!$J$13:$WL$13,AL$6,DataFromEngine!$J257:$WL257),3)/Scale -> 0 | AM12: =ROUND(SUMIF(DataFromEngine!$J$13:$WL$13,AM$6,DataFromEngine!$J257:$WL257),3)/Scale -> 0 | AN12: =ROUND(SUMIF(DataFromEngine!$J$13:$WL$13,AN$6,DataFromEngine!$J257:$WL257),3)/Scale -> 0 | AO12: =ROUND(SUMIF(DataFromEngine!$J$13:$WL$13,AO$6,DataFromEngine!$J257:$WL257),3)/Scale -> 0 | AP12: =ROUND(SUMIF(DataFromEngine!$J$13:$WL$13,AP$6,DataFromEngine!$J257:$WL257),3)/Scale -> 0 | AQ12: =ROUND(SUMIF(DataFromEngine!$J$13:$WL$13,AQ$6,DataFromEngine!$J257:$WL257),3)/Scale -> 0 | AR12: =ROUND(SUMIF(DataFromEngine!$J$13:$WL$13,AR$6,DataFromEngine!$J257:$WL257),3)/Scale -> 0 | AS12: =ROUND(SUMIF(DataFromEngine!$J$13:$WL$13,AS$6,DataFromEngine!$J257:$WL257),3)/Scale -> 0 | AT12: =ROUND(SUMIF(DataFromEngine!$J$13:$WL$13,AT$6,DataFromEngine!$J257:$WL257),3)/Scale -> 0 | AU12: =ROUND(SUMIF(DataFromEngine!$J$13:$WL$13,AU$6,DataFromEngine!$J257:$WL257),3)/Scale -> 0 | AV12: =ROUND(SUMIF(DataFromEngine!$J$13:$WL$13,AV$6,DataFromEngine!$J257:$WL257),3)/Scale -> 0 | AW12: =ROUND(SUMIF(DataFromEngine!$J$13:$WL$13,AW$6,DataFromEngine!$J257:$WL257),3)/Scale -> 0 | AX12: =ROUND(SUMIF(DataFromEngine!$J$13:$WL$13,AX$6,DataFromEngine!$J257:$WL257),3)/Scale -> 0 | AY12: =ROUND(SUMIF(DataFromEngine!$J$13:$WL$13,AY$6,DataFromEngine!$J257:$WL257),3)/Scale -> 0 | AZ12: =ROUND(SUMIF(DataFromEngine!$J$13:$WL$13,AZ$6,DataFromEngine!$J257:$WL257),3)/Scale -> 0 | BA12: =ROUND(SUMIF(DataFromEngine!$J$13:$WL$13,BA$6,DataFromEngine!$J257:$WL257),3)/Scale -> 0 | BB12: =ROUND(SUMIF(DataFromEngine!$J$13:$WL$13,BB$6,DataFromEngine!$J257:$WL257),3)/Scale -> 0
B13: Weighted Return on Debt (%) | D13: =IF(ISERROR(D12/D7),"-",(D12/D7)) -> - | E13: =IF(ISERROR(E12/E7),"-",(E12/E7)) -> - | F13: =IF(ISERROR(F12/F7),"-",(F12/F7)) -> - | G13: =IF(ISERROR(G12/G7),"-",(G12/G7)) -> - | H13: - | I13: - | J13: - | K13: - | L13: - | M13: - | N13: - | O13: - | P13: - | Q13: - | R13: - | S13: - | T13: - | U13: - | V13: - | W13: - | X13: - | Y13: - | Z13: - | AA13: - | AB13: - | AC13: - | AD13: - | AE13: - | AF13: - | AG13: - | AH13: - | AI13: - | AJ13: - | AK13: - | AL13: - | AM13: - | AN13: - | AO13: - | AP13: - | AQ13: - | AR13: - | AS13: - | AT13: - | AU13: - | AV13: - | AW13: - | AX13: - | AY13: - | AZ13: - | BA13: - | BB13: -
B14: Total Return | C14: =SUM(C8,C10,C12) -> 0 | D14: =SUM(D8,D10,D12) -> 0 | E14: =SUM(E8,E10,E12) -> 0 | F14: =SUM(F8,F10,F12) -> 0 | G14: 0 | H14: 0 | I14: 0 | J14: 0 | K14: 0 | L14: 0 | M14: 0 | N14: 0 | O14: 0 | P14: 0 | Q14: 0 | R14: 0 | S14: 0 | T14: 0 | U14: 0 | V14: 0 | W14: 0 | X14: 0 | Y14: 0 | Z14: 0 | AA14: 0 | AB14: 0 | AC14: 0 | AD14: 0 | AE14: 0 | AF14: 0 | AG14: 0 | AH14: 0 | AI14: 0 | AJ14: 0 | AK14: 0 | AL14: 0 | AM14: 0 | AN14: 0 | AO14: 0 | AP14: 0 | AQ14: 0 | AR14: 0 | AS14: 0 | AT14: 0 | AU14: 0 | AV14: 0 | AW14: 0 | AX14: 0 | AY14: 0 | AZ14: 0 | BA14: 0 | BB14: 0
B15: Total Rate of Return | D15: =IF(ISERROR(D14/D7), "-",(D14/D7)) -> - | E15: =IF(ISERROR(E14/E7), "-",(E14/E7)) -> - | F15: - | G15: - | H15: - | I15: - | J15: - | K15: - | L15: - | M15: - | N15: - | O15: - | P15: - | Q15: - | R15: - | S15: - | T15: - | U15: - | V15: - | W15: - | X15: - | Y15: - | Z15: - | AA15: - | AB15: - | AC15: - | AD15: - | AE15: - | AF15: - | AG15: - | AH15: - | AI15: - | AJ15: =IF(ISERROR(AJ14/AJ7), "-",(AJ14/AJ7)) -> - | AK15: - | AL15: - | AM15: - | AN15: - | AO15: - | AP15: - | AQ15: - | AR15: - | AS15: - | AT15: - | AU15: - | AV15: - | AW15: - | AX15: - | AY15: - | AZ15: 0 | BA15: - | BB15: -

Sheet Property Taxes
B1: =ReportAssumptions!C2 -> San Diego Gas & Electric
B2: =ReportAssumptions!C3 -> EV-HP
B3: ="Property Taxes ($ in "&ReportAssumptions!C9& ")" -> Property Taxes ($ in Dollars)
E4: =COUNTIFS(DataFromEngine!$J$13:$WL$13,'Property Taxes'!E6,DataFromEngine!$J$201:$WL$201,">0") -> 0
C6: Total | D6: =DataFromEngine!J12 -> 2018 | E6: =DataFromEngine!K12 -> 2019 | F6: =DataFromEngine!L12 -> 2020 | G6: =DataFromEngine!M12 -> 2021 | H6: =DataFromEngine!N12 -> 2022 | I6: =DataFromEngine!O12 -> 2023 | J6: =DataFromEngine!P12 -> 2024 | K6: =DataFromEngine!Q12 -> 2025 | L6: =DataFromEngine!R12 -> 2026 | M6: =DataFromEngine!S12 -> 2027 | N6: =DataFromEngine!T12 -> 2028 | O6: =DataFromEngine!U12 -> 2029 | P6: =DataFromEngine!V12 -> 2030 | Q6: =DataFromEngine!W12 -> 2031 | R6: =DataFromEngine!X12 -> 2032 | S6: =DataFromEngine!Y12 -> 2033 | T6: =DataFromEngine!Z12 -> 2034 | U6: =DataFromEngine!AA12 -> 2035 | V6: =DataFromEngine!AB12 -> 2036 | W6: =DataFromEngine!AC12 -> 2037 | X6: =DataFromEngine!AD12 -> 2038 | Y6: =DataFromEngine!AE12 -> 2039 | Z6: =DataFromEngine!AF12 -> 2040 | AA6: =DataFromEngine!AG12 -> 2041 | AB6: =DataFromEngine!AH12 -> 2042 | AC6: =DataFromEngine!AI12 -> 2043 | AD6: =DataFromEngine!AJ12 -> 2044 | AE6: =DataFromEngine!AK12 -> 2045 | AF6: =DataFromEngine!AL12 -> 2046 | AG6: =DataFromEngine!AM12 -> 2047 | AH6: =DataFromEngine!AN12 -> 2048 | AI6: =DataFromEngine!AO12 -> 2049 | AJ6: =DataFromEngine!AP12 -> 2050 | AK6: =DataFromEngine!AQ12 -> 2051 | AL6: =DataFromEngine!AR12 -> 2052 | AM6: =DataFromEngine!AS12 -> 2053 | AN6: =DataFromEngine!AT12 -> 2054 | AO6: =DataFromEngine!AU12 -> 2055 | AP6: =DataFromEngine!AV12 -> 2056 | AQ6: =DataFromEngine!AW12 -> 2057 | AR6: =DataFromEngine!AX12 -> 2058 | AS6: =DataFromEngine!AY12 -> 2059 | AT6: =DataFromEngine!AZ12 -> 2060 | AU6: =DataFromEngine!BA12 -> 2061 | AV6: =DataFromEngine!BB12 -> 2062 | AW6: =DataFromEngine!BC12 -> 2063 | AX6: =DataFromEngine!BD12 -> 2064 | AY6: =DataFromEngine!BE12 -> 2065 | AZ6: =DataFromEngine!BF12 -> 2066 | BA6: =DataFromEngine!BG12 -> 2067 | BB6: =DataFromEngine!BH12 -> 2068
B7: Average of Month-End Rate Base | D7: 0
B8: Property Tax Rate | C8: =AVERAGE(D8:BB8) ->  | D8: =IF(ROUND(SUMIF(DataFromEngine!$J$13:$WL$13,D$6,DataFromEngine!$J246:$WL246),3)=0,"-",ROUND(SUMIF(DataFromEngine!$J$13:$WL$13,D$6,DataFromEngine!$J232:$WL232),3)/ROUND(SUMIF(DataFromEngine!$J$13:$WL$13,D$6,DataFromEngine!$J246:$WL246),3)*12) -> - | E8: =IF(ROUND(SUMIF(DataFromEngine!$J$13:$WL$13,E$6,DataFromEngine!$J246:$WL246),3)=0,"-",ROUND(SUMIF(DataFromEngine!$J$13:$WL$13,E$6,DataFromEngine!$J232:$WL232),3)/ROUND(SUMIF(DataFromEngine!$J$13:$WL$13,E$6,DataFromEngine!$J246:$WL246),3)*12) -> - | F8: =IF(ROUND(SUMIF(DataFromEngine!$J$13:$WL$13,F$6,DataFromEngine!$J246:$WL246),3)=0,"-",ROUND(SUMIF(DataFromEngine!$J$13:$WL$13,F$6,DataFromEngine!$J232:$WL232),3)/ROUND(SUMIF(DataFromEngine!$J$13:$WL$13,F$6,DataFromEngine!$J246:$WL246),3)*12) -> - | G8: =IF(ROUND(SUMIF(DataFromEngine!$J$13:$WL$13,G$6,DataFromEngine!$J246:$WL246),3)=0,"-",ROUND(SUMIF(DataFromEngine!$J$13:$WL$13,G$6,DataFromEngine!$J232:$WL232),3)/ROUND(SUMIF(DataFromEngine!$J$13:$WL$13,G$6,DataFromEngine!$J246:$WL246),3)*12) -> - | H8: =IF(ROUND(SUMIF(DataFromEngine!$J$13:$WL$13,H$6,DataFromEngine!$J246:$WL246),3)=0,"-",ROUND(SUMIF(DataFromEngine!$J$13:$WL$13,H$6,DataFromEngine!$J232:$WL232),3)/ROUND(SUMIF(DataFromEngine!$J$13:$WL$13,H$6,DataFromEngine!$J246:$WL246),3)*12) -> - | I8: =IF(ROUND(SUMIF(DataFromEngine!$J$13:$WL$13,I$6,DataFromEngine!$J246:$WL246),3)=0,"-",ROUND(SUMIF(DataFromEngine!$J$13:$WL$13,I$6,DataFromEngine!$J232:$WL232),3)/ROUND(SUMIF(DataFromEngine!$J$13:$WL$13,I$6,DataFromEngine!$J246:$WL246),3)*12) -> - | J8: =IF(ROUND(SUMIF(DataFromEngine!$J$13:$WL$13,J$6,DataFromEngine!$J246:$WL246),3)=0,"-",ROUND(SUMIF(DataFromEngine!$J$13:$WL$13,J$6,DataFromEngine!$J232:$WL232),3)/ROUND(SUMIF(DataFromEngine!$J$13:$WL$13,J$6,DataFromEngine!$J246:$WL246),3)*12) -> - | K8: =IF(ROUND(SUMIF(DataFromEngine!$J$13:$WL$13,K$6,DataFromEngine!$J246:$WL246),3)=0,"-",ROUND(SUMIF(DataFromEngine!$J$13:$WL$13,K$6,DataFromEngine!$J232:$WL232),3)/ROUND(SUMIF(DataFromEngine!$J$13:$WL$13,K$6,DataFromEngine!$J246:$WL246),3)*12) -> - | L8: =IF(ROUND(SUMIF(DataFromEngine!$J$13:$WL$13,L$6,DataFromEngine!$J246:$WL246),3)=0,"-",ROUND(SUMIF(DataFromEngine!$J$13:$WL$13,L$6,DataFromEngine!$J232:$WL232),3)/ROUND(SUMIF(DataFromEngine!$J$13:$WL$13,L$6,DataFromEngine!$J246:$WL246),3)*12) -> - | M8: =IF(ROUND(SUMIF(DataFromEngine!$J$13:$WL$13,M$6,DataFromEngine!$J246:$WL246),3)=0,"-",ROUND(SUMIF(DataFromEngine!$J$13:$WL$13,M$6,DataFromEngine!$J232:$WL232),3)/ROUND(SUMIF(DataFromEngine!$J$13:$WL$13,M$6,DataFromEngine!$J246:$WL246),3)*12) -> - | N8: =IF(ROUND(SUMIF(DataFromEngine!$J$13:$WL$13,N$6,DataFromEngine!$J246:$WL246),3)=0,"-",ROUND(SUMIF(DataFromEngine!$J$13:$WL$13,N$6,DataFromEngine!$J232:$WL232),3)/ROUND(SUMIF(DataFromEngine!$J$13:$WL$13,N$6,DataFromEngine!$J246:$WL246),3)*12) -> - | O8: =IF(ROUND(SUMIF(DataFromEngine!$J$13:$WL$13,O$6,DataFromEngine!$J246:$WL246),3)=0,"-",ROUND(SUMIF(DataFromEngine!$J$13:$WL$13,O$6,DataFromEngine!$J232:$WL232),3)/ROUND(SUMIF(DataFromEngine!$J$13:$WL$13,O$6,DataFromEngine!$J246:$WL246),3)*12) -> - | P8: =IF(ROUND(SUMIF(DataFromEngine!$J$13:$WL$13,P$6,DataFromEngine!$J246:$WL246),3)=0,"-",ROUND(SUMIF(DataFromEngine!$J$13:$WL$13,P$6,DataFromEngine!$J232:$WL232),3)/ROUND(SUMIF(DataFromEngine!$J$13:$WL$13,P$6,DataFromEngine!$J246:$WL246),3)*12) -> - | Q8: =IF(ROUND(SUMIF(DataFromEngine!$J$13:$WL$13,Q$6,DataFromEngine!$J246:$WL246),3)=0,"-",ROUND(SUMIF(DataFromEngine!$J$13:$WL$13,Q$6,DataFromEngine!$J232:$WL232),3)/ROUND(SUMIF(DataFromEngine!$J$13:$WL$13,Q$6,DataFromEngine!$J246:$WL246),3)*12) -> - | R8: =IF(ROUND(SUMIF(DataFromEngine!$J$13:$WL$13,R$6,DataFromEngine!$J246:$WL246),3)=0,"-",ROUND(SUMIF(DataFromEngine!$J$13:$WL$13,R$6,DataFromEngine!$J232:$WL232),3)/ROUND(SUMIF(DataFromEngine!$J$13:$WL$13,R$6,DataFromEngine!$J246:$WL246),3)*12) -> - | S8: =IF(ROUND(SUMIF(DataFromEngine!$J$13:$WL$13,S$6,DataFromEngine!$J246:$WL246),3)=0,"-",ROUND(SUMIF(DataFromEngine!$J$13:$WL$13,S$6,DataFromEngine!$J232:$WL232),3)/ROUND(SUMIF(DataFromEngine!$J$13:$WL$13,S$6,DataFromEngine!$J246:$WL246),3)*12) -> - | T8: =IF(ROUND(SUMIF(DataFromEngine!$J$13:$WL$13,T$6,DataFromEngine!$J246:$WL246),3)=0,"-",ROUND(SUMIF(DataFromEngine!$J$13:$WL$13,T$6,DataFromEngine!$J232:$WL232),3)/ROUND(SUMIF(DataFromEngine!$J$13:$WL$13,T$6,DataFromEngine!$J246:$WL246),3)*12) -> - | U8: =IF(ROUND(SUMIF(DataFromEngine!$J$13:$WL$13,U$6,DataFromEngine!$J246:$WL246),3)=0,"-",ROUND(SUMIF(DataFromEngine!$J$13:$WL$13,U$6,DataFromEngine!$J232:$WL232),3)/ROUND(SUMIF(DataFromEngine!$J$13:$WL$13,U$6,DataFromEngine!$J246:$WL246),3)*12) -> - | V8: =IF(ROUND(SUMIF(DataFromEngine!$J$13:$WL$13,V$6,DataFromEngine!$J246:$WL246),3)=0,"-",ROUND(SUMIF(DataFromEngine!$J$13:$WL$13,V$6,DataFromEngine!$J232:$WL232),3)/ROUND(SUMIF(DataFromEngine!$J$13:$WL$13,V$6,DataFromEngine!$J246:$WL246),3)*12) -> - | W8: =IF(ROUND(SUMIF(DataFromEngine!$J$13:$WL$13,W$6,DataFromEngine!$J246:$WL246),3)=0,"-",ROUND(SUMIF(DataFromEngine!$J$13:$WL$13,W$6,DataFromEngine!$J232:$WL232),3)/ROUND(SUMIF(DataFromEngine!$J$13:$WL$13,W$6,DataFromEngine!$J246:$WL246),3)*12) -> - | X8: =IF(ROUND(SUMIF(DataFromEngine!$J$13:$WL$13,X$6,DataFromEngine!$J246:$WL246),3)=0,"-",ROUND(SUMIF(DataFromEngine!$J$13:$WL$13,X$6,DataFromEngine!$J232:$WL232),3)/ROUND(SUMIF(DataFromEngine!$J$13:$WL$13,X$6,DataFromEngine!$J246:$WL246),3)*12) -> - | Y8: =IF(ROUND(SUMIF(DataFromEngine!$J$13:$WL$13,Y$6,DataFromEngine!$J246:$WL246),3)=0,"-",ROUND(SUMIF(DataFromEngine!$J$13:$WL$13,Y$6,DataFromEngine!$J232:$WL232),3)/ROUND(SUMIF(DataFromEngine!$J$13:$WL$13,Y$6,DataFromEngine!$J246:$WL246),3)*12) -> - | Z8: =IF(ROUND(SUMIF(DataFromEngine!$J$13:$WL$13,Z$6,DataFromEngine!$J246:$WL246),3)=0,"-",ROUND(SUMIF(DataFromEngine!$J$13:$WL$13,Z$6,DataFromEngine!$J232:$WL232),3)/ROUND(SUMIF(DataFromEngine!$J$13:$WL$13,Z$6,DataFromEngine!$J246:$WL246),3)*12) -> - | AA8: =IF(ROUND(SUMIF(DataFromEngine!$J$13:$WL$13,AA$6,DataFromEngine!$J246:$WL246),3)=0,"-",ROUND(SUMIF(DataFromEngine!$J$13:$WL$13,AA$6,DataFromEngine!$J232:$WL232),3)/ROUND(SUMIF(DataFromEngine!$J$13:$WL$13,AA$6,DataFromEngine!$J246:$WL246),3)*12) -> - | AB8: =IF(ROUND(SUMIF(DataFromEngine!$J$13:$WL$13,AB$6,DataFromEngine!$J246:$WL246),3)=0,"-",ROUND(SUMIF(DataFromEngine!$J$13:$WL$13,AB$6,DataFromEngine!$J232:$WL232),3)/ROUND(SUMIF(DataFromEngine!$J$13:$WL$13,AB$6,DataFromEngine!$J246:$WL246),3)*12) -> - | AC8: =IF(ROUND(SUMIF(DataFromEngine!$J$13:$WL$13,AC$6,DataFromEngine!$J246:$WL246),3)=0,"-",ROUND(SUMIF(DataFromEngine!$J$13:$WL$13,AC$6,DataFromEngine!$J232:$WL232),3)/ROUND(SUMIF(DataFromEngine!$J$13:$WL$13,AC$6,DataFromEngine!$J246:$WL246),3)*12) -> - | AD8: =IF(ROUND(SUMIF(DataFromEngine!$J$13:$WL$13,AD$6,DataFromEngine!$J246:$WL246),3)=0,"-",ROUND(SUMIF(DataFromEngine!$J$13:$WL$13,AD$6,DataFromEngine!$J232:$WL232),3)/ROUND(SUMIF(DataFromEngine!$J$13:$WL$13,AD$6,DataFromEngine!$J246:$WL246),3)*12) -> - | AE8: =IF(ROUND(SUMIF(DataFromEngine!$J$13:$WL$13,AE$6,DataFromEngine!$J246:$WL246),3)=0,"-",ROUND(SUMIF(DataFromEngine!$J$13:$WL$13,AE$6,DataFromEngine!$J232:$WL232),3)/ROUND(SUMIF(DataFromEngine!$J$13:$WL$13,AE$6,DataFromEngine!$J246:$WL246),3)*12) -> - | AF8: =IF(ROUND(SUMIF(DataFromEngine!$J$13:$WL$13,AF$6,DataFromEngine!$J246:$WL246),3)=0,"-",ROUND(SUMIF(DataFromEngine!$J$13:$WL$13,AF$6,DataFromEngine!$J232:$WL232),3)/ROUND(SUMIF(DataFromEngine!$J$13:$WL$13,AF$6,DataFromEngine!$J246:$WL246),3)*12) -> - | AG8: =IF(ROUND(SUMIF(DataFromEngine!$J$13:$WL$13,AG$6,DataFromEngine!$J246:$WL246),3)=0,"-",ROUND(SUMIF(DataFromEngine!$J$13:$WL$13,AG$6,DataFromEngine!$J232:$WL232),3)/ROUND(SUMIF(DataFromEngine!$J$13:$WL$13,AG$6,DataFromEngine!$J246:$WL246),3)*12) -> - | AH8: =IF(ROUND(SUMIF(DataFromEngine!$J$13:$WL$13,AH$6,DataFromEngine!$J246:$WL246),3)=0,"-",ROUND(SUMIF(DataFromEngine!$J$13:$WL$13,AH$6,DataFromEngine!$J232:$WL232),3)/ROUND(SUMIF(DataFromEngine!$J$13:$WL$13,AH$6,DataFromEngine!$J246:$WL246),3)*12) -> - | AI8: =IF(ROUND(SUMIF(DataFromEngine!$J$13:$WL$13,AI$6,DataFromEngine!$J246:$WL246),3)=0,"-",ROUND(SUMIF(DataFromEngine!$J$13:$WL$13,AI$6,DataFromEngine!$J232:$WL232),3)/ROUND(SUMIF(DataFromEngine!$J$13:$WL$13,AI$6,DataFromEngine!$J246:$WL246),3)*12) -> - | AJ8: =IF(ROUND(SUMIF(DataFromEngine!$J$13:$WL$13,AJ$6,DataFromEngine!$J246:$WL246),3)=0,"-",ROUND(SUMIF(DataFromEngine!$J$13:$WL$13,AJ$6,DataFromEngine!$J232:$WL232),3)/ROUND(SUMIF(DataFromEngine!$J$13:$WL$13,AJ$6,DataFromEngine!$J246:$WL246),3)*12) -> - | AK8: =IF(ROUND(SUMIF(DataFromEngine!$J$13:$WL$13,AK$6,DataFromEngine!$J246:$WL246),3)=0,"-",ROUND(SUMIF(DataFromEngine!$J$13:$WL$13,AK$6,DataFromEngine!$J232:$WL232),3)/ROUND(SUMIF(DataFromEngine!$J$13:$WL$13,AK$6,DataFromEngine!$J246:$WL246),3)*12) -> - | AL8: =IF(ROUND(SUMIF(DataFromEngine!$J$13:$WL$13,AL$6,DataFromEngine!$J246:$WL246),3)=0,"-",ROUND(SUMIF(DataFromEngine!$J$13:$WL$13,AL$6,DataFromEngine!$J232:$WL232),3)/ROUND(SUMIF(DataFromEngine!$J$13:$WL$13,AL$6,DataFromEngine!$J246:$WL246),3)*12) -> - | AM8: =IF(ROUND(SUMIF(DataFromEngine!$J$13:$WL$13,AM$6,DataFromEngine!$J246:$WL246),3)=0,"-",ROUND(SUMIF(DataFromEngine!$J$13:$WL$13,AM$6,DataFromEngine!$J232:$WL232),3)/ROUND(SUMIF(DataFromEngine!$J$13:$WL$13,AM$6,DataFromEngine!$J246:$WL246),3)*12) -> - | AN8: =IF(ROUND(SUMIF(DataFromEngine!$J$13:$WL$13,AN$6,DataFromEngine!$J246:$WL246),3)=0,"-",ROUND(SUMIF(DataFromEngine!$J$13:$WL$13,AN$6,DataFromEngine!$J232:$WL232),3)/ROUND(SUMIF(DataFromEngine!$J$13:$WL$13,AN$6,DataFromEngine!$J246:$WL246),3)*12) -> - | AO8: =IF(ROUND(SUMIF(DataFromEngine!$J$13:$WL$13,AO$6,DataFromEngine!$J246:$WL246),3)=0,"-",ROUND(SUMIF(DataFromEngine!$J$13:$WL$13,AO$6,DataFromEngine!$J232:$WL232),3)/ROUND(SUMIF(DataFromEngine!$J$13:$WL$13,AO$6,DataFromEngine!$J246:$WL246),3)*12) -> - | AP8: =IF(ROUND(SUMIF(DataFromEngine!$J$13:$WL$13,AP$6,DataFromEngine!$J246:$WL246),3)=0,"-",ROUND(SUMIF(DataFromEngine!$J$13:$WL$13,AP$6,DataFromEngine!$J232:$WL232),3)/ROUND(SUMIF(DataFromEngine!$J$13:$WL$13,AP$6,DataFromEngine!$J246:$WL246),3)*12) -> - | AQ8: =IF(ROUND(SUMIF(DataFromEngine!$J$13:$WL$13,AQ$6,DataFromEngine!$J246:$WL246),3)=0,"-",ROUND(SUMIF(DataFromEngine!$J$13:$WL$13,AQ$6,DataFromEngine!$J232:$WL232),3)/ROUND(SUMIF(DataFromEngine!$J$13:$WL$13,AQ$6,DataFromEngine!$J246:$WL246),3)*12) -> - | AR8: =IF(ROUND(SUMIF(DataFromEngine!$J$13:$WL$13,AR$6,DataFromEngine!$J246:$WL246),3)=0,"-",ROUND(SUMIF(DataFromEngine!$J$13:$WL$13,AR$6,DataFromEngine!$J232:$WL232),3)/ROUND(SUMIF(DataFromEngine!$J$13:$WL$13,AR$6,DataFromEngine!$J246:$WL246),3)*12) -> - | AS8: =IF(ROUND(SUMIF(DataFromEngine!$J$13:$WL$13,AS$6,DataFromEngine!$J246:$WL246),3)=0,"-",ROUND(SUMIF(DataFromEngine!$J$13:$WL$13,AS$6,DataFromEngine!$J232:$WL232),3)/ROUND(SUMIF(DataFromEngine!$J$13:$WL$13,AS$6,DataFromEngine!$J246:$WL246),3)*12) -> - | AT8: =IF(ROUND(SUMIF(DataFromEngine!$J$13:$WL$13,AT$6,DataFromEngine!$J246:$WL246),3)=0,"-",ROUND(SUMIF(DataFromEngine!$J$13:$WL$13,AT$6,DataFromEngine!$J232:$WL232),3)/ROUND(SUMIF(DataFromEngine!$J$13:$WL$13,AT$6,DataFromEngine!$J246:$WL246),3)*12) -> - | AU8: =IF(ROUND(SUMIF(DataFromEngine!$J$13:$WL$13,AU$6,DataFromEngine!$J246:$WL246),3)=0,"-",ROUND(SUMIF(DataFromEngine!$J$13:$WL$13,AU$6,DataFromEngine!$J232:$WL232),3)/ROUND(SUMIF(DataFromEngine!$J$13:$WL$13,AU$6,DataFromEngine!$J246:$WL246),3)*12) -> - | AV8: =IF(ROUND(SUMIF(DataFromEngine!$J$13:$WL$13,AV$6,DataFromEngine!$J246:$WL246),3)=0,"-",ROUND(SUMIF(DataFromEngine!$J$13:$WL$13,AV$6,DataFromEngine!$J232:$WL232),3)/ROUND(SUMIF(DataFromEngine!$J$13:$WL$13,AV$6,DataFromEngine!$J246:$WL246),3)*12) -> - | AW8: =IF(ROUND(SUMIF(DataFromEngine!$J$13:$WL$13,AW$6,DataFromEngine!$J246:$WL246),3)=0,"-",ROUND(SUMIF(DataFromEngine!$J$13:$WL$13,AW$6,DataFromEngine!$J232:$WL232),3)/ROUND(SUMIF(DataFromEngine!$J$13:$WL$13,AW$6,DataFromEngine!$J246:$WL246),3)*12) -> - | AX8: =IF(ROUND(SUMIF(DataFromEngine!$J$13:$WL$13,AX$6,DataFromEngine!$J246:$WL246),3)=0,"-",ROUND(SUMIF(DataFromEngine!$J$13:$WL$13,AX$6,DataFromEngine!$J232:$WL232),3)/ROUND(SUMIF(DataFromEngine!$J$13:$WL$13,AX$6,DataFromEngine!$J246:$WL246),3)*12) -> - | AY8: =IF(ROUND(SUMIF(DataFromEngine!$J$13:$WL$13,AY$6,DataFromEngine!$J246:$WL246),3)=0,"-",ROUND(SUMIF(DataFromEngine!$J$13:$WL$13,AY$6,DataFromEngine!$J232:$WL232),3)/ROUND(SUMIF(DataFromEngine!$J$13:$WL$13,AY$6,DataFromEngine!$J246:$WL246),3)*12) -> - | AZ8: =IF(ROUND(SUMIF(DataFromEngine!$J$13:$WL$13,AZ$6,DataFromEngine!$J246:$WL246),3)=0,"-",ROUND(SUMIF(DataFromEngine!$J$13:$WL$13,AZ$6,DataFromEngine!$J232:$WL232),3)/ROUND(SUMIF(DataFromEngine!$J$13:$WL$13,AZ$6,DataFromEngine!$J246:$WL246),3)*12) -> - | BA8: =IF(ROUND(SUMIF(DataFromEngine!$J$13:$WL$13,BA$6,DataFromEngine!$J246:$WL246),3)=0,"-",ROUND(SUMIF(DataFromEngine!$J$13:$WL$13,BA$6,DataFromEngine!$J232:$WL232),3)/ROUND(SUMIF(DataFromEngine!$J$13:$WL$13,BA$6,DataFromEngine!$J246:$WL246),3)*12) -> - | BB8: =IF(ROUND(SUMIF(DataFromEngine!$J$13:$WL$13,BB$6,DataFromEngine!$J246:$WL246),3)=0,"-",ROUND(SUMIF(DataFromEngine!$J$13:$WL$13,BB$6,DataFromEngine!$J232:$WL232),3)/ROUND(SUMIF(DataFromEngine!$J$13:$WL$13,BB$6,DataFromEngine!$J246:$WL246),3)*12) -> -
B9: Property Tax | C9: =SUM(D9:BB9) -> 0 | D9: =IF(ISERROR(D7*D8),0,D7*D8) -> 0 | E9: 0 | F9: 0 | G9: 0 | H9: 0 | I9: 0 | J9: 0 | K9: 0 | L9: 0 | M9: 0 | N9: 0 | O9: 0 | P9: 0 | Q9: 0 | R9: 0 | S9: 0 | T9: 0 | U9: 0 | V9: 0 | W9: 0 | X9: 0 | Y9: 0 | Z9: 0 | AA9: 0 | AB9: 0 | AC9: 0 | AD9: 0 | AE9: 0 | AF9: 0 | AG9: 0 | AH9: 0 | AI9: 0 | AJ9: =IF(ISERROR(AJ7*AJ8),0,AJ7*AJ8) -> 0 | AK9: 0 | AL9: 0 | AM9: 0 | AN9: 0 | AO9: 0 | AP9: 0 | AQ9: 0 | AR9: 0 | AS9: 0 | AT9: 0 | AU9: 0 | AV9: 0 | AW9: 0 | AX9: 0 | AY9: 0 | AZ9: 0 | BA9: 0 | BB9: 0

Sheet ReportAssumptions
B2: Company | C2: San Diego Gas & Electric | F2: January | G2: 1
B3: Project Heading | C3: EV-HP | F3: February | G3: 2
C4: =CONCATENATE("Revenue Requirement ",PlanBaseYear,"-",PlanBaseYear+49) -> Revenue Requirement 2019-2068 | F4: March | G4: 3
C5: =CONCATENATE("(Dollars in ",C9,")") -> (Dollars in Dollars) | F5: April | G5: 4
F6: May | G6: 5
B7: Start Year | C7: ='Rev Req'!D6+1 -> 2019 | F7: June | G7: 6
F8: July | G8: 7
B9: Scale | C9: Dollars | F9: August | G9: 8
B10: Scale | C10: =IF(C9="Thousands of Dollars",1000,IF(C9="Millions of Dollars",1000000,IF(C9="Billions of Dollars",1000000000,1))) -> 1 | F10: September | G10: 9
F11: October | G11: 10
F12: November | G12: 11
F13: December | G13: 12

Sheet DataFromEngine
H11: Monthly | I11: Period Number: | J11: 0 | K11: 1 | L11: 2 | M11: 3 | N11: 4 | O11: 5 | P11: 6 | Q11: 7 | R11: 8 | S11: 9 | T11: 10 | U11: 11 | V11: 12 | W11: 13 | X11: 14 | Y11: 15 | Z11: 16 | AA11: 17 | AB11: 18 | AC11: 19 | AD11: 20 | AE11: 21 | AF11: 22 | AG11: 23 | AH11: 24 | AI11: 25 | AJ11: 26 | AK11: 27 | AL11: 28 | AM11: 29 | AN11: 30 | AO11: 31 | AP11: 32 | AQ11: 33 | AR11: 34 | AS11: 35 | AT11: 36 | AU11: 37 | AV11: 38 | AW11: 39 | AX11: 40 | AY11: 41 | AZ11: 42 | BA11: 43 | BB11: 44 | BC11: 45 | BD11: 46 | BE11: 47 | BF11: 48 | BG11: 49 | BH11: 50 | BI11: 51 | BJ11: 52 | BK11: 53 | BL11: 54 | BM11: 55 | BN11: 56 | BO11: 57 | BP11: 58 | BQ11: 59 | BR11: 60 | BS11: 61 | BT11: 62 | BU11: 63 | BV11: 64 | BW11: 65 | BX11: 66 | BY11: 67 | BZ11: 68 | CA11: 69 | CB11: 70 | CC11: 71 | CD11: 72 | CE11: 73 | CF11: 74 | CG11: 75 | CH11: 76 | CI11: 77 | CJ11: 78 | CK11: 79 | CL11: 80 | CM11: 81 | CN11: 82 | CO11: 83 | CP11: 84 | CQ11: 85 | CR11: 86 | CS11: 87 | CT11: 88 | CU11: 89 | CV11: 90 | CW11: 91 | CX11: 92 | CY11: 93 | CZ11: 94 | DA11: 95 | DB11: 96 | DC11: 97 | DD11: 98 | DE11: 99 | DF11: 100 | DG11: 101 | DH11: 102 | DI11: 103 | DJ11: 104 | DK11: 105 | DL11: 106 | DM11: 107 | DN11: 108 | DO11: 109 | DP11: 110 | DQ11: 111 | DR11: 112 | DS11: 113 | DT11: 114 | DU11: 115 | DV11: 116 | DW11: 117 | DX11: 118 | DY11: 119 | DZ11: 120 | EA11: 121 | EB11: 122 | EC11: 123 | ED11: 124 | EE11: 125 | EF11: 126 | EG11: 127 | EH11: 128 | EI11: 129 | EJ11: 130 | EK11: 131 | EL11: 132 | EM11: 133 | EN11: 134 | EO11: 135 | EP11: 136 | EQ11: 137 | ER11: 138 | ES11: 139 | ET11: 140 | EU11: 141 | EV11: 142 | EW11: 143 | EX11: 144 | EY11: 145 | EZ11: 146 | FA11: 147 | FB11: 148 | FC11: 149 | FD11: 150 | FE11: 151 | FF11: 152 | FG11: 153 | FH11: 154 | FI11: 155 | FJ11: 156 | FK11: 157 | FL11: 158 | FM11: 159 | FN11: 160 | FO11: 161 | FP11: 162 | FQ11: 163 | FR11: 164 | FS11: 165 | FT11: 166 | FU11: 167 | FV11: 168 | FW11: 169 | FX11: 170 | FY11: 171 | FZ11: 172 | GA11: 173 | GB11: 174 | GC11: 175 | GD11: 176 | GE11: 177 | GF11: 178 | GG11: 179 | GH11: 180 | GI11: 181 | GJ11: 182 | GK11: 183 | GL11: 184 | GM11: 185 | GN11: 186 | GO11: 187 | GP11: 188 | GQ11: 189 | GR11: 190 | GS11: 191 | GT11: 192 | GU11: 193 | GV11: 194 | GW11: 195 | GX11: 196 | GY11: 197 | GZ11: 198 | HA11: 199 | HB11: 200 | HC11: 201 | HD11: 202 | HE11: 203 | HF11: 204 | HG11: 205 | HH11: 206 | HI11: 207 | HJ11: 208 | HK11: 209 | HL11: 210 | HM11: 211 | HN11: 212 | HO11: 213 | HP11: 214 | HQ11: 215 | HR11: 216 | HS11: 217 | HT11: 218 | HU11: 219 | HV11: 220 | HW11: 221 | HX11: 222 | HY11: 223 | HZ11: 224 | IA11: 225 | IB11: 226 | IC11: 227 | ID11: 228 | IE11: 229 | IF11: 230 | IG11: 231 | IH11: 232 | II11: 233 | IJ11: 234 | IK11: 235 | IL11: 236 | IM11: 237 | IN11: 238 | IO11: 239 | IP11: 240 | IQ11: 241 | IR11: 242 | IS11: 243 | IT11: 244 | IU11: 245 | IV11: 246 | IW11: 247 | IX11: 248 | IY11: 249 | IZ11: 250 | JA11: 251 | JB11: 252 | JC11: 253 | JD11: 254 | JE11: 255 | JF11: 256 | JG11: 257 | JH11: 258 | JI11: 259 | JJ11: 260 | JK11: 261 | JL11: 262 | JM11: 263 | JN11: 264 | JO11: 265 | JP11: 266 | JQ11: 267 | JR11: 268 | JS11: 269 | JT11: 270 | JU11: 271 | JV11: 272 | JW11: 273 | JX11: 274 | JY11: 275 | JZ11: 276 | KA11: 277 | KB11: 278 | KC11: 279 | KD11: 280 | KE11: 281 | KF11: 282 | KG11: 283 | KH11: 284 | KI11: 285 | KJ11: 286 | KK11: 287 | KL11: 288 | KM11: 289 | KN11: 290 | KO11: 291 | KP11: 292 | KQ11: 293 | KR11: 294 | KS11: 295 | KT11: 296 | KU11: 297 | KV11: 298 | KW11: 299 | KX11: 300 | KY11: 301 | KZ11: 302 | LA11: 303 | LB11: 304 | LC11: 305 | LD11: 306 | LE11: 307 | LF11: 308 | LG11: 309 | LH11: 310 | LI11: 311 | LJ11: 312 | LK11: 313 | LL11: 314 | LM11: 315 | LN11: 316 | LO11: 317 | LP11: 318 | LQ11: 319 | LR11: 320 | LS11: 321 | LT11: 322 | LU11: 323 | LV11: 324 | LW11: 325 | LX11: 326 | LY11: 327 | LZ11: 328 | MA11: 329 | MB11: 330 | MC11: 331 | MD11: 332 | ME11: 333 | MF11: 334 | MG11: 335 | MH11: 336 | MI11: 337 | MJ11: 338 | MK11: 339 | ML11: 340 | MM11: 341 | MN11: 342 | MO11: 343 | MP11: 344 | MQ11: 345 | MR11: 346 | MS11: 347 | MT11: 348 | MU11: 349 | MV11: 350 | MW11: 351 | MX11: 352 | MY11: 353 | MZ11: 354 | NA11: 355 | NB11: 356 | NC11: 357 | ND11: 358 | NE11: 359 | NF11: 360 | NG11: 361 | NH11: 362 | NI11: 363 | NJ11: 364 | NK11: 365 | NL11: 366 | NM11: 367 | NN11: 368 | NO11: 369 | NP11: 370 | NQ11: 371 | NR11: 372 | NS11: 373 | NT11: 374 | NU11: 375 | NV11: 376 | NW11: 377 | NX11: 378 | NY11: 379 | NZ11: 380 | OA11: 381 | OB11: 382 | OC11: 383 | OD11: 384 | OE11: 385 | OF11: 386 | OG11: 387 | OH11: 388 | OI11: 389 | OJ11: 390 | OK11: 391 | OL11: 392 | OM11: 393 | ON11: 394 | OO11: 395 | OP11: 396 | OQ11: 397 | OR11: 398 | OS11: 399 | OT11: 400 | OU11: 401 | OV11: 402 | OW11: 403 | OX11: 404 | OY11: 405 | OZ11: 406 | PA11: 407 | PB11: 408 | PC11: 409 | PD11: 410 | PE11: 411 | PF11: 412 | PG11: 413 | PH11: 414 | PI11: 415 | PJ11: 416 | PK11: 417 | PL11: 418 | PM11: 419 | PN11: 420 | PO11: 421 | PP11: 422 | PQ11: 423 | PR11: 424 | PS11: 425 | PT11: 426 | PU11: 427 | PV11: 428 | PW11: 429 | PX11: 430 | PY11: 431 | PZ11: 432 | QA11: 433 | QB11: 434 | QC11: 435 | QD11: 436 | QE11: 437 | QF11: 438 | QG11: 439 | QH11: 440 | QI11: 441 | QJ11: 442 | QK11: 443 | QL11: 444 | QM11: 445 | QN11: 446 | QO11: 447 | QP11: 448 | QQ11: 449 | QR11: 450 | QS11: 451 | QT11: 452 | QU11: 453 | QV11: 454 | QW11: 455 | QX11: 456 | QY11: 457 | QZ11: 458 | RA11: 459 | RB11: 460 | RC11: 461 | RD11: 462 | RE11: 463 | RF11: 464 | RG11: 465 | RH11: 466 | RI11: 467 | RJ11: 468 | RK11: 469 | RL11: 470 | RM11: 471 | RN11: 472 | RO11: 473 | RP11: 474 | RQ11: 475 | RR11: 476 | RS11: 477 | RT11: 478 | RU11: 479 | RV11: 480 | RW11: 481 | RX11: 482 | RY11: 483 | RZ11: 484 | SA11: 485 | SB11: 486 | SC11: 487 | SD11: 488 | SE11: 489 | SF11: 490 | SG11: 491 | SH11: 492 | SI11: 493 | SJ11: 494 | SK11: 495 | SL11: 496 | SM11: 497 | SN11: 498 | SO11: 499 | SP11: 500 | SQ11: 501 | SR11: 502 | SS11: 503 | ST11: 504 | SU11: 505 | SV11: 506 | SW11: 507 | SX11: 508 | SY11: 509 | SZ11: 510 | TA11: 511 | TB11: 512 | TC11: 513 | TD11: 514 | TE11: 515 | TF11: 516 | TG11: 517 | TH11: 518 | TI11: 519 | TJ11: 520 | TK11: 521 | TL11: 522 | TM11: 523 | TN11: 524 | TO11: 525 | TP11: 526 | TQ11: 527 | TR11: 528 | TS11: 529 | TT11: 530 | TU11: 531 | TV11: 532 | TW11: 533 | TX11: 534 | TY11: 535 | TZ11: 536 | UA11: 537 | UB11: 538 | UC11: 539 | UD11: 540 | UE11: 541 | UF11: 542 | UG11: 543 | UH11: 544 | UI11: 545 | UJ11: 546 | UK11: 547 | UL11: 548 | UM11: 549 | UN11: 550 | UO11: 551 | UP11: 552 | UQ11: 553 | UR11: 554 | US11: 555 | UT11: 556 | UU11: 557 | UV11: 558 | UW11: 559 | UX11: 560 | UY11: 561 | UZ11: 562 | VA11: 563 | VB11: 564 | VC11: 565 | VD11: 566 | VE11: 567 | VF11: 568 | VG11: 569 | VH11: 570 | VI11: 571 | VJ11: 572 | VK11: 573 | VL11: 574 | VM11: 575 | VN11: 576 | VO11: 577 | VP11: 578 | VQ11: 579 | VR11: 580 | VS11: 581 | VT11: 582 | VU11: 583 | VV11: 584 | VW11: 585 | VX11: 586 | VY11: 587 | VZ11: 588 | WA11: 589 | WB11: 590 | WC11: 591 | WD11: 592 | WE11: 593 | WF11: 594 | WG11: 595 | WH11: 596 | WI11: 597 | WJ11: 598 | WK11: 599 | WL11: 600
I12: Year: | J12: 2018 | K12: 2019 | L12: 2020 | M12: 2021 | N12: 2022 | O12: 2023 | P12: 2024 | Q12: 2025 | R12: 2026 | S12: 2027 | T12: 2028 | U12: 2029 | V12: 2030 | W12: 2031 | X12: 2032 | Y12: 2033 | Z12: 2034 | AA12: 2035 | AB12: 2036 | AC12: 2037 | AD12: 2038 | AE12: 2039 | AF12: 2040 | AG12: 2041 | AH12: 2042 | AI12: 2043 | AJ12: 2044 | AK12: 2045 | AL12: 2046 | AM12: 2047 | AN12: 2048 | AO12: 2049 | AP12: 2050 | AQ12: 2051 | AR12: 2052 | AS12: 2053 | AT12: 2054 | AU12: 2055 | AV12: 2056 | AW12: 2057 | AX12: 2058 | AY12: 2059 | AZ12: 2060 | BA12: 2061 | BB12: 2062 | BC12: 2063 | BD12: 2064 | BE12: 2065 | BF12: 2066 | BG12: 2067 | BH12: 2068
I13: Month relates to year: | J13: 2018 | K13: 2019 | L13: 2019 | M13: 2019 | N13: 2019 | O13: 2019 | P13: 2019 | Q13: 2019 | R13: 2019 | S13: 2019 | T13: 2019 | U13: 2019 | V13: 2019 | W13: 2020 | X13: 2020 | Y13: 2020 | Z13: 2020 | AA13: 2020 | AB13: 2020 | AC13: 2020 | AD13: 2020 | AE13: 2020 | AF13: 2020 | AG13: 2020 | AH13: 2020 | AI13: 2021 | AJ13: 2021 | AK13: 2021 | AL13: 2021 | AM13: 2021 | AN13: 2021 | AO13: 2021 | AP13: 2021 | AQ13: 2021 | AR13: 2021 | AS13: 2021 | AT13: 2021 | AU13: 2022 | AV13: 2022 | AW13: 2022 | AX13: 2022 | AY13: 2022 | AZ13: 2022 | BA13: 2022 | BB13: 2022 | BC13: 2022 | BD13: 2022 | BE13: 2022 | BF13: 2022 | BG13: 2023 | BH13: 2023 | BI13: 2023 | BJ13: 2023 | BK13: 2023 | BL13: 2023 | BM13: 2023 | BN13: 2023 | BO13: 2023 | BP13: 2023 | BQ13: 2023 | BR13: 2023 | BS13: 2024 | BT13: 2024 | BU13: 2024 | BV13: 2024 | BW13: 2024 | BX13: 2024 | BY13: 2024 | BZ13: 2024 | CA13: 2024 | CB13: 2024 | CC13: 2024 | CD13: 2024 | CE13: 2025 | CF13: 2025 | CG13: 2025 | CH13: 2025 | CI13: 2025 | CJ13: 2025 | CK13: 2025 | CL13: 2025 | CM13: 2025 | CN13: 2025 | CO13: 2025 | CP13: 2025 | CQ13: 2026 | CR13: 2026 | CS13: 2026 | CT13: 2026 | CU13: 2026 | CV13: 2026 | CW13: 2026 | CX13: 2026 | CY13: 2026 | CZ13: 2026 | DA13: 2026 | DB13: 2026 | DC13: 2027 | DD13: 2027 | DE13: 2027 | DF13: 2027 | DG13: 2027 | DH13: 2027 | DI13: 2027 | DJ13: 2027 | DK13: 2027 | DL13: 2027 | DM13: 2027 | DN13: 2027 | DO13: 2028 | DP13: 2028 | DQ13: 2028 | DR13: 2028 | DS13: 2028 | DT13: 2028 | DU13: 2028 | DV13: 2028 | DW13: 2028 | DX13: 2028 | DY13: 2028 | DZ13: 2028 | EA13: 2029 | EB13: 2029 | EC13: 2029 | ED13: 2029 | EE13: 2029 | EF13: 2029 | EG13: 2029 | EH13: 2029 | EI13: 2029 | EJ13: 2029 | EK13: 2029 | EL13: 2029 | EM13: 2030 | EN13: 2030 | EO13: 2030 | EP13: 2030 | EQ13: 2030 | ER13: 2030 | ES13: 2030 | ET13: 2030 | EU13: 2030 | EV13: 2030 | EW13: 2030 | EX13: 2030 | EY13: 2031 | EZ13: 2031 | FA13: 2031 | FB13: 2031 | FC13: 2031 | FD13: 2031 | FE13: 2031 | FF13: 2031 | FG13: 2031 | FH13: 2031 | FI13: 2031 | FJ13: 2031 | FK13: 2032 | FL13: 2032 | FM13: 2032 | FN13: 2032 | FO13: 2032 | FP13: 2032 | FQ13: 2032 | FR13: 2032 | FS13: 2032 | FT13: 2032 | FU13: 2032 | FV13: 2032 | FW13: 2033 | FX13: 2033 | FY13: 2033 | FZ13: 2033 | GA13: 2033 | GB13: 2033 | GC13: 2033 | GD13: 2033 | GE13: 2033 | GF13: 2033 | GG13: 2033 | GH13: 2033 | GI13: 2034 | GJ13: 2034 | GK13: 2034 | GL13: 2034 | GM13: 2034 | GN13: 2034 | GO13: 2034 | GP13: 2034 | GQ13: 2034 | GR13: 2034 | GS13: 2034 | GT13: 2034 | GU13: 2035 | GV13: 2035 | GW13: 2035 | GX13: 2035 | GY13: 2035 | GZ13: 2035 | HA13: 2035 | HB13: 2035 | HC13: 2035 | HD13: 2035 | HE13: 2035 | HF13: 2035 | HG13: 2036 | HH13: 2036 | HI13: 2036 | HJ13: 2036 | HK13: 2036 | HL13: 2036 | HM13: 2036 | HN13: 2036 | HO13: 2036 | HP13: 2036 | HQ13: 2036 | HR13: 2036 | HS13: 2037 | HT13: 2037 | HU13: 2037 | HV13: 2037 | HW13: 2037 | HX13: 2037 | HY13: 2037 | HZ13: 2037 | IA13: 2037 | IB13: 2037 | IC13: 2037 | ID13: 2037 | IE13: 2038 | IF13: 2038 | IG13: 2038 | IH13: 2038 | II13: 2038 | IJ13: 2038 | IK13: 2038 | IL13: 2038 | IM13: 2038 | IN13: 2038 | IO13: 2038 | IP13: 2038 | IQ13: 2039 | IR13: 2039 | IS13: 2039 | IT13: 2039 | IU13: 2039 | IV13: 2039 | IW13: 2039 | IX13: 2039 | IY13: 2039 | IZ13: 2039 | JA13: 2039 | JB13: 2039 | JC13: 2040 | JD13: 2040 | JE13: 2040 | JF13: 2040 | JG13: 2040 | JH13: 2040 | JI13: 2040 | JJ13: 2040 | JK13: 2040 | JL13: 2040 | JM13: 2040 | JN13: 2040 | JO13: 2041 | JP13: 2041 | JQ13: 2041 | JR13: 2041 | JS13: 2041 | JT13: 2041 | JU13: 2041 | JV13: 2041 | JW13: 2041 | JX13: 2041 | JY13: 2041 | JZ13: 2041 | KA13: 2042 | KB13: 2042 | KC13: 2042 | KD13: 2042 | KE13: 2042 | KF13: 2042 | KG13: 2042 | KH13: 2042 | KI13: 2042 | KJ13: 2042 | KK13: 2042 | KL13: 2042 | KM13: 2043 | KN13: 2043 | KO13: 2043 | KP13: 2043 | KQ13: 2043 | KR13: 2043 | KS13: 2043 | KT13: 2043 | KU13: 2043 | KV13: 2043 | KW13: 2043 | KX13: 2043 | KY13: 2044 | KZ13: 2044 | LA13: 2044 | LB13: 2044 | LC13: 2044 | LD13: 2044 | LE13: 2044 | LF13: 2044 | LG13: 2044 | LH13: 2044 | LI13: 2044 | LJ13: 2044 | LK13: 2045 | LL13: 2045 | LM13: 2045 | LN13: 2045 | LO13: 2045 | LP13: 2045 | LQ13: 2045 | LR13: 2045 | LS13: 2045 | LT13: 2045 | LU13: 2045 | LV13: 2045 | LW13: 2046 | LX13: 2046 | LY13: 2046 | LZ13: 2046 | MA13: 2046 | MB13: 2046 | MC13: 2046 | MD13: 2046 | ME13: 2046 | MF13: 2046 | MG13: 2046 | MH13: 2046 | MI13: 2047 | MJ13: 2047 | MK13: 2047 | ML13: 2047 | MM13: 2047 | MN13: 2047 | MO13: 2047 | MP13: 2047 | MQ13: 2047 | MR13: 2047 | MS13: 2047 | MT13: 2047 | MU13: 2048 | MV13: 2048 | MW13: 2048 | MX13: 2048 | MY13: 2048 | MZ13: 2048 | NA13: 2048 | NB13: 2048 | NC13: 2048 | ND13: 2048 | NE13: 2048 | NF13: 2048 | NG13: 2049 | NH13: 2049 | NI13: 2049 | NJ13: 2049 | NK13: 2049 | NL13: 2049 | NM13: 2049 | NN13: 2049 | NO13: 2049 | NP13: 2049 | NQ13: 2049 | NR13: 2049 | NS13: 2050 | NT13: 2050 | NU13: 2050 | NV13: 2050 | NW13: 2050 | NX13: 2050 | NY13: 2050 | NZ13: 2050 | OA13: 2050 | OB13: 2050 | OC13: 2050 | OD13: 2050 | OE13: 2051 | OF13: 2051 | OG13: 2051 | OH13: 2051 | OI13: 2051 | OJ13: 2051 | OK13: 2051 | OL13: 2051 | OM13: 2051 | ON13: 2051 | OO13: 2051 | OP13: 2051 | OQ13: 2052 | OR13: 2052 | OS13: 2052 | OT13: 2052 | OU13: 2052 | OV13: 2052 | OW13: 2052 | OX13: 2052 | OY13: 2052 | OZ13: 2052 | PA13: 2052 | PB13: 2052 | PC13: 2053 | PD13: 2053 | PE13: 2053 | PF13: 2053 | PG13: 2053 | PH13: 2053 | PI13: 2053 | PJ13: 2053 | PK13: 2053 | PL13: 2053 | PM13: 2053 | PN13: 2053 | PO13: 2054 | PP13: 2054 | PQ13: 2054 | PR13: 2054 | PS13: 2054 | PT13: 2054 | PU13: 2054 | PV13: 2054 | PW13: 2054 | PX13: 2054 | PY13: 2054 | PZ13: 2054 | QA13: 2055 | QB13: 2055 | QC13: 2055 | QD13: 2055 | QE13: 2055 | QF13: 2055 | QG13: 2055 | QH13: 2055 | QI13: 2055 | QJ13: 2055 | QK13: 2055 | QL13: 2055 | QM13: 2056 | QN13: 2056 | QO13: 2056 | QP13: 2056 | QQ13: 2056 | QR13: 2056 | QS13: 2056 | QT13: 2056 | QU13: 2056 | QV13: 2056 | QW13: 2056 | QX13: 2056 | QY13: 2057 | QZ13: 2057 | RA13: 2057 | RB13: 2057 | RC13: 2057 | RD13: 2057 | RE13: 2057 | RF13: 2057 | RG13: 2057 | RH13: 2057 | RI13: 2057 | RJ13: 2057 | RK13: 2058 | RL13: 2058 | RM13: 2058 | RN13: 2058 | RO13: 2058 | RP13: 2058 | RQ13: 2058 | RR13: 2058 | RS13: 2058 | RT13: 2058 | RU13: 2058 | RV13: 2058 | RW13: 2059 | RX13: 2059 | RY13: 2059 | RZ13: 2059 | SA13: 2059 | SB13: 2059 | SC13: 2059 | SD13: 2059 | SE13: 2059 | SF13: 2059 | SG13: 2059 | SH13: 2059 | SI13: 2060 | SJ13: 2060 | SK13: 2060 | SL13: 2060 | SM13: 2060 | SN13: 2060 | SO13: 2060 | SP13: 2060 | SQ13: 2060 | SR13: 2060 | SS13: 2060 | ST13: 2060 | SU13: 2061 | SV13: 2061 | SW13: 2061 | SX13: 2061 | SY13: 2061 | SZ13: 2061 | TA13: 2061 | TB13: 2061 | TC13: 2061 | TD13: 2061 | TE13: 2061 | TF13: 2061 | TG13: 2062 | TH13: 2062 | TI13: 2062 | TJ13: 2062 | TK13: 2062 | TL13: 2062 | TM13: 2062 | TN13: 2062 | TO13: 2062 | TP13: 2062 | TQ13: 2062 | TR13: 2062 | TS13: 2063 | TT13: 2063 | TU13: 2063 | TV13: 2063 | TW13: 2063 | TX13: 2063 | TY13: 2063 | TZ13: 2063 | UA13: 2063 | UB13: 2063 | UC13: 2063 | UD13: 2063 | UE13: 2064 | UF13: 2064 | UG13: 2064 | UH13: 2064 | UI13: 2064 | UJ13: 2064 | UK13: 2064 | UL13: 2064 | UM13: 2064 | UN13: 2064 | UO13: 2064 | UP13: 2064 | UQ13: 2065 | UR13: 2065 | US13: 2065 | UT13: 2065 | UU13: 2065 | UV13: 2065 | UW13: 2065 | UX13: 2065 | UY13: 2065 | UZ13: 2065 | VA13: 2065 | VB13: 2065 | VC13: 2066 | VD13: 2066 | VE13: 2066 | VF13: 2066 | VG13: 2066 | VH13: 2066 | VI13: 2066 | VJ13: 2066 | VK13: 2066 | VL13: 2066 | VM13: 2066 | VN13: 2066 | VO13: 2067 | VP13: 2067 | VQ13: 2067 | VR13: 2067 | VS13: 2067 | VT13: 2067 | VU13: 2067 | VV13: 2067 | VW13: 2067 | VX13: 2067 | VY13: 2067 | VZ13: 2067 | WA13: 2068 | WB13: 2068 | WC13: 2068 | WD13: 2068 | WE13: 2068 | WF13: 2068 | WG13: 2068 | WH13: 2068 | WI13: 2068 | WJ13: 2068 | WK13: 2068 | WL13: 2068
G14: 1 | I14: Month: | J14: 2018-12-01 | K14: 2019-01-01 | L14: 2019-02-01 | M14: 2019-03-01 | N14: 2019-04-01 | O14: 2019-05-01 | P14: 2019-06-01 | Q14: 2019-07-01 | R14: 2019-08-01 | S14: 2019-09-01 | T14: 2019-10-01 | U14: 2019-11-01 | V14: 2019-12-01 | W14: 2020-01-01 | X14: 2020-02-01 | Y14: 2020-03-01 | Z14: 2020-04-01 | AA14: 2020-05-01 | AB14: 2020-06-01 | AC14: 2020-07-01 | AD14: 2020-08-01 | AE14: 2020-09-01 | AF14: 2020-10-01 | AG14: 2020-11-01 | AH14: 2020-12-01 | AI14: 2021-01-01 | AJ14: 2021-02-01 | AK14: 2021-03-01 | AL14: 2021-04-01 | AM14: 2021-05-01 | AN14: 2021-06-01 | AO14: 2021-07-01 | AP14: 2021-08-01 | AQ14: 2021-09-01 | AR14: 2021-10-01 | AS14: 2021-11-01 | AT14: 2021-12-01 | AU14: 2022-01-01 | AV14: 2022-02-01 | AW14: 2022-03-01 | AX14: 2022-04-01 | AY14: 2022-05-01 | AZ14: 2022-06-01 | BA14: 2022-07-01 | BB14: 2022-08-01 | BC14: 2022-09-01 | BD14: 2022-10-01 | BE14: 2022-11-01 | BF14: 2022-12-01 | BG14: 2023-01-01 | BH14: 2023-02-01 | BI14: 2023-03-01 | BJ14: 2023-04-01 | BK14: 2023-05-01 | BL14: 2023-06-01 | BM14: 2023-07-01 | BN14: 2023-08-01 | BO14: 2023-09-01 | BP14: 2023-10-01 | BQ14: 2023-11-01 | BR14: 2023-12-01 | BS14: 2024-01-01 | BT14: 2024-02-01 | BU14: 2024-03-01 | BV14: 2024-04-01 | BW14: 2024-05-01 | BX14: 2024-06-01 | BY14: 2024-07-01 | BZ14: 2024-08-01 | CA14: 2024-09-01 | CB14: 2024-10-01 | CC14: 2024-11-01 | CD14: 2024-12-01 | CE14: 2025-01-01 | CF14: 2025-02-01 | CG14: 2025-03-01 | CH14: 2025-04-01 | CI14: 2025-05-01 | CJ14: 2025-06-01 | CK14: 2025-07-01 | CL14: 2025-08-01 | CM14: 2025-09-01 | CN14: 2025-10-01 | CO14: 2025-11-01 | CP14: 2025-12-01 | CQ14: 2026-01-01 | CR14: 2026-02-01 | CS14: 2026-03-01 | CT14: 2026-04-01 | CU14: 2026-05-01 | CV14: 2026-06-01 | CW14: 2026-07-01 | CX14: 2026-08-01 | CY14: 2026-09-01 | CZ14: 2026-10-01 | DA14: 2026-11-01 | DB14: 2026-12-01 | DC14: 2027-01-01 | DD14: 2027-02-01 | DE14: 2027-03-01 | DF14: 2027-04-01 | DG14: 2027-05-01 | DH14: 2027-06-01 | DI14: 2027-07-01 | DJ14: 2027-08-01 | DK14: 2027-09-01 | DL14: 2027-10-01 | DM14: 2027-11-01 | DN14: 2027-12-01 | DO14: 2028-01-01 | DP14: 2028-02-01 | DQ14: 2028-03-01 | DR14: 2028-04-01 | DS14: 2028-05-01 | DT14: 2028-06-01 | DU14: 2028-07-01 | DV14: 2028-08-01 | DW14: 2028-09-01 | DX14: 2028-10-01 | DY14: 2028-11-01 | DZ14: 2028-12-01 | EA14: 2029-01-01 | EB14: 2029-02-01 | EC14: 2029-03-01 | ED14: 2029-04-01 | EE14: 2029-05-01 | EF14: 2029-06-01 | EG14: 2029-07-01 | EH14: 2029-08-01 | EI14: 2029-09-01 | EJ14: 2029-10-01 | EK14: 2029-11-01 | EL14: 2029-12-01 | EM14: 2030-01-01 | EN14: 2030-02-01 | EO14: 2030-03-01 | EP14: 2030-04-01 | EQ14: 2030-05-01 | ER14: 2030-06-01 | ES14: 2030-07-01 | ET14: 2030-08-01 | EU14: 2030-09-01 | EV14: 2030-10-01 | EW14: 2030-11-01 | EX14: 2030-12-01 | EY14: 2031-01-01 | EZ14: 2031-02-01 | FA14: 2031-03-01 | FB14: 2031-04-01 | FC14: 2031-05-01 | FD14: 2031-06-01 | FE14: 2031-07-01 | FF14: 2031-08-01 | FG14: 2031-09-01 | FH14: 2031-10-01 | FI14: 2031-11-01 | FJ14: 2031-12-01 | FK14: 2032-01-01 | FL14: 2032-02-01 | FM14: 2032-03-01 | FN14: 2032-04-01 | FO14: 2032-05-01 | FP14: 2032-06-01 | FQ14: 2032-07-01 | FR14: 2032-08-01 | FS14: 2032-09-01 | FT14: 2032-10-01 | FU14: 2032-11-01 | FV14: 2032-12-01 | FW14: 2033-01-01 | FX14: 2033-02-01 | FY14: 2033-03-01 | FZ14: 2033-04-01 | GA14: 2033-05-01 | GB14: 2033-06-01 | GC14: 2033-07-01 | GD14: 2033-08-01 | GE14: 2033-09-01 | GF14: 2033-10-01 | GG14: 2033-11-01 | GH14: 2033-12-01 | GI14: 2034-01-01 | GJ14: 2034-02-01 | GK14: 2034-03-01 | GL14: 2034-04-01 | GM14: 2034-05-01 | GN14: 2034-06-01 | GO14: 2034-07-01 | GP14: 2034-08-01 | GQ14: 2034-09-01 | GR14: 2034-10-01 | GS14: 2034-11-01 | GT14: 2034-12-01 | GU14: 2035-01-01 | GV14: 2035-02-01 | GW14: 2035-03-01 | GX14: 2035-04-01 | GY14: 2035-05-01 | GZ14: 2035-06-01 | HA14: 2035-07-01 | HB14: 2035-08-01 | HC14: 2035-09-01 | HD14: 2035-10-01 | HE14: 2035-11-01 | HF14: 2035-12-01 | HG14: 2036-01-01 | HH14: 2036-02-01 | HI14: 2036-03-01 | HJ14: 2036-04-01 | HK14: 2036-05-01 | HL14: 2036-06-01 | HM14: 2036-07-01 | HN14: 2036-08-01 | HO14: 2036-09-01 | HP14: 2036-10-01 | HQ14: 2036-11-01 | HR14: 2036-12-01 | HS14: 2037-01-01 | HT14: 2037-02-01 | HU14: 2037-03-01 | HV14: 2037-04-01 | HW14: 2037-05-01 | HX14: 2037-06-01 | HY14: 2037-07-01 | HZ14: 2037-08-01 | IA14: 2037-09-01 | IB14: 2037-10-01 | IC14: 2037-11-01 | ID14: 2037-12-01 | IE14: 2038-01-01 | IF14: 2038-02-01 | IG14: 2038-03-01 | IH14: 2038-04-01 | II14: 2038-05-01 | IJ14: 2038-06-01 | IK14: 2038-07-01 | IL14: 2038-08-01 | IM14: 2038-09-01 | IN14: 2038-10-01 | IO14: 2038-11-01 | IP14: 2038-12-01 | IQ14: 2039-01-01 | IR14: 2039-02-01 | IS14: 2039-03-01 | IT14: 2039-04-01 | IU14: 2039-05-01 | IV14: 2039-06-01 | IW14: 2039-07-01 | IX14: 2039-08-01 | IY14: 2039-09-01 | IZ14: 2039-10-01 | JA14: 2039-11-01 | JB14: 2039-12-01 | JC14: 2040-01-01 | JD14: 2040-02-01 | JE14: 2040-03-01 | JF14: 2040-04-01 | JG14: 2040-05-01 | JH14: 2040-06-01 | JI14: 2040-07-01 | JJ14: 2040-08-01 | JK14: 2040-09-01 | JL14: 2040-10-01 | JM14: 2040-11-01 | JN14: 2040-12-01 | JO14: 2041-01-01 | JP14: 2041-02-01 | JQ14: 2041-03-01 | JR14: 2041-04-01 | JS14: 2041-05-01 | JT14: 2041-06-01 | JU14: 2041-07-01 | JV14: 2041-08-01 | JW14: 2041-09-01 | JX14: 2041-10-01 | JY14: 2041-11-01 | JZ14: 2041-12-01 | KA14: 2042-01-01 | KB14: 2042-02-01 | KC14: 2042-03-01 | KD14: 2042-04-01 | KE14: 2042-05-01 | KF14: 2042-06-01 | KG14: 2042-07-01 | KH14: 2042-08-01 | KI14: 2042-09-01 | KJ14: 2042-10-01 | KK14: 2042-11-01 | KL14: 2042-12-01 | KM14: 2043-01-01 | KN14: 2043-02-01 | KO14: 2043-03-01 | KP14: 2043-04-01 | KQ14: 2043-05-01 | KR14: 2043-06-01 | KS14: 2043-07-01 | KT14: 2043-08-01 | KU14: 2043-09-01 | KV14: 2043-10-01 | KW14: 2043-11-01 | KX14: 2043-12-01 | KY14: 2044-01-01 | KZ14: 2044-02-01 | LA14: 2044-03-01 | LB14: 2044-04-01 | LC14: 2044-05-01 | LD14: 2044-06-01 | LE14: 2044-07-01 | LF14: 2044-08-01 | LG14: 2044-09-01 | LH14: 2044-10-01 | LI14: 2044-11-01 | LJ14: 2044-12-01 | LK14: 2045-01-01 | LL14: 2045-02-01 | LM14: 2045-03-01 | LN14: 2045-04-01 | LO14: 2045-05-01 | LP14: 2045-06-01 | LQ14: 2045-07-01 | LR14: 2045-08-01 | LS14: 2045-09-01 | LT14: 2045-10-01 | LU14: 2045-11-01 | LV14: 2045-12-01 | LW14: 2046-01-01 | LX14: 2046-02-01 | LY14: 2046-03-01 | LZ14: 2046-04-01 | MA14: 2046-05-01 | MB14: 2046-06-01 | MC14: 2046-07-01 | MD14: 2046-08-01 | ME14: 2046-09-01 | MF14: 2046-10-01 | MG14: 2046-11-01 | MH14: 2046-12-01 | MI14: 2047-01-01 | MJ14: 2047-02-01 | MK14: 2047-03-01 | ML14: 2047-04-01 | MM14: 2047-05-01 | MN14: 2047-06-01 | MO14: 2047-07-01 | MP14: 2047-08-01 | MQ14: 2047-09-01 | MR14: 2047-10-01 | MS14: 2047-11-01 | MT14: 2047-12-01 | MU14: 2048-01-01 | MV14: 2048-02-01 | MW14: 2048-03-01 | MX14: 2048-04-01 | MY14: 2048-05-01 | MZ14: 2048-06-01 | NA14: 2048-07-01 | NB14: 2048-08-01 | NC14: 2048-09-01 | ND14: 2048-10-01 | NE14: 2048-11-01 | NF14: 2048-12-01 | NG14: 2049-01-01 | NH14: 2049-02-01 | NI14: 2049-03-01 | NJ14: 2049-04-01 | NK14: 2049-05-01 | NL14: 2049-06-01 | NM14: 2049-07-01 | NN14: 2049-08-01 | NO14: 2049-09-01 | NP14: 2049-10-01 | NQ14: 2049-11-01 | NR14: 2049-12-01 | NS14: 2050-01-01 | NT14: 2050-02-01 | NU14: 2050-03-01 | NV14: 2050-04-01 | NW14: 2050-05-01 | NX14: 2050-06-01 | NY14: 2050-07-01 | NZ14: 2050-08-01 | OA14: 2050-09-01 | OB14: 2050-10-01 | OC14: 2050-11-01 | OD14: 2050-12-01 | OE14: 2051-01-01 | OF14: 2051-02-01 | OG14: 2051-03-01 | OH14: 2051-04-01 | OI14: 2051-05-01 | OJ14: 2051-06-01 | OK14: 2051-07-01 | OL14: 2051-08-01 | OM14: 2051-09-01 | ON14: 2051-10-01 | OO14: 2051-11-01 | OP14: 2051-12-01 | OQ14: 2052-01-01 | OR14: 2052-02-01 | OS14: 2052-03-01 | OT14: 2052-04-01 | OU14: 2052-05-01 | OV14: 2052-06-01 | OW14: 2052-07-01 | OX14: 2052-08-01 | OY14: 2052-09-01 | OZ14: 2052-10-01 | PA14: 2052-11-01 | PB14: 2052-12-01 | PC14: 2053-01-01 | PD14: 2053-02-01 | PE14: 2053-03-01 | PF14: 2053-04-01 | PG14: 2053-05-01 | PH14: 2053-06-01 | PI14: 2053-07-01 | PJ14: 2053-08-01 | PK14: 2053-09-01 | PL14: 2053-10-01 | PM14: 2053-11-01 | PN14: 2053-12-01 | PO14: 2054-01-01 | PP14: 2054-02-01 | PQ14: 2054-03-01 | PR14: 2054-04-01 | PS14: 2054-05-01 | PT14: 2054-06-01 | PU14: 2054-07-01 | PV14: 2054-08-01 | PW14: 2054-09-01 | PX14: 2054-10-01 | PY14: 2054-11-01 | PZ14: 2054-12-01 | QA14: 2055-01-01 | QB14: 2055-02-01 | QC14: 2055-03-01 | QD14: 2055-04-01 | QE14: 2055-05-01 | QF14: 2055-06-01 | QG14: 2055-07-01 | QH14: 2055-08-01 | QI14: 2055-09-01 | QJ14: 2055-10-01 | QK14: 2055-11-01 | QL14: 2055-12-01 | QM14: 2056-01-01 | QN14: 2056-02-01 | QO14: 2056-03-01 | QP14: 2056-04-01 | QQ14: 2056-05-01 | QR14: 2056-06-01 | QS14: 2056-07-01 | QT14: 2056-08-01 | QU14: 2056-09-01 | QV14: 2056-10-01 | QW14: 2056-11-01 | QX14: 2056-12-01 | QY14: 2057-01-01 | QZ14: 2057-02-01 | RA14: 2057-03-01 | RB14: 2057-04-01 | RC14: 2057-05-01 | RD14: 2057-06-01 | RE14: 2057-07-01 | RF14: 2057-08-01 | RG14: 2057-09-01 | RH14: 2057-10-01 | RI14: 2057-11-01 | RJ14: 2057-12-01 | RK14: 2058-01-01 | RL14: 2058-02-01 | RM14: 2058-03-01 | RN14: 2058-04-01 | RO14: 2058-05-01 | RP14: 2058-06-01 | RQ14: 2058-07-01 | RR14: 2058-08-01 | RS14: 2058-09-01 | RT14: 2058-10-01 | RU14: 2058-11-01 | RV14: 2058-12-01 | RW14: 2059-01-01 | RX14: 2059-02-01 | RY14: 2059-03-01 | RZ14: 2059-04-01 | SA14: 2059-05-01 | SB14: 2059-06-01 | SC14: 2059-07-01 | SD14: 2059-08-01 | SE14: 2059-09-01 | SF14: 2059-10-01 | SG14: 2059-11-01 | SH14: 2059-12-01 | SI14: 2060-01-01 | SJ14: 2060-02-01 | SK14: 2060-03-01 | SL14: 2060-04-01 | SM14: 2060-05-01 | SN14: 2060-06-01 | SO14: 2060-07-01 | SP14: 2060-08-01 | SQ14: 2060-09-01 | SR14: 2060-10-01 | SS14: 2060-11-01 | ST14: 2060-12-01 | SU14: 2061-01-01 | SV14: 2061-02-01 | SW14: 2061-03-01 | SX14: 2061-04-01 | SY14: 2061-05-01 | SZ14: 2061-06-01 | TA14: 2061-07-01 | TB14: 2061-08-01 | TC14: 2061-09-01 | TD14: 2061-10-01 | TE14: 2061-11-01 | TF14: 2061-12-01 | TG14: 2062-01-01 | TH14: 2062-02-01 | TI14: 2062-03-01 | TJ14: 2062-04-01 | TK14: 2062-05-01 | TL14: 2062-06-01 | TM14: 2062-07-01 | TN14: 2062-08-01 | TO14: 2062-09-01 | TP14: 2062-10-01 | TQ14: 2062-11-01 | TR14: 2062-12-01 | TS14: 2063-01-01 | TT14: 2063-02-01 | TU14: 2063-03-01 | TV14: 2063-04-01 | TW14: 2063-05-01 | TX14: 2063-06-01 | TY14: 2063-07-01 | TZ14: 2063-08-01 | UA14: 2063-09-01 | UB14: 2063-10-01 | UC14: 2063-11-01 | UD14: 2063-12-01 | UE14: 2064-01-01 | UF14: 2064-02-01 | UG14: 2064-03-01 | UH14: 2064-04-01 | UI14: 2064-05-01 | UJ14: 2064-06-01 | UK14: 2064-07-01 | UL14: 2064-08-01 | UM14: 2064-09-01 | UN14: 2064-10-01 | UO14: 2064-11-01 | UP14: 2064-12-01 | UQ14: 2065-01-01 | UR14: 2065-02-01 | US14: 2065-03-01 | UT14: 2065-04-01 | UU14: 2065-05-01 | UV14: 2065-06-01 | UW14: 2065-07-01 | UX14: 2065-08-01 | UY14: 2065-09-01 | UZ14: 2065-10-01 | VA14: 2065-11-01 | VB14: 2065-12-01 | VC14: 2066-01-01 | VD14: 2066-02-01 | VE14: 2066-03-01 | VF14: 2066-04-01 | VG14: 2066-05-01 | VH14: 2066-06-01 | VI14: 2066-07-01 | VJ14: 2066-08-01 | VK14: 2066-09-01 | VL14: 2066-10-01 | VM14: 2066-11-01 | VN14: 2066-12-01 | VO14: 2067-01-01 | VP14: 2067-02-01 | VQ14: 2067-03-01 | VR14: 2067-04-01 | VS14: 2067-05-01 | VT14: 2067-06-01 | VU14: 2067-07-01 | VV14: 2067-08-01 | VW14: 2067-09-01 | VX14: 2067-10-01 | VY14: 2067-11-01 | VZ14: 2067-12-01 | WA14: 2068-01-01 | WB14: 2068-02-01 | WC14: 2068-03-01 | WD14: 2068-04-01 | WE14: 2068-05-01 | WF14: 2068-06-01 | WG14: 2068-07-01 | WH14: 2068-08-01 | WI14: 2068-09-01 | WJ14: 2068-10-01 | WK14: 2068-11-01 | WL14: 2068-12-01
G15: 2
G16: 3
G17: 4 | H17: Capital Non-Labor Direct (Annual): | I17: 0 | J17: 0 | K17: 0 | L17: 0 | M17: 0 | N17: 0 | O17: 0 | P17: 0 | Q17: 0 | R17: 0 | S17: 0 | T17: 0 | U17: 0 | V17: 0 | W17: 0 | X17: 0 | Y17: 0 | Z17: 0 | AA17: 0 | AB17: 0 | AC17: 0 | AD17: 0 | AE17: 0 | AF17: 0 | AG17: 0 | AH17: 0 | AI17: 0 | AJ17: 0 | AK17: 0 | AL17: 0 | AM17: 0 | AN17: 0 | AO17: 0 | AP17: 0 | AQ17: 0 | AR17: 0 | AS17: 0 | AT17: 0 | AU17: 0 | AV17: 0 | AW17: 0 | AX17: 0 | AY17: 0 | AZ17: 0 | BA17: 0 | BB17: 0 | BC17: 0 | BD17: 0 | BE17: 0 | BF17: 0 | BG17: 0 | BH17: 0
G18: 5 | H18: Capital Non-Labor Direct (Monthly): | I18: 0 | J18: 0 | K18: 0 | L18: 0 | M18: 0 | N18: 0 | O18: 0 | P18: 0 | Q18: 0 | R18: 0 | S18: 0 | T18: 0 | U18: 0 | V18: 0 | W18: 0 | X18: 0 | Y18: 0 | Z18: 0 | AA18: 0 | AB18: 0 | AC18: 0 | AD18: 0 | AE18: 0 | AF18: 0 | AG18: 0 | AH18: 0 | AI18: 0 | AJ18: 0 | AK18: 0 | AL18: 0 | AM18: 0 | AN18: 0 | AO18: 0 | AP18: 0 | AQ18: 0 | AR18: 0 | AS18: 0 | AT18: 0 | AU18: 0 | AV18: 0 | AW18: 0 | AX18: 0 | AY18: 0 | AZ18: 0 | BA18: 0 | BB18: 0 | BC18: 0 | BD18: 0 | BE18: 0 | BF18: 0 | BG18: 0 | BH18: 0 | BI18: 0 | BJ18: 0 | BK18: 0 | BL18: 0 | BM18: 0 | BN18: 0 | BO18: 0 | BP18: 0 | BQ18: 0 | BR18: 0 | BS18: 0 | BT18: 0 | BU18: 0 | BV18: 0 | BW18: 0 | BX18: 0 | BY18: 0 | BZ18: 0 | CA18: 0 | CB18: 0 | CC18: 0 | CD18: 0 | CE18: 0 | CF18: 0 | CG18: 0 | CH18: 0 | CI18: 0 | CJ18: 0 | CK18: 0 | CL18: 0 | CM18: 0 | CN18: 0 | CO18: 0 | CP18: 0 | CQ18: 0 | CR18: 0 | CS18: 0 | CT18: 0 | CU18: 0 | CV18: 0 | CW18: 0 | CX18: 0 | CY18: 0 | CZ18: 0 | DA18: 0 | DB18: 0 | DC18: 0 | DD18: 0 | DE18: 0 | DF18: 0 | DG18: 0 | DH18: 0 | DI18: 0 | DJ18: 0 | DK18: 0 | DL18: 0 | DM18: 0 | DN18: 0 | DO18: 0 | DP18: 0 | DQ18: 0 | DR18: 0 | DS18: 0 | DT18: 0 | DU18: 0 | DV18: 0 | DW18: 0 | DX18: 0 | DY18: 0 | DZ18: 0 | EA18: 0 | EB18: 0 | EC18: 0 | ED18: 0 | EE18: 0 | EF18: 0 | EG18: 0 | EH18: 0 | EI18: 0 | EJ18: 0 | EK18: 0 | EL18: 0 | EM18: 0 | EN18: 0 | EO18: 0 | EP18: 0 | EQ18: 0 | ER18: 0 | ES18: 0 | ET18: 0 | EU18: 0 | EV18: 0 | EW18: 0 | EX18: 0 | EY18: 0 | EZ18: 0 | FA18: 0 | FB18: 0 | FC18: 0 | FD18: 0 | FE18: 0 | FF18: 0 | FG18: 0 | FH18: 0 | FI18: 0 | FJ18: 0 | FK18: 0 | FL18: 0 | FM18: 0 | FN18: 0 | FO18: 0 | FP18: 0 | FQ18: 0 | FR18: 0 | FS18: 0 | FT18: 0 | FU18: 0 | FV18: 0 | FW18: 0 | FX18: 0 | FY18: 0 | FZ18: 0 | GA18: 0 | GB18: 0 | GC18: 0 | GD18: 0 | GE18: 0 | GF18: 0 | GG18: 0 | GH18: 0 | GI18: 0 | GJ18: 0 | GK18: 0 | GL18: 0 | GM18: 0 | GN18: 0 | GO18: 0 | GP18: 0 | GQ18: 0 | GR18: 0 | GS18: 0 | GT18: 0 | GU18: 0 | GV18: 0 | GW18: 0 | GX18: 0 | GY18: 0 | GZ18: 0 | HA18: 0 | HB18: 0 | HC18: 0 | HD18: 0 | HE18: 0 | HF18: 0 | HG18: 0 | HH18: 0 | HI18: 0 | HJ18: 0 | HK18: 0 | HL18: 0 | HM18: 0 | HN18: 0 | HO18: 0 | HP18: 0 | HQ18: 0 | HR18: 0 | HS18: 0 | HT18: 0 | HU18: 0 | HV18: 0 | HW18: 0 | HX18: 0 | HY18: 0 | HZ18: 0 | IA18: 0 | IB18: 0 | IC18: 0 | ID18: 0 | IE18: 0 | IF18: 0 | IG18: 0 | IH18: 0 | II18: 0 | IJ18: 0 | IK18: 0 | IL18: 0 | IM18: 0 | IN18: 0 | IO18: 0 | IP18: 0 | IQ18: 0 | IR18: 0 | IS18: 0 | IT18: 0 | IU18: 0 | IV18: 0 | IW18: 0 | IX18: 0 | IY18: 0 | IZ18: 0 | JA18: 0 | JB18: 0 | JC18: 0 | JD18: 0 | JE18: 0 | JF18: 0 | JG18: 0 | JH18: 0 | JI18: 0 | JJ18: 0 | JK18: 0 | JL18: 0 | JM18: 0 | JN18: 0 | JO18: 0 | JP18: 0 | JQ18: 0 | JR18: 0 | JS18: 0 | JT18: 0 | JU18: 0 | JV18: 0 | JW18: 0 | JX18: 0 | JY18: 0 | JZ18: 0 | KA18: 0 | KB18: 0 | KC18: 0 | KD18: 0 | KE18: 0 | KF18: 0 | KG18: 0 | KH18: 0 | KI18: 0 | KJ18: 0 | KK18: 0 | KL18: 0 | KM18: 0 | KN18: 0 | KO18: 0 | KP18: 0 | KQ18: 0 | KR18: 0 | KS18: 0 | KT18: 0 | KU18: 0 | KV18: 0 | KW18: 0 | KX18: 0 | KY18: 0 | KZ18: 0 | LA18: 0 | LB18: 0 | LC18: 0 | LD18: 0 | LE18: 0 | LF18: 0 | LG18: 0 | LH18: 0 | LI18: 0 | LJ18: 0 | LK18: 0 | LL18: 0 | LM18: 0 | LN18: 0 | LO18: 0 | LP18: 0 | LQ18: 0 | LR18: 0 | LS18: 0 | LT18: 0 | LU18: 0 | LV18: 0 | LW18: 0 | LX18: 0 | LY18: 0 | LZ18: 0 | MA18: 0 | MB18: 0 | MC18: 0 | MD18: 0 | ME18: 0 | MF18: 0 | MG18: 0 | MH18: 0 | MI18: 0 | MJ18: 0 | MK18: 0 | ML18: 0 | MM18: 0 | MN18: 0 | MO18: 0 | MP18: 0 | MQ18: 0 | MR18: 0 | MS18: 0 | MT18: 0 | MU18: 0 | MV18: 0 | MW18: 0 | MX18: 0 | MY18: 0 | MZ18: 0 | NA18: 0 | NB18: 0 | NC18: 0 | ND18: 0 | NE18: 0 | NF18: 0 | NG18: 0 | NH18: 0 | NI18: 0 | NJ18: 0 | NK18: 0 | NL18: 0 | NM18: 0 | NN18: 0 | NO18: 0 | NP18: 0 | NQ18: 0 | NR18: 0 | NS18: 0 | NT18: 0 | NU18: 0 | NV18: 0 | NW18: 0 | NX18: 0 | NY18: 0 | NZ18: 0 | OA18: 0 | OB18: 0 | OC18: 0 | OD18: 0 | OE18: 0 | OF18: 0 | OG18: 0 | OH18: 0 | OI18: 0 | OJ18: 0 | OK18: 0 | OL18: 0 | OM18: 0 | ON18: 0 | OO18: 0 | OP18: 0 | OQ18: 0 | OR18: 0 | OS18: 0 | OT18: 0 | OU18: 0 | OV18: 0 | OW18: 0 | OX18: 0 | OY18: 0 | OZ18: 0 | PA18: 0 | PB18: 0 | PC18: 0 | PD18: 0 | PE18: 0 | PF18: 0 | PG18: 0 | PH18: 0 | PI18: 0 | PJ18: 0 | PK18: 0 | PL18: 0 | PM18: 0 | PN18: 0 | PO18: 0 | PP18: 0 | PQ18: 0 | PR18: 0 | PS18: 0 | PT18: 0 | PU18: 0 | PV18: 0 | PW18: 0 | PX18: 0 | PY18: 0 | PZ18: 0 | QA18: 0 | QB18: 0 | QC18: 0 | QD18: 0 | QE18: 0 | QF18: 0 | QG18: 0 | QH18: 0 | QI18: 0 | QJ18: 0 | QK18: 0 | QL18: 0 | QM18: 0 | QN18: 0 | QO18: 0 | QP18: 0 | QQ18: 0 | QR18: 0 | QS18: 0 | QT18: 0 | QU18: 0 | QV18: 0 | QW18: 0 | QX18: 0 | QY18: 0 | QZ18: 0 | RA18: 0 | RB18: 0 | RC18: 0 | RD18: 0 | RE18: 0 | RF18: 0 | RG18: 0 | RH18: 0 | RI18: 0 | RJ18: 0 | RK18: 0 | RL18: 0 | RM18: 0 | RN18: 0 | RO18: 0 | RP18: 0 | RQ18: 0 | RR18: 0 | RS18: 0 | RT18: 0 | RU18: 0 | RV18: 0 | RW18: 0 | RX18: 0 | RY18: 0 | RZ18: 0 | SA18: 0 | SB18: 0 | SC18: 0 | SD18: 0 | SE18: 0 | SF18: 0 | SG18: 0 | SH18: 0 | SI18: 0 | SJ18: 0 | SK18: 0 | SL18: 0 | SM18: 0 | SN18: 0 | SO18: 0 | SP18: 0 | SQ18: 0 | SR18: 0 | SS18: 0 | ST18: 0 | SU18: 0 | SV18: 0 | SW18: 0 | SX18: 0 | SY18: 0 | SZ18: 0 | TA18: 0 | TB18: 0 | TC18: 0 | TD18: 0 | TE18: 0 | TF18: 0 | TG18: 0 | TH18: 0 | TI18: 0 | TJ18: 0 | TK18: 0 | TL18: 0 | TM18: 0 | TN18: 0 | TO18: 0 | TP18: 0 | TQ18: 0 | TR18: 0 | TS18: 0 | TT18: 0 | TU18: 0 | TV18: 0 | TW18: 0 | TX18: 0 | TY18: 0 | TZ18: 0 | UA18: 0 | UB18: 0 | UC18: 0 | UD18: 0 | UE18: 0 | UF18: 0 | UG18: 0 | UH18: 0 | UI18: 0 | UJ18: 0 | UK18: 0 | UL18: 0 | UM18: 0 | UN18: 0 | UO18: 0 | UP18: 0 | UQ18: 0 | UR18: 0 | US18: 0 | UT18: 0 | UU18: 0 | UV18: 0 | UW18: 0 | UX18: 0 | UY18: 0 | UZ18: 0 | VA18: 0 | VB18: 0 | VC18: 0 | VD18: 0 | VE18: 0 | VF18: 0 | VG18: 0 | VH18: 0 | VI18: 0 | VJ18: 0 | VK18: 0 | VL18: 0 | VM18: 0 | VN18: 0 | VO18: 0 | VP18: 0 | VQ18: 0 | VR18: 0 | VS18: 0 | VT18: 0 | VU18: 0 | VV18: 0 | VW18: 0 | VX18: 0 | VY18: 0 | VZ18: 0 | WA18: 0 | WB18: 0 | WC18: 0 | WD18: 0 | WE18: 0 | WF18: 0 | WG18: 0 | WH18: 0 | WI18: 0 | WJ18: 0 | WK18: 0 | WL18: 0
G19: 6 | H19: Cost Type
G20: 7 | J20: 0 | K20: 0 | L20: 0 | M20: 0 | N20: 0 | O20: 0 | P20: 0 | Q20: 0 | R20: 0 | S20: 0 | T20: 0 | U20: 0 | V20: 0 | W20: 0 | X20: 0 | Y20: 0 | Z20: 0 | AA20: 0 | AB20: 0 | AC20: 0 | AD20: 0 | AE20: 0 | AF20: 0 | AG20: 0 | AH20: 0 | AI20: 0 | AJ20: 0 | AK20: 0 | AL20: 0 | AM20: 0 | AN20: 0 | AO20: 0 | AP20: 0 | AQ20: 0 | AR20: 0 | AS20: 0 | AT20: 0 | AU20: 0 | AV20: 0 | AW20: 0 | AX20: 0 | AY20: 0 | AZ20: 0 | BA20: 0 | BB20: 0 | BC20: 0 | BD20: 0 | BE20: 0 | BF20: 0 | BG20: 0 | BH20: 0 | BI20: 0 | BJ20: 0 | BK20: 0 | BL20: 0 | BM20: 0 | BN20: 0 | BO20: 0 | BP20: 0 | BQ20: 0 | BR20: 0 | BS20: 0 | BT20: 0 | BU20: 0 | BV20: 0 | BW20: 0 | BX20: 0 | BY20: 0 | BZ20: 0 | CA20: 0 | CB20: 0 | CC20: 0 | CD20: 0 | CE20: 0 | CF20: 0 | CG20: 0 | CH20: 0 | CI20: 0 | CJ20: 0 | CK20: 0 | CL20: 0 | CM20: 0 | CN20: 0 | CO20: 0 | CP20: 0 | CQ20: 0 | CR20: 0 | CS20: 0 | CT20: 0 | CU20: 0 | CV20: 0 | CW20: 0 | CX20: 0 | CY20: 0 | CZ20: 0 | DA20: 0 | DB20: 0 | DC20: 0 | DD20: 0 | DE20: 0 | DF20: 0 | DG20: 0 | DH20: 0 | DI20: 0 | DJ20: 0 | DK20: 0 | DL20: 0 | DM20: 0 | DN20: 0 | DO20: 0 | DP20: 0 | DQ20: 0 | DR20: 0 | DS20: 0 | DT20: 0 | DU20: 0 | DV20: 0 | DW20: 0 | DX20: 0 | DY20: 0 | DZ20: 0 | EA20: 0 | EB20: 0 | EC20: 0 | ED20: 0 | EE20: 0 | EF20: 0 | EG20: 0 | EH20: 0 | EI20: 0 | EJ20: 0 | EK20: 0 | EL20: 0 | EM20: 0 | EN20: 0 | EO20: 0 | EP20: 0 | EQ20: 0 | ER20: 0 | ES20: 0 | ET20: 0 | EU20: 0 | EV20: 0 | EW20: 0 | EX20: 0 | EY20: 0 | EZ20: 0 | FA20: 0 | FB20: 0 | FC20: 0 | FD20: 0 | FE20: 0 | FF20: 0 | FG20: 0 | FH20: 0 | FI20: 0 | FJ20: 0 | FK20: 0 | FL20: 0 | FM20: 0 | FN20: 0 | FO20: 0 | FP20: 0 | FQ20: 0 | FR20: 0 | FS20: 0 | FT20: 0 | FU20: 0 | FV20: 0 | FW20: 0 | FX20: 0 | FY20: 0 | FZ20: 0 | GA20: 0 | GB20: 0 | GC20: 0 | GD20: 0 | GE20: 0 | GF20: 0 | GG20: 0 | GH20: 0 | GI20: 0 | GJ20: 0 | GK20: 0 | GL20: 0 | GM20: 0 | GN20: 0 | GO20: 0 | GP20: 0 | GQ20: 0 | GR20: 0 | GS20: 0 | GT20: 0 | GU20: 0 | GV20: 0 | GW20: 0 | GX20: 0 | GY20: 0 | GZ20: 0 | HA20: 0 | HB20: 0 | HC20: 0 | HD20: 0 | HE20: 0 | HF20: 0 | HG20: 0 | HH20: 0 | HI20: 0 | HJ20: 0 | HK20: 0 | HL20: 0 | HM20: 0 | HN20: 0 | HO20: 0 | HP20: 0 | HQ20: 0 | HR20: 0 | HS20: 0 | HT20: 0 | HU20: 0 | HV20: 0 | HW20: 0 | HX20: 0 | HY20: 0 | HZ20: 0 | IA20: 0 | IB20: 0 | IC20: 0 | ID20: 0 | IE20: 0 | IF20: 0 | IG20: 0 | IH20: 0 | II20: 0 | IJ20: 0 | IK20: 0 | IL20: 0 | IM20: 0 | IN20: 0 | IO20: 0 | IP20: 0 | IQ20: 0 | IR20: 0 | IS20: 0 | IT20: 0 | IU20: 0 | IV20: 0 | IW20: 0 | IX20: 0 | IY20: 0 | IZ20: 0 | JA20: 0 | JB20: 0 | JC20: 0 | JD20: 0 | JE20: 0 | JF20: 0 | JG20: 0 | JH20: 0 | JI20: 0 | JJ20: 0 | JK20: 0 | JL20: 0 | JM20: 0 | JN20: 0 | JO20: 0 | JP20: 0 | JQ20: 0 | JR20: 0 | JS20: 0 | JT20: 0 | JU20: 0 | JV20: 0 | JW20: 0 | JX20: 0 | JY20: 0 | JZ20: 0 | KA20: 0 | KB20: 0 | KC20: 0 | KD20: 0 | KE20: 0 | KF20: 0 | KG20: 0 | KH20: 0 | KI20: 0 | KJ20: 0 | KK20: 0 | KL20: 0 | KM20: 0 | KN20: 0 | KO20: 0 | KP20: 0 | KQ20: 0 | KR20: 0 | KS20: 0 | KT20: 0 | KU20: 0 | KV20: 0 | KW20: 0 | KX20: 0 | KY20: 0 | KZ20: 0 | LA20: 0 | LB20: 0 | LC20: 0 | LD20: 0 | LE20: 0 | LF20: 0 | LG20: 0 | LH20: 0 | LI20: 0 | LJ20: 0 | LK20: 0 | LL20: 0 | LM20: 0 | LN20: 0 | LO20: 0 | LP20: 0 | LQ20: 0 | LR20: 0 | LS20: 0 | LT20: 0 | LU20: 0 | LV20: 0 | LW20: 0 | LX20: 0 | LY20: 0 | LZ20: 0 | MA20: 0 | MB20: 0 | MC20: 0 | MD20: 0 | ME20: 0 | MF20: 0 | MG20: 0 | MH20: 0 | MI20: 0 | MJ20: 0 | MK20: 0 | ML20: 0 | MM20: 0 | MN20: 0 | MO20: 0 | MP20: 0 | MQ20: 0 | MR20: 0 | MS20: 0 | MT20: 0 | MU20: 0 | MV20: 0 | MW20: 0 | MX20: 0 | MY20: 0 | MZ20: 0 | NA20: 0 | NB20: 0 | NC20: 0 | ND20: 0 | NE20: 0 | NF20: 0 | NG20: 0 | NH20: 0 | NI20: 0 | NJ20: 0 | NK20: 0 | NL20: 0 | NM20: 0 | NN20: 0 | NO20: 0 | NP20: 0 | NQ20: 0 | NR20: 0 | NS20: 0 | NT20: 0 | NU20: 0 | NV20: 0 | NW20: 0 | NX20: 0 | NY20: 0 | NZ20: 0 | OA20: 0 | OB20: 0 | OC20: 0 | OD20: 0 | OE20: 0 | OF20: 0 | OG20: 0 | OH20: 0 | OI20: 0 | OJ20: 0 | OK20: 0 | OL20: 0 | OM20: 0 | ON20: 0 | OO20: 0 | OP20: 0 | OQ20: 0 | OR20: 0 | OS20: 0 | OT20: 0 | OU20: 0 | OV20: 0 | OW20: 0 | OX20: 0 | OY20: 0 | OZ20: 0 | PA20: 0 | PB20: 0 | PC20: 0 | PD20: 0 | PE20: 0 | PF20: 0 | PG20: 0 | PH20: 0 | PI20: 0 | PJ20: 0 | PK20: 0 | PL20: 0 | PM20: 0 | PN20: 0 | PO20: 0 | PP20: 0 | PQ20: 0 | PR20: 0 | PS20: 0 | PT20: 0 | PU20: 0 | PV20: 0 | PW20: 0 | PX20: 0 | PY20: 0 | PZ20: 0 | QA20: 0 | QB20: 0 | QC20: 0 | QD20: 0 | QE20: 0 | QF20: 0 | QG20: 0 | QH20: 0 | QI20: 0 | QJ20: 0 | QK20: 0 | QL20: 0 | QM20: 0 | QN20: 0 | QO20: 0 | QP20: 0 | QQ20: 0 | QR20: 0 | QS20: 0 | QT20: 0 | QU20: 0 | QV20: 0 | QW20: 0 | QX20: 0 | QY20: 0 | QZ20: 0 | RA20: 0 | RB20: 0 | RC20: 0 | RD20: 0 | RE20: 0 | RF20: 0 | RG20: 0 | RH20: 0 | RI20: 0 | RJ20: 0 | RK20: 0 | RL20: 0 | RM20: 0 | RN20: 0 | RO20: 0 | RP20: 0 | RQ20: 0 | RR20: 0 | RS20: 0 | RT20: 0 | RU20: 0 | RV20: 0 | RW20: 0 | RX20: 0 | RY20: 0 | RZ20: 0 | SA20: 0 | SB20: 0 | SC20: 0 | SD20: 0 | SE20: 0 | SF20: 0 | SG20: 0 | SH20: 0 | SI20: 0 | SJ20: 0 | SK20: 0 | SL20: 0 | SM20: 0 | SN20: 0 | SO20: 0 | SP20: 0 | SQ20: 0 | SR20: 0 | SS20: 0 | ST20: 0 | SU20: 0 | SV20: 0 | SW20: 0 | SX20: 0 | SY20: 0 | SZ20: 0 | TA20: 0 | TB20: 0 | TC20: 0 | TD20: 0 | TE20: 0 | TF20: 0 | TG20: 0 | TH20: 0 | TI20: 0 | TJ20: 0 | TK20: 0 | TL20: 0 | TM20: 0 | TN20: 0 | TO20: 0 | TP20: 0 | TQ20: 0 | TR20: 0 | TS20: 0 | TT20: 0 | TU20: 0 | TV20: 0 | TW20: 0 | TX20: 0 | TY20: 0 | TZ20: 0 | UA20: 0 | UB20: 0 | UC20: 0 | UD20: 0 | UE20: 0 | UF20: 0 | UG20: 0 | UH20: 0 | UI20: 0 | UJ20: 0 | UK20: 0 | UL20: 0 | UM20: 0 | UN20: 0 | UO20: 0 | UP20: 0 | UQ20: 0 | UR20: 0 | US20: 0 | UT20: 0 | UU20: 0 | UV20: 0 | UW20: 0 | UX20: 0 | UY20: 0 | UZ20: 0 | VA20: 0 | VB20: 0 | VC20: 0 | VD20: 0 | VE20: 0 | VF20: 0 | VG20: 0 | VH20: 0 | VI20: 0 | VJ20: 0 | VK20: 0 | VL20: 0 | VM20: 0 | VN20: 0 | VO20: 0 | VP20: 0 | VQ20: 0 | VR20: 0 | VS20: 0 | VT20: 0 | VU20: 0 | VV20: 0 | VW20: 0 | VX20: 0 | VY20: 0 | VZ20: 0 | WA20: 0 | WB20: 0 | WC20: 0 | WD20: 0 | WE20: 0 | WF20: 0 | WG20: 0 | WH20: 0 | WI20: 0 | WJ20: 0 | WK20: 0 | WL20: 0
G21: 8 | J21: 0 | K21: 0 | L21: 0 | M21: 0 | N21: 0 | O21: 0 | P21: 0 | Q21: 0 | R21: 0 | S21: 0 | T21: 0 | U21: 0 | V21: 0 | W21: 0 | X21: 0 | Y21: 0 | Z21: 0 | AA21: 0 | AB21: 0 | AC21: 0 | AD21: 0 | AE21: 0 | AF21: 0 | AG21: 0 | AH21: 0 | AI21: 0 | AJ21: 0 | AK21: 0 | AL21: 0 | AM21: 0 | AN21: 0 | AO21: 0 | AP21: 0 | AQ21: 0 | AR21: 0 | AS21: 0 | AT21: 0 | AU21: 0 | AV21: 0 | AW21: 0 | AX21: 0 | AY21: 0 | AZ21: 0 | BA21: 0 | BB21: 0 | BC21: 0 | BD21: 0 | BE21: 0 | BF21: 0 | BG21: 0 | BH21: 0 | BI21: 0 | BJ21: 0 | BK21: 0 | BL21: 0 | BM21: 0 | BN21: 0 | BO21: 0 | BP21: 0 | BQ21: 0 | BR21: 0 | BS21: 0 | BT21: 0 | BU21: 0 | BV21: 0 | BW21: 0 | BX21: 0 | BY21: 0 | BZ21: 0 | CA21: 0 | CB21: 0 | CC21: 0 | CD21: 0 | CE21: 0 | CF21: 0 | CG21: 0 | CH21: 0 | CI21: 0 | CJ21: 0 | CK21: 0 | CL21: 0 | CM21: 0 | CN21: 0 | CO21: 0 | CP21: 0 | CQ21: 0 | CR21: 0 | CS21: 0 | CT21: 0 | CU21: 0 | CV21: 0 | CW21: 0 | CX21: 0 | CY21: 0 | CZ21: 0 | DA21: 0 | DB21: 0 | DC21: 0 | DD21: 0 | DE21: 0 | DF21: 0 | DG21: 0 | DH21: 0 | DI21: 0 | DJ21: 0 | DK21: 0 | DL21: 0 | DM21: 0 | DN21: 0 | DO21: 0 | DP21: 0 | DQ21: 0 | DR21: 0 | DS21: 0 | DT21: 0 | DU21: 0 | DV21: 0 | DW21: 0 | DX21: 0 | DY21: 0 | DZ21: 0 | EA21: 0 | EB21: 0 | EC21: 0 | ED21: 0 | EE21: 0 | EF21: 0 | EG21: 0 | EH21: 0 | EI21: 0 | EJ21: 0 | EK21: 0 | EL21: 0 | EM21: 0 | EN21: 0 | EO21: 0 | EP21: 0 | EQ21: 0 | ER21: 0 | ES21: 0 | ET21: 0 | EU21: 0 | EV21: 0 | EW21: 0 | EX21: 0 | EY21: 0 | EZ21: 0 | FA21: 0 | FB21: 0 | FC21: 0 | FD21: 0 | FE21: 0 | FF21: 0 | FG21: 0 | FH21: 0 | FI21: 0 | FJ21: 0 | FK21: 0 | FL21: 0 | FM21: 0 | FN21: 0 | FO21: 0 | FP21: 0 | FQ21: 0 | FR21: 0 | FS21: 0 | FT21: 0 | FU21: 0 | FV21: 0 | FW21: 0 | FX21: 0 | FY21: 0 | FZ21: 0 | GA21: 0 | GB21: 0 | GC21: 0 | GD21: 0 | GE21: 0 | GF21: 0 | GG21: 0 | GH21: 0 | GI21: 0 | GJ21: 0 | GK21: 0 | GL21: 0 | GM21: 0 | GN21: 0 | GO21: 0 | GP21: 0 | GQ21: 0 | GR21: 0 | GS21: 0 | GT21: 0 | GU21: 0 | GV21: 0 | GW21: 0 | GX21: 0 | GY21: 0 | GZ21: 0 | HA21: 0 | HB21: 0 | HC21: 0 | HD21: 0 | HE21: 0 | HF21: 0 | HG21: 0 | HH21: 0 | HI21: 0 | HJ21: 0 | HK21: 0 | HL21: 0 | HM21: 0 | HN21: 0 | HO21: 0 | HP21: 0 | HQ21: 0 | HR21: 0 | HS21: 0 | HT21: 0 | HU21: 0 | HV21: 0 | HW21: 0 | HX21: 0 | HY21: 0 | HZ21: 0 | IA21: 0 | IB21: 0 | IC21: 0 | ID21: 0 | IE21: 0 | IF21: 0 | IG21: 0 | IH21: 0 | II21: 0 | IJ21: 0 | IK21: 0 | IL21: 0 | IM21: 0 | IN21: 0 | IO21: 0 | IP21: 0 | IQ21: 0 | IR21: 0 | IS21: 0 | IT21: 0 | IU21: 0 | IV21: 0 | IW21: 0 | IX21: 0 | IY21: 0 | IZ21: 0 | JA21: 0 | JB21: 0 | JC21: 0 | JD21: 0 | JE21: 0 | JF21: 0 | JG21: 0 | JH21: 0 | JI21: 0 | JJ21: 0 | JK21: 0 | JL21: 0 | JM21: 0 | JN21: 0 | JO21: 0 | JP21: 0 | JQ21: 0 | JR21: 0 | JS21: 0 | JT21: 0 | JU21: 0 | JV21: 0 | JW21: 0 | JX21: 0 | JY21: 0 | JZ21: 0 | KA21: 0 | KB21: 0 | KC21: 0 | KD21: 0 | KE21: 0 | KF21: 0 | KG21: 0 | KH21: 0 | KI21: 0 | KJ21: 0 | KK21: 0 | KL21: 0 | KM21: 0 | KN21: 0 | KO21: 0 | KP21: 0 | KQ21: 0 | KR21: 0 | KS21: 0 | KT21: 0 | KU21: 0 | KV21: 0 | KW21: 0 | KX21: 0 | KY21: 0 | KZ21: 0 | LA21: 0 | LB21: 0 | LC21: 0 | LD21: 0 | LE21: 0 | LF21: 0 | LG21: 0 | LH21: 0 | LI21: 0 | LJ21: 0 | LK21: 0 | LL21: 0 | LM21: 0 | LN21: 0 | LO21: 0 | LP21: 0 | LQ21: 0 | LR21: 0 | LS21: 0 | LT21: 0 | LU21: 0 | LV21: 0 | LW21: 0 | LX21: 0 | LY21: 0 | LZ21: 0 | MA21: 0 | MB21: 0 | MC21: 0 | MD21: 0 | ME21: 0 | MF21: 0 | MG21: 0 | MH21: 0 | MI21: 0 | MJ21: 0 | MK21: 0 | ML21: 0 | MM21: 0 | MN21: 0 | MO21: 0 | MP21: 0 | MQ21: 0 | MR21: 0 | MS21: 0 | MT21: 0 | MU21: 0 | MV21: 0 | MW21: 0 | MX21: 0 | MY21: 0 | MZ21: 0 | NA21: 0 | NB21: 0 | NC21: 0 | ND21: 0 | NE21: 0 | NF21: 0 | NG21: 0 | NH21: 0 | NI21: 0 | NJ21: 0 | NK21: 0 | NL21: 0 | NM21: 0 | NN21: 0 | NO21: 0 | NP21: 0 | NQ21: 0 | NR21: 0 | NS21: 0 | NT21: 0 | NU21: 0 | NV21: 0 | NW21: 0 | NX21: 0 | NY21: 0 | NZ21: 0 | OA21: 0 | OB21: 0 | OC21: 0 | OD21: 0 | OE21: 0 | OF21: 0 | OG21: 0 | OH21: 0 | OI21: 0 | OJ21: 0 | OK21: 0 | OL21: 0 | OM21: 0 | ON21: 0 | OO21: 0 | OP21: 0 | OQ21: 0 | OR21: 0 | OS21: 0 | OT21: 0 | OU21: 0 | OV21: 0 | OW21: 0 | OX21: 0 | OY21: 0 | OZ21: 0 | PA21: 0 | PB21: 0 | PC21: 0 | PD21: 0 | PE21: 0 | PF21: 0 | PG21: 0 | PH21: 0 | PI21: 0 | PJ21: 0 | PK21: 0 | PL21: 0 | PM21: 0 | PN21: 0 | PO21: 0 | PP21: 0 | PQ21: 0 | PR21: 0 | PS21: 0 | PT21: 0 | PU21: 0 | PV21: 0 | PW21: 0 | PX21: 0 | PY21: 0 | PZ21: 0 | QA21: 0 | QB21: 0 | QC21: 0 | QD21: 0 | QE21: 0 | QF21: 0 | QG21: 0 | QH21: 0 | QI21: 0 | QJ21: 0 | QK21: 0 | QL21: 0 | QM21: 0 | QN21: 0 | QO21: 0 | QP21: 0 | QQ21: 0 | QR21: 0 | QS21: 0 | QT21: 0 | QU21: 0 | QV21: 0 | QW21: 0 | QX21: 0 | QY21: 0 | QZ21: 0 | RA21: 0 | RB21: 0 | RC21: 0 | RD21: 0 | RE21: 0 | RF21: 0 | RG21: 0 | RH21: 0 | RI21: 0 | RJ21: 0 | RK21: 0 | RL21: 0 | RM21: 0 | RN21: 0 | RO21: 0 | RP21: 0 | RQ21: 0 | RR21: 0 | RS21: 0 | RT21: 0 | RU21: 0 | RV21: 0 | RW21: 0 | RX21: 0 | RY21: 0 | RZ21: 0 | SA21: 0 | SB21: 0 | SC21: 0 | SD21: 0 | SE21: 0 | SF21: 0 | SG21: 0 | SH21: 0 | SI21: 0 | SJ21: 0 | SK21: 0 | SL21: 0 | SM21: 0 | SN21: 0 | SO21: 0 | SP21: 0 | SQ21: 0 | SR21: 0 | SS21: 0 | ST21: 0 | SU21: 0 | SV21: 0 | SW21: 0 | SX21: 0 | SY21: 0 | SZ21: 0 | TA21: 0 | TB21: 0 | TC21: 0 | TD21: 0 | TE21: 0 | TF21: 0 | TG21: 0 | TH21: 0 | TI21: 0 | TJ21: 0 | TK21: 0 | TL21: 0 | TM21: 0 | TN21: 0 | TO21: 0 | TP21: 0 | TQ21: 0 | TR21: 0 | TS21: 0 | TT21: 0 | TU21: 0 | TV21: 0 | TW21: 0 | TX21: 0 | TY21: 0 | TZ21: 0 | UA21: 0 | UB21: 0 | UC21: 0 | UD21: 0 | UE21: 0 | UF21: 0 | UG21: 0 | UH21: 0 | UI21: 0 | UJ21: 0 | UK21: 0 | UL21: 0 | UM21: 0 | UN21: 0 | UO21: 0 | UP21: 0 | UQ21: 0 | UR21: 0 | US21: 0 | UT21: 0 | UU21: 0 | UV21: 0 | UW21: 0 | UX21: 0 | UY21: 0 | UZ21: 0 | VA21: 0 | VB21: 0 | VC21: 0 | VD21: 0 | VE21: 0 | VF21: 0 | VG21: 0 | VH21: 0 | VI21: 0 | VJ21: 0 | VK21: 0 | VL21: 0 | VM21: 0 | VN21: 0 | VO21: 0 | VP21: 0 | VQ21: 0 | VR21: 0 | VS21: 0 | VT21: 0 | VU21: 0 | VV21: 0 | VW21: 0 | VX21: 0 | VY21: 0 | VZ21: 0 | WA21: 0 | WB21: 0 | WC21: 0 | WD21: 0 | WE21: 0 | WF21: 0 | WG21: 0 | WH21: 0 | WI21: 0 | WJ21: 0 | WK21: 0 | WL21: 0
G22: 9 | J22: 0 | K22: 0 | L22: 0 | M22: 0 | N22: 0 | O22: 0 | P22: 0 | Q22: 0 | R22: 0 | S22: 0 | T22: 0 | U22: 0 | V22: 0 | W22: 0 | X22: 0 | Y22: 0 | Z22: 0 | AA22: 0 | AB22: 0 | AC22: 0 | AD22: 0 | AE22: 0 | AF22: 0 | AG22: 0 | AH22: 0 | AI22: 0 | AJ22: 0 | AK22: 0 | AL22: 0 | AM22: 0 | AN22: 0 | AO22: 0 | AP22: 0 | AQ22: 0 | AR22: 0 | AS22: 0 | AT22: 0 | AU22: 0 | AV22: 0 | AW22: 0 | AX22: 0 | AY22: 0 | AZ22: 0 | BA22: 0 | BB22: 0 | BC22: 0 | BD22: 0 | BE22: 0 | BF22: 0 | BG22: 0 | BH22: 0 | BI22: 0 | BJ22: 0 | BK22: 0 | BL22: 0 | BM22: 0 | BN22: 0 | BO22: 0 | BP22: 0 | BQ22: 0 | BR22: 0 | BS22: 0 | BT22: 0 | BU22: 0 | BV22: 0 | BW22: 0 | BX22: 0 | BY22: 0 | BZ22: 0 | CA22: 0 | CB22: 0 | CC22: 0 | CD22: 0 | CE22: 0 | CF22: 0 | CG22: 0 | CH22: 0 | CI22: 0 | CJ22: 0 | CK22: 0 | CL22: 0 | CM22: 0 | CN22: 0 | CO22: 0 | CP22: 0 | CQ22: 0 | CR22: 0 | CS22: 0 | CT22: 0 | CU22: 0 | CV22: 0 | CW22: 0 | CX22: 0 | CY22: 0 | CZ22: 0 | DA22: 0 | DB22: 0 | DC22: 0 | DD22: 0 | DE22: 0 | DF22: 0 | DG22: 0 | DH22: 0 | DI22: 0 | DJ22: 0 | DK22: 0 | DL22: 0 | DM22: 0 | DN22: 0 | DO22: 0 | DP22: 0 | DQ22: 0 | DR22: 0 | DS22: 0 | DT22: 0 | DU22: 0 | DV22: 0 | DW22: 0 | DX22: 0 | DY22: 0 | DZ22: 0 | EA22: 0 | EB22: 0 | EC22: 0 | ED22: 0 | EE22: 0 | EF22: 0 | EG22: 0 | EH22: 0 | EI22: 0 | EJ22: 0 | EK22: 0 | EL22: 0 | EM22: 0 | EN22: 0 | EO22: 0 | EP22: 0 | EQ22: 0 | ER22: 0 | ES22: 0 | ET22: 0 | EU22: 0 | EV22: 0 | EW22: 0 | EX22: 0 | EY22: 0 | EZ22: 0 | FA22: 0 | FB22: 0 | FC22: 0 | FD22: 0 | FE22: 0 | FF22: 0 | FG22: 0 | FH22: 0 | FI22: 0 | FJ22: 0 | FK22: 0 | FL22: 0 | FM22: 0 | FN22: 0 | FO22: 0 | FP22: 0 | FQ22: 0 | FR22: 0 | FS22: 0 | FT22: 0 | FU22: 0 | FV22: 0 | FW22: 0 | FX22: 0 | FY22: 0 | FZ22: 0 | GA22: 0 | GB22: 0 | GC22: 0 | GD22: 0 | GE22: 0 | GF22: 0 | GG22: 0 | GH22: 0 | GI22: 0 | GJ22: 0 | GK22: 0 | GL22: 0 | GM22: 0 | GN22: 0 | GO22: 0 | GP22: 0 | GQ22: 0 | GR22: 0 | GS22: 0 | GT22: 0 | GU22: 0 | GV22: 0 | GW22: 0 | GX22: 0 | GY22: 0 | GZ22: 0 | HA22: 0 | HB22: 0 | HC22: 0 | HD22: 0 | HE22: 0 | HF22: 0 | HG22: 0 | HH22: 0 | HI22: 0 | HJ22: 0 | HK22: 0 | HL22: 0 | HM22: 0 | HN22: 0 | HO22: 0 | HP22: 0 | HQ22: 0 | HR22: 0 | HS22: 0 | HT22: 0 | HU22: 0 | HV22: 0 | HW22: 0 | HX22: 0 | HY22: 0 | HZ22: 0 | IA22: 0 | IB22: 0 | IC22: 0 | ID22: 0 | IE22: 0 | IF22: 0 | IG22: 0 | IH22: 0 | II22: 0 | IJ22: 0 | IK22: 0 | IL22: 0 | IM22: 0 | IN22: 0 | IO22: 0 | IP22: 0 | IQ22: 0 | IR22: 0 | IS22: 0 | IT22: 0 | IU22: 0 | IV22: 0 | IW22: 0 | IX22: 0 | IY22: 0 | IZ22: 0 | JA22: 0 | JB22: 0 | JC22: 0 | JD22: 0 | JE22: 0 | JF22: 0 | JG22: 0 | JH22: 0 | JI22: 0 | JJ22: 0 | JK22: 0 | JL22: 0 | JM22: 0 | JN22: 0 | JO22: 0 | JP22: 0 | JQ22: 0 | JR22: 0 | JS22: 0 | JT22: 0 | JU22: 0 | JV22: 0 | JW22: 0 | JX22: 0 | JY22: 0 | JZ22: 0 | KA22: 0 | KB22: 0 | KC22: 0 | KD22: 0 | KE22: 0 | KF22: 0 | KG22: 0 | KH22: 0 | KI22: 0 | KJ22: 0 | KK22: 0 | KL22: 0 | KM22: 0 | KN22: 0 | KO22: 0 | KP22: 0 | KQ22: 0 | KR22: 0 | KS22: 0 | KT22: 0 | KU22: 0 | KV22: 0 | KW22: 0 | KX22: 0 | KY22: 0 | KZ22: 0 | LA22: 0 | LB22: 0 | LC22: 0 | LD22: 0 | LE22: 0 | LF22: 0 | LG22: 0 | LH22: 0 | LI22: 0 | LJ22: 0 | LK22: 0 | LL22: 0 | LM22: 0 | LN22: 0 | LO22: 0 | LP22: 0 | LQ22: 0 | LR22: 0 | LS22: 0 | LT22: 0 | LU22: 0 | LV22: 0 | LW22: 0 | LX22: 0 | LY22: 0 | LZ22: 0 | MA22: 0 | MB22: 0 | MC22: 0 | MD22: 0 | ME22: 0 | MF22: 0 | MG22: 0 | MH22: 0 | MI22: 0 | MJ22: 0 | MK22: 0 | ML22: 0 | MM22: 0 | MN22: 0 | MO22: 0 | MP22: 0 | MQ22: 0 | MR22: 0 | MS22: 0 | MT22: 0 | MU22: 0 | MV22: 0 | MW22: 0 | MX22: 0 | MY22: 0 | MZ22: 0 | NA22: 0 | NB22: 0 | NC22: 0 | ND22: 0 | NE22: 0 | NF22: 0 | NG22: 0 | NH22: 0 | NI22: 0 | NJ22: 0 | NK22: 0 | NL22: 0 | NM22: 0 | NN22: 0 | NO22: 0 | NP22: 0 | NQ22: 0 | NR22: 0 | NS22: 0 | NT22: 0 | NU22: 0 | NV22: 0 | NW22: 0 | NX22: 0 | NY22: 0 | NZ22: 0 | OA22: 0 | OB22: 0 | OC22: 0 | OD22: 0 | OE22: 0 | OF22: 0 | OG22: 0 | OH22: 0 | OI22: 0 | OJ22: 0 | OK22: 0 | OL22: 0 | OM22: 0 | ON22: 0 | OO22: 0 | OP22: 0 | OQ22: 0 | OR22: 0 | OS22: 0 | OT22: 0 | OU22: 0 | OV22: 0 | OW22: 0 | OX22: 0 | OY22: 0 | OZ22: 0 | PA22: 0 | PB22: 0 | PC22: 0 | PD22: 0 | PE22: 0 | PF22: 0 | PG22: 0 | PH22: 0 | PI22: 0 | PJ22: 0 | PK22: 0 | PL22: 0 | PM22: 0 | PN22: 0 | PO22: 0 | PP22: 0 | PQ22: 0 | PR22: 0 | PS22: 0 | PT22: 0 | PU22: 0 | PV22: 0 | PW22: 0 | PX22: 0 | PY22: 0 | PZ22: 0 | QA22: 0 | QB22: 0 | QC22: 0 | QD22: 0 | QE22: 0 | QF22: 0 | QG22: 0 | QH22: 0 | QI22: 0 | QJ22: 0 | QK22: 0 | QL22: 0 | QM22: 0 | QN22: 0 | QO22: 0 | QP22: 0 | QQ22: 0 | QR22: 0 | QS22: 0 | QT22: 0 | QU22: 0 | QV22: 0 | QW22: 0 | QX22: 0 | QY22: 0 | QZ22: 0 | RA22: 0 | RB22: 0 | RC22: 0 | RD22: 0 | RE22: 0 | RF22: 0 | RG22: 0 | RH22: 0 | RI22: 0 | RJ22: 0 | RK22: 0 | RL22: 0 | RM22: 0 | RN22: 0 | RO22: 0 | RP22: 0 | RQ22: 0 | RR22: 0 | RS22: 0 | RT22: 0 | RU22: 0 | RV22: 0 | RW22: 0 | RX22: 0 | RY22: 0 | RZ22: 0 | SA22: 0 | SB22: 0 | SC22: 0 | SD22: 0 | SE22: 0 | SF22: 0 | SG22: 0 | SH22: 0 | SI22: 0 | SJ22: 0 | SK22: 0 | SL22: 0 | SM22: 0 | SN22: 0 | SO22: 0 | SP22: 0 | SQ22: 0 | SR22: 0 | SS22: 0 | ST22: 0 | SU22: 0 | SV22: 0 | SW22: 0 | SX22: 0 | SY22: 0 | SZ22: 0 | TA22: 0 | TB22: 0 | TC22: 0 | TD22: 0 | TE22: 0 | TF22: 0 | TG22: 0 | TH22: 0 | TI22: 0 | TJ22: 0 | TK22: 0 | TL22: 0 | TM22: 0 | TN22: 0 | TO22: 0 | TP22: 0 | TQ22: 0 | TR22: 0 | TS22: 0 | TT22: 0 | TU22: 0 | TV22: 0 | TW22: 0 | TX22: 0 | TY22: 0 | TZ22: 0 | UA22: 0 | UB22: 0 | UC22: 0 | UD22: 0 | UE22: 0 | UF22: 0 | UG22: 0 | UH22: 0 | UI22: 0 | UJ22: 0 | UK22: 0 | UL22: 0 | UM22: 0 | UN22: 0 | UO22: 0 | UP22: 0 | UQ22: 0 | UR22: 0 | US22: 0 | UT22: 0 | UU22: 0 | UV22: 0 | UW22: 0 | UX22: 0 | UY22: 0 | UZ22: 0 | VA22: 0 | VB22: 0 | VC22: 0 | VD22: 0 | VE22: 0 | VF22: 0 | VG22: 0 | VH22: 0 | VI22: 0 | VJ22: 0 | VK22: 0 | VL22: 0 | VM22: 0 | VN22: 0 | VO22: 0 | VP22: 0 | VQ22: 0 | VR22: 0 | VS22: 0 | VT22: 0 | VU22: 0 | VV22: 0 | VW22: 0 | VX22: 0 | VY22: 0 | VZ22: 0 | WA22: 0 | WB22: 0 | WC22: 0 | WD22: 0 | WE22: 0 | WF22: 0 | WG22: 0 | WH22: 0 | WI22: 0 | WJ22: 0 | WK22: 0 | WL22: 0
G23: 10 | J23: 0 | K23: 0 | L23: 0 | M23: 0 | N23: 0 | O23: 0 | P23: 0 | Q23: 0 | R23: 0 | S23: 0 | T23: 0 | U23: 0 | V23: 0 | W23: 0 | X23: 0 | Y23: 0 | Z23: 0 | AA23: 0 | AB23: 0 | AC23: 0 | AD23: 0 | AE23: 0 | AF23: 0 | AG23: 0 | AH23: 0 | AI23: 0 | AJ23: 0 | AK23: 0 | AL23: 0 | AM23: 0 | AN23: 0 | AO23: 0 | AP23: 0 | AQ23: 0 | AR23: 0 | AS23: 0 | AT23: 0 | AU23: 0 | AV23: 0 | AW23: 0 | AX23: 0 | AY23: 0 | AZ23: 0 | BA23: 0 | BB23: 0 | BC23: 0 | BD23: 0 | BE23: 0 | BF23: 0 | BG23: 0 | BH23: 0 | BI23: 0 | BJ23: 0 | BK23: 0 | BL23: 0 | BM23: 0 | BN23: 0 | BO23: 0 | BP23: 0 | BQ23: 0 | BR23: 0 | BS23: 0 | BT23: 0 | BU23: 0 | BV23: 0 | BW23: 0 | BX23: 0 | BY23: 0 | BZ23: 0 | CA23: 0 | CB23: 0 | CC23: 0 | CD23: 0 | CE23: 0 | CF23: 0 | CG23: 0 | CH23: 0 | CI23: 0 | CJ23: 0 | CK23: 0 | CL23: 0 | CM23: 0 | CN23: 0 | CO23: 0 | CP23: 0 | CQ23: 0 | CR23: 0 | CS23: 0 | CT23: 0 | CU23: 0 | CV23: 0 | CW23: 0 | CX23: 0 | CY23: 0 | CZ23: 0 | DA23: 0 | DB23: 0 | DC23: 0 | DD23: 0 | DE23: 0 | DF23: 0 | DG23: 0 | DH23: 0 | DI23: 0 | DJ23: 0 | DK23: 0 | DL23: 0 | DM23: 0 | DN23: 0 | DO23: 0 | DP23: 0 | DQ23: 0 | DR23: 0 | DS23: 0 | DT23: 0 | DU23: 0 | DV23: 0 | DW23: 0 | DX23: 0 | DY23: 0 | DZ23: 0 | EA23: 0 | EB23: 0 | EC23: 0 | ED23: 0 | EE23: 0 | EF23: 0 | EG23: 0 | EH23: 0 | EI23: 0 | EJ23: 0 | EK23: 0 | EL23: 0 | EM23: 0 | EN23: 0 | EO23: 0 | EP23: 0 | EQ23: 0 | ER23: 0 | ES23: 0 | ET23: 0 | EU23: 0 | EV23: 0 | EW23: 0 | EX23: 0 | EY23: 0 | EZ23: 0 | FA23: 0 | FB23: 0 | FC23: 0 | FD23: 0 | FE23: 0 | FF23: 0 | FG23: 0 | FH23: 0 | FI23: 0 | FJ23: 0 | FK23: 0 | FL23: 0 | FM23: 0 | FN23: 0 | FO23: 0 | FP23: 0 | FQ23: 0 | FR23: 0 | FS23: 0 | FT23: 0 | FU23: 0 | FV23: 0 | FW23: 0 | FX23: 0 | FY23: 0 | FZ23: 0 | GA23: 0 | GB23: 0 | GC23: 0 | GD23: 0 | GE23: 0 | GF23: 0 | GG23: 0 | GH23: 0 | GI23: 0 | GJ23: 0 | GK23: 0 | GL23: 0 | GM23: 0 | GN23: 0 | GO23: 0 | GP23: 0 | GQ23: 0 | GR23: 0 | GS23: 0 | GT23: 0 | GU23: 0 | GV23: 0 | GW23: 0 | GX23: 0 | GY23: 0 | GZ23: 0 | HA23: 0 | HB23: 0 | HC23: 0 | HD23: 0 | HE23: 0 | HF23: 0 | HG23: 0 | HH23: 0 | HI23: 0 | HJ23: 0 | HK23: 0 | HL23: 0 | HM23: 0 | HN23: 0 | HO23: 0 | HP23: 0 | HQ23: 0 | HR23: 0 | HS23: 0 | HT23: 0 | HU23: 0 | HV23: 0 | HW23: 0 | HX23: 0 | HY23: 0 | HZ23: 0 | IA23: 0 | IB23: 0 | IC23: 0 | ID23: 0 | IE23: 0 | IF23: 0 | IG23: 0 | IH23: 0 | II23: 0 | IJ23: 0 | IK23: 0 | IL23: 0 | IM23: 0 | IN23: 0 | IO23: 0 | IP23: 0 | IQ23: 0 | IR23: 0 | IS23: 0 | IT23: 0 | IU23: 0 | IV23: 0 | IW23: 0 | IX23: 0 | IY23: 0 | IZ23: 0 | JA23: 0 | JB23: 0 | JC23: 0 | JD23: 0 | JE23: 0 | JF23: 0 | JG23: 0 | JH23: 0 | JI23: 0 | JJ23: 0 | JK23: 0 | JL23: 0 | JM23: 0 | JN23: 0 | JO23: 0 | JP23: 0 | JQ23: 0 | JR23: 0 | JS23: 0 | JT23: 0 | JU23: 0 | JV23: 0 | JW23: 0 | JX23: 0 | JY23: 0 | JZ23: 0 | KA23: 0 | KB23: 0 | KC23: 0 | KD23: 0 | KE23: 0 | KF23: 0 | KG23: 0 | KH23: 0 | KI23: 0 | KJ23: 0 | KK23: 0 | KL23: 0 | KM23: 0 | KN23: 0 | KO23: 0 | KP23: 0 | KQ23: 0 | KR23: 0 | KS23: 0 | KT23: 0 | KU23: 0 | KV23: 0 | KW23: 0 | KX23: 0 | KY23: 0 | KZ23: 0 | LA23: 0 | LB23: 0 | LC23: 0 | LD23: 0 | LE23: 0 | LF23: 0 | LG23: 0 | LH23: 0 | LI23: 0 | LJ23: 0 | LK23: 0 | LL23: 0 | LM23: 0 | LN23: 0 | LO23: 0 | LP23: 0 | LQ23: 0 | LR23: 0 | LS23: 0 | LT23: 0 | LU23: 0 | LV23: 0 | LW23: 0 | LX23: 0 | LY23: 0 | LZ23: 0 | MA23: 0 | MB23: 0 | MC23: 0 | MD23: 0 | ME23: 0 | MF23: 0 | MG23: 0 | MH23: 0 | MI23: 0 | MJ23: 0 | MK23: 0 | ML23: 0 | MM23: 0 | MN23: 0 | MO23: 0 | MP23: 0 | MQ23: 0 | MR23: 0 | MS23: 0 | MT23: 0 | MU23: 0 | MV23: 0 | MW23: 0 | MX23: 0 | MY23: 0 | MZ23: 0 | NA23: 0 | NB23: 0 | NC23: 0 | ND23: 0 | NE23: 0 | NF23: 0 | NG23: 0 | NH23: 0 | NI23: 0 | NJ23: 0 | NK23: 0 | NL23: 0 | NM23: 0 | NN23: 0 | NO23: 0 | NP23: 0 | NQ23: 0 | NR23: 0 | NS23: 0 | NT23: 0 | NU23: 0 | NV23: 0 | NW23: 0 | NX23: 0 | NY23: 0 | NZ23: 0 | OA23: 0 | OB23: 0 | OC23: 0 | OD23: 0 | OE23: 0 | OF23: 0 | OG23: 0 | OH23: 0 | OI23: 0 | OJ23: 0 | OK23: 0 | OL23: 0 | OM23: 0 | ON23: 0 | OO23: 0 | OP23: 0 | OQ23: 0 | OR23: 0 | OS23: 0 | OT23: 0 | OU23: 0 | OV23: 0 | OW23: 0 | OX23: 0 | OY23: 0 | OZ23: 0 | PA23: 0 | PB23: 0 | PC23: 0 | PD23: 0 | PE23: 0 | PF23: 0 | PG23: 0 | PH23: 0 | PI23: 0 | PJ23: 0 | PK23: 0 | PL23: 0 | PM23: 0 | PN23: 0 | PO23: 0 | PP23: 0 | PQ23: 0 | PR23: 0 | PS23: 0 | PT23: 0 | PU23: 0 | PV23: 0 | PW23: 0 | PX23: 0 | PY23: 0 | PZ23: 0 | QA23: 0 | QB23: 0 | QC23: 0 | QD23: 0 | QE23: 0 | QF23: 0 | QG23: 0 | QH23: 0 | QI23: 0 | QJ23: 0 | QK23: 0 | QL23: 0 | QM23: 0 | QN23: 0 | QO23: 0 | QP23: 0 | QQ23: 0 | QR23: 0 | QS23: 0 | QT23: 0 | QU23: 0 | QV23: 0 | QW23: 0 | QX23: 0 | QY23: 0 | QZ23: 0 | RA23: 0 | RB23: 0 | RC23: 0 | RD23: 0 | RE23: 0 | RF23: 0 | RG23: 0 | RH23: 0 | RI23: 0 | RJ23: 0 | RK23: 0 | RL23: 0 | RM23: 0 | RN23: 0 | RO23: 0 | RP23: 0 | RQ23: 0 | RR23: 0 | RS23: 0 | RT23: 0 | RU23: 0 | RV23: 0 | RW23: 0 | RX23: 0 | RY23: 0 | RZ23: 0 | SA23: 0 | SB23: 0 | SC23: 0 | SD23: 0 | SE23: 0 | SF23: 0 | SG23: 0 | SH23: 0 | SI23: 0 | SJ23: 0 | SK23: 0 | SL23: 0 | SM23: 0 | SN23: 0 | SO23: 0 | SP23: 0 | SQ23: 0 | SR23: 0 | SS23: 0 | ST23: 0 | SU23: 0 | SV23: 0 | SW23: 0 | SX23: 0 | SY23: 0 | SZ23: 0 | TA23: 0 | TB23: 0 | TC23: 0 | TD23: 0 | TE23: 0 | TF23: 0 | TG23: 0 | TH23: 0 | TI23: 0 | TJ23: 0 | TK23: 0 | TL23: 0 | TM23: 0 | TN23: 0 | TO23: 0 | TP23: 0 | TQ23: 0 | TR23: 0 | TS23: 0 | TT23: 0 | TU23: 0 | TV23: 0 | TW23: 0 | TX23: 0 | TY23: 0 | TZ23: 0 | UA23: 0 | UB23: 0 | UC23: 0 | UD23: 0 | UE23: 0 | UF23: 0 | UG23: 0 | UH23: 0 | UI23: 0 | UJ23: 0 | UK23: 0 | UL23: 0 | UM23: 0 | UN23: 0 | UO23: 0 | UP23: 0 | UQ23: 0 | UR23: 0 | US23: 0 | UT23: 0 | UU23: 0 | UV23: 0 | UW23: 0 | UX23: 0 | UY23: 0 | UZ23: 0 | VA23: 0 | VB23: 0 | VC23: 0 | VD23: 0 | VE23: 0 | VF23: 0 | VG23: 0 | VH23: 0 | VI23: 0 | VJ23: 0 | VK23: 0 | VL23: 0 | VM23: 0 | VN23: 0 | VO23: 0 | VP23: 0 | VQ23: 0 | VR23: 0 | VS23: 0 | VT23: 0 | VU23: 0 | VV23: 0 | VW23: 0 | VX23: 0 | VY23: 0 | VZ23: 0 | WA23: 0 | WB23: 0 | WC23: 0 | WD23: 0 | WE23: 0 | WF23: 0 | WG23: 0 | WH23: 0 | WI23: 0 | WJ23: 0 | WK23: 0 | WL23: 0
G24: 11 | J24: 0 | K24: 0 | L24: 0 | M24: 0 | N24: 0 | O24: 0 | P24: 0 | Q24: 0 | R24: 0 | S24: 0 | T24: 0 | U24: 0 | V24: 0 | W24: 0 | X24: 0 | Y24: 0 | Z24: 0 | AA24: 0 | AB24: 0 | AC24: 0 | AD24: 0 | AE24: 0 | AF24: 0 | AG24: 0 | AH24: 0 | AI24: 0 | AJ24: 0 | AK24: 0 | AL24: 0 | AM24: 0 | AN24: 0 | AO24: 0 | AP24: 0 | AQ24: 0 | AR24: 0 | AS24: 0 | AT24: 0 | AU24: 0 | AV24: 0 | AW24: 0 | AX24: 0 | AY24: 0 | AZ24: 0 | BA24: 0 | BB24: 0 | BC24: 0 | BD24: 0 | BE24: 0 | BF24: 0 | BG24: 0 | BH24: 0 | BI24: 0 | BJ24: 0 | BK24: 0 | BL24: 0 | BM24: 0 | BN24: 0 | BO24: 0 | BP24: 0 | BQ24: 0 | BR24: 0 | BS24: 0 | BT24: 0 | BU24: 0 | BV24: 0 | BW24: 0 | BX24: 0 | BY24: 0 | BZ24: 0 | CA24: 0 | CB24: 0 | CC24: 0 | CD24: 0 | CE24: 0 | CF24: 0 | CG24: 0 | CH24: 0 | CI24: 0 | CJ24: 0 | CK24: 0 | CL24: 0 | CM24: 0 | CN24: 0 | CO24: 0 | CP24: 0 | CQ24: 0 | CR24: 0 | CS24: 0 | CT24: 0 | CU24: 0 | CV24: 0 | CW24: 0 | CX24: 0 | CY24: 0 | CZ24: 0 | DA24: 0 | DB24: 0 | DC24: 0 | DD24: 0 | DE24: 0 | DF24: 0 | DG24: 0 | DH24: 0 | DI24: 0 | DJ24: 0 | DK24: 0 | DL24: 0 | DM24: 0 | DN24: 0 | DO24: 0 | DP24: 0 | DQ24: 0 | DR24: 0 | DS24: 0 | DT24: 0 | DU24: 0 | DV24: 0 | DW24: 0 | DX24: 0 | DY24: 0 | DZ24: 0 | EA24: 0 | EB24: 0 | EC24: 0 | ED24: 0 | EE24: 0 | EF24: 0 | EG24: 0 | EH24: 0 | EI24: 0 | EJ24: 0 | EK24: 0 | EL24: 0 | EM24: 0 | EN24: 0 | EO24: 0 | EP24: 0 | EQ24: 0 | ER24: 0 | ES24: 0 | ET24: 0 | EU24: 0 | EV24: 0 | EW24: 0 | EX24: 0 | EY24: 0 | EZ24: 0 | FA24: 0 | FB24: 0 | FC24: 0 | FD24: 0 | FE24: 0 | FF24: 0 | FG24: 0 | FH24: 0 | FI24: 0 | FJ24: 0 | FK24: 0 | FL24: 0 | FM24: 0 | FN24: 0 | FO24: 0 | FP24: 0 | FQ24: 0 | FR24: 0 | FS24: 0 | FT24: 0 | FU24: 0 | FV24: 0 | FW24: 0 | FX24: 0 | FY24: 0 | FZ24: 0 | GA24: 0 | GB24: 0 | GC24: 0 | GD24: 0 | GE24: 0 | GF24: 0 | GG24: 0 | GH24: 0 | GI24: 0 | GJ24: 0 | GK24: 0 | GL24: 0 | GM24: 0 | GN24: 0 | GO24: 0 | GP24: 0 | GQ24: 0 | GR24: 0 | GS24: 0 | GT24: 0 | GU24: 0 | GV24: 0 | GW24: 0 | GX24: 0 | GY24: 0 | GZ24: 0 | HA24: 0 | HB24: 0 | HC24: 0 | HD24: 0 | HE24: 0 | HF24: 0 | HG24: 0 | HH24: 0 | HI24: 0 | HJ24: 0 | HK24: 0 | HL24: 0 | HM24: 0 | HN24: 0 | HO24: 0 | HP24: 0 | HQ24: 0 | HR24: 0 | HS24: 0 | HT24: 0 | HU24: 0 | HV24: 0 | HW24: 0 | HX24: 0 | HY24: 0 | HZ24: 0 | IA24: 0 | IB24: 0 | IC24: 0 | ID24: 0 | IE24: 0 | IF24: 0 | IG24: 0 | IH24: 0 | II24: 0 | IJ24: 0 | IK24: 0 | IL24: 0 | IM24: 0 | IN24: 0 | IO24: 0 | IP24: 0 | IQ24: 0 | IR24: 0 | IS24: 0 | IT24: 0 | IU24: 0 | IV24: 0 | IW24: 0 | IX24: 0 | IY24: 0 | IZ24: 0 | JA24: 0 | JB24: 0 | JC24: 0 | JD24: 0 | JE24: 0 | JF24: 0 | JG24: 0 | JH24: 0 | JI24: 0 | JJ24: 0 | JK24: 0 | JL24: 0 | JM24: 0 | JN24: 0 | JO24: 0 | JP24: 0 | JQ24: 0 | JR24: 0 | JS24: 0 | JT24: 0 | JU24: 0 | JV24: 0 | JW24: 0 | JX24: 0 | JY24: 0 | JZ24: 0 | KA24: 0 | KB24: 0 | KC24: 0 | KD24: 0 | KE24: 0 | KF24: 0 | KG24: 0 | KH24: 0 | KI24: 0 | KJ24: 0 | KK24: 0 | KL24: 0 | KM24: 0 | KN24: 0 | KO24: 0 | KP24: 0 | KQ24: 0 | KR24: 0 | KS24: 0 | KT24: 0 | KU24: 0 | KV24: 0 | KW24: 0 | KX24: 0 | KY24: 0 | KZ24: 0 | LA24: 0 | LB24: 0 | LC24: 0 | LD24: 0 | LE24: 0 | LF24: 0 | LG24: 0 | LH24: 0 | LI24: 0 | LJ24: 0 | LK24: 0 | LL24: 0 | LM24: 0 | LN24: 0 | LO24: 0 | LP24: 0 | LQ24: 0 | LR24: 0 | LS24: 0 | LT24: 0 | LU24: 0 | LV24: 0 | LW24: 0 | LX24: 0 | LY24: 0 | LZ24: 0 | MA24: 0 | MB24: 0 | MC24: 0 | MD24: 0 | ME24: 0 | MF24: 0 | MG24: 0 | MH24: 0 | MI24: 0 | MJ24: 0 | MK24: 0 | ML24: 0 | MM24: 0 | MN24: 0 | MO24: 0 | MP24: 0 | MQ24: 0 | MR24: 0 | MS24: 0 | MT24: 0 | MU24: 0 | MV24: 0 | MW24: 0 | MX24: 0 | MY24: 0 | MZ24: 0 | NA24: 0 | NB24: 0 | NC24: 0 | ND24: 0 | NE24: 0 | NF24: 0 | NG24: 0 | NH24: 0 | NI24: 0 | NJ24: 0 | NK24: 0 | NL24: 0 | NM24: 0 | NN24: 0 | NO24: 0 | NP24: 0 | NQ24: 0 | NR24: 0 | NS24: 0 | NT24: 0 | NU24: 0 | NV24: 0 | NW24: 0 | NX24: 0 | NY24: 0 | NZ24: 0 | OA24: 0 | OB24: 0 | OC24: 0 | OD24: 0 | OE24: 0 | OF24: 0 | OG24: 0 | OH24: 0 | OI24: 0 | OJ24: 0 | OK24: 0 | OL24: 0 | OM24: 0 | ON24: 0 | OO24: 0 | OP24: 0 | OQ24: 0 | OR24: 0 | OS24: 0 | OT24: 0 | OU24: 0 | OV24: 0 | OW24: 0 | OX24: 0 | OY24: 0 | OZ24: 0 | PA24: 0 | PB24: 0 | PC24: 0 | PD24: 0 | PE24: 0 | PF24: 0 | PG24: 0 | PH24: 0 | PI24: 0 | PJ24: 0 | PK24: 0 | PL24: 0 | PM24: 0 | PN24: 0 | PO24: 0 | PP24: 0 | PQ24: 0 | PR24: 0 | PS24: 0 | PT24: 0 | PU24: 0 | PV24: 0 | PW24: 0 | PX24: 0 | PY24: 0 | PZ24: 0 | QA24: 0 | QB24: 0 | QC24: 0 | QD24: 0 | QE24: 0 | QF24: 0 | QG24: 0 | QH24: 0 | QI24: 0 | QJ24: 0 | QK24: 0 | QL24: 0 | QM24: 0 | QN24: 0 | QO24: 0 | QP24: 0 | QQ24: 0 | QR24: 0 | QS24: 0 | QT24: 0 | QU24: 0 | QV24: 0 | QW24: 0 | QX24: 0 | QY24: 0 | QZ24: 0 | RA24: 0 | RB24: 0 | RC24: 0 | RD24: 0 | RE24: 0 | RF24: 0 | RG24: 0 | RH24: 0 | RI24: 0 | RJ24: 0 | RK24: 0 | RL24: 0 | RM24: 0 | RN24: 0 | RO24: 0 | RP24: 0 | RQ24: 0 | RR24: 0 | RS24: 0 | RT24: 0 | RU24: 0 | RV24: 0 | RW24: 0 | RX24: 0 | RY24: 0 | RZ24: 0 | SA24: 0 | SB24: 0 | SC24: 0 | SD24: 0 | SE24: 0 | SF24: 0 | SG24: 0 | SH24: 0 | SI24: 0 | SJ24: 0 | SK24: 0 | SL24: 0 | SM24: 0 | SN24: 0 | SO24: 0 | SP24: 0 | SQ24: 0 | SR24: 0 | SS24: 0 | ST24: 0 | SU24: 0 | SV24: 0 | SW24: 0 | SX24: 0 | SY24: 0 | SZ24: 0 | TA24: 0 | TB24: 0 | TC24: 0 | TD24: 0 | TE24: 0 | TF24: 0 | TG24: 0 | TH24: 0 | TI24: 0 | TJ24: 0 | TK24: 0 | TL24: 0 | TM24: 0 | TN24: 0 | TO24: 0 | TP24: 0 | TQ24: 0 | TR24: 0 | TS24: 0 | TT24: 0 | TU24: 0 | TV24: 0 | TW24: 0 | TX24: 0 | TY24: 0 | TZ24: 0 | UA24: 0 | UB24: 0 | UC24: 0 | UD24: 0 | UE24: 0 | UF24: 0 | UG24: 0 | UH24: 0 | UI24: 0 | UJ24: 0 | UK24: 0 | UL24: 0 | UM24: 0 | UN24: 0 | UO24: 0 | UP24: 0 | UQ24: 0 | UR24: 0 | US24: 0 | UT24: 0 | UU24: 0 | UV24: 0 | UW24: 0 | UX24: 0 | UY24: 0 | UZ24: 0 | VA24: 0 | VB24: 0 | VC24: 0 | VD24: 0 | VE24: 0 | VF24: 0 | VG24: 0 | VH24: 0 | VI24: 0 | VJ24: 0 | VK24: 0 | VL24: 0 | VM24: 0 | VN24: 0 | VO24: 0 | VP24: 0 | VQ24: 0 | VR24: 0 | VS24: 0 | VT24: 0 | VU24: 0 | VV24: 0 | VW24: 0 | VX24: 0 | VY24: 0 | VZ24: 0 | WA24: 0 | WB24: 0 | WC24: 0 | WD24: 0 | WE24: 0 | WF24: 0 | WG24: 0 | WH24: 0 | WI24: 0 | WJ24: 0 | WK24: 0 | WL24: 0
G25: 12 | J25: 0 | K25: 0 | L25: 0 | M25: 0 | N25: 0 | O25: 0 | P25: 0 | Q25: 0 | R25: 0 | S25: 0 | T25: 0 | U25: 0 | V25: 0 | W25: 0 | X25: 0 | Y25: 0 | Z25: 0 | AA25: 0 | AB25: 0 | AC25: 0 | AD25: 0 | AE25: 0 | AF25: 0 | AG25: 0 | AH25: 0 | AI25: 0 | AJ25: 0 | AK25: 0 | AL25: 0 | AM25: 0 | AN25: 0 | AO25: 0 | AP25: 0 | AQ25: 0 | AR25: 0 | AS25: 0 | AT25: 0 | AU25: 0 | AV25: 0 | AW25: 0 | AX25: 0 | AY25: 0 | AZ25: 0 | BA25: 0 | BB25: 0 | BC25: 0 | BD25: 0 | BE25: 0 | BF25: 0 | BG25: 0 | BH25: 0 | BI25: 0 | BJ25: 0 | BK25: 0 | BL25: 0 | BM25: 0 | BN25: 0 | BO25: 0 | BP25: 0 | BQ25: 0 | BR25: 0 | BS25: 0 | BT25: 0 | BU25: 0 | BV25: 0 | BW25: 0 | BX25: 0 | BY25: 0 | BZ25: 0 | CA25: 0 | CB25: 0 | CC25: 0 | CD25: 0 | CE25: 0 | CF25: 0 | CG25: 0 | CH25: 0 | CI25: 0 | CJ25: 0 | CK25: 0 | CL25: 0 | CM25: 0 | CN25: 0 | CO25: 0 | CP25: 0 | CQ25: 0 | CR25: 0 | CS25: 0 | CT25: 0 | CU25: 0 | CV25: 0 | CW25: 0 | CX25: 0 | CY25: 0 | CZ25: 0 | DA25: 0 | DB25: 0 | DC25: 0 | DD25: 0 | DE25: 0 | DF25: 0 | DG25: 0 | DH25: 0 | DI25: 0 | DJ25: 0 | DK25: 0 | DL25: 0 | DM25: 0 | DN25: 0 | DO25: 0 | DP25: 0 | DQ25: 0 | DR25: 0 | DS25: 0 | DT25: 0 | DU25: 0 | DV25: 0 | DW25: 0 | DX25: 0 | DY25: 0 | DZ25: 0 | EA25: 0 | EB25: 0 | EC25: 0 | ED25: 0 | EE25: 0 | EF25: 0 | EG25: 0 | EH25: 0 | EI25: 0 | EJ25: 0 | EK25: 0 | EL25: 0 | EM25: 0 | EN25: 0 | EO25: 0 | EP25: 0 | EQ25: 0 | ER25: 0 | ES25: 0 | ET25: 0 | EU25: 0 | EV25: 0 | EW25: 0 | EX25: 0 | EY25: 0 | EZ25: 0 | FA25: 0 | FB25: 0 | FC25: 0 | FD25: 0 | FE25: 0 | FF25: 0 | FG25: 0 | FH25: 0 | FI25: 0 | FJ25: 0 | FK25: 0 | FL25: 0 | FM25: 0 | FN25: 0 | FO25: 0 | FP25: 0 | FQ25: 0 | FR25: 0 | FS25: 0 | FT25: 0 | FU25: 0 | FV25: 0 | FW25: 0 | FX25: 0 | FY25: 0 | FZ25: 0 | GA25: 0 | GB25: 0 | GC25: 0 | GD25: 0 | GE25: 0 | GF25: 0 | GG25: 0 | GH25: 0 | GI25: 0 | GJ25: 0 | GK25: 0 | GL25: 0 | GM25: 0 | GN25: 0 | GO25: 0 | GP25: 0 | GQ25: 0 | GR25: 0 | GS25: 0 | GT25: 0 | GU25: 0 | GV25: 0 | GW25: 0 | GX25: 0 | GY25: 0 | GZ25: 0 | HA25: 0 | HB25: 0 | HC25: 0 | HD25: 0 | HE25: 0 | HF25: 0 | HG25: 0 | HH25: 0 | HI25: 0 | HJ25: 0 | HK25: 0 | HL25: 0 | HM25: 0 | HN25: 0 | HO25: 0 | HP25: 0 | HQ25: 0 | HR25: 0 | HS25: 0 | HT25: 0 | HU25: 0 | HV25: 0 | HW25: 0 | HX25: 0 | HY25: 0 | HZ25: 0 | IA25: 0 | IB25: 0 | IC25: 0 | ID25: 0 | IE25: 0 | IF25: 0 | IG25: 0 | IH25: 0 | II25: 0 | IJ25: 0 | IK25: 0 | IL25: 0 | IM25: 0 | IN25: 0 | IO25: 0 | IP25: 0 | IQ25: 0 | IR25: 0 | IS25: 0 | IT25: 0 | IU25: 0 | IV25: 0 | IW25: 0 | IX25: 0 | IY25: 0 | IZ25: 0 | JA25: 0 | JB25: 0 | JC25: 0 | JD25: 0 | JE25: 0 | JF25: 0 | JG25: 0 | JH25: 0 | JI25: 0 | JJ25: 0 | JK25: 0 | JL25: 0 | JM25: 0 | JN25: 0 | JO25: 0 | JP25: 0 | JQ25: 0 | JR25: 0 | JS25: 0 | JT25: 0 | JU25: 0 | JV25: 0 | JW25: 0 | JX25: 0 | JY25: 0 | JZ25: 0 | KA25: 0 | KB25: 0 | KC25: 0 | KD25: 0 | KE25: 0 | KF25: 0 | KG25: 0 | KH25: 0 | KI25: 0 | KJ25: 0 | KK25: 0 | KL25: 0 | KM25: 0 | KN25: 0 | KO25: 0 | KP25: 0 | KQ25: 0 | KR25: 0 | KS25: 0 | KT25: 0 | KU25: 0 | KV25: 0 | KW25: 0 | KX25: 0 | KY25: 0 | KZ25: 0 | LA25: 0 | LB25: 0 | LC25: 0 | LD25: 0 | LE25: 0 | LF25: 0 | LG25: 0 | LH25: 0 | LI25: 0 | LJ25: 0 | LK25: 0 | LL25: 0 | LM25: 0 | LN25: 0 | LO25: 0 | LP25: 0 | LQ25: 0 | LR25: 0 | LS25: 0 | LT25: 0 | LU25: 0 | LV25: 0 | LW25: 0 | LX25: 0 | LY25: 0 | LZ25: 0 | MA25: 0 | MB25: 0 | MC25: 0 | MD25: 0 | ME25: 0 | MF25: 0 | MG25: 0 | MH25: 0 | MI25: 0 | MJ25: 0 | MK25: 0 | ML25: 0 | MM25: 0 | MN25: 0 | MO25: 0 | MP25: 0 | MQ25: 0 | MR25: 0 | MS25: 0 | MT25: 0 | MU25: 0 | MV25: 0 | MW25: 0 | MX25: 0 | MY25: 0 | MZ25: 0 | NA25: 0 | NB25: 0 | NC25: 0 | ND25: 0 | NE25: 0 | NF25: 0 | NG25: 0 | NH25: 0 | NI25: 0 | NJ25: 0 | NK25: 0 | NL25: 0 | NM25: 0 | NN25: 0 | NO25: 0 | NP25: 0 | NQ25: 0 | NR25: 0 | NS25: 0 | NT25: 0 | NU25: 0 | NV25: 0 | NW25: 0 | NX25: 0 | NY25: 0 | NZ25: 0 | OA25: 0 | OB25: 0 | OC25: 0 | OD25: 0 | OE25: 0 | OF25: 0 | OG25: 0 | OH25: 0 | OI25: 0 | OJ25: 0 | OK25: 0 | OL25: 0 | OM25: 0 | ON25: 0 | OO25: 0 | OP25: 0 | OQ25: 0 | OR25: 0 | OS25: 0 | OT25: 0 | OU25: 0 | OV25: 0 | OW25: 0 | OX25: 0 | OY25: 0 | OZ25: 0 | PA25: 0 | PB25: 0 | PC25: 0 | PD25: 0 | PE25: 0 | PF25: 0 | PG25: 0 | PH25: 0 | PI25: 0 | PJ25: 0 | PK25: 0 | PL25: 0 | PM25: 0 | PN25: 0 | PO25: 0 | PP25: 0 | PQ25: 0 | PR25: 0 | PS25: 0 | PT25: 0 | PU25: 0 | PV25: 0 | PW25: 0 | PX25: 0 | PY25: 0 | PZ25: 0 | QA25: 0 | QB25: 0 | QC25: 0 | QD25: 0 | QE25: 0 | QF25: 0 | QG25: 0 | QH25: 0 | QI25: 0 | QJ25: 0 | QK25: 0 | QL25: 0 | QM25: 0 | QN25: 0 | QO25: 0 | QP25: 0 | QQ25: 0 | QR25: 0 | QS25: 0 | QT25: 0 | QU25: 0 | QV25: 0 | QW25: 0 | QX25: 0 | QY25: 0 | QZ25: 0 | RA25: 0 | RB25: 0 | RC25: 0 | RD25: 0 | RE25: 0 | RF25: 0 | RG25: 0 | RH25: 0 | RI25: 0 | RJ25: 0 | RK25: 0 | RL25: 0 | RM25: 0 | RN25: 0 | RO25: 0 | RP25: 0 | RQ25: 0 | RR25: 0 | RS25: 0 | RT25: 0 | RU25: 0 | RV25: 0 | RW25: 0 | RX25: 0 | RY25: 0 | RZ25: 0 | SA25: 0 | SB25: 0 | SC25: 0 | SD25: 0 | SE25: 0 | SF25: 0 | SG25: 0 | SH25: 0 | SI25: 0 | SJ25: 0 | SK25: 0 | SL25: 0 | SM25: 0 | SN25: 0 | SO25: 0 | SP25: 0 | SQ25: 0 | SR25: 0 | SS25: 0 | ST25: 0 | SU25: 0 | SV25: 0 | SW25: 0 | SX25: 0 | SY25: 0 | SZ25: 0 | TA25: 0 | TB25: 0 | TC25: 0 | TD25: 0 | TE25: 0 | TF25: 0 | TG25: 0 | TH25: 0 | TI25: 0 | TJ25: 0 | TK25: 0 | TL25: 0 | TM25: 0 | TN25: 0 | TO25: 0 | TP25: 0 | TQ25: 0 | TR25: 0 | TS25: 0 | TT25: 0 | TU25: 0 | TV25: 0 | TW25: 0 | TX25: 0 | TY25: 0 | TZ25: 0 | UA25: 0 | UB25: 0 | UC25: 0 | UD25: 0 | UE25: 0 | UF25: 0 | UG25: 0 | UH25: 0 | UI25: 0 | UJ25: 0 | UK25: 0 | UL25: 0 | UM25: 0 | UN25: 0 | UO25: 0 | UP25: 0 | UQ25: 0 | UR25: 0 | US25: 0 | UT25: 0 | UU25: 0 | UV25: 0 | UW25: 0 | UX25: 0 | UY25: 0 | UZ25: 0 | VA25: 0 | VB25: 0 | VC25: 0 | VD25: 0 | VE25: 0 | VF25: 0 | VG25: 0 | VH25: 0 | VI25: 0 | VJ25: 0 | VK25: 0 | VL25: 0 | VM25: 0 | VN25: 0 | VO25: 0 | VP25: 0 | VQ25: 0 | VR25: 0 | VS25: 0 | VT25: 0 | VU25: 0 | VV25: 0 | VW25: 0 | VX25: 0 | VY25: 0 | VZ25: 0 | WA25: 0 | WB25: 0 | WC25: 0 | WD25: 0 | WE25: 0 | WF25: 0 | WG25: 0 | WH25: 0 | WI25: 0 | WJ25: 0 | WK25: 0 | WL25: 0
G26: 13 | J26: 0 | K26: 0 | L26: 0 | M26: 0 | N26: 0 | O26: 0 | P26: 0 | Q26: 0 | R26: 0 | S26: 0 | T26: 0 | U26: 0 | V26: 0 | W26: 0 | X26: 0 | Y26: 0 | Z26: 0 | AA26: 0 | AB26: 0 | AC26: 0 | AD26: 0 | AE26: 0 | AF26: 0 | AG26: 0 | AH26: 0 | AI26: 0 | AJ26: 0 | AK26: 0 | AL26: 0 | AM26: 0 | AN26: 0 | AO26: 0 | AP26: 0 | AQ26: 0 | AR26: 0 | AS26: 0 | AT26: 0 | AU26: 0 | AV26: 0 | AW26: 0 | AX26: 0 | AY26: 0 | AZ26: 0 | BA26: 0 | BB26: 0 | BC26: 0 | BD26: 0 | BE26: 0 | BF26: 0 | BG26: 0 | BH26: 0 | BI26: 0 | BJ26: 0 | BK26: 0 | BL26: 0 | BM26: 0 | BN26: 0 | BO26: 0 | BP26: 0 | BQ26: 0 | BR26: 0 | BS26: 0 | BT26: 0 | BU26: 0 | BV26: 0 | BW26: 0 | BX26: 0 | BY26: 0 | BZ26: 0 | CA26: 0 | CB26: 0 | CC26: 0 | CD26: 0 | CE26: 0 | CF26: 0 | CG26: 0 | CH26: 0 | CI26: 0 | CJ26: 0 | CK26: 0 | CL26: 0 | CM26: 0 | CN26: 0 | CO26: 0 | CP26: 0 | CQ26: 0 | CR26: 0 | CS26: 0 | CT26: 0 | CU26: 0 | CV26: 0 | CW26: 0 | CX26: 0 | CY26: 0 | CZ26: 0 | DA26: 0 | DB26: 0 | DC26: 0 | DD26: 0 | DE26: 0 | DF26: 0 | DG26: 0 | DH26: 0 | DI26: 0 | DJ26: 0 | DK26: 0 | DL26: 0 | DM26: 0 | DN26: 0 | DO26: 0 | DP26: 0 | DQ26: 0 | DR26: 0 | DS26: 0 | DT26: 0 | DU26: 0 | DV26: 0 | DW26: 0 | DX26: 0 | DY26: 0 | DZ26: 0 | EA26: 0 | EB26: 0 | EC26: 0 | ED26: 0 | EE26: 0 | EF26: 0 | EG26: 0 | EH26: 0 | EI26: 0 | EJ26: 0 | EK26: 0 | EL26: 0 | EM26: 0 | EN26: 0 | EO26: 0 | EP26: 0 | EQ26: 0 | ER26: 0 | ES26: 0 | ET26: 0 | EU26: 0 | EV26: 0 | EW26: 0 | EX26: 0 | EY26: 0 | EZ26: 0 | FA26: 0 | FB26: 0 | FC26: 0 | FD26: 0 | FE26: 0 | FF26: 0 | FG26: 0 | FH26: 0 | FI26: 0 | FJ26: 0 | FK26: 0 | FL26: 0 | FM26: 0 | FN26: 0 | FO26: 0 | FP26: 0 | FQ26: 0 | FR26: 0 | FS26: 0 | FT26: 0 | FU26: 0 | FV26: 0 | FW26: 0 | FX26: 0 | FY26: 0 | FZ26: 0 | GA26: 0 | GB26: 0 | GC26: 0 | GD26: 0 | GE26: 0 | GF26: 0 | GG26: 0 | GH26: 0 | GI26: 0 | GJ26: 0 | GK26: 0 | GL26: 0 | GM26: 0 | GN26: 0 | GO26: 0 | GP26: 0 | GQ26: 0 | GR26: 0 | GS26: 0 | GT26: 0 | GU26: 0 | GV26: 0 | GW26: 0 | GX26: 0 | GY26: 0 | GZ26: 0 | HA26: 0 | HB26: 0 | HC26: 0 | HD26: 0 | HE26: 0 | HF26: 0 | HG26: 0 | HH26: 0 | HI26: 0 | HJ26: 0 | HK26: 0 | HL26: 0 | HM26: 0 | HN26: 0 | HO26: 0 | HP26: 0 | HQ26: 0 | HR26: 0 | HS26: 0 | HT26: 0 | HU26: 0 | HV26: 0 | HW26: 0 | HX26: 0 | HY26: 0 | HZ26: 0 | IA26: 0 | IB26: 0 | IC26: 0 | ID26: 0 | IE26: 0 | IF26: 0 | IG26: 0 | IH26: 0 | II26: 0 | IJ26: 0 | IK26: 0 | IL26: 0 | IM26: 0 | IN26: 0 | IO26: 0 | IP26: 0 | IQ26: 0 | IR26: 0 | IS26: 0 | IT26: 0 | IU26: 0 | IV26: 0 | IW26: 0 | IX26: 0 | IY26: 0 | IZ26: 0 | JA26: 0 | JB26: 0 | JC26: 0 | JD26: 0 | JE26: 0 | JF26: 0 | JG26: 0 | JH26: 0 | JI26: 0 | JJ26: 0 | JK26: 0 | JL26: 0 | JM26: 0 | JN26: 0 | JO26: 0 | JP26: 0 | JQ26: 0 | JR26: 0 | JS26: 0 | JT26: 0 | JU26: 0 | JV26: 0 | JW26: 0 | JX26: 0 | JY26: 0 | JZ26: 0 | KA26: 0 | KB26: 0 | KC26: 0 | KD26: 0 | KE26: 0 | KF26: 0 | KG26: 0 | KH26: 0 | KI26: 0 | KJ26: 0 | KK26: 0 | KL26: 0 | KM26: 0 | KN26: 0 | KO26: 0 | KP26: 0 | KQ26: 0 | KR26: 0 | KS26: 0 | KT26: 0 | KU26: 0 | KV26: 0 | KW26: 0 | KX26: 0 | KY26: 0 | KZ26: 0 | LA26: 0 | LB26: 0 | LC26: 0 | LD26: 0 | LE26: 0 | LF26: 0 | LG26: 0 | LH26: 0 | LI26: 0 | LJ26: 0 | LK26: 0 | LL26: 0 | LM26: 0 | LN26: 0 | LO26: 0 | LP26: 0 | LQ26: 0 | LR26: 0 | LS26: 0 | LT26: 0 | LU26: 0 | LV26: 0 | LW26: 0 | LX26: 0 | LY26: 0 | LZ26: 0 | MA26: 0 | MB26: 0 | MC26: 0 | MD26: 0 | ME26: 0 | MF26: 0 | MG26: 0 | MH26: 0 | MI26: 0 | MJ26: 0 | MK26: 0 | ML26: 0 | MM26: 0 | MN26: 0 | MO26: 0 | MP26: 0 | MQ26: 0 | MR26: 0 | MS26: 0 | MT26: 0 | MU26: 0 | MV26: 0 | MW26: 0 | MX26: 0 | MY26: 0 | MZ26: 0 | NA26: 0 | NB26: 0 | NC26: 0 | ND26: 0 | NE26: 0 | NF26: 0 | NG26: 0 | NH26: 0 | NI26: 0 | NJ26: 0 | NK26: 0 | NL26: 0 | NM26: 0 | NN26: 0 | NO26: 0 | NP26: 0 | NQ26: 0 | NR26: 0 | NS26: 0 | NT26: 0 | NU26: 0 | NV26: 0 | NW26: 0 | NX26: 0 | NY26: 0 | NZ26: 0 | OA26: 0 | OB26: 0 | OC26: 0 | OD26: 0 | OE26: 0 | OF26: 0 | OG26: 0 | OH26: 0 | OI26: 0 | OJ26: 0 | OK26: 0 | OL26: 0 | OM26: 0 | ON26: 0 | OO26: 0 | OP26: 0 | OQ26: 0 | OR26: 0 | OS26: 0 | OT26: 0 | OU26: 0 | OV26: 0 | OW26: 0 | OX26: 0 | OY26: 0 | OZ26: 0 | PA26: 0 | PB26: 0 | PC26: 0 | PD26: 0 | PE26: 0 | PF26: 0 | PG26: 0 | PH26: 0 | PI26: 0 | PJ26: 0 | PK26: 0 | PL26: 0 | PM26: 0 | PN26: 0 | PO26: 0 | PP26: 0 | PQ26: 0 | PR26: 0 | PS26: 0 | PT26: 0 | PU26: 0 | PV26: 0 | PW26: 0 | PX26: 0 | PY26: 0 | PZ26: 0 | QA26: 0 | QB26: 0 | QC26: 0 | QD26: 0 | QE26: 0 | QF26: 0 | QG26: 0 | QH26: 0 | QI26: 0 | QJ26: 0 | QK26: 0 | QL26: 0 | QM26: 0 | QN26: 0 | QO26: 0 | QP26: 0 | QQ26: 0 | QR26: 0 | QS26: 0 | QT26: 0 | QU26: 0 | QV26: 0 | QW26: 0 | QX26: 0 | QY26: 0 | QZ26: 0 | RA26: 0 | RB26: 0 | RC26: 0 | RD26: 0 | RE26: 0 | RF26: 0 | RG26: 0 | RH26: 0 | RI26: 0 | RJ26: 0 | RK26: 0 | RL26: 0 | RM26: 0 | RN26: 0 | RO26: 0 | RP26: 0 | RQ26: 0 | RR26: 0 | RS26: 0 | RT26: 0 | RU26: 0 | RV26: 0 | RW26: 0 | RX26: 0 | RY26: 0 | RZ26: 0 | SA26: 0 | SB26: 0 | SC26: 0 | SD26: 0 | SE26: 0 | SF26: 0 | SG26: 0 | SH26: 0 | SI26: 0 | SJ26: 0 | SK26: 0 | SL26: 0 | SM26: 0 | SN26: 0 | SO26: 0 | SP26: 0 | SQ26: 0 | SR26: 0 | SS26: 0 | ST26: 0 | SU26: 0 | SV26: 0 | SW26: 0 | SX26: 0 | SY26: 0 | SZ26: 0 | TA26: 0 | TB26: 0 | TC26: 0 | TD26: 0 | TE26: 0 | TF26: 0 | TG26: 0 | TH26: 0 | TI26: 0 | TJ26: 0 | TK26: 0 | TL26: 0 | TM26: 0 | TN26: 0 | TO26: 0 | TP26: 0 | TQ26: 0 | TR26: 0 | TS26: 0 | TT26: 0 | TU26: 0 | TV26: 0 | TW26: 0 | TX26: 0 | TY26: 0 | TZ26: 0 | UA26: 0 | UB26: 0 | UC26: 0 | UD26: 0 | UE26: 0 | UF26: 0 | UG26: 0 | UH26: 0 | UI26: 0 | UJ26: 0 | UK26: 0 | UL26: 0 | UM26: 0 | UN26: 0 | UO26: 0 | UP26: 0 | UQ26: 0 | UR26: 0 | US26: 0 | UT26: 0 | UU26: 0 | UV26: 0 | UW26: 0 | UX26: 0 | UY26: 0 | UZ26: 0 | VA26: 0 | VB26: 0 | VC26: 0 | VD26: 0 | VE26: 0 | VF26: 0 | VG26: 0 | VH26: 0 | VI26: 0 | VJ26: 0 | VK26: 0 | VL26: 0 | VM26: 0 | VN26: 0 | VO26: 0 | VP26: 0 | VQ26: 0 | VR26: 0 | VS26: 0 | VT26: 0 | VU26: 0 | VV26: 0 | VW26: 0 | VX26: 0 | VY26: 0 | VZ26: 0 | WA26: 0 | WB26: 0 | WC26: 0 | WD26: 0 | WE26: 0 | WF26: 0 | WG26: 0 | WH26: 0 | WI26: 0 | WJ26: 0 | WK26: 0 | WL26: 0
G27: 14 | J27: 0 | K27: 0 | L27: 0 | M27: 0 | N27: 0 | O27: 0 | P27: 0 | Q27: 0 | R27: 0 | S27: 0 | T27: 0 | U27: 0 | V27: 0 | W27: 0 | X27: 0 | Y27: 0 | Z27: 0 | AA27: 0 | AB27: 0 | AC27: 0 | AD27: 0 | AE27: 0 | AF27: 0 | AG27: 0 | AH27: 0 | AI27: 0 | AJ27: 0 | AK27: 0 | AL27: 0 | AM27: 0 | AN27: 0 | AO27: 0 | AP27: 0 | AQ27: 0 | AR27: 0 | AS27: 0 | AT27: 0 | AU27: 0 | AV27: 0 | AW27: 0 | AX27: 0 | AY27: 0 | AZ27: 0 | BA27: 0 | BB27: 0 | BC27: 0 | BD27: 0 | BE27: 0 | BF27: 0 | BG27: 0 | BH27: 0 | BI27: 0 | BJ27: 0 | BK27: 0 | BL27: 0 | BM27: 0 | BN27: 0 | BO27: 0 | BP27: 0 | BQ27: 0 | BR27: 0 | BS27: 0 | BT27: 0 | BU27: 0 | BV27: 0 | BW27: 0 | BX27: 0 | BY27: 0 | BZ27: 0 | CA27: 0 | CB27: 0 | CC27: 0 | CD27: 0 | CE27: 0 | CF27: 0 | CG27: 0 | CH27: 0 | CI27: 0 | CJ27: 0 | CK27: 0 | CL27: 0 | CM27: 0 | CN27: 0 | CO27: 0 | CP27: 0 | CQ27: 0 | CR27: 0 | CS27: 0 | CT27: 0 | CU27: 0 | CV27: 0 | CW27: 0 | CX27: 0 | CY27: 0 | CZ27: 0 | DA27: 0 | DB27: 0 | DC27: 0 | DD27: 0 | DE27: 0 | DF27: 0 | DG27: 0 | DH27: 0 | DI27: 0 | DJ27: 0 | DK27: 0 | DL27: 0 | DM27: 0 | DN27: 0 | DO27: 0 | DP27: 0 | DQ27: 0 | DR27: 0 | DS27: 0 | DT27: 0 | DU27: 0 | DV27: 0 | DW27: 0 | DX27: 0 | DY27: 0 | DZ27: 0 | EA27: 0 | EB27: 0 | EC27: 0 | ED27: 0 | EE27: 0 | EF27: 0 | EG27: 0 | EH27: 0 | EI27: 0 | EJ27: 0 | EK27: 0 | EL27: 0 | EM27: 0 | EN27: 0 | EO27: 0 | EP27: 0 | EQ27: 0 | ER27: 0 | ES27: 0 | ET27: 0 | EU27: 0 | EV27: 0 | EW27: 0 | EX27: 0 | EY27: 0 | EZ27: 0 | FA27: 0 | FB27: 0 | FC27: 0 | FD27: 0 | FE27: 0 | FF27: 0 | FG27: 0 | FH27: 0 | FI27: 0 | FJ27: 0 | FK27: 0 | FL27: 0 | FM27: 0 | FN27: 0 | FO27: 0 | FP27: 0 | FQ27: 0 | FR27: 0 | FS27: 0 | FT27: 0 | FU27: 0 | FV27: 0 | FW27: 0 | FX27: 0 | FY27: 0 | FZ27: 0 | GA27: 0 | GB27: 0 | GC27: 0 | GD27: 0 | GE27: 0 | GF27: 0 | GG27: 0 | GH27: 0 | GI27: 0 | GJ27: 0 | GK27: 0 | GL27: 0 | GM27: 0 | GN27: 0 | GO27: 0 | GP27: 0 | GQ27: 0 | GR27: 0 | GS27: 0 | GT27: 0 | GU27: 0 | GV27: 0 | GW27: 0 | GX27: 0 | GY27: 0 | GZ27: 0 | HA27: 0 | HB27: 0 | HC27: 0 | HD27: 0 | HE27: 0 | HF27: 0 | HG27: 0 | HH27: 0 | HI27: 0 | HJ27: 0 | HK27: 0 | HL27: 0 | HM27: 0 | HN27: 0 | HO27: 0 | HP27: 0 | HQ27: 0 | HR27: 0 | HS27: 0 | HT27: 0 | HU27: 0 | HV27: 0 | HW27: 0 | HX27: 0 | HY27: 0 | HZ27: 0 | IA27: 0 | IB27: 0 | IC27: 0 | ID27: 0 | IE27: 0 | IF27: 0 | IG27: 0 | IH27: 0 | II27: 0 | IJ27: 0 | IK27: 0 | IL27: 0 | IM27: 0 | IN27: 0 | IO27: 0 | IP27: 0 | IQ27: 0 | IR27: 0 | IS27: 0 | IT27: 0 | IU27: 0 | IV27: 0 | IW27: 0 | IX27: 0 | IY27: 0 | IZ27: 0 | JA27: 0 | JB27: 0 | JC27: 0 | JD27: 0 | JE27: 0 | JF27: 0 | JG27: 0 | JH27: 0 | JI27: 0 | JJ27: 0 | JK27: 0 | JL27: 0 | JM27: 0 | JN27: 0 | JO27: 0 | JP27: 0 | JQ27: 0 | JR27: 0 | JS27: 0 | JT27: 0 | JU27: 0 | JV27: 0 | JW27: 0 | JX27: 0 | JY27: 0 | JZ27: 0 | KA27: 0 | KB27: 0 | KC27: 0 | KD27: 0 | KE27: 0 | KF27: 0 | KG27: 0 | KH27: 0 | KI27: 0 | KJ27: 0 | KK27: 0 | KL27: 0 | KM27: 0 | KN27: 0 | KO27: 0 | KP27: 0 | KQ27: 0 | KR27: 0 | KS27: 0 | KT27: 0 | KU27: 0 | KV27: 0 | KW27: 0 | KX27: 0 | KY27: 0 | KZ27: 0 | LA27: 0 | LB27: 0 | LC27: 0 | LD27: 0 | LE27: 0 | LF27: 0 | LG27: 0 | LH27: 0 | LI27: 0 | LJ27: 0 | LK27: 0 | LL27: 0 | LM27: 0 | LN27: 0 | LO27: 0 | LP27: 0 | LQ27: 0 | LR27: 0 | LS27: 0 | LT27: 0 | LU27: 0 | LV27: 0 | LW27: 0 | LX27: 0 | LY27: 0 | LZ27: 0 | MA27: 0 | MB27: 0 | MC27: 0 | MD27: 0 | ME27: 0 | MF27: 0 | MG27: 0 | MH27: 0 | MI27: 0 | MJ27: 0 | MK27: 0 | ML27: 0 | MM27: 0 | MN27: 0 | MO27: 0 | MP27: 0 | MQ27: 0 | MR27: 0 | MS27: 0 | MT27: 0 | MU27: 0 | MV27: 0 | MW27: 0 | MX27: 0 | MY27: 0 | MZ27: 0 | NA27: 0 | NB27: 0 | NC27: 0 | ND27: 0 | NE27: 0 | NF27: 0 | NG27: 0 | NH27: 0 | NI27: 0 | NJ27: 0 | NK27: 0 | NL27: 0 | NM27: 0 | NN27: 0 | NO27: 0 | NP27: 0 | NQ27: 0 | NR27: 0 | NS27: 0 | NT27: 0 | NU27: 0 | NV27: 0 | NW27: 0 | NX27: 0 | NY27: 0 | NZ27: 0 | OA27: 0 | OB27: 0 | OC27: 0 | OD27: 0 | OE27: 0 | OF27: 0 | OG27: 0 | OH27: 0 | OI27: 0 | OJ27: 0 | OK27: 0 | OL27: 0 | OM27: 0 | ON27: 0 | OO27: 0 | OP27: 0 | OQ27: 0 | OR27: 0 | OS27: 0 | OT27: 0 | OU27: 0 | OV27: 0 | OW27: 0 | OX27: 0 | OY27: 0 | OZ27: 0 | PA27: 0 | PB27: 0 | PC27: 0 | PD27: 0 | PE27: 0 | PF27: 0 | PG27: 0 | PH27: 0 | PI27: 0 | PJ27: 0 | PK27: 0 | PL27: 0 | PM27: 0 | PN27: 0 | PO27: 0 | PP27: 0 | PQ27: 0 | PR27: 0 | PS27: 0 | PT27: 0 | PU27: 0 | PV27: 0 | PW27: 0 | PX27: 0 | PY27: 0 | PZ27: 0 | QA27: 0 | QB27: 0 | QC27: 0 | QD27: 0 | QE27: 0 | QF27: 0 | QG27: 0 | QH27: 0 | QI27: 0 | QJ27: 0 | QK27: 0 | QL27: 0 | QM27: 0 | QN27: 0 | QO27: 0 | QP27: 0 | QQ27: 0 | QR27: 0 | QS27: 0 | QT27: 0 | QU27: 0 | QV27: 0 | QW27: 0 | QX27: 0 | QY27: 0 | QZ27: 0 | RA27: 0 | RB27: 0 | RC27: 0 | RD27: 0 | RE27: 0 | RF27: 0 | RG27: 0 | RH27: 0 | RI27: 0 | RJ27: 0 | RK27: 0 | RL27: 0 | RM27: 0 | RN27: 0 | RO27: 0 | RP27: 0 | RQ27: 0 | RR27: 0 | RS27: 0 | RT27: 0 | RU27: 0 | RV27: 0 | RW27: 0 | RX27: 0 | RY27: 0 | RZ27: 0 | SA27: 0 | SB27: 0 | SC27: 0 | SD27: 0 | SE27: 0 | SF27: 0 | SG27: 0 | SH27: 0 | SI27: 0 | SJ27: 0 | SK27: 0 | SL27: 0 | SM27: 0 | SN27: 0 | SO27: 0 | SP27: 0 | SQ27: 0 | SR27: 0 | SS27: 0 | ST27: 0 | SU27: 0 | SV27: 0 | SW27: 0 | SX27: 0 | SY27: 0 | SZ27: 0 | TA27: 0 | TB27: 0 | TC27: 0 | TD27: 0 | TE27: 0 | TF27: 0 | TG27: 0 | TH27: 0 | TI27: 0 | TJ27: 0 | TK27: 0 | TL27: 0 | TM27: 0 | TN27: 0 | TO27: 0 | TP27: 0 | TQ27: 0 | TR27: 0 | TS27: 0 | TT27: 0 | TU27: 0 | TV27: 0 | TW27: 0 | TX27: 0 | TY27: 0 | TZ27: 0 | UA27: 0 | UB27: 0 | UC27: 0 | UD27: 0 | UE27: 0 | UF27: 0 | UG27: 0 | UH27: 0 | UI27: 0 | UJ27: 0 | UK27: 0 | UL27: 0 | UM27: 0 | UN27: 0 | UO27: 0 | UP27: 0 | UQ27: 0 | UR27: 0 | US27: 0 | UT27: 0 | UU27: 0 | UV27: 0 | UW27: 0 | UX27: 0 | UY27: 0 | UZ27: 0 | VA27: 0 | VB27: 0 | VC27: 0 | VD27: 0 | VE27: 0 | VF27: 0 | VG27: 0 | VH27: 0 | VI27: 0 | VJ27: 0 | VK27: 0 | VL27: 0 | VM27: 0 | VN27: 0 | VO27: 0 | VP27: 0 | VQ27: 0 | VR27: 0 | VS27: 0 | VT27: 0 | VU27: 0 | VV27: 0 | VW27: 0 | VX27: 0 | VY27: 0 | VZ27: 0 | WA27: 0 | WB27: 0 | WC27: 0 | WD27: 0 | WE27: 0 | WF27: 0 | WG27: 0 | WH27: 0 | WI27: 0 | WJ27: 0 | WK27: 0 | WL27: 0
G28: 15
G29: 16
G30: 17
G31: 18
G32: 19 | H32: Capital Labor Direct (Annual): | I32: 0 | J32: 0 | K32: 0 | L32: 0 | M32: 0 | N32: 0 | O32: 0 | P32: 0 | Q32: 0 | R32: 0 | S32: 0 | T32: 0 | U32: 0 | V32: 0 | W32: 0 | X32: 0 | Y32: 0 | Z32: 0 | AA32: 0 | AB32: 0 | AC32: 0 | AD32: 0 | AE32: 0 | AF32: 0 | AG32: 0 | AH32: 0 | AI32: 0 | AJ32: 0 | AK32: 0 | AL32: 0 | AM32: 0 | AN32: 0 | AO32: 0 | AP32: 0 | AQ32: 0 | AR32: 0 | AS32: 0 | AT32: 0 | AU32: 0 | AV32: 0 | AW32: 0 | AX32: 0 | AY32: 0 | AZ32: 0 | BA32: 0 | BB32: 0 | BC32: 0 | BD32: 0 | BE32: 0 | BF32: 0 | BG32: 0 | BH32: 0
G33: 20 | H33: Capital Labor Direct (Monthly): | I33: 0 | J33: 0 | K33: 0 | L33: 0 | M33: 0 | N33: 0 | O33: 0 | P33: 0 | Q33: 0 | R33: 0 | S33: 0 | T33: 0 | U33: 0 | V33: 0 | W33: 0 | X33: 0 | Y33: 0 | Z33: 0 | AA33: 0 | AB33: 0 | AC33: 0 | AD33: 0 | AE33: 0 | AF33: 0 | AG33: 0 | AH33: 0 | AI33: 0 | AJ33: 0 | AK33: 0 | AL33: 0 | AM33: 0 | AN33: 0 | AO33: 0 | AP33: 0 | AQ33: 0 | AR33: 0 | AS33: 0 | AT33: 0 | AU33: 0 | AV33: 0 | AW33: 0 | AX33: 0 | AY33: 0 | AZ33: 0 | BA33: 0 | BB33: 0 | BC33: 0 | BD33: 0 | BE33: 0 | BF33: 0 | BG33: 0 | BH33: 0 | BI33: 0 | BJ33: 0 | BK33: 0 | BL33: 0 | BM33: 0 | BN33: 0 | BO33: 0 | BP33: 0 | BQ33: 0 | BR33: 0 | BS33: 0 | BT33: 0 | BU33: 0 | BV33: 0 | BW33: 0 | BX33: 0 | BY33: 0 | BZ33: 0 | CA33: 0 | CB33: 0 | CC33: 0 | CD33: 0 | CE33: 0 | CF33: 0 | CG33: 0 | CH33: 0 | CI33: 0 | CJ33: 0 | CK33: 0 | CL33: 0 | CM33: 0 | CN33: 0 | CO33: 0 | CP33: 0 | CQ33: 0 | CR33: 0 | CS33: 0 | CT33: 0 | CU33: 0 | CV33: 0 | CW33: 0 | CX33: 0 | CY33: 0 | CZ33: 0 | DA33: 0 | DB33: 0 | DC33: 0 | DD33: 0 | DE33: 0 | DF33: 0 | DG33: 0 | DH33: 0 | DI33: 0 | DJ33: 0 | DK33: 0 | DL33: 0 | DM33: 0 | DN33: 0 | DO33: 0 | DP33: 0 | DQ33: 0 | DR33: 0 | DS33: 0 | DT33: 0 | DU33: 0 | DV33: 0 | DW33: 0 | DX33: 0 | DY33: 0 | DZ33: 0 | EA33: 0 | EB33: 0 | EC33: 0 | ED33: 0 | EE33: 0 | EF33: 0 | EG33: 0 | EH33: 0 | EI33: 0 | EJ33: 0 | EK33: 0 | EL33: 0 | EM33: 0 | EN33: 0 | EO33: 0 | EP33: 0 | EQ33: 0 | ER33: 0 | ES33: 0 | ET33: 0 | EU33: 0 | EV33: 0 | EW33: 0 | EX33: 0 | EY33: 0 | EZ33: 0 | FA33: 0 | FB33: 0 | FC33: 0 | FD33: 0 | FE33: 0 | FF33: 0 | FG33: 0 | FH33: 0 | FI33: 0 | FJ33: 0 | FK33: 0 | FL33: 0 | FM33: 0 | FN33: 0 | FO33: 0 | FP33: 0 | FQ33: 0 | FR33: 0 | FS33: 0 | FT33: 0 | FU33: 0 | FV33: 0 | FW33: 0 | FX33: 0 | FY33: 0 | FZ33: 0 | GA33: 0 | GB33: 0 | GC33: 0 | GD33: 0 | GE33: 0 | GF33: 0 | GG33: 0 | GH33: 0 | GI33: 0 | GJ33: 0 | GK33: 0 | GL33: 0 | GM33: 0 | GN33: 0 | GO33: 0 | GP33: 0 | GQ33: 0 | GR33: 0 | GS33: 0 | GT33: 0 | GU33: 0 | GV33: 0 | GW33: 0 | GX33: 0 | GY33: 0 | GZ33: 0 | HA33: 0 | HB33: 0 | HC33: 0 | HD33: 0 | HE33: 0 | HF33: 0 | HG33: 0 | HH33: 0 | HI33: 0 | HJ33: 0 | HK33: 0 | HL33: 0 | HM33: 0 | HN33: 0 | HO33: 0 | HP33: 0 | HQ33: 0 | HR33: 0 | HS33: 0 | HT33: 0 | HU33: 0 | HV33: 0 | HW33: 0 | HX33: 0 | HY33: 0 | HZ33: 0 | IA33: 0 | IB33: 0 | IC33: 0 | ID33: 0 | IE33: 0 | IF33: 0 | IG33: 0 | IH33: 0 | II33: 0 | IJ33: 0 | IK33: 0 | IL33: 0 | IM33: 0 | IN33: 0 | IO33: 0 | IP33: 0 | IQ33: 0 | IR33: 0 | IS33: 0 | IT33: 0 | IU33: 0 | IV33: 0 | IW33: 0 | IX33: 0 | IY33: 0 | IZ33: 0 | JA33: 0 | JB33: 0 | JC33: 0 | JD33: 0 | JE33: 0 | JF33: 0 | JG33: 0 | JH33: 0 | JI33: 0 | JJ33: 0 | JK33: 0 | JL33: 0 | JM33: 0 | JN33: 0 | JO33: 0 | JP33: 0 | JQ33: 0 | JR33: 0 | JS33: 0 | JT33: 0 | JU33: 0 | JV33: 0 | JW33: 0 | JX33: 0 | JY33: 0 | JZ33: 0 | KA33: 0 | KB33: 0 | KC33: 0 | KD33: 0 | KE33: 0 | KF33: 0 | KG33: 0 | KH33: 0 | KI33: 0 | KJ33: 0 | KK33: 0 | KL33: 0 | KM33: 0 | KN33: 0 | KO33: 0 | KP33: 0 | KQ33: 0 | KR33: 0 | KS33: 0 | KT33: 0 | KU33: 0 | KV33: 0 | KW33: 0 | KX33: 0 | KY33: 0 | KZ33: 0 | LA33: 0 | LB33: 0 | LC33: 0 | LD33: 0 | LE33: 0 | LF33: 0 | LG33: 0 | LH33: 0 | LI33: 0 | LJ33: 0 | LK33: 0 | LL33: 0 | LM33: 0 | LN33: 0 | LO33: 0 | LP33: 0 | LQ33: 0 | LR33: 0 | LS33: 0 | LT33: 0 | LU33: 0 | LV33: 0 | LW33: 0 | LX33: 0 | LY33: 0 | LZ33: 0 | MA33: 0 | MB33: 0 | MC33: 0 | MD33: 0 | ME33: 0 | MF33: 0 | MG33: 0 | MH33: 0 | MI33: 0 | MJ33: 0 | MK33: 0 | ML33: 0 | MM33: 0 | MN33: 0 | MO33: 0 | MP33: 0 | MQ33: 0 | MR33: 0 | MS33: 0 | MT33: 0 | MU33: 0 | MV33: 0 | MW33: 0 | MX33: 0 | MY33: 0 | MZ33: 0 | NA33: 0 | NB33: 0 | NC33: 0 | ND33: 0 | NE33: 0 | NF33: 0 | NG33: 0 | NH33: 0 | NI33: 0 | NJ33: 0 | NK33: 0 | NL33: 0 | NM33: 0 | NN33: 0 | NO33: 0 | NP33: 0 | NQ33: 0 | NR33: 0 | NS33: 0 | NT33: 0 | NU33: 0 | NV33: 0 | NW33: 0 | NX33: 0 | NY33: 0 | NZ33: 0 | OA33: 0 | OB33: 0 | OC33: 0 | OD33: 0 | OE33: 0 | OF33: 0 | OG33: 0 | OH33: 0 | OI33: 0 | OJ33: 0 | OK33: 0 | OL33: 0 | OM33: 0 | ON33: 0 | OO33: 0 | OP33: 0 | OQ33: 0 | OR33: 0 | OS33: 0 | OT33: 0 | OU33: 0 | OV33: 0 | OW33: 0 | OX33: 0 | OY33: 0 | OZ33: 0 | PA33: 0 | PB33: 0 | PC33: 0 | PD33: 0 | PE33: 0 | PF33: 0 | PG33: 0 | PH33: 0 | PI33: 0 | PJ33: 0 | PK33: 0 | PL33: 0 | PM33: 0 | PN33: 0 | PO33: 0 | PP33: 0 | PQ33: 0 | PR33: 0 | PS33: 0 | PT33: 0 | PU33: 0 | PV33: 0 | PW33: 0 | PX33: 0 | PY33: 0 | PZ33: 0 | QA33: 0 | QB33: 0 | QC33: 0 | QD33: 0 | QE33: 0 | QF33: 0 | QG33: 0 | QH33: 0 | QI33: 0 | QJ33: 0 | QK33: 0 | QL33: 0 | QM33: 0 | QN33: 0 | QO33: 0 | QP33: 0 | QQ33: 0 | QR33: 0 | QS33: 0 | QT33: 0 | QU33: 0 | QV33: 0 | QW33: 0 | QX33: 0 | QY33: 0 | QZ33: 0 | RA33: 0 | RB33: 0 | RC33: 0 | RD33: 0 | RE33: 0 | RF33: 0 | RG33: 0 | RH33: 0 | RI33: 0 | RJ33: 0 | RK33: 0 | RL33: 0 | RM33: 0 | RN33: 0 | RO33: 0 | RP33: 0 | RQ33: 0 | RR33: 0 | RS33: 0 | RT33: 0 | RU33: 0 | RV33: 0 | RW33: 0 | RX33: 0 | RY33: 0 | RZ33: 0 | SA33: 0 | SB33: 0 | SC33: 0 | SD33: 0 | SE33: 0 | SF33: 0 | SG33: 0 | SH33: 0 | SI33: 0 | SJ33: 0 | SK33: 0 | SL33: 0 | SM33: 0 | SN33: 0 | SO33: 0 | SP33: 0 | SQ33: 0 | SR33: 0 | SS33: 0 | ST33: 0 | SU33: 0 | SV33: 0 | SW33: 0 | SX33: 0 | SY33: 0 | SZ33: 0 | TA33: 0 | TB33: 0 | TC33: 0 | TD33: 0 | TE33: 0 | TF33: 0 | TG33: 0 | TH33: 0 | TI33: 0 | TJ33: 0 | TK33: 0 | TL33: 0 | TM33: 0 | TN33: 0 | TO33: 0 | TP33: 0 | TQ33: 0 | TR33: 0 | TS33: 0 | TT33: 0 | TU33: 0 | TV33: 0 | TW33: 0 | TX33: 0 | TY33: 0 | TZ33: 0 | UA33: 0 | UB33: 0 | UC33: 0 | UD33: 0 | UE33: 0 | UF33: 0 | UG33: 0 | UH33: 0 | UI33: 0 | UJ33: 0 | UK33: 0 | UL33: 0 | UM33: 0 | UN33: 0 | UO33: 0 | UP33: 0 | UQ33: 0 | UR33: 0 | US33: 0 | UT33: 0 | UU33: 0 | UV33: 0 | UW33: 0 | UX33: 0 | UY33: 0 | UZ33: 0 | VA33: 0 | VB33: 0 | VC33: 0 | VD33: 0 | VE33: 0 | VF33: 0 | VG33: 0 | VH33: 0 | VI33: 0 | VJ33: 0 | VK33: 0 | VL33: 0 | VM33: 0 | VN33: 0 | VO33: 0 | VP33: 0 | VQ33: 0 | VR33: 0 | VS33: 0 | VT33: 0 | VU33: 0 | VV33: 0 | VW33: 0 | VX33: 0 | VY33: 0 | VZ33: 0 | WA33: 0 | WB33: 0 | WC33: 0 | WD33: 0 | WE33: 0 | WF33: 0 | WG33: 0 | WH33: 0 | WI33: 0 | WJ33: 0 | WK33: 0 | WL33: 0
G34: 21 | H34: Cost Type
G35: 22 | J35: 0 | K35: 0 | L35: 0 | M35: 0 | N35: 0 | O35: 0 | P35: 0 | Q35: 0 | R35: 0 | S35: 0 | T35: 0 | U35: 0 | V35: 0 | W35: 0 | X35: 0 | Y35: 0 | Z35: 0 | AA35: 0 | AB35: 0 | AC35: 0 | AD35: 0 | AE35: 0 | AF35: 0 | AG35: 0 | AH35: 0 | AI35: 0 | AJ35: 0 | AK35: 0 | AL35: 0 | AM35: 0 | AN35: 0 | AO35: 0 | AP35: 0 | AQ35: 0 | AR35: 0 | AS35: 0 | AT35: 0 | AU35: 0 | AV35: 0 | AW35: 0 | AX35: 0 | AY35: 0 | AZ35: 0 | BA35: 0 | BB35: 0 | BC35: 0 | BD35: 0 | BE35: 0 | BF35: 0 | BG35: 0 | BH35: 0 | BI35: 0 | BJ35: 0 | BK35: 0 | BL35: 0 | BM35: 0 | BN35: 0 | BO35: 0 | BP35: 0 | BQ35: 0 | BR35: 0 | BS35: 0 | BT35: 0 | BU35: 0 | BV35: 0 | BW35: 0 | BX35: 0 | BY35: 0 | BZ35: 0 | CA35: 0 | CB35: 0 | CC35: 0 | CD35: 0 | CE35: 0 | CF35: 0 | CG35: 0 | CH35: 0 | CI35: 0 | CJ35: 0 | CK35: 0 | CL35: 0 | CM35: 0 | CN35: 0 | CO35: 0 | CP35: 0 | CQ35: 0 | CR35: 0 | CS35: 0 | CT35: 0 | CU35: 0 | CV35: 0 | CW35: 0 | CX35: 0 | CY35: 0 | CZ35: 0 | DA35: 0 | DB35: 0 | DC35: 0 | DD35: 0 | DE35: 0 | DF35: 0 | DG35: 0 | DH35: 0 | DI35: 0 | DJ35: 0 | DK35: 0 | DL35: 0 | DM35: 0 | DN35: 0 | DO35: 0 | DP35: 0 | DQ35: 0 | DR35: 0 | DS35: 0 | DT35: 0 | DU35: 0 | DV35: 0 | DW35: 0 | DX35: 0 | DY35: 0 | DZ35: 0 | EA35: 0 | EB35: 0 | EC35: 0 | ED35: 0 | EE35: 0 | EF35: 0 | EG35: 0 | EH35: 0 | EI35: 0 | EJ35: 0 | EK35: 0 | EL35: 0 | EM35: 0 | EN35: 0 | EO35: 0 | EP35: 0 | EQ35: 0 | ER35: 0 | ES35: 0 | ET35: 0 | EU35: 0 | EV35: 0 | EW35: 0 | EX35: 0 | EY35: 0 | EZ35: 0 | FA35: 0 | FB35: 0 | FC35: 0 | FD35: 0 | FE35: 0 | FF35: 0 | FG35: 0 | FH35: 0 | FI35: 0 | FJ35: 0 | FK35: 0 | FL35: 0 | FM35: 0 | FN35: 0 | FO35: 0 | FP35: 0 | FQ35: 0 | FR35: 0 | FS35: 0 | FT35: 0 | FU35: 0 | FV35: 0 | FW35: 0 | FX35: 0 | FY35: 0 | FZ35: 0 | GA35: 0 | GB35: 0 | GC35: 0 | GD35: 0 | GE35: 0 | GF35: 0 | GG35: 0 | GH35: 0 | GI35: 0 | GJ35: 0 | GK35: 0 | GL35: 0 | GM35: 0 | GN35: 0 | GO35: 0 | GP35: 0 | GQ35: 0 | GR35: 0 | GS35: 0 | GT35: 0 | GU35: 0 | GV35: 0 | GW35: 0 | GX35: 0 | GY35: 0 | GZ35: 0 | HA35: 0 | HB35: 0 | HC35: 0 | HD35: 0 | HE35: 0 | HF35: 0 | HG35: 0 | HH35: 0 | HI35: 0 | HJ35: 0 | HK35: 0 | HL35: 0 | HM35: 0 | HN35: 0 | HO35: 0 | HP35: 0 | HQ35: 0 | HR35: 0 | HS35: 0 | HT35: 0 | HU35: 0 | HV35: 0 | HW35: 0 | HX35: 0 | HY35: 0 | HZ35: 0 | IA35: 0 | IB35: 0 | IC35: 0 | ID35: 0 | IE35: 0 | IF35: 0 | IG35: 0 | IH35: 0 | II35: 0 | IJ35: 0 | IK35: 0 | IL35: 0 | IM35: 0 | IN35: 0 | IO35: 0 | IP35: 0 | IQ35: 0 | IR35: 0 | IS35: 0 | IT35: 0 | IU35: 0 | IV35: 0 | IW35: 0 | IX35: 0 | IY35: 0 | IZ35: 0 | JA35: 0 | JB35: 0 | JC35: 0 | JD35: 0 | JE35: 0 | JF35: 0 | JG35: 0 | JH35: 0 | JI35: 0 | JJ35: 0 | JK35: 0 | JL35: 0 | JM35: 0 | JN35: 0 | JO35: 0 | JP35: 0 | JQ35: 0 | JR35: 0 | JS35: 0 | JT35: 0 | JU35: 0 | JV35: 0 | JW35: 0 | JX35: 0 | JY35: 0 | JZ35: 0 | KA35: 0 | KB35: 0 | KC35: 0 | KD35: 0 | KE35: 0 | KF35: 0 | KG35: 0 | KH35: 0 | KI35: 0 | KJ35: 0 | KK35: 0 | KL35: 0 | KM35: 0 | KN35: 0 | KO35: 0 | KP35: 0 | KQ35: 0 | KR35: 0 | KS35: 0 | KT35: 0 | KU35: 0 | KV35: 0 | KW35: 0 | KX35: 0 | KY35: 0 | KZ35: 0 | LA35: 0 | LB35: 0 | LC35: 0 | LD35: 0 | LE35: 0 | LF35: 0 | LG35: 0 | LH35: 0 | LI35: 0 | LJ35: 0 | LK35: 0 | LL35: 0 | LM35: 0 | LN35: 0 | LO35: 0 | LP35: 0 | LQ35: 0 | LR35: 0 | LS35: 0 | LT35: 0 | LU35: 0 | LV35: 0 | LW35: 0 | LX35: 0 | LY35: 0 | LZ35: 0 | MA35: 0 | MB35: 0 | MC35: 0 | MD35: 0 | ME35: 0 | MF35: 0 | MG35: 0 | MH35: 0 | MI35: 0 | MJ35: 0 | MK35: 0 | ML35: 0 | MM35: 0 | MN35: 0 | MO35: 0 | MP35: 0 | MQ35: 0 | MR35: 0 | MS35: 0 | MT35: 0 | MU35: 0 | MV35: 0 | MW35: 0 | MX35: 0 | MY35: 0 | MZ35: 0 | NA35: 0 | NB35: 0 | NC35: 0 | ND35: 0 | NE35: 0 | NF35: 0 | NG35: 0 | NH35: 0 | NI35: 0 | NJ35: 0 | NK35: 0 | NL35: 0 | NM35: 0 | NN35: 0 | NO35: 0 | NP35: 0 | NQ35: 0 | NR35: 0 | NS35: 0 | NT35: 0 | NU35: 0 | NV35: 0 | NW35: 0 | NX35: 0 | NY35: 0 | NZ35: 0 | OA35: 0 | OB35: 0 | OC35: 0 | OD35: 0 | OE35: 0 | OF35: 0 | OG35: 0 | OH35: 0 | OI35: 0 | OJ35: 0 | OK35: 0 | OL35: 0 | OM35: 0 | ON35: 0 | OO35: 0 | OP35: 0 | OQ35: 0 | OR35: 0 | OS35: 0 | OT35: 0 | OU35: 0 | OV35: 0 | OW35: 0 | OX35: 0 | OY35: 0 | OZ35: 0 | PA35: 0 | PB35: 0 | PC35: 0 | PD35: 0 | PE35: 0 | PF35: 0 | PG35: 0 | PH35: 0 | PI35: 0 | PJ35: 0 | PK35: 0 | PL35: 0 | PM35: 0 | PN35: 0 | PO35: 0 | PP35: 0 | PQ35: 0 | PR35: 0 | PS35: 0 | PT35: 0 | PU35: 0 | PV35: 0 | PW35: 0 | PX35: 0 | PY35: 0 | PZ35: 0 | QA35: 0 | QB35: 0 | QC35: 0 | QD35: 0 | QE35: 0 | QF35: 0 | QG35: 0 | QH35: 0 | QI35: 0 | QJ35: 0 | QK35: 0 | QL35: 0 | QM35: 0 | QN35: 0 | QO35: 0 | QP35: 0 | QQ35: 0 | QR35: 0 | QS35: 0 | QT35: 0 | QU35: 0 | QV35: 0 | QW35: 0 | QX35: 0 | QY35: 0 | QZ35: 0 | RA35: 0 | RB35: 0 | RC35: 0 | RD35: 0 | RE35: 0 | RF35: 0 | RG35: 0 | RH35: 0 | RI35: 0 | RJ35: 0 | RK35: 0 | RL35: 0 | RM35: 0 | RN35: 0 | RO35: 0 | RP35: 0 | RQ35: 0 | RR35: 0 | RS35: 0 | RT35: 0 | RU35: 0 | RV35: 0 | RW35: 0 | RX35: 0 | RY35: 0 | RZ35: 0 | SA35: 0 | SB35: 0 | SC35: 0 | SD35: 0 | SE35: 0 | SF35: 0 | SG35: 0 | SH35: 0 | SI35: 0 | SJ35: 0 | SK35: 0 | SL35: 0 | SM35: 0 | SN35: 0 | SO35: 0 | SP35: 0 | SQ35: 0 | SR35: 0 | SS35: 0 | ST35: 0 | SU35: 0 | SV35: 0 | SW35: 0 | SX35: 0 | SY35: 0 | SZ35: 0 | TA35: 0 | TB35: 0 | TC35: 0 | TD35: 0 | TE35: 0 | TF35: 0 | TG35: 0 | TH35: 0 | TI35: 0 | TJ35: 0 | TK35: 0 | TL35: 0 | TM35: 0 | TN35: 0 | TO35: 0 | TP35: 0 | TQ35: 0 | TR35: 0 | TS35: 0 | TT35: 0 | TU35: 0 | TV35: 0 | TW35: 0 | TX35: 0 | TY35: 0 | TZ35: 0 | UA35: 0 | UB35: 0 | UC35: 0 | UD35: 0 | UE35: 0 | UF35: 0 | UG35: 0 | UH35: 0 | UI35: 0 | UJ35: 0 | UK35: 0 | UL35: 0 | UM35: 0 | UN35: 0 | UO35: 0 | UP35: 0 | UQ35: 0 | UR35: 0 | US35: 0 | UT35: 0 | UU35: 0 | UV35: 0 | UW35: 0 | UX35: 0 | UY35: 0 | UZ35: 0 | VA35: 0 | VB35: 0 | VC35: 0 | VD35: 0 | VE35: 0 | VF35: 0 | VG35: 0 | VH35: 0 | VI35: 0 | VJ35: 0 | VK35: 0 | VL35: 0 | VM35: 0 | VN35: 0 | VO35: 0 | VP35: 0 | VQ35: 0 | VR35: 0 | VS35: 0 | VT35: 0 | VU35: 0 | VV35: 0 | VW35: 0 | VX35: 0 | VY35: 0 | VZ35: 0 | WA35: 0 | WB35: 0 | WC35: 0 | WD35: 0 | WE35: 0 | WF35: 0 | WG35: 0 | WH35: 0 | WI35: 0 | WJ35: 0 | WK35: 0 | WL35: 0
G36: 23 | J36: 0 | K36: 0 | L36: 0 | M36: 0 | N36: 0 | O36: 0 | P36: 0 | Q36: 0 | R36: 0 | S36: 0 | T36: 0 | U36: 0 | V36: 0 | W36: 0 | X36: 0 | Y36: 0 | Z36: 0 | AA36: 0 | AB36: 0 | AC36: 0 | AD36: 0 | AE36: 0 | AF36: 0 | AG36: 0 | AH36: 0 | AI36: 0 | AJ36: 0 | AK36: 0 | AL36: 0 | AM36: 0 | AN36: 0 | AO36: 0 | AP36: 0 | AQ36: 0 | AR36: 0 | AS36: 0 | AT36: 0 | AU36: 0 | AV36: 0 | AW36: 0 | AX36: 0 | AY36: 0 | AZ36: 0 | BA36: 0 | BB36: 0 | BC36: 0 | BD36: 0 | BE36: 0 | BF36: 0 | BG36: 0 | BH36: 0 | BI36: 0 | BJ36: 0 | BK36: 0 | BL36: 0 | BM36: 0 | BN36: 0 | BO36: 0 | BP36: 0 | BQ36: 0 | BR36: 0 | BS36: 0 | BT36: 0 | BU36: 0 | BV36: 0 | BW36: 0 | BX36: 0 | BY36: 0 | BZ36: 0 | CA36: 0 | CB36: 0 | CC36: 0 | CD36: 0 | CE36: 0 | CF36: 0 | CG36: 0 | CH36: 0 | CI36: 0 | CJ36: 0 | CK36: 0 | CL36: 0 | CM36: 0 | CN36: 0 | CO36: 0 | CP36: 0 | CQ36: 0 | CR36: 0 | CS36: 0 | CT36: 0 | CU36: 0 | CV36: 0 | CW36: 0 | CX36: 0 | CY36: 0 | CZ36: 0 | DA36: 0 | DB36: 0 | DC36: 0 | DD36: 0 | DE36: 0 | DF36: 0 | DG36: 0 | DH36: 0 | DI36: 0 | DJ36: 0 | DK36: 0 | DL36: 0 | DM36: 0 | DN36: 0 | DO36: 0 | DP36: 0 | DQ36: 0 | DR36: 0 | DS36: 0 | DT36: 0 | DU36: 0 | DV36: 0 | DW36: 0 | DX36: 0 | DY36: 0 | DZ36: 0 | EA36: 0 | EB36: 0 | EC36: 0 | ED36: 0 | EE36: 0 | EF36: 0 | EG36: 0 | EH36: 0 | EI36: 0 | EJ36: 0 | EK36: 0 | EL36: 0 | EM36: 0 | EN36: 0 | EO36: 0 | EP36: 0 | EQ36: 0 | ER36: 0 | ES36: 0 | ET36: 0 | EU36: 0 | EV36: 0 | EW36: 0 | EX36: 0 | EY36: 0 | EZ36: 0 | FA36: 0 | FB36: 0 | FC36: 0 | FD36: 0 | FE36: 0 | FF36: 0 | FG36: 0 | FH36: 0 | FI36: 0 | FJ36: 0 | FK36: 0 | FL36: 0 | FM36: 0 | FN36: 0 | FO36: 0 | FP36: 0 | FQ36: 0 | FR36: 0 | FS36: 0 | FT36: 0 | FU36: 0 | FV36: 0 | FW36: 0 | FX36: 0 | FY36: 0 | FZ36: 0 | GA36: 0 | GB36: 0 | GC36: 0 | GD36: 0 | GE36: 0 | GF36: 0 | GG36: 0 | GH36: 0 | GI36: 0 | GJ36: 0 | GK36: 0 | GL36: 0 | GM36: 0 | GN36: 0 | GO36: 0 | GP36: 0 | GQ36: 0 | GR36: 0 | GS36: 0 | GT36: 0 | GU36: 0 | GV36: 0 | GW36: 0 | GX36: 0 | GY36: 0 | GZ36: 0 | HA36: 0 | HB36: 0 | HC36: 0 | HD36: 0 | HE36: 0 | HF36: 0 | HG36: 0 | HH36: 0 | HI36: 0 | HJ36: 0 | HK36: 0 | HL36: 0 | HM36: 0 | HN36: 0 | HO36: 0 | HP36: 0 | HQ36: 0 | HR36: 0 | HS36: 0 | HT36: 0 | HU36: 0 | HV36: 0 | HW36: 0 | HX36: 0 | HY36: 0 | HZ36: 0 | IA36: 0 | IB36: 0 | IC36: 0 | ID36: 0 | IE36: 0 | IF36: 0 | IG36: 0 | IH36: 0 | II36: 0 | IJ36: 0 | IK36: 0 | IL36: 0 | IM36: 0 | IN36: 0 | IO36: 0 | IP36: 0 | IQ36: 0 | IR36: 0 | IS36: 0 | IT36: 0 | IU36: 0 | IV36: 0 | IW36: 0 | IX36: 0 | IY36: 0 | IZ36: 0 | JA36: 0 | JB36: 0 | JC36: 0 | JD36: 0 | JE36: 0 | JF36: 0 | JG36: 0 | JH36: 0 | JI36: 0 | JJ36: 0 | JK36: 0 | JL36: 0 | JM36: 0 | JN36: 0 | JO36: 0 | JP36: 0 | JQ36: 0 | JR36: 0 | JS36: 0 | JT36: 0 | JU36: 0 | JV36: 0 | JW36: 0 | JX36: 0 | JY36: 0 | JZ36: 0 | KA36: 0 | KB36: 0 | KC36: 0 | KD36: 0 | KE36: 0 | KF36: 0 | KG36: 0 | KH36: 0 | KI36: 0 | KJ36: 0 | KK36: 0 | KL36: 0 | KM36: 0 | KN36: 0 | KO36: 0 | KP36: 0 | KQ36: 0 | KR36: 0 | KS36: 0 | KT36: 0 | KU36: 0 | KV36: 0 | KW36: 0 | KX36: 0 | KY36: 0 | KZ36: 0 | LA36: 0 | LB36: 0 | LC36: 0 | LD36: 0 | LE36: 0 | LF36: 0 | LG36: 0 | LH36: 0 | LI36: 0 | LJ36: 0 | LK36: 0 | LL36: 0 | LM36: 0 | LN36: 0 | LO36: 0 | LP36: 0 | LQ36: 0 | LR36: 0 | LS36: 0 | LT36: 0 | LU36: 0 | LV36: 0 | LW36: 0 | LX36: 0 | LY36: 0 | LZ36: 0 | MA36: 0 | MB36: 0 | MC36: 0 | MD36: 0 | ME36: 0 | MF36: 0 | MG36: 0 | MH36: 0 | MI36: 0 | MJ36: 0 | MK36: 0 | ML36: 0 | MM36: 0 | MN36: 0 | MO36: 0 | MP36: 0 | MQ36: 0 | MR36: 0 | MS36: 0 | MT36: 0 | MU36: 0 | MV36: 0 | MW36: 0 | MX36: 0 | MY36: 0 | MZ36: 0 | NA36: 0 | NB36: 0 | NC36: 0 | ND36: 0 | NE36: 0 | NF36: 0 | NG36: 0 | NH36: 0 | NI36: 0 | NJ36: 0 | NK36: 0 | NL36: 0 | NM36: 0 | NN36: 0 | NO36: 0 | NP36: 0 | NQ36: 0 | NR36: 0 | NS36: 0 | NT36: 0 | NU36: 0 | NV36: 0 | NW36: 0 | NX36: 0 | NY36: 0 | NZ36: 0 | OA36: 0 | OB36: 0 | OC36: 0 | OD36: 0 | OE36: 0 | OF36: 0 | OG36: 0 | OH36: 0 | OI36: 0 | OJ36: 0 | OK36: 0 | OL36: 0 | OM36: 0 | ON36: 0 | OO36: 0 | OP36: 0 | OQ36: 0 | OR36: 0 | OS36: 0 | OT36: 0 | OU36: 0 | OV36: 0 | OW36: 0 | OX36: 0 | OY36: 0 | OZ36: 0 | PA36: 0 | PB36: 0 | PC36: 0 | PD36: 0 | PE36: 0 | PF36: 0 | PG36: 0 | PH36: 0 | PI36: 0 | PJ36: 0 | PK36: 0 | PL36: 0 | PM36: 0 | PN36: 0 | PO36: 0 | PP36: 0 | PQ36: 0 | PR36: 0 | PS36: 0 | PT36: 0 | PU36: 0 | PV36: 0 | PW36: 0 | PX36: 0 | PY36: 0 | PZ36: 0 | QA36: 0 | QB36: 0 | QC36: 0 | QD36: 0 | QE36: 0 | QF36: 0 | QG36: 0 | QH36: 0 | QI36: 0 | QJ36: 0 | QK36: 0 | QL36: 0 | QM36: 0 | QN36: 0 | QO36: 0 | QP36: 0 | QQ36: 0 | QR36: 0 | QS36: 0 | QT36: 0 | QU36: 0 | QV36: 0 | QW36: 0 | QX36: 0 | QY36: 0 | QZ36: 0 | RA36: 0 | RB36: 0 | RC36: 0 | RD36: 0 | RE36: 0 | RF36: 0 | RG36: 0 | RH36: 0 | RI36: 0 | RJ36: 0 | RK36: 0 | RL36: 0 | RM36: 0 | RN36: 0 | RO36: 0 | RP36: 0 | RQ36: 0 | RR36: 0 | RS36: 0 | RT36: 0 | RU36: 0 | RV36: 0 | RW36: 0 | RX36: 0 | RY36: 0 | RZ36: 0 | SA36: 0 | SB36: 0 | SC36: 0 | SD36: 0 | SE36: 0 | SF36: 0 | SG36: 0 | SH36: 0 | SI36: 0 | SJ36: 0 | SK36: 0 | SL36: 0 | SM36: 0 | SN36: 0 | SO36: 0 | SP36: 0 | SQ36: 0 | SR36: 0 | SS36: 0 | ST36: 0 | SU36: 0 | SV36: 0 | SW36: 0 | SX36: 0 | SY36: 0 | SZ36: 0 | TA36: 0 | TB36: 0 | TC36: 0 | TD36: 0 | TE36: 0 | TF36: 0 | TG36: 0 | TH36: 0 | TI36: 0 | TJ36: 0 | TK36: 0 | TL36: 0 | TM36: 0 | TN36: 0 | TO36: 0 | TP36: 0 | TQ36: 0 | TR36: 0 | TS36: 0 | TT36: 0 | TU36: 0 | TV36: 0 | TW36: 0 | TX36: 0 | TY36: 0 | TZ36: 0 | UA36: 0 | UB36: 0 | UC36: 0 | UD36: 0 | UE36: 0 | UF36: 0 | UG36: 0 | UH36: 0 | UI36: 0 | UJ36: 0 | UK36: 0 | UL36: 0 | UM36: 0 | UN36: 0 | UO36: 0 | UP36: 0 | UQ36: 0 | UR36: 0 | US36: 0 | UT36: 0 | UU36: 0 | UV36: 0 | UW36: 0 | UX36: 0 | UY36: 0 | UZ36: 0 | VA36: 0 | VB36: 0 | VC36: 0 | VD36: 0 | VE36: 0 | VF36: 0 | VG36: 0 | VH36: 0 | VI36: 0 | VJ36: 0 | VK36: 0 | VL36: 0 | VM36: 0 | VN36: 0 | VO36: 0 | VP36: 0 | VQ36: 0 | VR36: 0 | VS36: 0 | VT36: 0 | VU36: 0 | VV36: 0 | VW36: 0 | VX36: 0 | VY36: 0 | VZ36: 0 | WA36: 0 | WB36: 0 | WC36: 0 | WD36: 0 | WE36: 0 | WF36: 0 | WG36: 0 | WH36: 0 | WI36: 0 | WJ36: 0 | WK36: 0 | WL36: 0
G37: 24 | J37: 0 | K37: 0 | L37: 0 | M37: 0 | N37: 0 | O37: 0 | P37: 0 | Q37: 0 | R37: 0 | S37: 0 | T37: 0 | U37: 0 | V37: 0 | W37: 0 | X37: 0 | Y37: 0 | Z37: 0 | AA37: 0 | AB37: 0 | AC37: 0 | AD37: 0 | AE37: 0 | AF37: 0 | AG37: 0 | AH37: 0 | AI37: 0 | AJ37: 0 | AK37: 0 | AL37: 0 | AM37: 0 | AN37: 0 | AO37: 0 | AP37: 0 | AQ37: 0 | AR37: 0 | AS37: 0 | AT37: 0 | AU37: 0 | AV37: 0 | AW37: 0 | AX37: 0 | AY37: 0 | AZ37: 0 | BA37: 0 | BB37: 0 | BC37: 0 | BD37: 0 | BE37: 0 | BF37: 0 | BG37: 0 | BH37: 0 | BI37: 0 | BJ37: 0 | BK37: 0 | BL37: 0 | BM37: 0 | BN37: 0 | BO37: 0 | BP37: 0 | BQ37: 0 | BR37: 0 | BS37: 0 | BT37: 0 | BU37: 0 | BV37: 0 | BW37: 0 | BX37: 0 | BY37: 0 | BZ37: 0 | CA37: 0 | CB37: 0 | CC37: 0 | CD37: 0 | CE37: 0 | CF37: 0 | CG37: 0 | CH37: 0 | CI37: 0 | CJ37: 0 | CK37: 0 | CL37: 0 | CM37: 0 | CN37: 0 | CO37: 0 | CP37: 0 | CQ37: 0 | CR37: 0 | CS37: 0 | CT37: 0 | CU37: 0 | CV37: 0 | CW37: 0 | CX37: 0 | CY37: 0 | CZ37: 0 | DA37: 0 | DB37: 0 | DC37: 0 | DD37: 0 | DE37: 0 | DF37: 0 | DG37: 0 | DH37: 0 | DI37: 0 | DJ37: 0 | DK37: 0 | DL37: 0 | DM37: 0 | DN37: 0 | DO37: 0 | DP37: 0 | DQ37: 0 | DR37: 0 | DS37: 0 | DT37: 0 | DU37: 0 | DV37: 0 | DW37: 0 | DX37: 0 | DY37: 0 | DZ37: 0 | EA37: 0 | EB37: 0 | EC37: 0 | ED37: 0 | EE37: 0 | EF37: 0 | EG37: 0 | EH37: 0 | EI37: 0 | EJ37: 0 | EK37: 0 | EL37: 0 | EM37: 0 | EN37: 0 | EO37: 0 | EP37: 0 | EQ37: 0 | ER37: 0 | ES37: 0 | ET37: 0 | EU37: 0 | EV37: 0 | EW37: 0 | EX37: 0 | EY37: 0 | EZ37: 0 | FA37: 0 | FB37: 0 | FC37: 0 | FD37: 0 | FE37: 0 | FF37: 0 | FG37: 0 | FH37: 0 | FI37: 0 | FJ37: 0 | FK37: 0 | FL37: 0 | FM37: 0 | FN37: 0 | FO37: 0 | FP37: 0 | FQ37: 0 | FR37: 0 | FS37: 0 | FT37: 0 | FU37: 0 | FV37: 0 | FW37: 0 | FX37: 0 | FY37: 0 | FZ37: 0 | GA37: 0 | GB37: 0 | GC37: 0 | GD37: 0 | GE37: 0 | GF37: 0 | GG37: 0 | GH37: 0 | GI37: 0 | GJ37: 0 | GK37: 0 | GL37: 0 | GM37: 0 | GN37: 0 | GO37: 0 | GP37: 0 | GQ37: 0 | GR37: 0 | GS37: 0 | GT37: 0 | GU37: 0 | GV37: 0 | GW37: 0 | GX37: 0 | GY37: 0 | GZ37: 0 | HA37: 0 | HB37: 0 | HC37: 0 | HD37: 0 | HE37: 0 | HF37: 0 | HG37: 0 | HH37: 0 | HI37: 0 | HJ37: 0 | HK37: 0 | HL37: 0 | HM37: 0 | HN37: 0 | HO37: 0 | HP37: 0 | HQ37: 0 | HR37: 0 | HS37: 0 | HT37: 0 | HU37: 0 | HV37: 0 | HW37: 0 | HX37: 0 | HY37: 0 | HZ37: 0 | IA37: 0 | IB37: 0 | IC37: 0 | ID37: 0 | IE37: 0 | IF37: 0 | IG37: 0 | IH37: 0 | II37: 0 | IJ37: 0 | IK37: 0 | IL37: 0 | IM37: 0 | IN37: 0 | IO37: 0 | IP37: 0 | IQ37: 0 | IR37: 0 | IS37: 0 | IT37: 0 | IU37: 0 | IV37: 0 | IW37: 0 | IX37: 0 | IY37: 0 | IZ37: 0 | JA37: 0 | JB37: 0 | JC37: 0 | JD37: 0 | JE37: 0 | JF37: 0 | JG37: 0 | JH37: 0 | JI37: 0 | JJ37: 0 | JK37: 0 | JL37: 0 | JM37: 0 | JN37: 0 | JO37: 0 | JP37: 0 | JQ37: 0 | JR37: 0 | JS37: 0 | JT37: 0 | JU37: 0 | JV37: 0 | JW37: 0 | JX37: 0 | JY37: 0 | JZ37: 0 | KA37: 0 | KB37: 0 | KC37: 0 | KD37: 0 | KE37: 0 | KF37: 0 | KG37: 0 | KH37: 0 | KI37: 0 | KJ37: 0 | KK37: 0 | KL37: 0 | KM37: 0 | KN37: 0 | KO37: 0 | KP37: 0 | KQ37: 0 | KR37: 0 | KS37: 0 | KT37: 0 | KU37: 0 | KV37: 0 | KW37: 0 | KX37: 0 | KY37: 0 | KZ37: 0 | LA37: 0 | LB37: 0 | LC37: 0 | LD37: 0 | LE37: 0 | LF37: 0 | LG37: 0 | LH37: 0 | LI37: 0 | LJ37: 0 | LK37: 0 | LL37: 0 | LM37: 0 | LN37: 0 | LO37: 0 | LP37: 0 | LQ37: 0 | LR37: 0 | LS37: 0 | LT37: 0 | LU37: 0 | LV37: 0 | LW37: 0 | LX37: 0 | LY37: 0 | LZ37: 0 | MA37: 0 | MB37: 0 | MC37: 0 | MD37: 0 | ME37: 0 | MF37: 0 | MG37: 0 | MH37: 0 | MI37: 0 | MJ37: 0 | MK37: 0 | ML37: 0 | MM37: 0 | MN37: 0 | MO37: 0 | MP37: 0 | MQ37: 0 | MR37: 0 | MS37: 0 | MT37: 0 | MU37: 0 | MV37: 0 | MW37: 0 | MX37: 0 | MY37: 0 | MZ37: 0 | NA37: 0 | NB37: 0 | NC37: 0 | ND37: 0 | NE37: 0 | NF37: 0 | NG37: 0 | NH37: 0 | NI37: 0 | NJ37: 0 | NK37: 0 | NL37: 0 | NM37: 0 | NN37: 0 | NO37: 0 | NP37: 0 | NQ37: 0 | NR37: 0 | NS37: 0 | NT37: 0 | NU37: 0 | NV37: 0 | NW37: 0 | NX37: 0 | NY37: 0 | NZ37: 0 | OA37: 0 | OB37: 0 | OC37: 0 | OD37: 0 | OE37: 0 | OF37: 0 | OG37: 0 | OH37: 0 | OI37: 0 | OJ37: 0 | OK37: 0 | OL37: 0 | OM37: 0 | ON37: 0 | OO37: 0 | OP37: 0 | OQ37: 0 | OR37: 0 | OS37: 0 | OT37: 0 | OU37: 0 | OV37: 0 | OW37: 0 | OX37: 0 | OY37: 0 | OZ37: 0 | PA37: 0 | PB37: 0 | PC37: 0 | PD37: 0 | PE37: 0 | PF37: 0 | PG37: 0 | PH37: 0 | PI37: 0 | PJ37: 0 | PK37: 0 | PL37: 0 | PM37: 0 | PN37: 0 | PO37: 0 | PP37: 0 | PQ37: 0 | PR37: 0 | PS37: 0 | PT37: 0 | PU37: 0 | PV37: 0 | PW37: 0 | PX37: 0 | PY37: 0 | PZ37: 0 | QA37: 0 | QB37: 0 | QC37: 0 | QD37: 0 | QE37: 0 | QF37: 0 | QG37: 0 | QH37: 0 | QI37: 0 | QJ37: 0 | QK37: 0 | QL37: 0 | QM37: 0 | QN37: 0 | QO37: 0 | QP37: 0 | QQ37: 0 | QR37: 0 | QS37: 0 | QT37: 0 | QU37: 0 | QV37: 0 | QW37: 0 | QX37: 0 | QY37: 0 | QZ37: 0 | RA37: 0 | RB37: 0 | RC37: 0 | RD37: 0 | RE37: 0 | RF37: 0 | RG37: 0 | RH37: 0 | RI37: 0 | RJ37: 0 | RK37: 0 | RL37: 0 | RM37: 0 | RN37: 0 | RO37: 0 | RP37: 0 | RQ37: 0 | RR37: 0 | RS37: 0 | RT37: 0 | RU37: 0 | RV37: 0 | RW37: 0 | RX37: 0 | RY37: 0 | RZ37: 0 | SA37: 0 | SB37: 0 | SC37: 0 | SD37: 0 | SE37: 0 | SF37: 0 | SG37: 0 | SH37: 0 | SI37: 0 | SJ37: 0 | SK37: 0 | SL37: 0 | SM37: 0 | SN37: 0 | SO37: 0 | SP37: 0 | SQ37: 0 | SR37: 0 | SS37: 0 | ST37: 0 | SU37: 0 | SV37: 0 | SW37: 0 | SX37: 0 | SY37: 0 | SZ37: 0 | TA37: 0 | TB37: 0 | TC37: 0 | TD37: 0 | TE37: 0 | TF37: 0 | TG37: 0 | TH37: 0 | TI37: 0 | TJ37: 0 | TK37: 0 | TL37: 0 | TM37: 0 | TN37: 0 | TO37: 0 | TP37: 0 | TQ37: 0 | TR37: 0 | TS37: 0 | TT37: 0 | TU37: 0 | TV37: 0 | TW37: 0 | TX37: 0 | TY37: 0 | TZ37: 0 | UA37: 0 | UB37: 0 | UC37: 0 | UD37: 0 | UE37: 0 | UF37: 0 | UG37: 0 | UH37: 0 | UI37: 0 | UJ37: 0 | UK37: 0 | UL37: 0 | UM37: 0 | UN37: 0 | UO37: 0 | UP37: 0 | UQ37: 0 | UR37: 0 | US37: 0 | UT37: 0 | UU37: 0 | UV37: 0 | UW37: 0 | UX37: 0 | UY37: 0 | UZ37: 0 | VA37: 0 | VB37: 0 | VC37: 0 | VD37: 0 | VE37: 0 | VF37: 0 | VG37: 0 | VH37: 0 | VI37: 0 | VJ37: 0 | VK37: 0 | VL37: 0 | VM37: 0 | VN37: 0 | VO37: 0 | VP37: 0 | VQ37: 0 | VR37: 0 | VS37: 0 | VT37: 0 | VU37: 0 | VV37: 0 | VW37: 0 | VX37: 0 | VY37: 0 | VZ37: 0 | WA37: 0 | WB37: 0 | WC37: 0 | WD37: 0 | WE37: 0 | WF37: 0 | WG37: 0 | WH37: 0 | WI37: 0 | WJ37: 0 | WK37: 0 | WL37: 0
G38: 25 | J38: 0 | K38: 0 | L38: 0 | M38: 0 | N38: 0 | O38: 0 | P38: 0 | Q38: 0 | R38: 0 | S38: 0 | T38: 0 | U38: 0 | V38: 0 | W38: 0 | X38: 0 | Y38: 0 | Z38: 0 | AA38: 0 | AB38: 0 | AC38: 0 | AD38: 0 | AE38: 0 | AF38: 0 | AG38: 0 | AH38: 0 | AI38: 0 | AJ38: 0 | AK38: 0 | AL38: 0 | AM38: 0 | AN38: 0 | AO38: 0 | AP38: 0 | AQ38: 0 | AR38: 0 | AS38: 0 | AT38: 0 | AU38: 0 | AV38: 0 | AW38: 0 | AX38: 0 | AY38: 0 | AZ38: 0 | BA38: 0 | BB38: 0 | BC38: 0 | BD38: 0 | BE38: 0 | BF38: 0 | BG38: 0 | BH38: 0 | BI38: 0 | BJ38: 0 | BK38: 0 | BL38: 0 | BM38: 0 | BN38: 0 | BO38: 0 | BP38: 0 | BQ38: 0 | BR38: 0 | BS38: 0 | BT38: 0 | BU38: 0 | BV38: 0 | BW38: 0 | BX38: 0 | BY38: 0 | BZ38: 0 | CA38: 0 | CB38: 0 | CC38: 0 | CD38: 0 | CE38: 0 | CF38: 0 | CG38: 0 | CH38: 0 | CI38: 0 | CJ38: 0 | CK38: 0 | CL38: 0 | CM38: 0 | CN38: 0 | CO38: 0 | CP38: 0 | CQ38: 0 | CR38: 0 | CS38: 0 | CT38: 0 | CU38: 0 | CV38: 0 | CW38: 0 | CX38: 0 | CY38: 0 | CZ38: 0 | DA38: 0 | DB38: 0 | DC38: 0 | DD38: 0 | DE38: 0 | DF38: 0 | DG38: 0 | DH38: 0 | DI38: 0 | DJ38: 0 | DK38: 0 | DL38: 0 | DM38: 0 | DN38: 0 | DO38: 0 | DP38: 0 | DQ38: 0 | DR38: 0 | DS38: 0 | DT38: 0 | DU38: 0 | DV38: 0 | DW38: 0 | DX38: 0 | DY38: 0 | DZ38: 0 | EA38: 0 | EB38: 0 | EC38: 0 | ED38: 0 | EE38: 0 | EF38: 0 | EG38: 0 | EH38: 0 | EI38: 0 | EJ38: 0 | EK38: 0 | EL38: 0 | EM38: 0 | EN38: 0 | EO38: 0 | EP38: 0 | EQ38: 0 | ER38: 0 | ES38: 0 | ET38: 0 | EU38: 0 | EV38: 0 | EW38: 0 | EX38: 0 | EY38: 0 | EZ38: 0 | FA38: 0 | FB38: 0 | FC38: 0 | FD38: 0 | FE38: 0 | FF38: 0 | FG38: 0 | FH38: 0 | FI38: 0 | FJ38: 0 | FK38: 0 | FL38: 0 | FM38: 0 | FN38: 0 | FO38: 0 | FP38: 0 | FQ38: 0 | FR38: 0 | FS38: 0 | FT38: 0 | FU38: 0 | FV38: 0 | FW38: 0 | FX38: 0 | FY38: 0 | FZ38: 0 | GA38: 0 | GB38: 0 | GC38: 0 | GD38: 0 | GE38: 0 | GF38: 0 | GG38: 0 | GH38: 0 | GI38: 0 | GJ38: 0 | GK38: 0 | GL38: 0 | GM38: 0 | GN38: 0 | GO38: 0 | GP38: 0 | GQ38: 0 | GR38: 0 | GS38: 0 | GT38: 0 | GU38: 0 | GV38: 0 | GW38: 0 | GX38: 0 | GY38: 0 | GZ38: 0 | HA38: 0 | HB38: 0 | HC38: 0 | HD38: 0 | HE38: 0 | HF38: 0 | HG38: 0 | HH38: 0 | HI38: 0 | HJ38: 0 | HK38: 0 | HL38: 0 | HM38: 0 | HN38: 0 | HO38: 0 | HP38: 0 | HQ38: 0 | HR38: 0 | HS38: 0 | HT38: 0 | HU38: 0 | HV38: 0 | HW38: 0 | HX38: 0 | HY38: 0 | HZ38: 0 | IA38: 0 | IB38: 0 | IC38: 0 | ID38: 0 | IE38: 0 | IF38: 0 | IG38: 0 | IH38: 0 | II38: 0 | IJ38: 0 | IK38: 0 | IL38: 0 | IM38: 0 | IN38: 0 | IO38: 0 | IP38: 0 | IQ38: 0 | IR38: 0 | IS38: 0 | IT38: 0 | IU38: 0 | IV38: 0 | IW38: 0 | IX38: 0 | IY38: 0 | IZ38: 0 | JA38: 0 | JB38: 0 | JC38: 0 | JD38: 0 | JE38: 0 | JF38: 0 | JG38: 0 | JH38: 0 | JI38: 0 | JJ38: 0 | JK38: 0 | JL38: 0 | JM38: 0 | JN38: 0 | JO38: 0 | JP38: 0 | JQ38: 0 | JR38: 0 | JS38: 0 | JT38: 0 | JU38: 0 | JV38: 0 | JW38: 0 | JX38: 0 | JY38: 0 | JZ38: 0 | KA38: 0 | KB38: 0 | KC38: 0 | KD38: 0 | KE38: 0 | KF38: 0 | KG38: 0 | KH38: 0 | KI38: 0 | KJ38: 0 | KK38: 0 | KL38: 0 | KM38: 0 | KN38: 0 | KO38: 0 | KP38: 0 | KQ38: 0 | KR38: 0 | KS38: 0 | KT38: 0 | KU38: 0 | KV38: 0 | KW38: 0 | KX38: 0 | KY38: 0 | KZ38: 0 | LA38: 0 | LB38: 0 | LC38: 0 | LD38: 0 | LE38: 0 | LF38: 0 | LG38: 0 | LH38: 0 | LI38: 0 | LJ38: 0 | LK38: 0 | LL38: 0 | LM38: 0 | LN38: 0 | LO38: 0 | LP38: 0 | LQ38: 0 | LR38: 0 | LS38: 0 | LT38: 0 | LU38: 0 | LV38: 0 | LW38: 0 | LX38: 0 | LY38: 0 | LZ38: 0 | MA38: 0 | MB38: 0 | MC38: 0 | MD38: 0 | ME38: 0 | MF38: 0 | MG38: 0 | MH38: 0 | MI38: 0 | MJ38: 0 | MK38: 0 | ML38: 0 | MM38: 0 | MN38: 0 | MO38: 0 | MP38: 0 | MQ38: 0 | MR38: 0 | MS38: 0 | MT38: 0 | MU38: 0 | MV38: 0 | MW38: 0 | MX38: 0 | MY38: 0 | MZ38: 0 | NA38: 0 | NB38: 0 | NC38: 0 | ND38: 0 | NE38: 0 | NF38: 0 | NG38: 0 | NH38: 0 | NI38: 0 | NJ38: 0 | NK38: 0 | NL38: 0 | NM38: 0 | NN38: 0 | NO38: 0 | NP38: 0 | NQ38: 0 | NR38: 0 | NS38: 0 | NT38: 0 | NU38: 0 | NV38: 0 | NW38: 0 | NX38: 0 | NY38: 0 | NZ38: 0 | OA38: 0 | OB38: 0 | OC38: 0 | OD38: 0 | OE38: 0 | OF38: 0 | OG38: 0 | OH38: 0 | OI38: 0 | OJ38: 0 | OK38: 0 | OL38: 0 | OM38: 0 | ON38: 0 | OO38: 0 | OP38: 0 | OQ38: 0 | OR38: 0 | OS38: 0 | OT38: 0 | OU38: 0 | OV38: 0 | OW38: 0 | OX38: 0 | OY38: 0 | OZ38: 0 | PA38: 0 | PB38: 0 | PC38: 0 | PD38: 0 | PE38: 0 | PF38: 0 | PG38: 0 | PH38: 0 | PI38: 0 | PJ38: 0 | PK38: 0 | PL38: 0 | PM38: 0 | PN38: 0 | PO38: 0 | PP38: 0 | PQ38: 0 | PR38: 0 | PS38: 0 | PT38: 0 | PU38: 0 | PV38: 0 | PW38: 0 | PX38: 0 | PY38: 0 | PZ38: 0 | QA38: 0 | QB38: 0 | QC38: 0 | QD38: 0 | QE38: 0 | QF38: 0 | QG38: 0 | QH38: 0 | QI38: 0 | QJ38: 0 | QK38: 0 | QL38: 0 | QM38: 0 | QN38: 0 | QO38: 0 | QP38: 0 | QQ38: 0 | QR38: 0 | QS38: 0 | QT38: 0 | QU38: 0 | QV38: 0 | QW38: 0 | QX38: 0 | QY38: 0 | QZ38: 0 | RA38: 0 | RB38: 0 | RC38: 0 | RD38: 0 | RE38: 0 | RF38: 0 | RG38: 0 | RH38: 0 | RI38: 0 | RJ38: 0 | RK38: 0 | RL38: 0 | RM38: 0 | RN38: 0 | RO38: 0 | RP38: 0 | RQ38: 0 | RR38: 0 | RS38: 0 | RT38: 0 | RU38: 0 | RV38: 0 | RW38: 0 | RX38: 0 | RY38: 0 | RZ38: 0 | SA38: 0 | SB38: 0 | SC38: 0 | SD38: 0 | SE38: 0 | SF38: 0 | SG38: 0 | SH38: 0 | SI38: 0 | SJ38: 0 | SK38: 0 | SL38: 0 | SM38: 0 | SN38: 0 | SO38: 0 | SP38: 0 | SQ38: 0 | SR38: 0 | SS38: 0 | ST38: 0 | SU38: 0 | SV38: 0 | SW38: 0 | SX38: 0 | SY38: 0 | SZ38: 0 | TA38: 0 | TB38: 0 | TC38: 0 | TD38: 0 | TE38: 0 | TF38: 0 | TG38: 0 | TH38: 0 | TI38: 0 | TJ38: 0 | TK38: 0 | TL38: 0 | TM38: 0 | TN38: 0 | TO38: 0 | TP38: 0 | TQ38: 0 | TR38: 0 | TS38: 0 | TT38: 0 | TU38: 0 | TV38: 0 | TW38: 0 | TX38: 0 | TY38: 0 | TZ38: 0 | UA38: 0 | UB38: 0 | UC38: 0 | UD38: 0 | UE38: 0 | UF38: 0 | UG38: 0 | UH38: 0 | UI38: 0 | UJ38: 0 | UK38: 0 | UL38: 0 | UM38: 0 | UN38: 0 | UO38: 0 | UP38: 0 | UQ38: 0 | UR38: 0 | US38: 0 | UT38: 0 | UU38: 0 | UV38: 0 | UW38: 0 | UX38: 0 | UY38: 0 | UZ38: 0 | VA38: 0 | VB38: 0 | VC38: 0 | VD38: 0 | VE38: 0 | VF38: 0 | VG38: 0 | VH38: 0 | VI38: 0 | VJ38: 0 | VK38: 0 | VL38: 0 | VM38: 0 | VN38: 0 | VO38: 0 | VP38: 0 | VQ38: 0 | VR38: 0 | VS38: 0 | VT38: 0 | VU38: 0 | VV38: 0 | VW38: 0 | VX38: 0 | VY38: 0 | VZ38: 0 | WA38: 0 | WB38: 0 | WC38: 0 | WD38: 0 | WE38: 0 | WF38: 0 | WG38: 0 | WH38: 0 | WI38: 0 | WJ38: 0 | WK38: 0 | WL38: 0
G39: 26 | J39: 0 | K39: 0 | L39: 0 | M39: 0 | N39: 0 | O39: 0 | P39: 0 | Q39: 0 | R39: 0 | S39: 0 | T39: 0 | U39: 0 | V39: 0 | W39: 0 | X39: 0 | Y39: 0 | Z39: 0 | AA39: 0 | AB39: 0 | AC39: 0 | AD39: 0 | AE39: 0 | AF39: 0 | AG39: 0 | AH39: 0 | AI39: 0 | AJ39: 0 | AK39: 0 | AL39: 0 | AM39: 0 | AN39: 0 | AO39: 0 | AP39: 0 | AQ39: 0 | AR39: 0 | AS39: 0 | AT39: 0 | AU39: 0 | AV39: 0 | AW39: 0 | AX39: 0 | AY39: 0 | AZ39: 0 | BA39: 0 | BB39: 0 | BC39: 0 | BD39: 0 | BE39: 0 | BF39: 0 | BG39: 0 | BH39: 0 | BI39: 0 | BJ39: 0 | BK39: 0 | BL39: 0 | BM39: 0 | BN39: 0 | BO39: 0 | BP39: 0 | BQ39: 0 | BR39: 0 | BS39: 0 | BT39: 0 | BU39: 0 | BV39: 0 | BW39: 0 | BX39: 0 | BY39: 0 | BZ39: 0 | CA39: 0 | CB39: 0 | CC39: 0 | CD39: 0 | CE39: 0 | CF39: 0 | CG39: 0 | CH39: 0 | CI39: 0 | CJ39: 0 | CK39: 0 | CL39: 0 | CM39: 0 | CN39: 0 | CO39: 0 | CP39: 0 | CQ39: 0 | CR39: 0 | CS39: 0 | CT39: 0 | CU39: 0 | CV39: 0 | CW39: 0 | CX39: 0 | CY39: 0 | CZ39: 0 | DA39: 0 | DB39: 0 | DC39: 0 | DD39: 0 | DE39: 0 | DF39: 0 | DG39: 0 | DH39: 0 | DI39: 0 | DJ39: 0 | DK39: 0 | DL39: 0 | DM39: 0 | DN39: 0 | DO39: 0 | DP39: 0 | DQ39: 0 | DR39: 0 | DS39: 0 | DT39: 0 | DU39: 0 | DV39: 0 | DW39: 0 | DX39: 0 | DY39: 0 | DZ39: 0 | EA39: 0 | EB39: 0 | EC39: 0 | ED39: 0 | EE39: 0 | EF39: 0 | EG39: 0 | EH39: 0 | EI39: 0 | EJ39: 0 | EK39: 0 | EL39: 0 | EM39: 0 | EN39: 0 | EO39: 0 | EP39: 0 | EQ39: 0 | ER39: 0 | ES39: 0 | ET39: 0 | EU39: 0 | EV39: 0 | EW39: 0 | EX39: 0 | EY39: 0 | EZ39: 0 | FA39: 0 | FB39: 0 | FC39: 0 | FD39: 0 | FE39: 0 | FF39: 0 | FG39: 0 | FH39: 0 | FI39: 0 | FJ39: 0 | FK39: 0 | FL39: 0 | FM39: 0 | FN39: 0 | FO39: 0 | FP39: 0 | FQ39: 0 | FR39: 0 | FS39: 0 | FT39: 0 | FU39: 0 | FV39: 0 | FW39: 0 | FX39: 0 | FY39: 0 | FZ39: 0 | GA39: 0 | GB39: 0 | GC39: 0 | GD39: 0 | GE39: 0 | GF39: 0 | GG39: 0 | GH39: 0 | GI39: 0 | GJ39: 0 | GK39: 0 | GL39: 0 | GM39: 0 | GN39: 0 | GO39: 0 | GP39: 0 | GQ39: 0 | GR39: 0 | GS39: 0 | GT39: 0 | GU39: 0 | GV39: 0 | GW39: 0 | GX39: 0 | GY39: 0 | GZ39: 0 | HA39: 0 | HB39: 0 | HC39: 0 | HD39: 0 | HE39: 0 | HF39: 0 | HG39: 0 | HH39: 0 | HI39: 0 | HJ39: 0 | HK39: 0 | HL39: 0 | HM39: 0 | HN39: 0 | HO39: 0 | HP39: 0 | HQ39: 0 | HR39: 0 | HS39: 0 | HT39: 0 | HU39: 0 | HV39: 0 | HW39: 0 | HX39: 0 | HY39: 0 | HZ39: 0 | IA39: 0 | IB39: 0 | IC39: 0 | ID39: 0 | IE39: 0 | IF39: 0 | IG39: 0 | IH39: 0 | II39: 0 | IJ39: 0 | IK39: 0 | IL39: 0 | IM39: 0 | IN39: 0 | IO39: 0 | IP39: 0 | IQ39: 0 | IR39: 0 | IS39: 0 | IT39: 0 | IU39: 0 | IV39: 0 | IW39: 0 | IX39: 0 | IY39: 0 | IZ39: 0 | JA39: 0 | JB39: 0 | JC39: 0 | JD39: 0 | JE39: 0 | JF39: 0 | JG39: 0 | JH39: 0 | JI39: 0 | JJ39: 0 | JK39: 0 | JL39: 0 | JM39: 0 | JN39: 0 | JO39: 0 | JP39: 0 | JQ39: 0 | JR39: 0 | JS39: 0 | JT39: 0 | JU39: 0 | JV39: 0 | JW39: 0 | JX39: 0 | JY39: 0 | JZ39: 0 | KA39: 0 | KB39: 0 | KC39: 0 | KD39: 0 | KE39: 0 | KF39: 0 | KG39: 0 | KH39: 0 | KI39: 0 | KJ39: 0 | KK39: 0 | KL39: 0 | KM39: 0 | KN39: 0 | KO39: 0 | KP39: 0 | KQ39: 0 | KR39: 0 | KS39: 0 | KT39: 0 | KU39: 0 | KV39: 0 | KW39: 0 | KX39: 0 | KY39: 0 | KZ39: 0 | LA39: 0 | LB39: 0 | LC39: 0 | LD39: 0 | LE39: 0 | LF39: 0 | LG39: 0 | LH39: 0 | LI39: 0 | LJ39: 0 | LK39: 0 | LL39: 0 | LM39: 0 | LN39: 0 | LO39: 0 | LP39: 0 | LQ39: 0 | LR39: 0 | LS39: 0 | LT39: 0 | LU39: 0 | LV39: 0 | LW39: 0 | LX39: 0 | LY39: 0 | LZ39: 0 | MA39: 0 | MB39: 0 | MC39: 0 | MD39: 0 | ME39: 0 | MF39: 0 | MG39: 0 | MH39: 0 | MI39: 0 | MJ39: 0 | MK39: 0 | ML39: 0 | MM39: 0 | MN39: 0 | MO39: 0 | MP39: 0 | MQ39: 0 | MR39: 0 | MS39: 0 | MT39: 0 | MU39: 0 | MV39: 0 | MW39: 0 | MX39: 0 | MY39: 0 | MZ39: 0 | NA39: 0 | NB39: 0 | NC39: 0 | ND39: 0 | NE39: 0 | NF39: 0 | NG39: 0 | NH39: 0 | NI39: 0 | NJ39: 0 | NK39: 0 | NL39: 0 | NM39: 0 | NN39: 0 | NO39: 0 | NP39: 0 | NQ39: 0 | NR39: 0 | NS39: 0 | NT39: 0 | NU39: 0 | NV39: 0 | NW39: 0 | NX39: 0 | NY39: 0 | NZ39: 0 | OA39: 0 | OB39: 0 | OC39: 0 | OD39: 0 | OE39: 0 | OF39: 0 | OG39: 0 | OH39: 0 | OI39: 0 | OJ39: 0 | OK39: 0 | OL39: 0 | OM39: 0 | ON39: 0 | OO39: 0 | OP39: 0 | OQ39: 0 | OR39: 0 | OS39: 0 | OT39: 0 | OU39: 0 | OV39: 0 | OW39: 0 | OX39: 0 | OY39: 0 | OZ39: 0 | PA39: 0 | PB39: 0 | PC39: 0 | PD39: 0 | PE39: 0 | PF39: 0 | PG39: 0 | PH39: 0 | PI39: 0 | PJ39: 0 | PK39: 0 | PL39: 0 | PM39: 0 | PN39: 0 | PO39: 0 | PP39: 0 | PQ39: 0 | PR39: 0 | PS39: 0 | PT39: 0 | PU39: 0 | PV39: 0 | PW39: 0 | PX39: 0 | PY39: 0 | PZ39: 0 | QA39: 0 | QB39: 0 | QC39: 0 | QD39: 0 | QE39: 0 | QF39: 0 | QG39: 0 | QH39: 0 | QI39: 0 | QJ39: 0 | QK39: 0 | QL39: 0 | QM39: 0 | QN39: 0 | QO39: 0 | QP39: 0 | QQ39: 0 | QR39: 0 | QS39: 0 | QT39: 0 | QU39: 0 | QV39: 0 | QW39: 0 | QX39: 0 | QY39: 0 | QZ39: 0 | RA39: 0 | RB39: 0 | RC39: 0 | RD39: 0 | RE39: 0 | RF39: 0 | RG39: 0 | RH39: 0 | RI39: 0 | RJ39: 0 | RK39: 0 | RL39: 0 | RM39: 0 | RN39: 0 | RO39: 0 | RP39: 0 | RQ39: 0 | RR39: 0 | RS39: 0 | RT39: 0 | RU39: 0 | RV39: 0 | RW39: 0 | RX39: 0 | RY39: 0 | RZ39: 0 | SA39: 0 | SB39: 0 | SC39: 0 | SD39: 0 | SE39: 0 | SF39: 0 | SG39: 0 | SH39: 0 | SI39: 0 | SJ39: 0 | SK39: 0 | SL39: 0 | SM39: 0 | SN39: 0 | SO39: 0 | SP39: 0 | SQ39: 0 | SR39: 0 | SS39: 0 | ST39: 0 | SU39: 0 | SV39: 0 | SW39: 0 | SX39: 0 | SY39: 0 | SZ39: 0 | TA39: 0 | TB39: 0 | TC39: 0 | TD39: 0 | TE39: 0 | TF39: 0 | TG39: 0 | TH39: 0 | TI39: 0 | TJ39: 0 | TK39: 0 | TL39: 0 | TM39: 0 | TN39: 0 | TO39: 0 | TP39: 0 | TQ39: 0 | TR39: 0 | TS39: 0 | TT39: 0 | TU39: 0 | TV39: 0 | TW39: 0 | TX39: 0 | TY39: 0 | TZ39: 0 | UA39: 0 | UB39: 0 | UC39: 0 | UD39: 0 | UE39: 0 | UF39: 0 | UG39: 0 | UH39: 0 | UI39: 0 | UJ39: 0 | UK39: 0 | UL39: 0 | UM39: 0 | UN39: 0 | UO39: 0 | UP39: 0 | UQ39: 0 | UR39: 0 | US39: 0 | UT39: 0 | UU39: 0 | UV39: 0 | UW39: 0 | UX39: 0 | UY39: 0 | UZ39: 0 | VA39: 0 | VB39: 0 | VC39: 0 | VD39: 0 | VE39: 0 | VF39: 0 | VG39: 0 | VH39: 0 | VI39: 0 | VJ39: 0 | VK39: 0 | VL39: 0 | VM39: 0 | VN39: 0 | VO39: 0 | VP39: 0 | VQ39: 0 | VR39: 0 | VS39: 0 | VT39: 0 | VU39: 0 | VV39: 0 | VW39: 0 | VX39: 0 | VY39: 0 | VZ39: 0 | WA39: 0 | WB39: 0 | WC39: 0 | WD39: 0 | WE39: 0 | WF39: 0 | WG39: 0 | WH39: 0 | WI39: 0 | WJ39: 0 | WK39: 0 | WL39: 0
G40: 27
G41: 28
G42: 29 | H42: Total Capital Direct (Annual): | I42: 0 | J42: 0 | K42: 0 | L42: 0 | M42: 0 | N42: 0 | O42: 0 | P42: 0 | Q42: 0 | R42: 0 | S42: 0 | T42: 0 | U42: 0 | V42: 0 | W42: 0 | X42: 0 | Y42: 0 | Z42: 0 | AA42: 0 | AB42: 0 | AC42: 0 | AD42: 0 | AE42: 0 | AF42: 0 | AG42: 0 | AH42: 0 | AI42: 0 | AJ42: 0 | AK42: 0 | AL42: 0 | AM42: 0 | AN42: 0 | AO42: 0 | AP42: 0 | AQ42: 0 | AR42: 0 | AS42: 0 | AT42: 0 | AU42: 0 | AV42: 0 | AW42: 0 | AX42: 0 | AY42: 0 | AZ42: 0 | BA42: 0 | BB42: 0 | BC42: 0 | BD42: 0 | BE42: 0 | BF42: 0 | BG42: 0 | BH42: 0
G43: 30 | H43: Total Capital Direct (Monthly): | I43: 0 | J43: 0 | K43: 0 | L43: 0 | M43: 0 | N43: 0 | O43: 0 | P43: 0 | Q43: 0 | R43: 0 | S43: 0 | T43: 0 | U43: 0 | V43: 0 | W43: 0 | X43: 0 | Y43: 0 | Z43: 0 | AA43: 0 | AB43: 0 | AC43: 0 | AD43: 0 | AE43: 0 | AF43: 0 | AG43: 0 | AH43: 0 | AI43: 0 | AJ43: 0 | AK43: 0 | AL43: 0 | AM43: 0 | AN43: 0 | AO43: 0 | AP43: 0 | AQ43: 0 | AR43: 0 | AS43: 0 | AT43: 0 | AU43: 0 | AV43: 0 | AW43: 0 | AX43: 0 | AY43: 0 | AZ43: 0 | BA43: 0 | BB43: 0 | BC43: 0 | BD43: 0 | BE43: 0 | BF43: 0 | BG43: 0 | BH43: 0 | BI43: 0 | BJ43: 0 | BK43: 0 | BL43: 0 | BM43: 0 | BN43: 0 | BO43: 0 | BP43: 0 | BQ43: 0 | BR43: 0 | BS43: 0 | BT43: 0 | BU43: 0 | BV43: 0 | BW43: 0 | BX43: 0 | BY43: 0 | BZ43: 0 | CA43: 0 | CB43: 0 | CC43: 0 | CD43: 0 | CE43: 0 | CF43: 0 | CG43: 0 | CH43: 0 | CI43: 0 | CJ43: 0 | CK43: 0 | CL43: 0 | CM43: 0 | CN43: 0 | CO43: 0 | CP43: 0 | CQ43: 0 | CR43: 0 | CS43: 0 | CT43: 0 | CU43: 0 | CV43: 0 | CW43: 0 | CX43: 0 | CY43: 0 | CZ43: 0 | DA43: 0 | DB43: 0 | DC43: 0 | DD43: 0 | DE43: 0 | DF43: 0 | DG43: 0 | DH43: 0 | DI43: 0 | DJ43: 0 | DK43: 0 | DL43: 0 | DM43: 0 | DN43: 0 | DO43: 0 | DP43: 0 | DQ43: 0 | DR43: 0 | DS43: 0 | DT43: 0 | DU43: 0 | DV43: 0 | DW43: 0 | DX43: 0 | DY43: 0 | DZ43: 0 | EA43: 0 | EB43: 0 | EC43: 0 | ED43: 0 | EE43: 0 | EF43: 0 | EG43: 0 | EH43: 0 | EI43: 0 | EJ43: 0 | EK43: 0 | EL43: 0 | EM43: 0 | EN43: 0 | EO43: 0 | EP43: 0 | EQ43: 0 | ER43: 0 | ES43: 0 | ET43: 0 | EU43: 0 | EV43: 0 | EW43: 0 | EX43: 0 | EY43: 0 | EZ43: 0 | FA43: 0 | FB43: 0 | FC43: 0 | FD43: 0 | FE43: 0 | FF43: 0 | FG43: 0 | FH43: 0 | FI43: 0 | FJ43: 0 | FK43: 0 | FL43: 0 | FM43: 0 | FN43: 0 | FO43: 0 | FP43: 0 | FQ43: 0 | FR43: 0 | FS43: 0 | FT43: 0 | FU43: 0 | FV43: 0 | FW43: 0 | FX43: 0 | FY43: 0 | FZ43: 0 | GA43: 0 | GB43: 0 | GC43: 0 | GD43: 0 | GE43: 0 | GF43: 0 | GG43: 0 | GH43: 0 | GI43: 0 | GJ43: 0 | GK43: 0 | GL43: 0 | GM43: 0 | GN43: 0 | GO43: 0 | GP43: 0 | GQ43: 0 | GR43: 0 | GS43: 0 | GT43: 0 | GU43: 0 | GV43: 0 | GW43: 0 | GX43: 0 | GY43: 0 | GZ43: 0 | HA43: 0 | HB43: 0 | HC43: 0 | HD43: 0 | HE43: 0 | HF43: 0 | HG43: 0 | HH43: 0 | HI43: 0 | HJ43: 0 | HK43: 0 | HL43: 0 | HM43: 0 | HN43: 0 | HO43: 0 | HP43: 0 | HQ43: 0 | HR43: 0 | HS43: 0 | HT43: 0 | HU43: 0 | HV43: 0 | HW43: 0 | HX43: 0 | HY43: 0 | HZ43: 0 | IA43: 0 | IB43: 0 | IC43: 0 | ID43: 0 | IE43: 0 | IF43: 0 | IG43: 0 | IH43: 0 | II43: 0 | IJ43: 0 | IK43: 0 | IL43: 0 | IM43: 0 | IN43: 0 | IO43: 0 | IP43: 0 | IQ43: 0 | IR43: 0 | IS43: 0 | IT43: 0 | IU43: 0 | IV43: 0 | IW43: 0 | IX43: 0 | IY43: 0 | IZ43: 0 | JA43: 0 | JB43: 0 | JC43: 0 | JD43: 0 | JE43: 0 | JF43: 0 | JG43: 0 | JH43: 0 | JI43: 0 | JJ43: 0 | JK43: 0 | JL43: 0 | JM43: 0 | JN43: 0 | JO43: 0 | JP43: 0 | JQ43: 0 | JR43: 0 | JS43: 0 | JT43: 0 | JU43: 0 | JV43: 0 | JW43: 0 | JX43: 0 | JY43: 0 | JZ43: 0 | KA43: 0 | KB43: 0 | KC43: 0 | KD43: 0 | KE43: 0 | KF43: 0 | KG43: 0 | KH43: 0 | KI43: 0 | KJ43: 0 | KK43: 0 | KL43: 0 | KM43: 0 | KN43: 0 | KO43: 0 | KP43: 0 | KQ43: 0 | KR43: 0 | KS43: 0 | KT43: 0 | KU43: 0 | KV43: 0 | KW43: 0 | KX43: 0 | KY43: 0 | KZ43: 0 | LA43: 0 | LB43: 0 | LC43: 0 | LD43: 0 | LE43: 0 | LF43: 0 | LG43: 0 | LH43: 0 | LI43: 0 | LJ43: 0 | LK43: 0 | LL43: 0 | LM43: 0 | LN43: 0 | LO43: 0 | LP43: 0 | LQ43: 0 | LR43: 0 | LS43: 0 | LT43: 0 | LU43: 0 | LV43: 0 | LW43: 0 | LX43: 0 | LY43: 0 | LZ43: 0 | MA43: 0 | MB43: 0 | MC43: 0 | MD43: 0 | ME43: 0 | MF43: 0 | MG43: 0 | MH43: 0 | MI43: 0 | MJ43: 0 | MK43: 0 | ML43: 0 | MM43: 0 | MN43: 0 | MO43: 0 | MP43: 0 | MQ43: 0 | MR43: 0 | MS43: 0 | MT43: 0 | MU43: 0 | MV43: 0 | MW43: 0 | MX43: 0 | MY43: 0 | MZ43: 0 | NA43: 0 | NB43: 0 | NC43: 0 | ND43: 0 | NE43: 0 | NF43: 0 | NG43: 0 | NH43: 0 | NI43: 0 | NJ43: 0 | NK43: 0 | NL43: 0 | NM43: 0 | NN43: 0 | NO43: 0 | NP43: 0 | NQ43: 0 | NR43: 0 | NS43: 0 | NT43: 0 | NU43: 0 | NV43: 0 | NW43: 0 | NX43: 0 | NY43: 0 | NZ43: 0 | OA43: 0 | OB43: 0 | OC43: 0 | OD43: 0 | OE43: 0 | OF43: 0 | OG43: 0 | OH43: 0 | OI43: 0 | OJ43: 0 | OK43: 0 | OL43: 0 | OM43: 0 | ON43: 0 | OO43: 0 | OP43: 0 | OQ43: 0 | OR43: 0 | OS43: 0 | OT43: 0 | OU43: 0 | OV43: 0 | OW43: 0 | OX43: 0 | OY43: 0 | OZ43: 0 | PA43: 0 | PB43: 0 | PC43: 0 | PD43: 0 | PE43: 0 | PF43: 0 | PG43: 0 | PH43: 0 | PI43: 0 | PJ43: 0 | PK43: 0 | PL43: 0 | PM43: 0 | PN43: 0 | PO43: 0 | PP43: 0 | PQ43: 0 | PR43: 0 | PS43: 0 | PT43: 0 | PU43: 0 | PV43: 0 | PW43: 0 | PX43: 0 | PY43: 0 | PZ43: 0 | QA43: 0 | QB43: 0 | QC43: 0 | QD43: 0 | QE43: 0 | QF43: 0 | QG43: 0 | QH43: 0 | QI43: 0 | QJ43: 0 | QK43: 0 | QL43: 0 | QM43: 0 | QN43: 0 | QO43: 0 | QP43: 0 | QQ43: 0 | QR43: 0 | QS43: 0 | QT43: 0 | QU43: 0 | QV43: 0 | QW43: 0 | QX43: 0 | QY43: 0 | QZ43: 0 | RA43: 0 | RB43: 0 | RC43: 0 | RD43: 0 | RE43: 0 | RF43: 0 | RG43: 0 | RH43: 0 | RI43: 0 | RJ43: 0 | RK43: 0 | RL43: 0 | RM43: 0 | RN43: 0 | RO43: 0 | RP43: 0 | RQ43: 0 | RR43: 0 | RS43: 0 | RT43: 0 | RU43: 0 | RV43: 0 | RW43: 0 | RX43: 0 | RY43: 0 | RZ43: 0 | SA43: 0 | SB43: 0 | SC43: 0 | SD43: 0 | SE43: 0 | SF43: 0 | SG43: 0 | SH43: 0 | SI43: 0 | SJ43: 0 | SK43: 0 | SL43: 0 | SM43: 0 | SN43: 0 | SO43: 0 | SP43: 0 | SQ43: 0 | SR43: 0 | SS43: 0 | ST43: 0 | SU43: 0 | SV43: 0 | SW43: 0 | SX43: 0 | SY43: 0 | SZ43: 0 | TA43: 0 | TB43: 0 | TC43: 0 | TD43: 0 | TE43: 0 | TF43: 0 | TG43: 0 | TH43: 0 | TI43: 0 | TJ43: 0 | TK43: 0 | TL43: 0 | TM43: 0 | TN43: 0 | TO43: 0 | TP43: 0 | TQ43: 0 | TR43: 0 | TS43: 0 | TT43: 0 | TU43: 0 | TV43: 0 | TW43: 0 | TX43: 0 | TY43: 0 | TZ43: 0 | UA43: 0 | UB43: 0 | UC43: 0 | UD43: 0 | UE43: 0 | UF43: 0 | UG43: 0 | UH43: 0 | UI43: 0 | UJ43: 0 | UK43: 0 | UL43: 0 | UM43: 0 | UN43: 0 | UO43: 0 | UP43: 0 | UQ43: 0 | UR43: 0 | US43: 0 | UT43: 0 | UU43: 0 | UV43: 0 | UW43: 0 | UX43: 0 | UY43: 0 | UZ43: 0 | VA43: 0 | VB43: 0 | VC43: 0 | VD43: 0 | VE43: 0 | VF43: 0 | VG43: 0 | VH43: 0 | VI43: 0 | VJ43: 0 | VK43: 0 | VL43: 0 | VM43: 0 | VN43: 0 | VO43: 0 | VP43: 0 | VQ43: 0 | VR43: 0 | VS43: 0 | VT43: 0 | VU43: 0 | VV43: 0 | VW43: 0 | VX43: 0 | VY43: 0 | VZ43: 0 | WA43: 0 | WB43: 0 | WC43: 0 | WD43: 0 | WE43: 0 | WF43: 0 | WG43: 0 | WH43: 0 | WI43: 0 | WJ43: 0 | WK43: 0 | WL43: 0
G44: 31 | H44: Total Capital In-Service (Annual): | I44: 0 | J44: 0 | K44: 0 | L44: 0 | M44: 0 | N44: 0 | O44: 0 | P44: 0 | Q44: 0 | R44: 0 | S44: 0 | T44: 0 | U44: 0 | V44: 0 | W44: 0 | X44: 0 | Y44: 0 | Z44: 0 | AA44: 0 | AB44: 0 | AC44: 0 | AD44: 0 | AE44: 0 | AF44: 0 | AG44: 0 | AH44: 0 | AI44: 0 | AJ44: 0 | AK44: 0 | AL44: 0 | AM44: 0 | AN44: 0 | AO44: 0 | AP44: 0 | AQ44: 0 | AR44: 0 | AS44: 0 | AT44: 0 | AU44: 0 | AV44: 0 | AW44: 0 | AX44: 0 | AY44: 0 | AZ44: 0 | BA44: 0 | BB44: 0 | BC44: 0 | BD44: 0 | BE44: 0 | BF44: 0 | BG44: 0 | BH44: 0
G45: 32 | H45: Total Capital In-Service (Monthly): | I45: 0 | J45: 0 | K45: 0 | L45: 0 | M45: 0 | N45: 0 | O45: 0 | P45: 0 | Q45: 0 | R45: 0 | S45: 0 | T45: 0 | U45: 0 | V45: 0 | W45: 0 | X45: 0 | Y45: 0 | Z45: 0 | AA45: 0 | AB45: 0 | AC45: 0 | AD45: 0 | AE45: 0 | AF45: 0 | AG45: 0 | AH45: 0 | AI45: 0 | AJ45: 0 | AK45: 0 | AL45: 0 | AM45: 0 | AN45: 0 | AO45: 0 | AP45: 0 | AQ45: 0 | AR45: 0 | AS45: 0 | AT45: 0 | AU45: 0 | AV45: 0 | AW45: 0 | AX45: 0 | AY45: 0 | AZ45: 0 | BA45: 0 | BB45: 0 | BC45: 0 | BD45: 0 | BE45: 0 | BF45: 0 | BG45: 0 | BH45: 0 | BI45: 0 | BJ45: 0 | BK45: 0 | BL45: 0 | BM45: 0 | BN45: 0 | BO45: 0 | BP45: 0 | BQ45: 0 | BR45: 0 | BS45: 0 | BT45: 0 | BU45: 0 | BV45: 0 | BW45: 0 | BX45: 0 | BY45: 0 | BZ45: 0 | CA45: 0 | CB45: 0 | CC45: 0 | CD45: 0 | CE45: 0 | CF45: 0 | CG45: 0 | CH45: 0 | CI45: 0 | CJ45: 0 | CK45: 0 | CL45: 0 | CM45: 0 | CN45: 0 | CO45: 0 | CP45: 0 | CQ45: 0 | CR45: 0 | CS45: 0 | CT45: 0 | CU45: 0 | CV45: 0 | CW45: 0 | CX45: 0 | CY45: 0 | CZ45: 0 | DA45: 0 | DB45: 0 | DC45: 0 | DD45: 0 | DE45: 0 | DF45: 0 | DG45: 0 | DH45: 0 | DI45: 0 | DJ45: 0 | DK45: 0 | DL45: 0 | DM45: 0 | DN45: 0 | DO45: 0 | DP45: 0 | DQ45: 0 | DR45: 0 | DS45: 0 | DT45: 0 | DU45: 0 | DV45: 0 | DW45: 0 | DX45: 0 | DY45: 0 | DZ45: 0 | EA45: 0 | EB45: 0 | EC45: 0 | ED45: 0 | EE45: 0 | EF45: 0 | EG45: 0 | EH45: 0 | EI45: 0 | EJ45: 0 | EK45: 0 | EL45: 0 | EM45: 0 | EN45: 0 | EO45: 0 | EP45: 0 | EQ45: 0 | ER45: 0 | ES45: 0 | ET45: 0 | EU45: 0 | EV45: 0 | EW45: 0 | EX45: 0 | EY45: 0 | EZ45: 0 | FA45: 0 | FB45: 0 | FC45: 0 | FD45: 0 | FE45: 0 | FF45: 0 | FG45: 0 | FH45: 0 | FI45: 0 | FJ45: 0 | FK45: 0 | FL45: 0 | FM45: 0 | FN45: 0 | FO45: 0 | FP45: 0 | FQ45: 0 | FR45: 0 | FS45: 0 | FT45: 0 | FU45: 0 | FV45: 0 | FW45: 0 | FX45: 0 | FY45: 0 | FZ45: 0 | GA45: 0 | GB45: 0 | GC45: 0 | GD45: 0 | GE45: 0 | GF45: 0 | GG45: 0 | GH45: 0 | GI45: 0 | GJ45: 0 | GK45: 0 | GL45: 0 | GM45: 0 | GN45: 0 | GO45: 0 | GP45: 0 | GQ45: 0 | GR45: 0 | GS45: 0 | GT45: 0 | GU45: 0 | GV45: 0 | GW45: 0 | GX45: 0 | GY45: 0 | GZ45: 0 | HA45: 0 | HB45: 0 | HC45: 0 | HD45: 0 | HE45: 0 | HF45: 0 | HG45: 0 | HH45: 0 | HI45: 0 | HJ45: 0 | HK45: 0 | HL45: 0 | HM45: 0 | HN45: 0 | HO45: 0 | HP45: 0 | HQ45: 0 | HR45: 0 | HS45: 0 | HT45: 0 | HU45: 0 | HV45: 0 | HW45: 0 | HX45: 0 | HY45: 0 | HZ45: 0 | IA45: 0 | IB45: 0 | IC45: 0 | ID45: 0 | IE45: 0 | IF45: 0 | IG45: 0 | IH45: 0 | II45: 0 | IJ45: 0 | IK45: 0 | IL45: 0 | IM45: 0 | IN45: 0 | IO45: 0 | IP45: 0 | IQ45: 0 | IR45: 0 | IS45: 0 | IT45: 0 | IU45: 0 | IV45: 0 | IW45: 0 | IX45: 0 | IY45: 0 | IZ45: 0 | JA45: 0 | JB45: 0 | JC45: 0 | JD45: 0 | JE45: 0 | JF45: 0 | JG45: 0 | JH45: 0 | JI45: 0 | JJ45: 0 | JK45: 0 | JL45: 0 | JM45: 0 | JN45: 0 | JO45: 0 | JP45: 0 | JQ45: 0 | JR45: 0 | JS45: 0 | JT45: 0 | JU45: 0 | JV45: 0 | JW45: 0 | JX45: 0 | JY45: 0 | JZ45: 0 | KA45: 0 | KB45: 0 | KC45: 0 | KD45: 0 | KE45: 0 | KF45: 0 | KG45: 0 | KH45: 0 | KI45: 0 | KJ45: 0 | KK45: 0 | KL45: 0 | KM45: 0 | KN45: 0 | KO45: 0 | KP45: 0 | KQ45: 0 | KR45: 0 | KS45: 0 | KT45: 0 | KU45: 0 | KV45: 0 | KW45: 0 | KX45: 0 | KY45: 0 | KZ45: 0 | LA45: 0 | LB45: 0 | LC45: 0 | LD45: 0 | LE45: 0 | LF45: 0 | LG45: 0 | LH45: 0 | LI45: 0 | LJ45: 0 | LK45: 0 | LL45: 0 | LM45: 0 | LN45: 0 | LO45: 0 | LP45: 0 | LQ45: 0 | LR45: 0 | LS45: 0 | LT45: 0 | LU45: 0 | LV45: 0 | LW45: 0 | LX45: 0 | LY45: 0 | LZ45: 0 | MA45: 0 | MB45: 0 | MC45: 0 | MD45: 0 | ME45: 0 | MF45: 0 | MG45: 0 | MH45: 0 | MI45: 0 | MJ45: 0 | MK45: 0 | ML45: 0 | MM45: 0 | MN45: 0 | MO45: 0 | MP45: 0 | MQ45: 0 | MR45: 0 | MS45: 0 | MT45: 0 | MU45: 0 | MV45: 0 | MW45: 0 | MX45: 0 | MY45: 0 | MZ45: 0 | NA45: 0 | NB45: 0 | NC45: 0 | ND45: 0 | NE45: 0 | NF45: 0 | NG45: 0 | NH45: 0 | NI45: 0 | NJ45: 0 | NK45: 0 | NL45: 0 | NM45: 0 | NN45: 0 | NO45: 0 | NP45: 0 | NQ45: 0 | NR45: 0 | NS45: 0 | NT45: 0 | NU45: 0 | NV45: 0 | NW45: 0 | NX45: 0 | NY45: 0 | NZ45: 0 | OA45: 0 | OB45: 0 | OC45: 0 | OD45: 0 | OE45: 0 | OF45: 0 | OG45: 0 | OH45: 0 | OI45: 0 | OJ45: 0 | OK45: 0 | OL45: 0 | OM45: 0 | ON45: 0 | OO45: 0 | OP45: 0 | OQ45: 0 | OR45: 0 | OS45: 0 | OT45: 0 | OU45: 0 | OV45: 0 | OW45: 0 | OX45: 0 | OY45: 0 | OZ45: 0 | PA45: 0 | PB45: 0 | PC45: 0 | PD45: 0 | PE45: 0 | PF45: 0 | PG45: 0 | PH45: 0 | PI45: 0 | PJ45: 0 | PK45: 0 | PL45: 0 | PM45: 0 | PN45: 0 | PO45: 0 | PP45: 0 | PQ45: 0 | PR45: 0 | PS45: 0 | PT45: 0 | PU45: 0 | PV45: 0 | PW45: 0 | PX45: 0 | PY45: 0 | PZ45: 0 | QA45: 0 | QB45: 0 | QC45: 0 | QD45: 0 | QE45: 0 | QF45: 0 | QG45: 0 | QH45: 0 | QI45: 0 | QJ45: 0 | QK45: 0 | QL45: 0 | QM45: 0 | QN45: 0 | QO45: 0 | QP45: 0 | QQ45: 0 | QR45: 0 | QS45: 0 | QT45: 0 | QU45: 0 | QV45: 0 | QW45: 0 | QX45: 0 | QY45: 0 | QZ45: 0 | RA45: 0 | RB45: 0 | RC45: 0 | RD45: 0 | RE45: 0 | RF45: 0 | RG45: 0 | RH45: 0 | RI45: 0 | RJ45: 0 | RK45: 0 | RL45: 0 | RM45: 0 | RN45: 0 | RO45: 0 | RP45: 0 | RQ45: 0 | RR45: 0 | RS45: 0 | RT45: 0 | RU45: 0 | RV45: 0 | RW45: 0 | RX45: 0 | RY45: 0 | RZ45: 0 | SA45: 0 | SB45: 0 | SC45: 0 | SD45: 0 | SE45: 0 | SF45: 0 | SG45: 0 | SH45: 0 | SI45: 0 | SJ45: 0 | SK45: 0 | SL45: 0 | SM45: 0 | SN45: 0 | SO45: 0 | SP45: 0 | SQ45: 0 | SR45: 0 | SS45: 0 | ST45: 0 | SU45: 0 | SV45: 0 | SW45: 0 | SX45: 0 | SY45: 0 | SZ45: 0 | TA45: 0 | TB45: 0 | TC45: 0 | TD45: 0 | TE45: 0 | TF45: 0 | TG45: 0 | TH45: 0 | TI45: 0 | TJ45: 0 | TK45: 0 | TL45: 0 | TM45: 0 | TN45: 0 | TO45: 0 | TP45: 0 | TQ45: 0 | TR45: 0 | TS45: 0 | TT45: 0 | TU45: 0 | TV45: 0 | TW45: 0 | TX45: 0 | TY45: 0 | TZ45: 0 | UA45: 0 | UB45: 0 | UC45: 0 | UD45: 0 | UE45: 0 | UF45: 0 | UG45: 0 | UH45: 0 | UI45: 0 | UJ45: 0 | UK45: 0 | UL45: 0 | UM45: 0 | UN45: 0 | UO45: 0 | UP45: 0 | UQ45: 0 | UR45: 0 | US45: 0 | UT45: 0 | UU45: 0 | UV45: 0 | UW45: 0 | UX45: 0 | UY45: 0 | UZ45: 0 | VA45: 0 | VB45: 0 | VC45: 0 | VD45: 0 | VE45: 0 | VF45: 0 | VG45: 0 | VH45: 0 | VI45: 0 | VJ45: 0 | VK45: 0 | VL45: 0 | VM45: 0 | VN45: 0 | VO45: 0 | VP45: 0 | VQ45: 0 | VR45: 0 | VS45: 0 | VT45: 0 | VU45: 0 | VV45: 0 | VW45: 0 | VX45: 0 | VY45: 0 | VZ45: 0 | WA45: 0 | WB45: 0 | WC45: 0 | WD45: 0 | WE45: 0 | WF45: 0 | WG45: 0 | WH45: 0 | WI45: 0 | WJ45: 0 | WK45: 0 | WL45: 0
G46: 33
G47: 34
G48: 35
G49: 36 | H49: O&M Non-Labor Direct (Annual): | I49: 1053312.484 | J49: 0 | K49: 0 | L49: 783945.9768 | M49: 269366.5068 | N49: 0 | O49: 0 | P49: 0 | Q49: 0 | R49: 0 | S49: 0 | T49: 0 | U49: 0 | V49: 0 | W49: 0 | X49: 0 | Y49: 0 | Z49: 0 | AA49: 0 | AB49: 0 | AC49: 0 | AD49: 0 | AE49: 0 | AF49: 0 | AG49: 0 | AH49: 0 | AI49: 0 | AJ49: 0 | AK49: 0 | AL49: 0 | AM49: 0 | AN49: 0 | AO49: 0 | AP49: 0 | AQ49: 0 | AR49: 0 | AS49: 0 | AT49: 0 | AU49: 0 | AV49: 0 | AW49: 0 | AX49: 0 | AY49: 0 | AZ49: 0 | BA49: 0 | BB49: 0 | BC49: 0 | BD49: 0 | BE49: 0 | BF49: 0 | BG49: 0 | BH49: 0
G50: 37 | H50: O&M Non-Labor Direct (Monthly): | I50: 1053312.484 | J50: 0 | K50: 0 | L50: 0 | M50: 0 | N50: 0 | O50: 0 | P50: 0 | Q50: 0 | R50: 0 | S50: 0 | T50: 0 | U50: 0 | V50: 0 | W50: 32140.97452 | X50: 62912.55249 | Y50: 69203.80774 | Z50: 69203.80774 | AA50: 66058.18011 | AB50: 69203.80774 | AC50: 72349.43536 | AD50: 66058.18011 | AE50: 69203.80774 | AF50: 69203.80774 | AG50: 66058.18011 | AH50: 72349.43536 | AI50: 65775.54237 | AJ50: 62643.37368 | AK50: 72039.87973 | AL50: 68907.71105 | AM50: 0 | AN50: 0 | AO50: 0 | AP50: 0 | AQ50: 0 | AR50: 0 | AS50: 0 | AT50: 0 | AU50: 0 | AV50: 0 | AW50: 0 | AX50: 0 | AY50: 0 | AZ50: 0 | BA50: 0 | BB50: 0 | BC50: 0 | BD50: 0 | BE50: 0 | BF50: 0 | BG50: 0 | BH50: 0 | BI50: 0 | BJ50: 0 | BK50: 0 | BL50: 0 | BM50: 0 | BN50: 0 | BO50: 0 | BP50: 0 | BQ50: 0 | BR50: 0 | BS50: 0 | BT50: 0 | BU50: 0 | BV50: 0 | BW50: 0 | BX50: 0 | BY50: 0 | BZ50: 0 | CA50: 0 | CB50: 0 | CC50: 0 | CD50: 0 | CE50: 0 | CF50: 0 | CG50: 0 | CH50: 0 | CI50: 0 | CJ50: 0 | CK50: 0 | CL50: 0 | CM50: 0 | CN50: 0 | CO50: 0 | CP50: 0 | CQ50: 0 | CR50: 0 | CS50: 0 | CT50: 0 | CU50: 0 | CV50: 0 | CW50: 0 | CX50: 0 | CY50: 0 | CZ50: 0 | DA50: 0 | DB50: 0 | DC50: 0 | DD50: 0 | DE50: 0 | DF50: 0 | DG50: 0 | DH50: 0 | DI50: 0 | DJ50: 0 | DK50: 0 | DL50: 0 | DM50: 0 | DN50: 0 | DO50: 0 | DP50: 0 | DQ50: 0 | DR50: 0 | DS50: 0 | DT50: 0 | DU50: 0 | DV50: 0 | DW50: 0 | DX50: 0 | DY50: 0 | DZ50: 0 | EA50: 0 | EB50: 0 | EC50: 0 | ED50: 0 | EE50: 0 | EF50: 0 | EG50: 0 | EH50: 0 | EI50: 0 | EJ50: 0 | EK50: 0 | EL50: 0 | EM50: 0 | EN50: 0 | EO50: 0 | EP50: 0 | EQ50: 0 | ER50: 0 | ES50: 0 | ET50: 0 | EU50: 0 | EV50: 0 | EW50: 0 | EX50: 0 | EY50: 0 | EZ50: 0 | FA50: 0 | FB50: 0 | FC50: 0 | FD50: 0 | FE50: 0 | FF50: 0 | FG50: 0 | FH50: 0 | FI50: 0 | FJ50: 0 | FK50: 0 | FL50: 0 | FM50: 0 | FN50: 0 | FO50: 0 | FP50: 0 | FQ50: 0 | FR50: 0 | FS50: 0 | FT50: 0 | FU50: 0 | FV50: 0 | FW50: 0 | FX50: 0 | FY50: 0 | FZ50: 0 | GA50: 0 | GB50: 0 | GC50: 0 | GD50: 0 | GE50: 0 | GF50: 0 | GG50: 0 | GH50: 0 | GI50: 0 | GJ50: 0 | GK50: 0 | GL50: 0 | GM50: 0 | GN50: 0 | GO50: 0 | GP50: 0 | GQ50: 0 | GR50: 0 | GS50: 0 | GT50: 0 | GU50: 0 | GV50: 0 | GW50: 0 | GX50: 0 | GY50: 0 | GZ50: 0 | HA50: 0 | HB50: 0 | HC50: 0 | HD50: 0 | HE50: 0 | HF50: 0 | HG50: 0 | HH50: 0 | HI50: 0 | HJ50: 0 | HK50: 0 | HL50: 0 | HM50: 0 | HN50: 0 | HO50: 0 | HP50: 0 | HQ50: 0 | HR50: 0 | HS50: 0 | HT50: 0 | HU50: 0 | HV50: 0 | HW50: 0 | HX50: 0 | HY50: 0 | HZ50: 0 | IA50: 0 | IB50: 0 | IC50: 0 | ID50: 0 | IE50: 0 | IF50: 0 | IG50: 0 | IH50: 0 | II50: 0 | IJ50: 0 | IK50: 0 | IL50: 0 | IM50: 0 | IN50: 0 | IO50: 0 | IP50: 0 | IQ50: 0 | IR50: 0 | IS50: 0 | IT50: 0 | IU50: 0 | IV50: 0 | IW50: 0 | IX50: 0 | IY50: 0 | IZ50: 0 | JA50: 0 | JB50: 0 | JC50: 0 | JD50: 0 | JE50: 0 | JF50: 0 | JG50: 0 | JH50: 0 | JI50: 0 | JJ50: 0 | JK50: 0 | JL50: 0 | JM50: 0 | JN50: 0 | JO50: 0 | JP50: 0 | JQ50: 0 | JR50: 0 | JS50: 0 | JT50: 0 | JU50: 0 | JV50: 0 | JW50: 0 | JX50: 0 | JY50: 0 | JZ50: 0 | KA50: 0 | KB50: 0 | KC50: 0 | KD50: 0 | KE50: 0 | KF50: 0 | KG50: 0 | KH50: 0 | KI50: 0 | KJ50: 0 | KK50: 0 | KL50: 0 | KM50: 0 | KN50: 0 | KO50: 0 | KP50: 0 | KQ50: 0 | KR50: 0 | KS50: 0 | KT50: 0 | KU50: 0 | KV50: 0 | KW50: 0 | KX50: 0 | KY50: 0 | KZ50: 0 | LA50: 0 | LB50: 0 | LC50: 0 | LD50: 0 | LE50: 0 | LF50: 0 | LG50: 0 | LH50: 0 | LI50: 0 | LJ50: 0 | LK50: 0 | LL50: 0 | LM50: 0 | LN50: 0 | LO50: 0 | LP50: 0 | LQ50: 0 | LR50: 0 | LS50: 0 | LT50: 0 | LU50: 0 | LV50: 0 | LW50: 0 | LX50: 0 | LY50: 0 | LZ50: 0 | MA50: 0 | MB50: 0 | MC50: 0 | MD50: 0 | ME50: 0 | MF50: 0 | MG50: 0 | MH50: 0 | MI50: 0 | MJ50: 0 | MK50: 0 | ML50: 0 | MM50: 0 | MN50: 0 | MO50: 0 | MP50: 0 | MQ50: 0 | MR50: 0 | MS50: 0 | MT50: 0 | MU50: 0 | MV50: 0 | MW50: 0 | MX50: 0 | MY50: 0 | MZ50: 0 | NA50: 0 | NB50: 0 | NC50: 0 | ND50: 0 | NE50: 0 | NF50: 0 | NG50: 0 | NH50: 0 | NI50: 0 | NJ50: 0 | NK50: 0 | NL50: 0 | NM50: 0 | NN50: 0 | NO50: 0 | NP50: 0 | NQ50: 0 | NR50: 0 | NS50: 0 | NT50: 0 | NU50: 0 | NV50: 0 | NW50: 0 | NX50: 0 | NY50: 0 | NZ50: 0 | OA50: 0 | OB50: 0 | OC50: 0 | OD50: 0 | OE50: 0 | OF50: 0 | OG50: 0 | OH50: 0 | OI50: 0 | OJ50: 0 | OK50: 0 | OL50: 0 | OM50: 0 | ON50: 0 | OO50: 0 | OP50: 0 | OQ50: 0 | OR50: 0 | OS50: 0 | OT50: 0 | OU50: 0 | OV50: 0 | OW50: 0 | OX50: 0 | OY50: 0 | OZ50: 0 | PA50: 0 | PB50: 0 | PC50: 0 | PD50: 0 | PE50: 0 | PF50: 0 | PG50: 0 | PH50: 0 | PI50: 0 | PJ50: 0 | PK50: 0 | PL50: 0 | PM50: 0 | PN50: 0 | PO50: 0 | PP50: 0 | PQ50: 0 | PR50: 0 | PS50: 0 | PT50: 0 | PU50: 0 | PV50: 0 | PW50: 0 | PX50: 0 | PY50: 0 | PZ50: 0 | QA50: 0 | QB50: 0 | QC50: 0 | QD50: 0 | QE50: 0 | QF50: 0 | QG50: 0 | QH50: 0 | QI50: 0 | QJ50: 0 | QK50: 0 | QL50: 0 | QM50: 0 | QN50: 0 | QO50: 0 | QP50: 0 | QQ50: 0 | QR50: 0 | QS50: 0 | QT50: 0 | QU50: 0 | QV50: 0 | QW50: 0 | QX50: 0 | QY50: 0 | QZ50: 0 | RA50: 0 | RB50: 0 | RC50: 0 | RD50: 0 | RE50: 0 | RF50: 0 | RG50: 0 | RH50: 0 | RI50: 0 | RJ50: 0 | RK50: 0 | RL50: 0 | RM50: 0 | RN50: 0 | RO50: 0 | RP50: 0 | RQ50: 0 | RR50: 0 | RS50: 0 | RT50: 0 | RU50: 0 | RV50: 0 | RW50: 0 | RX50: 0 | RY50: 0 | RZ50: 0 | SA50: 0 | SB50: 0 | SC50: 0 | SD50: 0 | SE50: 0 | SF50: 0 | SG50: 0 | SH50: 0 | SI50: 0 | SJ50: 0 | SK50: 0 | SL50: 0 | SM50: 0 | SN50: 0 | SO50: 0 | SP50: 0 | SQ50: 0 | SR50: 0 | SS50: 0 | ST50: 0 | SU50: 0 | SV50: 0 | SW50: 0 | SX50: 0 | SY50: 0 | SZ50: 0 | TA50: 0 | TB50: 0 | TC50: 0 | TD50: 0 | TE50: 0 | TF50: 0 | TG50: 0 | TH50: 0 | TI50: 0 | TJ50: 0 | TK50: 0 | TL50: 0 | TM50: 0 | TN50: 0 | TO50: 0 | TP50: 0 | TQ50: 0 | TR50: 0 | TS50: 0 | TT50: 0 | TU50: 0 | TV50: 0 | TW50: 0 | TX50: 0 | TY50: 0 | TZ50: 0 | UA50: 0 | UB50: 0 | UC50: 0 | UD50: 0 | UE50: 0 | UF50: 0 | UG50: 0 | UH50: 0 | UI50: 0 | UJ50: 0 | UK50: 0 | UL50: 0 | UM50: 0 | UN50: 0 | UO50: 0 | UP50: 0 | UQ50: 0 | UR50: 0 | US50: 0 | UT50: 0 | UU50: 0 | UV50: 0 | UW50: 0 | UX50: 0 | UY50: 0 | UZ50: 0 | VA50: 0 | VB50: 0 | VC50: 0 | VD50: 0 | VE50: 0 | VF50: 0 | VG50: 0 | VH50: 0 | VI50: 0 | VJ50: 0 | VK50: 0 | VL50: 0 | VM50: 0 | VN50: 0 | VO50: 0 | VP50: 0 | VQ50: 0 | VR50: 0 | VS50: 0 | VT50: 0 | VU50: 0 | VV50: 0 | VW50: 0 | VX50: 0 | VY50: 0 | VZ50: 0 | WA50: 0 | WB50: 0 | WC50: 0 | WD50: 0 | WE50: 0 | WF50: 0 | WG50: 0 | WH50: 0 | WI50: 0 | WJ50: 0 | WK50: 0 | WL50: 0
G51: 38 | H51: Cost Type
G52: 39 | J52: 0 | K52: 0 | L52: 0 | M52: 0 | N52: 0 | O52: 0 | P52: 0 | Q52: 0 | R52: 0 | S52: 0 | T52: 0 | U52: 0 | V52: 0 | W52: 0 | X52: 0 | Y52: 0 | Z52: 0 | AA52: 0 | AB52: 0 | AC52: 0 | AD52: 0 | AE52: 0 | AF52: 0 | AG52: 0 | AH52: 0 | AI52: 0 | AJ52: 0 | AK52: 0 | AL52: 0 | AM52: 0 | AN52: 0 | AO52: 0 | AP52: 0 | AQ52: 0 | AR52: 0 | AS52: 0 | AT52: 0 | AU52: 0 | AV52: 0 | AW52: 0 | AX52: 0 | AY52: 0 | AZ52: 0 | BA52: 0 | BB52: 0 | BC52: 0 | BD52: 0 | BE52: 0 | BF52: 0 | BG52: 0 | BH52: 0 | BI52: 0 | BJ52: 0 | BK52: 0 | BL52: 0 | BM52: 0 | BN52: 0 | BO52: 0 | BP52: 0 | BQ52: 0 | BR52: 0 | BS52: 0 | BT52: 0 | BU52: 0 | BV52: 0 | BW52: 0 | BX52: 0 | BY52: 0 | BZ52: 0 | CA52: 0 | CB52: 0 | CC52: 0 | CD52: 0 | CE52: 0 | CF52: 0 | CG52: 0 | CH52: 0 | CI52: 0 | CJ52: 0 | CK52: 0 | CL52: 0 | CM52: 0 | CN52: 0 | CO52: 0 | CP52: 0 | CQ52: 0 | CR52: 0 | CS52: 0 | CT52: 0 | CU52: 0 | CV52: 0 | CW52: 0 | CX52: 0 | CY52: 0 | CZ52: 0 | DA52: 0 | DB52: 0 | DC52: 0 | DD52: 0 | DE52: 0 | DF52: 0 | DG52: 0 | DH52: 0 | DI52: 0 | DJ52: 0 | DK52: 0 | DL52: 0 | DM52: 0 | DN52: 0 | DO52: 0 | DP52: 0 | DQ52: 0 | DR52: 0 | DS52: 0 | DT52: 0 | DU52: 0 | DV52: 0 | DW52: 0 | DX52: 0 | DY52: 0 | DZ52: 0 | EA52: 0 | EB52: 0 | EC52: 0 | ED52: 0 | EE52: 0 | EF52: 0 | EG52: 0 | EH52: 0 | EI52: 0 | EJ52: 0 | EK52: 0 | EL52: 0 | EM52: 0 | EN52: 0 | EO52: 0 | EP52: 0 | EQ52: 0 | ER52: 0 | ES52: 0 | ET52: 0 | EU52: 0 | EV52: 0 | EW52: 0 | EX52: 0 | EY52: 0 | EZ52: 0 | FA52: 0 | FB52: 0 | FC52: 0 | FD52: 0 | FE52: 0 | FF52: 0 | FG52: 0 | FH52: 0 | FI52: 0 | FJ52: 0 | FK52: 0 | FL52: 0 | FM52: 0 | FN52: 0 | FO52: 0 | FP52: 0 | FQ52: 0 | FR52: 0 | FS52: 0 | FT52: 0 | FU52: 0 | FV52: 0 | FW52: 0 | FX52: 0 | FY52: 0 | FZ52: 0 | GA52: 0 | GB52: 0 | GC52: 0 | GD52: 0 | GE52: 0 | GF52: 0 | GG52: 0 | GH52: 0 | GI52: 0 | GJ52: 0 | GK52: 0 | GL52: 0 | GM52: 0 | GN52: 0 | GO52: 0 | GP52: 0 | GQ52: 0 | GR52: 0 | GS52: 0 | GT52: 0 | GU52: 0 | GV52: 0 | GW52: 0 | GX52: 0 | GY52: 0 | GZ52: 0 | HA52: 0 | HB52: 0 | HC52: 0 | HD52: 0 | HE52: 0 | HF52: 0 | HG52: 0 | HH52: 0 | HI52: 0 | HJ52: 0 | HK52: 0 | HL52: 0 | HM52: 0 | HN52: 0 | HO52: 0 | HP52: 0 | HQ52: 0 | HR52: 0 | HS52: 0 | HT52: 0 | HU52: 0 | HV52: 0 | HW52: 0 | HX52: 0 | HY52: 0 | HZ52: 0 | IA52: 0 | IB52: 0 | IC52: 0 | ID52: 0 | IE52: 0 | IF52: 0 | IG52: 0 | IH52: 0 | II52: 0 | IJ52: 0 | IK52: 0 | IL52: 0 | IM52: 0 | IN52: 0 | IO52: 0 | IP52: 0 | IQ52: 0 | IR52: 0 | IS52: 0 | IT52: 0 | IU52: 0 | IV52: 0 | IW52: 0 | IX52: 0 | IY52: 0 | IZ52: 0 | JA52: 0 | JB52: 0 | JC52: 0 | JD52: 0 | JE52: 0 | JF52: 0 | JG52: 0 | JH52: 0 | JI52: 0 | JJ52: 0 | JK52: 0 | JL52: 0 | JM52: 0 | JN52: 0 | JO52: 0 | JP52: 0 | JQ52: 0 | JR52: 0 | JS52: 0 | JT52: 0 | JU52: 0 | JV52: 0 | JW52: 0 | JX52: 0 | JY52: 0 | JZ52: 0 | KA52: 0 | KB52: 0 | KC52: 0 | KD52: 0 | KE52: 0 | KF52: 0 | KG52: 0 | KH52: 0 | KI52: 0 | KJ52: 0 | KK52: 0 | KL52: 0 | KM52: 0 | KN52: 0 | KO52: 0 | KP52: 0 | KQ52: 0 | KR52: 0 | KS52: 0 | KT52: 0 | KU52: 0 | KV52: 0 | KW52: 0 | KX52: 0 | KY52: 0 | KZ52: 0 | LA52: 0 | LB52: 0 | LC52: 0 | LD52: 0 | LE52: 0 | LF52: 0 | LG52: 0 | LH52: 0 | LI52: 0 | LJ52: 0 | LK52: 0 | LL52: 0 | LM52: 0 | LN52: 0 | LO52: 0 | LP52: 0 | LQ52: 0 | LR52: 0 | LS52: 0 | LT52: 0 | LU52: 0 | LV52: 0 | LW52: 0 | LX52: 0 | LY52: 0 | LZ52: 0 | MA52: 0 | MB52: 0 | MC52: 0 | MD52: 0 | ME52: 0 | MF52: 0 | MG52: 0 | MH52: 0 | MI52: 0 | MJ52: 0 | MK52: 0 | ML52: 0 | MM52: 0 | MN52: 0 | MO52: 0 | MP52: 0 | MQ52: 0 | MR52: 0 | MS52: 0 | MT52: 0 | MU52: 0 | MV52: 0 | MW52: 0 | MX52: 0 | MY52: 0 | MZ52: 0 | NA52: 0 | NB52: 0 | NC52: 0 | ND52: 0 | NE52: 0 | NF52: 0 | NG52: 0 | NH52: 0 | NI52: 0 | NJ52: 0 | NK52: 0 | NL52: 0 | NM52: 0 | NN52: 0 | NO52: 0 | NP52: 0 | NQ52: 0 | NR52: 0 | NS52: 0 | NT52: 0 | NU52: 0 | NV52: 0 | NW52: 0 | NX52: 0 | NY52: 0 | NZ52: 0 | OA52: 0 | OB52: 0 | OC52: 0 | OD52: 0 | OE52: 0 | OF52: 0 | OG52: 0 | OH52: 0 | OI52: 0 | OJ52: 0 | OK52: 0 | OL52: 0 | OM52: 0 | ON52: 0 | OO52: 0 | OP52: 0 | OQ52: 0 | OR52: 0 | OS52: 0 | OT52: 0 | OU52: 0 | OV52: 0 | OW52: 0 | OX52: 0 | OY52: 0 | OZ52: 0 | PA52: 0 | PB52: 0 | PC52: 0 | PD52: 0 | PE52: 0 | PF52: 0 | PG52: 0 | PH52: 0 | PI52: 0 | PJ52: 0 | PK52: 0 | PL52: 0 | PM52: 0 | PN52: 0 | PO52: 0 | PP52: 0 | PQ52: 0 | PR52: 0 | PS52: 0 | PT52: 0 | PU52: 0 | PV52: 0 | PW52: 0 | PX52: 0 | PY52: 0 | PZ52: 0 | QA52: 0 | QB52: 0 | QC52: 0 | QD52: 0 | QE52: 0 | QF52: 0 | QG52: 0 | QH52: 0 | QI52: 0 | QJ52: 0 | QK52: 0 | QL52: 0 | QM52: 0 | QN52: 0 | QO52: 0 | QP52: 0 | QQ52: 0 | QR52: 0 | QS52: 0 | QT52: 0 | QU52: 0 | QV52: 0 | QW52: 0 | QX52: 0 | QY52: 0 | QZ52: 0 | RA52: 0 | RB52: 0 | RC52: 0 | RD52: 0 | RE52: 0 | RF52: 0 | RG52: 0 | RH52: 0 | RI52: 0 | RJ52: 0 | RK52: 0 | RL52: 0 | RM52: 0 | RN52: 0 | RO52: 0 | RP52: 0 | RQ52: 0 | RR52: 0 | RS52: 0 | RT52: 0 | RU52: 0 | RV52: 0 | RW52: 0 | RX52: 0 | RY52: 0 | RZ52: 0 | SA52: 0 | SB52: 0 | SC52: 0 | SD52: 0 | SE52: 0 | SF52: 0 | SG52: 0 | SH52: 0 | SI52: 0 | SJ52: 0 | SK52: 0 | SL52: 0 | SM52: 0 | SN52: 0 | SO52: 0 | SP52: 0 | SQ52: 0 | SR52: 0 | SS52: 0 | ST52: 0 | SU52: 0 | SV52: 0 | SW52: 0 | SX52: 0 | SY52: 0 | SZ52: 0 | TA52: 0 | TB52: 0 | TC52: 0 | TD52: 0 | TE52: 0 | TF52: 0 | TG52: 0 | TH52: 0 | TI52: 0 | TJ52: 0 | TK52: 0 | TL52: 0 | TM52: 0 | TN52: 0 | TO52: 0 | TP52: 0 | TQ52: 0 | TR52: 0 | TS52: 0 | TT52: 0 | TU52: 0 | TV52: 0 | TW52: 0 | TX52: 0 | TY52: 0 | TZ52: 0 | UA52: 0 | UB52: 0 | UC52: 0 | UD52: 0 | UE52: 0 | UF52: 0 | UG52: 0 | UH52: 0 | UI52: 0 | UJ52: 0 | UK52: 0 | UL52: 0 | UM52: 0 | UN52: 0 | UO52: 0 | UP52: 0 | UQ52: 0 | UR52: 0 | US52: 0 | UT52: 0 | UU52: 0 | UV52: 0 | UW52: 0 | UX52: 0 | UY52: 0 | UZ52: 0 | VA52: 0 | VB52: 0 | VC52: 0 | VD52: 0 | VE52: 0 | VF52: 0 | VG52: 0 | VH52: 0 | VI52: 0 | VJ52: 0 | VK52: 0 | VL52: 0 | VM52: 0 | VN52: 0 | VO52: 0 | VP52: 0 | VQ52: 0 | VR52: 0 | VS52: 0 | VT52: 0 | VU52: 0 | VV52: 0 | VW52: 0 | VX52: 0 | VY52: 0 | VZ52: 0 | WA52: 0 | WB52: 0 | WC52: 0 | WD52: 0 | WE52: 0 | WF52: 0 | WG52: 0 | WH52: 0 | WI52: 0 | WJ52: 0 | WK52: 0 | WL52: 0
G53: 40 | J53: 0 | K53: 0 | L53: 0 | M53: 0 | N53: 0 | O53: 0 | P53: 0 | Q53: 0 | R53: 0 | S53: 0 | T53: 0 | U53: 0 | V53: 0 | W53: 0 | X53: 0 | Y53: 0 | Z53: 0 | AA53: 0 | AB53: 0 | AC53: 0 | AD53: 0 | AE53: 0 | AF53: 0 | AG53: 0 | AH53: 0 | AI53: 0 | AJ53: 0 | AK53: 0 | AL53: 0 | AM53: 0 | AN53: 0 | AO53: 0 | AP53: 0 | AQ53: 0 | AR53: 0 | AS53: 0 | AT53: 0 | AU53: 0 | AV53: 0 | AW53: 0 | AX53: 0 | AY53: 0 | AZ53: 0 | BA53: 0 | BB53: 0 | BC53: 0 | BD53: 0 | BE53: 0 | BF53: 0 | BG53: 0 | BH53: 0 | BI53: 0 | BJ53: 0 | BK53: 0 | BL53: 0 | BM53: 0 | BN53: 0 | BO53: 0 | BP53: 0 | BQ53: 0 | BR53: 0 | BS53: 0 | BT53: 0 | BU53: 0 | BV53: 0 | BW53: 0 | BX53: 0 | BY53: 0 | BZ53: 0 | CA53: 0 | CB53: 0 | CC53: 0 | CD53: 0 | CE53: 0 | CF53: 0 | CG53: 0 | CH53: 0 | CI53: 0 | CJ53: 0 | CK53: 0 | CL53: 0 | CM53: 0 | CN53: 0 | CO53: 0 | CP53: 0 | CQ53: 0 | CR53: 0 | CS53: 0 | CT53: 0 | CU53: 0 | CV53: 0 | CW53: 0 | CX53: 0 | CY53: 0 | CZ53: 0 | DA53: 0 | DB53: 0 | DC53: 0 | DD53: 0 | DE53: 0 | DF53: 0 | DG53: 0 | DH53: 0 | DI53: 0 | DJ53: 0 | DK53: 0 | DL53: 0 | DM53: 0 | DN53: 0 | DO53: 0 | DP53: 0 | DQ53: 0 | DR53: 0 | DS53: 0 | DT53: 0 | DU53: 0 | DV53: 0 | DW53: 0 | DX53: 0 | DY53: 0 | DZ53: 0 | EA53: 0 | EB53: 0 | EC53: 0 | ED53: 0 | EE53: 0 | EF53: 0 | EG53: 0 | EH53: 0 | EI53: 0 | EJ53: 0 | EK53: 0 | EL53: 0 | EM53: 0 | EN53: 0 | EO53: 0 | EP53: 0 | EQ53: 0 | ER53: 0 | ES53: 0 | ET53: 0 | EU53: 0 | EV53: 0 | EW53: 0 | EX53: 0 | EY53: 0 | EZ53: 0 | FA53: 0 | FB53: 0 | FC53: 0 | FD53: 0 | FE53: 0 | FF53: 0 | FG53: 0 | FH53: 0 | FI53: 0 | FJ53: 0 | FK53: 0 | FL53: 0 | FM53: 0 | FN53: 0 | FO53: 0 | FP53: 0 | FQ53: 0 | FR53: 0 | FS53: 0 | FT53: 0 | FU53: 0 | FV53: 0 | FW53: 0 | FX53: 0 | FY53: 0 | FZ53: 0 | GA53: 0 | GB53: 0 | GC53: 0 | GD53: 0 | GE53: 0 | GF53: 0 | GG53: 0 | GH53: 0 | GI53: 0 | GJ53: 0 | GK53: 0 | GL53: 0 | GM53: 0 | GN53: 0 | GO53: 0 | GP53: 0 | GQ53: 0 | GR53: 0 | GS53: 0 | GT53: 0 | GU53: 0 | GV53: 0 | GW53: 0 | GX53: 0 | GY53: 0 | GZ53: 0 | HA53: 0 | HB53: 0 | HC53: 0 | HD53: 0 | HE53: 0 | HF53: 0 | HG53: 0 | HH53: 0 | HI53: 0 | HJ53: 0 | HK53: 0 | HL53: 0 | HM53: 0 | HN53: 0 | HO53: 0 | HP53: 0 | HQ53: 0 | HR53: 0 | HS53: 0 | HT53: 0 | HU53: 0 | HV53: 0 | HW53: 0 | HX53: 0 | HY53: 0 | HZ53: 0 | IA53: 0 | IB53: 0 | IC53: 0 | ID53: 0 | IE53: 0 | IF53: 0 | IG53: 0 | IH53: 0 | II53: 0 | IJ53: 0 | IK53: 0 | IL53: 0 | IM53: 0 | IN53: 0 | IO53: 0 | IP53: 0 | IQ53: 0 | IR53: 0 | IS53: 0 | IT53: 0 | IU53: 0 | IV53: 0 | IW53: 0 | IX53: 0 | IY53: 0 | IZ53: 0 | JA53: 0 | JB53: 0 | JC53: 0 | JD53: 0 | JE53: 0 | JF53: 0 | JG53: 0 | JH53: 0 | JI53: 0 | JJ53: 0 | JK53: 0 | JL53: 0 | JM53: 0 | JN53: 0 | JO53: 0 | JP53: 0 | JQ53: 0 | JR53: 0 | JS53: 0 | JT53: 0 | JU53: 0 | JV53: 0 | JW53: 0 | JX53: 0 | JY53: 0 | JZ53: 0 | KA53: 0 | KB53: 0 | KC53: 0 | KD53: 0 | KE53: 0 | KF53: 0 | KG53: 0 | KH53: 0 | KI53: 0 | KJ53: 0 | KK53: 0 | KL53: 0 | KM53: 0 | KN53: 0 | KO53: 0 | KP53: 0 | KQ53: 0 | KR53: 0 | KS53: 0 | KT53: 0 | KU53: 0 | KV53: 0 | KW53: 0 | KX53: 0 | KY53: 0 | KZ53: 0 | LA53: 0 | LB53: 0 | LC53: 0 | LD53: 0 | LE53: 0 | LF53: 0 | LG53: 0 | LH53: 0 | LI53: 0 | LJ53: 0 | LK53: 0 | LL53: 0 | LM53: 0 | LN53: 0 | LO53: 0 | LP53: 0 | LQ53: 0 | LR53: 0 | LS53: 0 | LT53: 0 | LU53: 0 | LV53: 0 | LW53: 0 | LX53: 0 | LY53: 0 | LZ53: 0 | MA53: 0 | MB53: 0 | MC53: 0 | MD53: 0 | ME53: 0 | MF53: 0 | MG53: 0 | MH53: 0 | MI53: 0 | MJ53: 0 | MK53: 0 | ML53: 0 | MM53: 0 | MN53: 0 | MO53: 0 | MP53: 0 | MQ53: 0 | MR53: 0 | MS53: 0 | MT53: 0 | MU53: 0 | MV53: 0 | MW53: 0 | MX53: 0 | MY53: 0 | MZ53: 0 | NA53: 0 | NB53: 0 | NC53: 0 | ND53: 0 | NE53: 0 | NF53: 0 | NG53: 0 | NH53: 0 | NI53: 0 | NJ53: 0 | NK53: 0 | NL53: 0 | NM53: 0 | NN53: 0 | NO53: 0 | NP53: 0 | NQ53: 0 | NR53: 0 | NS53: 0 | NT53: 0 | NU53: 0 | NV53: 0 | NW53: 0 | NX53: 0 | NY53: 0 | NZ53: 0 | OA53: 0 | OB53: 0 | OC53: 0 | OD53: 0 | OE53: 0 | OF53: 0 | OG53: 0 | OH53: 0 | OI53: 0 | OJ53: 0 | OK53: 0 | OL53: 0 | OM53: 0 | ON53: 0 | OO53: 0 | OP53: 0 | OQ53: 0 | OR53: 0 | OS53: 0 | OT53: 0 | OU53: 0 | OV53: 0 | OW53: 0 | OX53: 0 | OY53: 0 | OZ53: 0 | PA53: 0 | PB53: 0 | PC53: 0 | PD53: 0 | PE53: 0 | PF53: 0 | PG53: 0 | PH53: 0 | PI53: 0 | PJ53: 0 | PK53: 0 | PL53: 0 | PM53: 0 | PN53: 0 | PO53: 0 | PP53: 0 | PQ53: 0 | PR53: 0 | PS53: 0 | PT53: 0 | PU53: 0 | PV53: 0 | PW53: 0 | PX53: 0 | PY53: 0 | PZ53: 0 | QA53: 0 | QB53: 0 | QC53: 0 | QD53: 0 | QE53: 0 | QF53: 0 | QG53: 0 | QH53: 0 | QI53: 0 | QJ53: 0 | QK53: 0 | QL53: 0 | QM53: 0 | QN53: 0 | QO53: 0 | QP53: 0 | QQ53: 0 | QR53: 0 | QS53: 0 | QT53: 0 | QU53: 0 | QV53: 0 | QW53: 0 | QX53: 0 | QY53: 0 | QZ53: 0 | RA53: 0 | RB53: 0 | RC53: 0 | RD53: 0 | RE53: 0 | RF53: 0 | RG53: 0 | RH53: 0 | RI53: 0 | RJ53: 0 | RK53: 0 | RL53: 0 | RM53: 0 | RN53: 0 | RO53: 0 | RP53: 0 | RQ53: 0 | RR53: 0 | RS53: 0 | RT53: 0 | RU53: 0 | RV53: 0 | RW53: 0 | RX53: 0 | RY53: 0 | RZ53: 0 | SA53: 0 | SB53: 0 | SC53: 0 | SD53: 0 | SE53: 0 | SF53: 0 | SG53: 0 | SH53: 0 | SI53: 0 | SJ53: 0 | SK53: 0 | SL53: 0 | SM53: 0 | SN53: 0 | SO53: 0 | SP53: 0 | SQ53: 0 | SR53: 0 | SS53: 0 | ST53: 0 | SU53: 0 | SV53: 0 | SW53: 0 | SX53: 0 | SY53: 0 | SZ53: 0 | TA53: 0 | TB53: 0 | TC53: 0 | TD53: 0 | TE53: 0 | TF53: 0 | TG53: 0 | TH53: 0 | TI53: 0 | TJ53: 0 | TK53: 0 | TL53: 0 | TM53: 0 | TN53: 0 | TO53: 0 | TP53: 0 | TQ53: 0 | TR53: 0 | TS53: 0 | TT53: 0 | TU53: 0 | TV53: 0 | TW53: 0 | TX53: 0 | TY53: 0 | TZ53: 0 | UA53: 0 | UB53: 0 | UC53: 0 | UD53: 0 | UE53: 0 | UF53: 0 | UG53: 0 | UH53: 0 | UI53: 0 | UJ53: 0 | UK53: 0 | UL53: 0 | UM53: 0 | UN53: 0 | UO53: 0 | UP53: 0 | UQ53: 0 | UR53: 0 | US53: 0 | UT53: 0 | UU53: 0 | UV53: 0 | UW53: 0 | UX53: 0 | UY53: 0 | UZ53: 0 | VA53: 0 | VB53: 0 | VC53: 0 | VD53: 0 | VE53: 0 | VF53: 0 | VG53: 0 | VH53: 0 | VI53: 0 | VJ53: 0 | VK53: 0 | VL53: 0 | VM53: 0 | VN53: 0 | VO53: 0 | VP53: 0 | VQ53: 0 | VR53: 0 | VS53: 0 | VT53: 0 | VU53: 0 | VV53: 0 | VW53: 0 | VX53: 0 | VY53: 0 | VZ53: 0 | WA53: 0 | WB53: 0 | WC53: 0 | WD53: 0 | WE53: 0 | WF53: 0 | WG53: 0 | WH53: 0 | WI53: 0 | WJ53: 0 | WK53: 0 | WL53: 0
G54: 41 | J54: 0 | K54: 0 | L54: 0 | M54: 0 | N54: 0 | O54: 0 | P54: 0 | Q54: 0 | R54: 0 | S54: 0 | T54: 0 | U54: 0 | V54: 0 | W54: 0 | X54: 0 | Y54: 0 | Z54: 0 | AA54: 0 | AB54: 0 | AC54: 0 | AD54: 0 | AE54: 0 | AF54: 0 | AG54: 0 | AH54: 0 | AI54: 0 | AJ54: 0 | AK54: 0 | AL54: 0 | AM54: 0 | AN54: 0 | AO54: 0 | AP54: 0 | AQ54: 0 | AR54: 0 | AS54: 0 | AT54: 0 | AU54: 0 | AV54: 0 | AW54: 0 | AX54: 0 | AY54: 0 | AZ54: 0 | BA54: 0 | BB54: 0 | BC54: 0 | BD54: 0 | BE54: 0 | BF54: 0 | BG54: 0 | BH54: 0 | BI54: 0 | BJ54: 0 | BK54: 0 | BL54: 0 | BM54: 0 | BN54: 0 | BO54: 0 | BP54: 0 | BQ54: 0 | BR54: 0 | BS54: 0 | BT54: 0 | BU54: 0 | BV54: 0 | BW54: 0 | BX54: 0 | BY54: 0 | BZ54: 0 | CA54: 0 | CB54: 0 | CC54: 0 | CD54: 0 | CE54: 0 | CF54: 0 | CG54: 0 | CH54: 0 | CI54: 0 | CJ54: 0 | CK54: 0 | CL54: 0 | CM54: 0 | CN54: 0 | CO54: 0 | CP54: 0 | CQ54: 0 | CR54: 0 | CS54: 0 | CT54: 0 | CU54: 0 | CV54: 0 | CW54: 0 | CX54: 0 | CY54: 0 | CZ54: 0 | DA54: 0 | DB54: 0 | DC54: 0 | DD54: 0 | DE54: 0 | DF54: 0 | DG54: 0 | DH54: 0 | DI54: 0 | DJ54: 0 | DK54: 0 | DL54: 0 | DM54: 0 | DN54: 0 | DO54: 0 | DP54: 0 | DQ54: 0 | DR54: 0 | DS54: 0 | DT54: 0 | DU54: 0 | DV54: 0 | DW54: 0 | DX54: 0 | DY54: 0 | DZ54: 0 | EA54: 0 | EB54: 0 | EC54: 0 | ED54: 0 | EE54: 0 | EF54: 0 | EG54: 0 | EH54: 0 | EI54: 0 | EJ54: 0 | EK54: 0 | EL54: 0 | EM54: 0 | EN54: 0 | EO54: 0 | EP54: 0 | EQ54: 0 | ER54: 0 | ES54: 0 | ET54: 0 | EU54: 0 | EV54: 0 | EW54: 0 | EX54: 0 | EY54: 0 | EZ54: 0 | FA54: 0 | FB54: 0 | FC54: 0 | FD54: 0 | FE54: 0 | FF54: 0 | FG54: 0 | FH54: 0 | FI54: 0 | FJ54: 0 | FK54: 0 | FL54: 0 | FM54: 0 | FN54: 0 | FO54: 0 | FP54: 0 | FQ54: 0 | FR54: 0 | FS54: 0 | FT54: 0 | FU54: 0 | FV54: 0 | FW54: 0 | FX54: 0 | FY54: 0 | FZ54: 0 | GA54: 0 | GB54: 0 | GC54: 0 | GD54: 0 | GE54: 0 | GF54: 0 | GG54: 0 | GH54: 0 | GI54: 0 | GJ54: 0 | GK54: 0 | GL54: 0 | GM54: 0 | GN54: 0 | GO54: 0 | GP54: 0 | GQ54: 0 | GR54: 0 | GS54: 0 | GT54: 0 | GU54: 0 | GV54: 0 | GW54: 0 | GX54: 0 | GY54: 0 | GZ54: 0 | HA54: 0 | HB54: 0 | HC54: 0 | HD54: 0 | HE54: 0 | HF54: 0 | HG54: 0 | HH54: 0 | HI54: 0 | HJ54: 0 | HK54: 0 | HL54: 0 | HM54: 0 | HN54: 0 | HO54: 0 | HP54: 0 | HQ54: 0 | HR54: 0 | HS54: 0 | HT54: 0 | HU54: 0 | HV54: 0 | HW54: 0 | HX54: 0 | HY54: 0 | HZ54: 0 | IA54: 0 | IB54: 0 | IC54: 0 | ID54: 0 | IE54: 0 | IF54: 0 | IG54: 0 | IH54: 0 | II54: 0 | IJ54: 0 | IK54: 0 | IL54: 0 | IM54: 0 | IN54: 0 | IO54: 0 | IP54: 0 | IQ54: 0 | IR54: 0 | IS54: 0 | IT54: 0 | IU54: 0 | IV54: 0 | IW54: 0 | IX54: 0 | IY54: 0 | IZ54: 0 | JA54: 0 | JB54: 0 | JC54: 0 | JD54: 0 | JE54: 0 | JF54: 0 | JG54: 0 | JH54: 0 | JI54: 0 | JJ54: 0 | JK54: 0 | JL54: 0 | JM54: 0 | JN54: 0 | JO54: 0 | JP54: 0 | JQ54: 0 | JR54: 0 | JS54: 0 | JT54: 0 | JU54: 0 | JV54: 0 | JW54: 0 | JX54: 0 | JY54: 0 | JZ54: 0 | KA54: 0 | KB54: 0 | KC54: 0 | KD54: 0 | KE54: 0 | KF54: 0 | KG54: 0 | KH54: 0 | KI54: 0 | KJ54: 0 | KK54: 0 | KL54: 0 | KM54: 0 | KN54: 0 | KO54: 0 | KP54: 0 | KQ54: 0 | KR54: 0 | KS54: 0 | KT54: 0 | KU54: 0 | KV54: 0 | KW54: 0 | KX54: 0 | KY54: 0 | KZ54: 0 | LA54: 0 | LB54: 0 | LC54: 0 | LD54: 0 | LE54: 0 | LF54: 0 | LG54: 0 | LH54: 0 | LI54: 0 | LJ54: 0 | LK54: 0 | LL54: 0 | LM54: 0 | LN54: 0 | LO54: 0 | LP54: 0 | LQ54: 0 | LR54: 0 | LS54: 0 | LT54: 0 | LU54: 0 | LV54: 0 | LW54: 0 | LX54: 0 | LY54: 0 | LZ54: 0 | MA54: 0 | MB54: 0 | MC54: 0 | MD54: 0 | ME54: 0 | MF54: 0 | MG54: 0 | MH54: 0 | MI54: 0 | MJ54: 0 | MK54: 0 | ML54: 0 | MM54: 0 | MN54: 0 | MO54: 0 | MP54: 0 | MQ54: 0 | MR54: 0 | MS54: 0 | MT54: 0 | MU54: 0 | MV54: 0 | MW54: 0 | MX54: 0 | MY54: 0 | MZ54: 0 | NA54: 0 | NB54: 0 | NC54: 0 | ND54: 0 | NE54: 0 | NF54: 0 | NG54: 0 | NH54: 0 | NI54: 0 | NJ54: 0 | NK54: 0 | NL54: 0 | NM54: 0 | NN54: 0 | NO54: 0 | NP54: 0 | NQ54: 0 | NR54: 0 | NS54: 0 | NT54: 0 | NU54: 0 | NV54: 0 | NW54: 0 | NX54: 0 | NY54: 0 | NZ54: 0 | OA54: 0 | OB54: 0 | OC54: 0 | OD54: 0 | OE54: 0 | OF54: 0 | OG54: 0 | OH54: 0 | OI54: 0 | OJ54: 0 | OK54: 0 | OL54: 0 | OM54: 0 | ON54: 0 | OO54: 0 | OP54: 0 | OQ54: 0 | OR54: 0 | OS54: 0 | OT54: 0 | OU54: 0 | OV54: 0 | OW54: 0 | OX54: 0 | OY54: 0 | OZ54: 0 | PA54: 0 | PB54: 0 | PC54: 0 | PD54: 0 | PE54: 0 | PF54: 0 | PG54: 0 | PH54: 0 | PI54: 0 | PJ54: 0 | PK54: 0 | PL54: 0 | PM54: 0 | PN54: 0 | PO54: 0 | PP54: 0 | PQ54: 0 | PR54: 0 | PS54: 0 | PT54: 0 | PU54: 0 | PV54: 0 | PW54: 0 | PX54: 0 | PY54: 0 | PZ54: 0 | QA54: 0 | QB54: 0 | QC54: 0 | QD54: 0 | QE54: 0 | QF54: 0 | QG54: 0 | QH54: 0 | QI54: 0 | QJ54: 0 | QK54: 0 | QL54: 0 | QM54: 0 | QN54: 0 | QO54: 0 | QP54: 0 | QQ54: 0 | QR54: 0 | QS54: 0 | QT54: 0 | QU54: 0 | QV54: 0 | QW54: 0 | QX54: 0 | QY54: 0 | QZ54: 0 | RA54: 0 | RB54: 0 | RC54: 0 | RD54: 0 | RE54: 0 | RF54: 0 | RG54: 0 | RH54: 0 | RI54: 0 | RJ54: 0 | RK54: 0 | RL54: 0 | RM54: 0 | RN54: 0 | RO54: 0 | RP54: 0 | RQ54: 0 | RR54: 0 | RS54: 0 | RT54: 0 | RU54: 0 | RV54: 0 | RW54: 0 | RX54: 0 | RY54: 0 | RZ54: 0 | SA54: 0 | SB54: 0 | SC54: 0 | SD54: 0 | SE54: 0 | SF54: 0 | SG54: 0 | SH54: 0 | SI54: 0 | SJ54: 0 | SK54: 0 | SL54: 0 | SM54: 0 | SN54: 0 | SO54: 0 | SP54: 0 | SQ54: 0 | SR54: 0 | SS54: 0 | ST54: 0 | SU54: 0 | SV54: 0 | SW54: 0 | SX54: 0 | SY54: 0 | SZ54: 0 | TA54: 0 | TB54: 0 | TC54: 0 | TD54: 0 | TE54: 0 | TF54: 0 | TG54: 0 | TH54: 0 | TI54: 0 | TJ54: 0 | TK54: 0 | TL54: 0 | TM54: 0 | TN54: 0 | TO54: 0 | TP54: 0 | TQ54: 0 | TR54: 0 | TS54: 0 | TT54: 0 | TU54: 0 | TV54: 0 | TW54: 0 | TX54: 0 | TY54: 0 | TZ54: 0 | UA54: 0 | UB54: 0 | UC54: 0 | UD54: 0 | UE54: 0 | UF54: 0 | UG54: 0 | UH54: 0 | UI54: 0 | UJ54: 0 | UK54: 0 | UL54: 0 | UM54: 0 | UN54: 0 | UO54: 0 | UP54: 0 | UQ54: 0 | UR54: 0 | US54: 0 | UT54: 0 | UU54: 0 | UV54: 0 | UW54: 0 | UX54: 0 | UY54: 0 | UZ54: 0 | VA54: 0 | VB54: 0 | VC54: 0 | VD54: 0 | VE54: 0 | VF54: 0 | VG54: 0 | VH54: 0 | VI54: 0 | VJ54: 0 | VK54: 0 | VL54: 0 | VM54: 0 | VN54: 0 | VO54: 0 | VP54: 0 | VQ54: 0 | VR54: 0 | VS54: 0 | VT54: 0 | VU54: 0 | VV54: 0 | VW54: 0 | VX54: 0 | VY54: 0 | VZ54: 0 | WA54: 0 | WB54: 0 | WC54: 0 | WD54: 0 | WE54: 0 | WF54: 0 | WG54: 0 | WH54: 0 | WI54: 0 | WJ54: 0 | WK54: 0 | WL54: 0
G55: 42 | J55: 0 | K55: 0 | L55: 0 | M55: 0 | N55: 0 | O55: 0 | P55: 0 | Q55: 0 | R55: 0 | S55: 0 | T55: 0 | U55: 0 | V55: 0 | W55: 0 | X55: 0 | Y55: 0 | Z55: 0 | AA55: 0 | AB55: 0 | AC55: 0 | AD55: 0 | AE55: 0 | AF55: 0 | AG55: 0 | AH55: 0 | AI55: 0 | AJ55: 0 | AK55: 0 | AL55: 0 | AM55: 0 | AN55: 0 | AO55: 0 | AP55: 0 | AQ55: 0 | AR55: 0 | AS55: 0 | AT55: 0 | AU55: 0 | AV55: 0 | AW55: 0 | AX55: 0 | AY55: 0 | AZ55: 0 | BA55: 0 | BB55: 0 | BC55: 0 | BD55: 0 | BE55: 0 | BF55: 0 | BG55: 0 | BH55: 0 | BI55: 0 | BJ55: 0 | BK55: 0 | BL55: 0 | BM55: 0 | BN55: 0 | BO55: 0 | BP55: 0 | BQ55: 0 | BR55: 0 | BS55: 0 | BT55: 0 | BU55: 0 | BV55: 0 | BW55: 0 | BX55: 0 | BY55: 0 | BZ55: 0 | CA55: 0 | CB55: 0 | CC55: 0 | CD55: 0 | CE55: 0 | CF55: 0 | CG55: 0 | CH55: 0 | CI55: 0 | CJ55: 0 | CK55: 0 | CL55: 0 | CM55: 0 | CN55: 0 | CO55: 0 | CP55: 0 | CQ55: 0 | CR55: 0 | CS55: 0 | CT55: 0 | CU55: 0 | CV55: 0 | CW55: 0 | CX55: 0 | CY55: 0 | CZ55: 0 | DA55: 0 | DB55: 0 | DC55: 0 | DD55: 0 | DE55: 0 | DF55: 0 | DG55: 0 | DH55: 0 | DI55: 0 | DJ55: 0 | DK55: 0 | DL55: 0 | DM55: 0 | DN55: 0 | DO55: 0 | DP55: 0 | DQ55: 0 | DR55: 0 | DS55: 0 | DT55: 0 | DU55: 0 | DV55: 0 | DW55: 0 | DX55: 0 | DY55: 0 | DZ55: 0 | EA55: 0 | EB55: 0 | EC55: 0 | ED55: 0 | EE55: 0 | EF55: 0 | EG55: 0 | EH55: 0 | EI55: 0 | EJ55: 0 | EK55: 0 | EL55: 0 | EM55: 0 | EN55: 0 | EO55: 0 | EP55: 0 | EQ55: 0 | ER55: 0 | ES55: 0 | ET55: 0 | EU55: 0 | EV55: 0 | EW55: 0 | EX55: 0 | EY55: 0 | EZ55: 0 | FA55: 0 | FB55: 0 | FC55: 0 | FD55: 0 | FE55: 0 | FF55: 0 | FG55: 0 | FH55: 0 | FI55: 0 | FJ55: 0 | FK55: 0 | FL55: 0 | FM55: 0 | FN55: 0 | FO55: 0 | FP55: 0 | FQ55: 0 | FR55: 0 | FS55: 0 | FT55: 0 | FU55: 0 | FV55: 0 | FW55: 0 | FX55: 0 | FY55: 0 | FZ55: 0 | GA55: 0 | GB55: 0 | GC55: 0 | GD55: 0 | GE55: 0 | GF55: 0 | GG55: 0 | GH55: 0 | GI55: 0 | GJ55: 0 | GK55: 0 | GL55: 0 | GM55: 0 | GN55: 0 | GO55: 0 | GP55: 0 | GQ55: 0 | GR55: 0 | GS55: 0 | GT55: 0 | GU55: 0 | GV55: 0 | GW55: 0 | GX55: 0 | GY55: 0 | GZ55: 0 | HA55: 0 | HB55: 0 | HC55: 0 | HD55: 0 | HE55: 0 | HF55: 0 | HG55: 0 | HH55: 0 | HI55: 0 | HJ55: 0 | HK55: 0 | HL55: 0 | HM55: 0 | HN55: 0 | HO55: 0 | HP55: 0 | HQ55: 0 | HR55: 0 | HS55: 0 | HT55: 0 | HU55: 0 | HV55: 0 | HW55: 0 | HX55: 0 | HY55: 0 | HZ55: 0 | IA55: 0 | IB55: 0 | IC55: 0 | ID55: 0 | IE55: 0 | IF55: 0 | IG55: 0 | IH55: 0 | II55: 0 | IJ55: 0 | IK55: 0 | IL55: 0 | IM55: 0 | IN55: 0 | IO55: 0 | IP55: 0 | IQ55: 0 | IR55: 0 | IS55: 0 | IT55: 0 | IU55: 0 | IV55: 0 | IW55: 0 | IX55: 0 | IY55: 0 | IZ55: 0 | JA55: 0 | JB55: 0 | JC55: 0 | JD55: 0 | JE55: 0 | JF55: 0 | JG55: 0 | JH55: 0 | JI55: 0 | JJ55: 0 | JK55: 0 | JL55: 0 | JM55: 0 | JN55: 0 | JO55: 0 | JP55: 0 | JQ55: 0 | JR55: 0 | JS55: 0 | JT55: 0 | JU55: 0 | JV55: 0 | JW55: 0 | JX55: 0 | JY55: 0 | JZ55: 0 | KA55: 0 | KB55: 0 | KC55: 0 | KD55: 0 | KE55: 0 | KF55: 0 | KG55: 0 | KH55: 0 | KI55: 0 | KJ55: 0 | KK55: 0 | KL55: 0 | KM55: 0 | KN55: 0 | KO55: 0 | KP55: 0 | KQ55: 0 | KR55: 0 | KS55: 0 | KT55: 0 | KU55: 0 | KV55: 0 | KW55: 0 | KX55: 0 | KY55: 0 | KZ55: 0 | LA55: 0 | LB55: 0 | LC55: 0 | LD55: 0 | LE55: 0 | LF55: 0 | LG55: 0 | LH55: 0 | LI55: 0 | LJ55: 0 | LK55: 0 | LL55: 0 | LM55: 0 | LN55: 0 | LO55: 0 | LP55: 0 | LQ55: 0 | LR55: 0 | LS55: 0 | LT55: 0 | LU55: 0 | LV55: 0 | LW55: 0 | LX55: 0 | LY55: 0 | LZ55: 0 | MA55: 0 | MB55: 0 | MC55: 0 | MD55: 0 | ME55: 0 | MF55: 0 | MG55: 0 | MH55: 0 | MI55: 0 | MJ55: 0 | MK55: 0 | ML55: 0 | MM55: 0 | MN55: 0 | MO55: 0 | MP55: 0 | MQ55: 0 | MR55: 0 | MS55: 0 | MT55: 0 | MU55: 0 | MV55: 0 | MW55: 0 | MX55: 0 | MY55: 0 | MZ55: 0 | NA55: 0 | NB55: 0 | NC55: 0 | ND55: 0 | NE55: 0 | NF55: 0 | NG55: 0 | NH55: 0 | NI55: 0 | NJ55: 0 | NK55: 0 | NL55: 0 | NM55: 0 | NN55: 0 | NO55: 0 | NP55: 0 | NQ55: 0 | NR55: 0 | NS55: 0 | NT55: 0 | NU55: 0 | NV55: 0 | NW55: 0 | NX55: 0 | NY55: 0 | NZ55: 0 | OA55: 0 | OB55: 0 | OC55: 0 | OD55: 0 | OE55: 0 | OF55: 0 | OG55: 0 | OH55: 0 | OI55: 0 | OJ55: 0 | OK55: 0 | OL55: 0 | OM55: 0 | ON55: 0 | OO55: 0 | OP55: 0 | OQ55: 0 | OR55: 0 | OS55: 0 | OT55: 0 | OU55: 0 | OV55: 0 | OW55: 0 | OX55: 0 | OY55: 0 | OZ55: 0 | PA55: 0 | PB55: 0 | PC55: 0 | PD55: 0 | PE55: 0 | PF55: 0 | PG55: 0 | PH55: 0 | PI55: 0 | PJ55: 0 | PK55: 0 | PL55: 0 | PM55: 0 | PN55: 0 | PO55: 0 | PP55: 0 | PQ55: 0 | PR55: 0 | PS55: 0 | PT55: 0 | PU55: 0 | PV55: 0 | PW55: 0 | PX55: 0 | PY55: 0 | PZ55: 0 | QA55: 0 | QB55: 0 | QC55: 0 | QD55: 0 | QE55: 0 | QF55: 0 | QG55: 0 | QH55: 0 | QI55: 0 | QJ55: 0 | QK55: 0 | QL55: 0 | QM55: 0 | QN55: 0 | QO55: 0 | QP55: 0 | QQ55: 0 | QR55: 0 | QS55: 0 | QT55: 0 | QU55: 0 | QV55: 0 | QW55: 0 | QX55: 0 | QY55: 0 | QZ55: 0 | RA55: 0 | RB55: 0 | RC55: 0 | RD55: 0 | RE55: 0 | RF55: 0 | RG55: 0 | RH55: 0 | RI55: 0 | RJ55: 0 | RK55: 0 | RL55: 0 | RM55: 0 | RN55: 0 | RO55: 0 | RP55: 0 | RQ55: 0 | RR55: 0 | RS55: 0 | RT55: 0 | RU55: 0 | RV55: 0 | RW55: 0 | RX55: 0 | RY55: 0 | RZ55: 0 | SA55: 0 | SB55: 0 | SC55: 0 | SD55: 0 | SE55: 0 | SF55: 0 | SG55: 0 | SH55: 0 | SI55: 0 | SJ55: 0 | SK55: 0 | SL55: 0 | SM55: 0 | SN55: 0 | SO55: 0 | SP55: 0 | SQ55: 0 | SR55: 0 | SS55: 0 | ST55: 0 | SU55: 0 | SV55: 0 | SW55: 0 | SX55: 0 | SY55: 0 | SZ55: 0 | TA55: 0 | TB55: 0 | TC55: 0 | TD55: 0 | TE55: 0 | TF55: 0 | TG55: 0 | TH55: 0 | TI55: 0 | TJ55: 0 | TK55: 0 | TL55: 0 | TM55: 0 | TN55: 0 | TO55: 0 | TP55: 0 | TQ55: 0 | TR55: 0 | TS55: 0 | TT55: 0 | TU55: 0 | TV55: 0 | TW55: 0 | TX55: 0 | TY55: 0 | TZ55: 0 | UA55: 0 | UB55: 0 | UC55: 0 | UD55: 0 | UE55: 0 | UF55: 0 | UG55: 0 | UH55: 0 | UI55: 0 | UJ55: 0 | UK55: 0 | UL55: 0 | UM55: 0 | UN55: 0 | UO55: 0 | UP55: 0 | UQ55: 0 | UR55: 0 | US55: 0 | UT55: 0 | UU55: 0 | UV55: 0 | UW55: 0 | UX55: 0 | UY55: 0 | UZ55: 0 | VA55: 0 | VB55: 0 | VC55: 0 | VD55: 0 | VE55: 0 | VF55: 0 | VG55: 0 | VH55: 0 | VI55: 0 | VJ55: 0 | VK55: 0 | VL55: 0 | VM55: 0 | VN55: 0 | VO55: 0 | VP55: 0 | VQ55: 0 | VR55: 0 | VS55: 0 | VT55: 0 | VU55: 0 | VV55: 0 | VW55: 0 | VX55: 0 | VY55: 0 | VZ55: 0 | WA55: 0 | WB55: 0 | WC55: 0 | WD55: 0 | WE55: 0 | WF55: 0 | WG55: 0 | WH55: 0 | WI55: 0 | WJ55: 0 | WK55: 0 | WL55: 0
